Workbook

Sheet Capa
C2: Modelo Econômico Financeiro Guararapes
C3: Modelo Econômico Financeiro
C6: Legenda das células
D8: Inputs
D9: Fórmulas
D10: Valores de outras abas
D11: Valores de outras planilhas
D12: Dados históricos

Sheet Dashboard
C2: =Capa!C2 -> Modelo Econômico Financeiro Guararapes
C3: =Capa!C3&" "&switch_inflacao -> Modelo Econômico Financeiro Constante
B4: > Retorno | L4: > Resumo
E8: Constante | M8: Entradas | P8: Resumo | Q8: R$ | R8: R$ MM | T8: Resumo CAPEX | U8: R$ | V8: R$ MM
C9: WACC | E9: =IF($E$8="Constante",Controle!E291,Controle!F291) -> 0.1153 | F9: =(1+E9)^(1/12)-1 -> 0.009135091484 | M9: Sens. Aporte | N9: 0.5637182535 | P9: Equity aprox | Q9: =(FM!$K$329+FM!$K$330)*10^3 -> 49000000 | R9: =Q9/10^6 -> 49 | T9: Capex (com ativação de custos) | U9: =Q12 -> 289664303.3 | V9: =U9/10^6 -> 289.6643033
C10: Ke | E10: =IF($E$8="Constante",Controle!E292,Controle!F292) -> 0.15 | F10: =(1+E10)^(1/12)-1 -> 0.01171491692 | M10: Ativação adicional do opex | N10: 0.2 | P10: Financiamento LP + Ponte | Q10: =Financiamento!G41+Financiamento!H41 -> 49000 | R10: =Q10/10^6 -> 0.049
M11: Bif. Ativo Financeiro | N11: 0.4066386844 | P11: Receitas | Q11: =DFs!H33*1000 -> 737902065.1 | R11: =Q11/10^6 -> 737.9020651 | T11: Capex (sem ativação de custos) | U11: =U9-DFs!H120*10^6 -> 155322452.8 | V11: =U11/10^6 -> 155.3224528
G12: Concessão | M12: Contraprestação Anual (R$) | N12: 8921769.1 | P12: Capex (com ativação de custos) | Q12: =-DFs!H121*1000 -> 289664303.3 | R12: 289.6643033 | T12: Ativos Imobiliários Reversíveis | U12: =SUM(DFs!H101:H102)*10^6 -> 12283084.88 | V12: =U12/10^6 -> 12.28308488
C13: TIR Real do Projeto Desalavancada (a.a) | F13: [%] | G13: =FM!I408 -> 0.1153000219 | M13: Financiamento Longo Prazo (R$) | N13: 49000000 | P13: Aporte Imobiliário | Q13: =Controle!K1013 -> 25274599.38 | R13: 25.27459938 | T13: Ambientes Urbanos | U13: =SUM(DFs!H103:H118)*10^6 -> 135078566.8 | V13: 135.0785668
C14: VPL | F14: [R$ 000] | G14: =ROUND(FM!H406,1) -> 0 | M14: Ponte (R$) | N14: 0 | P14: Aporte Pecuniário | Q14: =Controle!K1012 -> 50871654.4 | R14: 50.8716544 | T14: Despesas Pré-Operacionais | U14: =DFs!H119*10^6 -> 7960801.094 | V14: 7.960801094
C15: TIR Real Alavancada ao Acionista (a.a.) | F15: [%] | G15: =FM!I411 -> 0.127103741 | P15: Aporte Total | Q15: =Controle!K1011 -> 76146253.78 | R15: 76.14625378 | T15: Ativação de Custos | U15: =DFs!H120*10^6 -> 134341850.5 | V15: =U15/10^6 -> 134.3418505
C16: Payback do acionista | F16: [anos] | G16: =FM!K419/12 -> 12.41666667 | P16: Contraprestação Total | Q16: =Controle!K527 -> 233746238.7 | R16: 233.7462387
M17: Check | T17: Resumo Concessão | U17: R$ | V17: R$ MM
M18: CP Fixa | N18: =Tributos_GAAP!G376 -> 0.1429349641 | P18: Unidades Habitacionais | Q18: =E139 -> 873 | T18: Valor do Contrato | U18: =U20+U23 -> 309892492.5 | V18: =U18/10^6 -> 309.8924925
C19: Ambientes Urbanos | E19: Sim | M19: CP Variável | N19: =1-N18 -> 0.8570650359 | P19: ICSD Mínimo | Q19: =_xlfn.MINIFS(Financiamento!$Y$49:$Y$74,Financiamento!$Y$49:$Y$74,"<>"&0) -> 1.34
C20: Aporte | E20: Sim | M20: Verificação do Aporte | N20: =MIN(Controle!1012:1012) -> 0 | P20: Término Aporte | Q20: =EOMONTH(INDEX(Controle!$D$981:$D$1005,COUNTIF(Controle!$G$981:$G$1005,"<>0")+1,0),0)+1 -> 2032-02-01 | T20: Contraprestação Total | U20: =Q16 -> 233746238.7 | V20: =U20/10^6 -> 233.7462387
M21: =IF(AND(N20>=0,N18>=0,N18<=100%),"Aporte e CP ok","Aporte e/ou CP nok") -> Aporte e CP ok | P21: Ativo Financeiro | Q21: =IF(N12=0,ROUND(SUMIFS(Tributos_GAAP!$377:$377,Tributos_GAAP!$5:$5,Q20),4),ROUND(SUMIFS(Tributos_GAAP!$377:$377,Tributos_GAAP!$5:$5,Controle!$G$39),4)) -> 0 | T21: Contraprestação Anual Máxima | U21: =Controle!G510 -> 8921769.1 | V21: 8.9217691
P22: VPL (R$ 000) | Q22: =ROUND(G14,1) -> 0 | T22: Contraprestação Mensal Máxima | U22: =Controle!H510 -> 743480.7583 | V22: 0.7434807583
T23: Aporte Total | U23: =Q15 -> 76146253.78 | V23: 76.14625378
B26: > Premissas | L26: > Indicador
C28: Receitas | F28: % do Total | G28: Total (R$ 000) | H28: 0 | I28: Sensibilidade
C29: =Controle!D410 -> Estacionamento | F29: =G29/$G$34 -> 0.0850486846 | G29: =DFs!H28 -> 62757.6 | I29: =$H$28 -> 0
C30: =Controle!D411 -> Aluguel Fachada Ativa | F30: =G30/$G$34 -> 0.004995134415 | G30: =DFs!H29 -> 3685.92 | I30: =$H$28 -> 0
C31: =Controle!D412 -> Ambientes Urbanos | F31: 0.6017795079 | G31: =DFs!H30 -> 444054.3416 | I31: =$H$28 -> 0
C32: =Controle!D413 -> Contraprestação | F32: 0.2714936548 | G32: =DFs!H31 -> 200335.7285 | I32: =$H$28 -> 0
C33: =Controle!D414 -> Aluguel | F33: 0.03668301836 | G33: =DFs!H32 -> 27068.475 | I33: =$H$28 -> 0
C34: Total | F34: 1 | G34: =SUM(G29:G33) -> 737902.0651
C36: OPEX | F36: % do Total | G36: Total (R$ 000) | I36: Sensibilidade
C37: Custos Operacionais | F37: =G37/$G$39 -> 0.7435933114 | G37: =G55 -> -234399.9371 | I37: =H42 -> 0
C38: Despesa | F38: 0.2564066886 | G38: =G62 -> -80826.05207 | I38: =H57 -> 0
C39: Total | F39: =G39/$G$39 -> 1 | G39: =SUM(G37:G38) -> -315225.9892
C42: Custos Operacionais | F42: % do Total | G42: Total (R$ 000) | H42: 0 | I42: Sensibilidade
C43: =Controle!D562 -> Custo de Obra | F43: =G43/$G$55 -> 0 | G43: =DFs!H43 -> 0 | I43: =$H$42 -> 0
C44: =Controle!D563 -> Despesas Concessão | F44: 0.04607509768 | G44: =DFs!H44 -> -10800 | I44: =$H$42 -> 0
C45: =Controle!D564 -> Manejo e Conservação de Áreas Verde | F45: 0.0656839118 | G45: =DFs!H45 -> -15396.3048 | I45: 0
C46: =Controle!D565 -> Conservação e Limpeza | F46: 0.4791377883 | G46: =DFs!H46 -> -112309.8675 | I46: =$H$42 -> 0
C47: =Controle!D566 -> Utilidades | F47: 0.001240672349 | G47: =DFs!H47 -> -290.8135205 | I47: =$H$42 -> 0
C48: =Controle!D567 -> Segurança e Vigilância | F48: 0.06883506292 | G48: =DFs!H48 -> -16134.93442 | I48: =$H$42 -> 0
C49: =Controle!D568 -> Brigadistas | F49: 0.05436754319 | G49: =DFs!H49 -> -12743.74871 | I49: =$H$42 -> 0
C50: =Controle!D569 -> Manutenção | F50: 0.1810492719 | G50: =DFs!H50 -> -42437.93795 | I50: 0
C51: =Controle!D570 -> Comunicação Visual | F51: 0.00184105734 | G51: =DFs!H51 -> -431.5437247 | I51: =$H$42 -> 0
C52: =Controle!D571 -> Wifi | F52: 0.04478004407 | G52: =DFs!H52 -> -10496.43951 | I52: =$H$42 -> 0
C53: =Controle!D572 -> Despesas Gerais / Insumos | F53: 0.01220950637 | G53: =DFs!H53 -> -2861.907525 | I53: =$H$42 -> 0
C54: =Controle!D573 -> CFTV | F54: 0.04478004407 | G54: =DFs!H54 -> -10496.43951 | I54: =$H$42 -> 0
C55: Total | F55: =G55/$G$55 -> 1 | G55: =SUM(G43:G54) -> -234399.9371
C57: Despesas | F57: % do Total | G57: Total (R$ 000) | H57: 0 | I57: Sensibilidade
C58: =Controle!D843 -> Despesas com Venda Real Estate | F58: =G58/$G$62 -> 0 | G58: =DFs!H57 -> 0 | I58: =$H$57 -> 0
C59: =Controle!D844 -> G&A | F59: 0.668101418 | G59: =DFs!H58 -> -54000 | I59: =$H$57 -> 0
C60: =Controle!D845 -> Seguros | F60: 0.331898582 | G60: =DFs!H59 -> -26826.05207 | I60: 0
C61: =Controle!D846 -> Repex Despesados | F61: 0 | G61: =DFs!H60 -> 0 | I61: 0
F62: =G62/$G$62 -> 1 | G62: =SUM(G58:G61) -> -80826.05207
C64: Capex | F64: RES Venda (R$/m²) | G64: Cenário | H64: 0 | I64: Sensibilidade
C65: =Controle!D876 -> Ativo Imobiliário 01 | F65: 0 | G65: Locação | I65: =$H$64 -> 0
C66: =Controle!D877 -> Ativo Imobiliário 02 | F66: 0 | G66: Locação | I66: =$H$64 -> 0
C67: =Controle!D878 -> Orla Sol Nascente - Etapa 1 | G67: Ambientes Urbanos | I67: =IF($E$19="Sim",$H$64,-100%) -> 0
C68: =Controle!D882 -> Vias Compartilhadas - Etapa 1 | G68: Ambientes Urbanos | I68: 0
C69: =Controle!D883 -> Praça da Independência | G69: Ambientes Urbanos | I69: 0
C70: =Controle!D884 -> Rua 1º de Março | G70: Ambientes Urbanos | I70: 0
C71: =Controle!D885 -> Av Guararapes - Etapa 2 | G71: Ambientes Urbanos | I71: 0
C72: =Controle!D886 -> Praça do Sebo | G72: Ambientes Urbanos | I72: 0
C73: =Controle!D887 -> Vias Compartilhadas - Etapa 2 | G73: Ambientes Urbanos | I73: 0
C74: =Controle!D888 -> Av Dantas Barreto - Etapa 1 | G74: Ambientes Urbanos | I74: 0
C75: =Controle!D889 -> Av Dantas Barreto - Etapa 2 | G75: Ambientes Urbanos | I75: 0
C76: =Controle!D890 -> Av Dantas Barreto - Etapa 3 | G76: Ambientes Urbanos | I76: 0
C77: =Controle!D891 -> Orla Sol Poente - Etapa 1 | G77: Ambientes Urbanos | I77: 0
C78: =Controle!D892 -> Orla Sol Poente - Etapa 2 | G78: Ambientes Urbanos | I78: 0
C79: =Controle!D893 -> Vias Compartilhadas - Etapa 3 e Demais Vias | G79: Ambientes Urbanos | I79: 0
C80: =Controle!D894 -> Despesas Pré-Operacionais | I80: =$H$64 -> 0
C81: =Controle!D895 -> Ativação do opex | I81: =$H$64 -> 0
C84: Cálculo do Aporte
C85: Sensibilidade Aporte | I85: =N9 -> 0.5637182535
C86: Bifurcação Ativo Financeiro | I86: =N11 -> 0.4066386844
C88: Aporte Imobiliário | F88: Recebimento | G88: Valor de Mercado (R$)
C89: ATIVO IMOBILIÁRIO HIS 08 | F89: 2028-01-01 | G89: 3620640
C90: ATIVO IMOBILIÁRIO HIS 05 | F90: 2028-01-01 | G90: 5291233.333
C91: ATIVO IMOBILIÁRIO HIS 03 | F91: 2027-08-01 | G91: 1217590.05
C92: ATIVO IMOBILIÁRIO HIS 06 | F92: 2028-08-01 | G92: 2985226.667
C93: ATIVO IMOBILIÁRIO HIS 04 | F93: 2028-01-01 | G93: 463040
C94: ATIVO IMOBILIÁRIO HIS 02 | F94: 2027-01-01 | G94: 0
C95: ATIVO IMOBILIÁRIO HIS 07 | F95: 2028-08-01 | G95: 795449.3333
C96: ATIVO IMOBILIÁRIO HIS 12 | F96: 2031-01-01 | G96: 2732980
C97: ATIVO IMOBILIÁRIO HIS 11 | F97: 2031-01-01 | G97: 3822000
C98: ATIVO IMOBILIÁRIO HIS 01 | F98: 2027-01-01 | G98: 0
C99: ATIVO IMOBILIÁRIO HIS 09 | F99: 2029-08-01 | G99: 1851200
C100: ATIVO IMOBILIÁRIO HIS 10 | F100: 2029-08-01 | G100: 2495240
C102: TOTAL | G102: =SUM(G89:G100) -> 25274599.38
C105: Cronograma | D105: UH
C106: RN-04 Sulacap | D106: 105 | E106: =F89 -> 2028-01-01
C107: RN-05 Boa Vista 2 Dorms | D107: 100 | E107: =F90 -> 2028-01-01
C108: RN-06 Bandepe | D108: 49 | E108: 2027-08-01
C109: RN-08 Almare | D109: 106 | E109: 2028-08-01
C110: RN-11 Arnaldo Bastos | D110: 32 | E110: 2028-01-01
C111: RN10 e RN12 | D111: 154 | E111: 2027-01-01
C112: ZI07 | D112: 36 | E112: 2028-08-01
C113: ZI08 | D113: 60 | E113: 2031-01-01
C114: ZI01 | D114: 75 | E114: 2031-01-01
C115: ZI02 | D115: 78 | E115: 2027-01-01
C116: ZI05 | D116: 36 | E116: 2029-08-01
C117: ZI06 | D117: 42 | E117: 2029-08-01
C119: Unidades Habitacionais
D120: =Controle!D981 -> 2027-01-01 | E120: =SUMIFS($D$106:$D$118,E$106:E$118,$D120) -> 232 | F120: =E120/E$139 -> 0.2657502864
D121: =Controle!D982 -> 2027-08-01 | E121: 49 | F121: 0.05612829324
D122: =Controle!D983 -> 2028-01-01 | E122: 237 | F122: 0.2714776632
D123: =Controle!D984 -> 2028-08-01 | E123: 142 | F123: 0.1626575029
D124: =Controle!D985 -> 2029-01-01 | E124: 0 | F124: 0
D125: =Controle!D986 -> 2029-08-01 | E125: 78 | F125: 0.08934707904
D126: =Controle!D987 -> 2030-01-01 | E126: 0 | F126: 0
D127: =Controle!D988 -> 2030-08-01 | E127: 0 | F127: 0
D128: =Controle!D989 -> 2031-01-01 | E128: 135 | F128: 0.1546391753
D129: =Controle!D990 -> 2031-08-01 | E129: 0 | F129: 0
D130: =Controle!D991 -> 2032-01-01 | E130: 0 | F130: 0
D131: =Controle!D992 -> 2032-08-01 | E131: 0 | F131: 0
D132: =Controle!D993 -> 2033-01-01 | E132: 0 | F132: 0
D133: =Controle!D994 -> 2033-08-01 | E133: 0 | F133: 0
D134: =Controle!D995 -> 2034-01-01 | E134: 0 | F134: 0
D135: =Controle!D996 -> 2034-08-01 | E135: 0 | F135: 0
D136: =Controle!D997 -> 2035-01-01 | E136: 0 | F136: 0
D137: =Controle!D998 -> 2035-08-01 | E137: 0 | F137: 0
C139: UH | D139: Total | E139: =SUM(E120:E137) -> 873 | F139: =E139/E$139 -> 1

Sheet Info Memo
B2: Resultados Parametrizados
B4: Dimensões Físicas do Projeto
B6: Resumo
B7: Ambientes Urbanos | E7: Capex
B8: =DFs!D103 -> Orla Sol Nascente - Etapa 1 | C8: [R$ MM] | E8: =DFs!H103 -> 4.094482729
B9: =DFs!D107 -> Vias Compartilhadas - Etapa 1 | C9: [R$ MM] | E9: =DFs!H107 -> 7.794371416
B10: =DFs!D108 -> Praça da Independência | C10: [R$ MM] | E10: =DFs!H108 -> 2.672715188
B11: =DFs!D109 -> Rua 1º de Março | C11: [R$ MM] | E11: =DFs!H109 -> 0.2875783816
B12: =DFs!D110 -> Av Guararapes - Etapa 2 | C12: [R$ MM] | E12: =DFs!H110 -> 4.99171686
B13: =DFs!D111 -> Praça do Sebo | C13: [R$ MM] | E13: =DFs!H111 -> 1.023936505
B14: =DFs!D112 -> Vias Compartilhadas - Etapa 2 | C14: [R$ MM] | E14: =DFs!H112 -> 5.591997562
B15: =DFs!D113 -> Av Dantas Barreto - Etapa 1 | C15: [R$ MM] | E15: =DFs!H113 -> 5.36818671
B16: =DFs!D114 -> Av Dantas Barreto - Etapa 2 | C16: [R$ MM] | E16: =DFs!H114 -> 4.468661169
B17: =DFs!D115 -> Av Dantas Barreto - Etapa 3 | C17: [R$ MM] | E17: =DFs!H115 -> 37.62845735
B18: =DFs!D116 -> Orla Sol Poente - Etapa 1 | C18: [R$ MM] | E18: =DFs!H116 -> 7.3124998
B19: =DFs!D117 -> Orla Sol Poente - Etapa 2 | C19: [R$ MM] | E19: =DFs!H117 -> 9.0332652
B20: =DFs!D118 -> Vias Compartilhadas - Etapa 3 e Demais Vias | C20: [R$ MM] | E20: =DFs!H118 -> 11.30499883
B21: Ativo Reversível | D21: Área Construtiva | E21: Capex
B23: =DFs!D101 -> Ativo Imobiliário 01 | C23: [m² | R$ MM] | D23: ='Resumo Ativos'!I13 -> 6171 | E23: =DFs!H101 -> 3.904572276
B24: =DFs!D102 -> Ativo Imobiliário 02 | C24: [m² | R$ MM] | D24: ='Resumo Ativos'!I14 -> 1898 | E24: =DFs!H102 -> 8.3785126
B25: Ativos Não-Reversíveis | D25: Área Construtiva | E25: Capex
B26: =Dashboard!C89 -> ATIVO IMOBILIÁRIO HIS 08 | C26: [m² | R$ MM] | D26: 7200 | E26: À escolha da Concessionária
B27: =Dashboard!C90 -> ATIVO IMOBILIÁRIO HIS 05 | C27: [m² | R$ MM] | D27: 4040 | E27: À escolha da Concessionária
B28: =Dashboard!C91 -> ATIVO IMOBILIÁRIO HIS 03 | C28: [m² | R$ MM] | D28: 4340 | E28: À escolha da Concessionária
B29: =Dashboard!C92 -> ATIVO IMOBILIÁRIO HIS 06 | C29: [m² | R$ MM] | D29: 10400 | E29: À escolha da Concessionária
B30: =Dashboard!C93 -> ATIVO IMOBILIÁRIO HIS 04 | C30: [m² | R$ MM] | D30: 2580 | E30: À escolha da Concessionária
B31: =Dashboard!C94 -> ATIVO IMOBILIÁRIO HIS 02 | C31: [m² | R$ MM] | D31: 15840 | E31: À escolha da Concessionária
B32: =Dashboard!C95 -> ATIVO IMOBILIÁRIO HIS 07 | C32: [m² | R$ MM] | D32: 1830 | E32: À escolha da Concessionária
B33: =Dashboard!C96 -> ATIVO IMOBILIÁRIO HIS 12 | C33: [m² | R$ MM] | D33: 2971 | E33: À escolha da Concessionária
B34: =Dashboard!C97 -> ATIVO IMOBILIÁRIO HIS 11 | C34: [m² | R$ MM] | D34: 4530 | E34: À escolha da Concessionária
B35: =Dashboard!C98 -> ATIVO IMOBILIÁRIO HIS 01 | C35: [m² | R$ MM] | D35: 6890 | E35: À escolha da Concessionária
B36: =Dashboard!C99 -> ATIVO IMOBILIÁRIO HIS 09 | C36: [m² | R$ MM] | D36: 1500 | E36: À escolha da Concessionária
B37: =Dashboard!C100 -> ATIVO IMOBILIÁRIO HIS 10 | C37: [m² | R$ MM] | D37: 3958 | E37: À escolha da Concessionária
B39: Estacionamento - à escolha da Concessionária | E39: Valor
B40: Vagas de Estacionamento | C40: [nº vagas] | E40: ='Resumo Ativos'!AN13 -> 197
B41: Giro Médio | C41: [#] | E41: ='Resumo Ativos'!AO13 -> 1.2
B42: Veículos/dia | C42: [n° veículos] | E42: ='Resumo Ativos'!AP13 -> 237
B43: Ticket Médio | C43: [R$] | E43: ='Resumo Ativos'!AQ14 -> 25
B46: Resultados de Receita
B49: VALORES - RECEITAS
D51: média | E51: 1 | F51: 30 | G51: Total | H51: % (Total)
J52: Receita Total | N52: =SUM(N54:N55) -> 0 | O52: =SUM(O54:O55) -> 10695.53831 | P52: 15283.81868 | Q52: 16486.7948 | R52: 16486.7948 | S52: 16486.7948 | T52: 16486.7948 | U52: 16486.7948 | V52: 16486.7948 | W52: 16486.7948 | X52: 16486.7948 | Y52: 16486.7948 | Z52: 16486.7948 | AA52: 16486.7948 | AB52: 16486.7948 | AC52: 16486.7948 | AD52: 16486.7948 | AE52: 16486.7948 | AF52: 16486.7948 | AG52: 16486.7948 | AH52: 16486.7948 | AI52: 16486.7948 | AJ52: 16486.7948 | AK52: 16486.7948 | AL52: 16486.7948 | AM52: 16486.7948 | AN52: 16486.7948 | AO52: 16486.7948 | AP52: 16486.7948 | AQ52: 16486.7948
B53: Receitas | D53: =SUM(D54:D55) -> 15704.09389 | E53: =SUM(E54:E55) -> 0 | F53: 16486.7948 | G53: 471122.8166 | H53: 1 | N53: 1 | O53: 2 | P53: 3 | Q53: 4 | R53: 5 | S53: 6 | T53: 7 | U53: 8 | V53: 9 | W53: 10 | X53: 11 | Y53: 12 | Z53: 13 | AA53: 14 | AB53: 15 | AC53: 16 | AD53: 17 | AE53: 18 | AF53: 19 | AG53: 20 | AH53: 21 | AI53: 22 | AJ53: 23 | AK53: 24 | AL53: 25 | AM53: 26 | AN53: 27 | AO53: 28 | AP53: 29 | AQ53: 30
B54: =DFs!D30 -> Ambientes Urbanos | C54: [R$ 000] | D54: =AVERAGE(N54:AQ54) -> 14801.81139 | E54: =SUMIFS($N54:$AQ54,$N$53:$AQ$53,E$51) -> 0 | F54: =SUMIFS($N54:$AQ54,$N$53:$AQ$53,F$51) -> 15499.7948 | G54: =SUM($N54:$AQ54) -> 444054.3416 | H54: =G54/$G$53 -> 0.9425447589 | J54: =B54 -> Ambientes Urbanos | M54: [R$ 000] | N54: =DFs!J30 -> 0 | O54: =DFs!K30 -> 10695.53831 | P54: =DFs!L30 -> 14864.34368 | Q54: =DFs!M30 -> 15499.7948 | R54: =DFs!N30 -> 15499.7948 | S54: =DFs!O30 -> 15499.7948 | T54: =DFs!P30 -> 15499.7948 | U54: =DFs!Q30 -> 15499.7948 | V54: =DFs!R30 -> 15499.7948 | W54: =DFs!S30 -> 15499.7948 | X54: =DFs!T30 -> 15499.7948 | Y54: =DFs!U30 -> 15499.7948 | Z54: =DFs!V30 -> 15499.7948 | AA54: =DFs!W30 -> 15499.7948 | AB54: =DFs!X30 -> 15499.7948 | AC54: =DFs!Y30 -> 15499.7948 | AD54: =DFs!Z30 -> 15499.7948 | AE54: =DFs!AA30 -> 15499.7948 | AF54: =DFs!AB30 -> 15499.7948 | AG54: =DFs!AC30 -> 15499.7948 | AH54: =DFs!AD30 -> 15499.7948 | AI54: =DFs!AE30 -> 15499.7948 | AJ54: =DFs!AF30 -> 15499.7948 | AK54: =DFs!AG30 -> 15499.7948 | AL54: =DFs!AH30 -> 15499.7948 | AM54: =DFs!AI30 -> 15499.7948 | AN54: =DFs!AJ30 -> 15499.7948 | AO54: =DFs!AK30 -> 15499.7948 | AP54: =DFs!AL30 -> 15499.7948 | AQ54: =DFs!AM30 -> 15499.7948
B55: =DFs!D32 -> Aluguel | C55: [R$ 000] | D55: =AVERAGE(N55:AQ55) -> 902.2825 | E55: =SUMIFS($N55:$AQ55,$N$53:$AQ$53,E$51) -> 0 | F55: 987 | G55: =SUM($N55:$AQ55) -> 27068.475 | H55: =G55/$G$53 -> 0.05745524107 | J55: =B55 -> Aluguel | M55: [R$ 000] | N55: =DFs!J32 -> 0 | O55: =DFs!K32 -> 0 | P55: =DFs!L32 -> 419.475 | Q55: =DFs!M32 -> 987 | R55: =DFs!N32 -> 987 | S55: =DFs!O32 -> 987 | T55: =DFs!P32 -> 987 | U55: =DFs!Q32 -> 987 | V55: =DFs!R32 -> 987 | W55: =DFs!S32 -> 987 | X55: =DFs!T32 -> 987 | Y55: =DFs!U32 -> 987 | Z55: =DFs!V32 -> 987 | AA55: =DFs!W32 -> 987 | AB55: =DFs!X32 -> 987 | AC55: =DFs!Y32 -> 987 | AD55: =DFs!Z32 -> 987 | AE55: =DFs!AA32 -> 987 | AF55: =DFs!AB32 -> 987 | AG55: =DFs!AC32 -> 987 | AH55: =DFs!AD32 -> 987 | AI55: =DFs!AE32 -> 987 | AJ55: =DFs!AF32 -> 987 | AK55: =DFs!AG32 -> 987 | AL55: =DFs!AH32 -> 987 | AM55: =DFs!AI32 -> 987 | AN55: =DFs!AJ32 -> 987 | AO55: =DFs!AK32 -> 987 | AP55: =DFs!AL32 -> 987 | AQ55: =DFs!AM32 -> 987
B57: Custos Operacionais
B59: INDICADORES - OPEX | N59: 1 | O59: 2 | P59: 3 | Q59: 4 | R59: 5 | S59: 6 | T59: 7 | U59: 8 | V59: 9 | W59: 10 | X59: 11 | Y59: 12 | Z59: 13 | AA59: 14 | AB59: 15 | AC59: 16 | AD59: 17 | AE59: 18 | AF59: 19 | AG59: 20 | AH59: 21 | AI59: 22 | AJ59: 23 | AK59: 24 | AL59: 25 | AM59: 26 | AN59: 27 | AO59: 28 | AP59: 29 | AQ59: 30
D61: média | E61: 1 | F61: 30 | G61: Total | H61: % (Total) | J61: OPEX Total | N61: =N62+N74 -> -3433.246644 | O61: -3791.234529 | P61: -5807.590366 | Q61: -7251.610041 | R61: -8642.534473 | S61: -10759.4808 | T61: -11481.15847 | U61: -11481.15847 | V61: -11481.15847 | W61: -11481.15847 | X61: -11481.15847 | Y61: -11481.15847 | Z61: -11481.15847 | AA61: -11481.15847 | AB61: -11481.15847 | AC61: -11481.15847 | AD61: -11481.15847 | AE61: -11481.15847 | AF61: -11481.15847 | AG61: -11481.15847 | AH61: -11481.15847 | AI61: -11481.15847 | AJ61: -11481.15847 | AK61: -11481.15847 | AL61: -11481.15847 | AM61: -11481.15847 | AN61: -11481.15847 | AO61: -11481.15847 | AP61: -11481.15847 | AQ61: -11473.64744
J62: Custo Total | M62: [R$ 000] | N62: =SUM(N63:N73) -> -687.4338717 | O62: -1004.90771 | P62: -3093.337201 | Q62: -4536.488184 | R62: -5924.968167 | S62: -8020.838536 | T62: -8797.165145 | U62: -8797.165145 | V62: -8797.165145 | W62: -8797.165145 | X62: -8797.165145 | Y62: -8797.165145 | Z62: -8797.165145 | AA62: -8797.165145 | AB62: -8797.165145 | AC62: -8797.165145 | AD62: -8797.165145 | AE62: -8797.165145 | AF62: -8797.165145 | AG62: -8797.165145 | AH62: -8797.165145 | AI62: -8797.165145 | AJ62: -8797.165145 | AK62: -8797.165145 | AL62: -8797.165145 | AM62: -8797.165145 | AN62: -8797.165145 | AO62: -8797.165145 | AP62: -8797.165145 | AQ62: -8797.165145
B63: =J61 -> OPEX Total | D63: =SUM(D64:D65) -> -8173.331238 | E63: =SUM(E64:E65) -> -1367.433872 | F63: =SUM(F64:F65) -> -9077.165145 | G63: =SUM(G64:G65) -> -245199.9371 | H63: =SUM(H64:H65) -> -0.5204586331 | J63: =DFs!D44 -> Despesas Concessão | M63: [R$ 000] | N63: =DFs!J44 -> -680 | O63: =DFs!K44 -> -680 | P63: =DFs!L44 -> -680 | Q63: =DFs!M44 -> -680 | R63: =DFs!N44 -> -680 | S63: =DFs!O44 -> -680 | T63: =DFs!P44 -> -280 | U63: =DFs!Q44 -> -280 | V63: =DFs!R44 -> -280 | W63: =DFs!S44 -> -280 | X63: =DFs!T44 -> -280 | Y63: =DFs!U44 -> -280 | Z63: =DFs!V44 -> -280 | AA63: =DFs!W44 -> -280 | AB63: =DFs!X44 -> -280 | AC63: =DFs!Y44 -> -280 | AD63: =DFs!Z44 -> -280 | AE63: =DFs!AA44 -> -280 | AF63: =DFs!AB44 -> -280 | AG63: =DFs!AC44 -> -280 | AH63: =DFs!AD44 -> -280 | AI63: =DFs!AE44 -> -280 | AJ63: =DFs!AF44 -> -280 | AK63: =DFs!AG44 -> -280 | AL63: =DFs!AH44 -> -280 | AM63: =DFs!AI44 -> -280 | AN63: =DFs!AJ44 -> -280 | AO63: =DFs!AK44 -> -280 | AP63: =DFs!AL44 -> -280 | AQ63: =DFs!AM44 -> -280
B64: =J62 -> Custo Total | C64: [R$ 000] | D64: =AVERAGE(N62:AQ62) -> -7813.331238 | E64: =SUMIFS($N62:$AQ62,$N$59:$AQ$59,E$61) -> -687.4338717 | F64: =SUMIFS($N62:$AQ62,$N$59:$AQ$59,F$61) -> -8797.165145 | G64: =SUM($N62:$AQ62) -> -234399.9371 | H64: =G64/$G$53 -> -0.4975346744 | J64: =DFs!D45 -> Manejo e Conservação de Áreas Verde | M64: [R$ 000] | N64: =DFs!J45 -> 0 | O64: =DFs!K45 -> -26.25361171 | P64: =DFs!L45 -> -288.3636656 | Q64: =DFs!M45 -> -406.1366779 | R64: =DFs!N45 -> -502.8611512 | S64: =DFs!O45 -> -566.9075876 | T64: =DFs!P45 -> -566.9075876 | U64: =DFs!Q45 -> -566.9075876 | V64: =DFs!R45 -> -566.9075876 | W64: =DFs!S45 -> -566.9075876 | X64: =DFs!T45 -> -566.9075876 | Y64: =DFs!U45 -> -566.9075876 | Z64: =DFs!V45 -> -566.9075876 | AA64: =DFs!W45 -> -566.9075876 | AB64: =DFs!X45 -> -566.9075876 | AC64: =DFs!Y45 -> -566.9075876 | AD64: =DFs!Z45 -> -566.9075876 | AE64: =DFs!AA45 -> -566.9075876 | AF64: =DFs!AB45 -> -566.9075876 | AG64: =DFs!AC45 -> -566.9075876 | AH64: =DFs!AD45 -> -566.9075876 | AI64: =DFs!AE45 -> -566.9075876 | AJ64: =DFs!AF45 -> -566.9075876 | AK64: =DFs!AG45 -> -566.9075876 | AL64: =DFs!AH45 -> -566.9075876 | AM64: =DFs!AI45 -> -566.9075876 | AN64: =DFs!AJ45 -> -566.9075876 | AO64: =DFs!AK45 -> -566.9075876 | AP64: =DFs!AL45 -> -566.9075876 | AQ64: =DFs!AM45 -> -566.9075876
B65: Despesas Concessão | C65: [R$ 000] | D65: =AVERAGE(N63:AQ63) -> -360 | E65: =SUMIFS($N63:$AQ63,$N$59:$AQ$59,E$61) -> -680 | F65: -280 | G65: =SUM($N63:$AQ63) -> -10800 | H65: =G65/$G$53 -> -0.02292395872 | J65: =DFs!D46 -> Conservação e Limpeza | M65: [R$ 000] | N65: =DFs!J46 -> -3.387996579 | O65: =DFs!K46 -> -111.8394064 | P65: =DFs!L46 -> -964.1415856 | Q65: =DFs!M46 -> -1620.938876 | R65: =DFs!N46 -> -2225.863206 | S65: =DFs!O46 -> -3488.311333 | T65: =DFs!P46 -> -4328.974378 | U65: =DFs!Q46 -> -4328.974378 | V65: =DFs!R46 -> -4328.974378 | W65: =DFs!S46 -> -4328.974378 | X65: =DFs!T46 -> -4328.974378 | Y65: =DFs!U46 -> -4328.974378 | Z65: =DFs!V46 -> -4328.974378 | AA65: =DFs!W46 -> -4328.974378 | AB65: =DFs!X46 -> -4328.974378 | AC65: =DFs!Y46 -> -4328.974378 | AD65: =DFs!Z46 -> -4328.974378 | AE65: =DFs!AA46 -> -4328.974378 | AF65: =DFs!AB46 -> -4328.974378 | AG65: =DFs!AC46 -> -4328.974378 | AH65: =DFs!AD46 -> -4328.974378 | AI65: =DFs!AE46 -> -4328.974378 | AJ65: =DFs!AF46 -> -4328.974378 | AK65: =DFs!AG46 -> -4328.974378 | AL65: =DFs!AH46 -> -4328.974378 | AM65: =DFs!AI46 -> -4328.974378 | AN65: =DFs!AJ46 -> -4328.974378 | AO65: =DFs!AK46 -> -4328.974378 | AP65: =DFs!AL46 -> -4328.974378 | AQ65: =DFs!AM46 -> -4328.974378
B66: Manejo e Conservação de Áreas Verde | C66: [R$ 000] | D66: -513.2101599 | E66: =SUMIFS($N64:$AQ64,$N$59:$AQ$59,E$61) -> 0 | F66: -566.9075876 | G66: -15396.3048 | H66: -0.03268002367 | J66: =DFs!D47 -> Utilidades | M66: [R$ 000] | N66: =DFs!J47 -> 0 | O66: =DFs!K47 -> -0.06307753025 | P66: =DFs!L47 -> -4.100039466 | Q66: =DFs!M47 -> -7.56930363 | R66: =DFs!N47 -> -7.597232756 | S66: =DFs!O47 -> -9.384696827 | T66: =DFs!P47 -> -10.92079876 | U66: =DFs!Q47 -> -10.92079876 | V66: =DFs!R47 -> -10.92079876 | W66: =DFs!S47 -> -10.92079876 | X66: =DFs!T47 -> -10.92079876 | Y66: =DFs!U47 -> -10.92079876 | Z66: =DFs!V47 -> -10.92079876 | AA66: =DFs!W47 -> -10.92079876 | AB66: =DFs!X47 -> -10.92079876 | AC66: =DFs!Y47 -> -10.92079876 | AD66: =DFs!Z47 -> -10.92079876 | AE66: =DFs!AA47 -> -10.92079876 | AF66: =DFs!AB47 -> -10.92079876 | AG66: =DFs!AC47 -> -10.92079876 | AH66: =DFs!AD47 -> -10.92079876 | AI66: =DFs!AE47 -> -10.92079876 | AJ66: =DFs!AF47 -> -10.92079876 | AK66: =DFs!AG47 -> -10.92079876 | AL66: =DFs!AH47 -> -10.92079876 | AM66: =DFs!AI47 -> -10.92079876 | AN66: =DFs!AJ47 -> -10.92079876 | AO66: =DFs!AK47 -> -10.92079876 | AP66: =DFs!AL47 -> -10.92079876 | AQ66: =DFs!AM47 -> -10.92079876
B67: Conservação e Limpeza | C67: [R$ 000] | D67: -3743.662249 | E67: =SUMIFS($N65:$AQ65,$N$59:$AQ$59,E$61) -> -3.387996579 | F67: -4328.974378 | G67: -112309.8675 | H67: -0.2383876635 | J67: =DFs!D48 -> Segurança e Vigilância | M67: [R$ 000] | N67: =DFs!J48 -> 0 | O67: =DFs!K48 -> -25.12446967 | P67: =DFs!L48 -> -266.3193785 | Q67: =DFs!M48 -> -304.006083 | R67: =DFs!N48 -> -464.8026889 | S67: =DFs!O48 -> -602.9872721 | T67: =DFs!P48 -> -602.9872721 | U67: =DFs!Q48 -> -602.9872721 | V67: =DFs!R48 -> -602.9872721 | W67: =DFs!S48 -> -602.9872721 | X67: =DFs!T48 -> -602.9872721 | Y67: =DFs!U48 -> -602.9872721 | Z67: =DFs!V48 -> -602.9872721 | AA67: =DFs!W48 -> -602.9872721 | AB67: =DFs!X48 -> -602.9872721 | AC67: =DFs!Y48 -> -602.9872721 | AD67: =DFs!Z48 -> -602.9872721 | AE67: =DFs!AA48 -> -602.9872721 | AF67: =DFs!AB48 -> -602.9872721 | AG67: =DFs!AC48 -> -602.9872721 | AH67: =DFs!AD48 -> -602.9872721 | AI67: =DFs!AE48 -> -602.9872721 | AJ67: =DFs!AF48 -> -602.9872721 | AK67: =DFs!AG48 -> -602.9872721 | AL67: =DFs!AH48 -> -602.9872721 | AM67: =DFs!AI48 -> -602.9872721 | AN67: =DFs!AJ48 -> -602.9872721 | AO67: =DFs!AK48 -> -602.9872721 | AP67: =DFs!AL48 -> -602.9872721 | AQ67: =DFs!AM48 -> -602.9872721
B68: Utilidades | C68: [R$ 000] | D68: -9.693784017 | E68: =SUMIFS($N66:$AQ66,$N$59:$AQ$59,E$61) -> 0 | F68: -10.92079876 | G68: -290.8135205 | H68: -0.0006172775129 | J68: =DFs!D49 -> Brigadistas | M68: [R$ 000] | N68: =DFs!J49 -> -0.815652119 | O68: =DFs!K49 -> -73.40869071 | P68: =DFs!L49 -> -190.8625958 | Q68: =DFs!M49 -> -308.316501 | R68: =DFs!N49 -> -424.954754 | S68: =DFs!O49 -> -469.8156205 | T68: =DFs!P49 -> -469.8156205 | U68: =DFs!Q49 -> -469.8156205 | V68: =DFs!R49 -> -469.8156205 | W68: =DFs!S49 -> -469.8156205 | X68: =DFs!T49 -> -469.8156205 | Y68: =DFs!U49 -> -469.8156205 | Z68: =DFs!V49 -> -469.8156205 | AA68: =DFs!W49 -> -469.8156205 | AB68: =DFs!X49 -> -469.8156205 | AC68: =DFs!Y49 -> -469.8156205 | AD68: =DFs!Z49 -> -469.8156205 | AE68: =DFs!AA49 -> -469.8156205 | AF68: =DFs!AB49 -> -469.8156205 | AG68: =DFs!AC49 -> -469.8156205 | AH68: =DFs!AD49 -> -469.8156205 | AI68: =DFs!AE49 -> -469.8156205 | AJ68: =DFs!AF49 -> -469.8156205 | AK68: =DFs!AG49 -> -469.8156205 | AL68: =DFs!AH49 -> -469.8156205 | AM68: =DFs!AI49 -> -469.8156205 | AN68: =DFs!AJ49 -> -469.8156205 | AO68: =DFs!AK49 -> -469.8156205 | AP68: =DFs!AL49 -> -469.8156205 | AQ68: =DFs!AM49 -> -469.8156205
B69: Segurança e Vigilância | C69: [R$ 000] | D69: -537.8311474 | E69: =SUMIFS($N67:$AQ67,$N$59:$AQ$59,E$61) -> 0 | F69: -602.9872721 | G69: -16134.93442 | H69: -0.03424783062 | J69: =DFs!D50 -> Manutenção | M69: [R$ 000] | N69: =DFs!J50 -> -1.707392426 | O69: =DFs!K50 -> -56.36185014 | P69: =DFs!L50 -> -485.8824389 | Q69: =DFs!M50 -> -813.6556575 | R69: =DFs!N50 -> -1089.18074 | S69: =DFs!O50 -> -1432.853362 | T69: =DFs!P50 -> -1606.595688 | U69: =DFs!Q50 -> -1606.595688 | V69: =DFs!R50 -> -1606.595688 | W69: =DFs!S50 -> -1606.595688 | X69: =DFs!T50 -> -1606.595688 | Y69: =DFs!U50 -> -1606.595688 | Z69: =DFs!V50 -> -1606.595688 | AA69: =DFs!W50 -> -1606.595688 | AB69: =DFs!X50 -> -1606.595688 | AC69: =DFs!Y50 -> -1606.595688 | AD69: =DFs!Z50 -> -1606.595688 | AE69: =DFs!AA50 -> -1606.595688 | AF69: =DFs!AB50 -> -1606.595688 | AG69: =DFs!AC50 -> -1606.595688 | AH69: =DFs!AD50 -> -1606.595688 | AI69: =DFs!AE50 -> -1606.595688 | AJ69: =DFs!AF50 -> -1606.595688 | AK69: =DFs!AG50 -> -1606.595688 | AL69: =DFs!AH50 -> -1606.595688 | AM69: =DFs!AI50 -> -1606.595688 | AN69: =DFs!AJ50 -> -1606.595688 | AO69: =DFs!AK50 -> -1606.595688 | AP69: =DFs!AL50 -> -1606.595688 | AQ69: =DFs!AM50 -> -1606.595688
B70: Brigadistas | C70: [R$ 000] | D70: -424.7916236 | E70: =SUMIFS($N68:$AQ68,$N$59:$AQ$59,E$61) -> -0.815652119 | F70: -469.8156205 | G70: -12743.74871 | H70: -0.0270497379 | J70: =DFs!D51 -> Comunicação Visual | M70: [R$ 000] | N70: =DFs!J51 -> -0.01327576938 | O70: =DFs!K51 -> -0.436387387 | P70: =DFs!L51 -> -3.657569749 | Q70: =DFs!M51 -> -6.129341354 | R70: =DFs!N51 -> -8.498900241 | S70: =DFs!O51 -> -13.39328135 | T70: =DFs!P51 -> -16.64229037 | U70: =DFs!Q51 -> -16.64229037 | V70: =DFs!R51 -> -16.64229037 | W70: =DFs!S51 -> -16.64229037 | X70: =DFs!T51 -> -16.64229037 | Y70: =DFs!U51 -> -16.64229037 | Z70: =DFs!V51 -> -16.64229037 | AA70: =DFs!W51 -> -16.64229037 | AB70: =DFs!X51 -> -16.64229037 | AC70: =DFs!Y51 -> -16.64229037 | AD70: =DFs!Z51 -> -16.64229037 | AE70: =DFs!AA51 -> -16.64229037 | AF70: =DFs!AB51 -> -16.64229037 | AG70: =DFs!AC51 -> -16.64229037 | AH70: =DFs!AD51 -> -16.64229037 | AI70: =DFs!AE51 -> -16.64229037 | AJ70: =DFs!AF51 -> -16.64229037 | AK70: =DFs!AG51 -> -16.64229037 | AL70: =DFs!AH51 -> -16.64229037 | AM70: =DFs!AI51 -> -16.64229037 | AN70: =DFs!AJ51 -> -16.64229037 | AO70: =DFs!AK51 -> -16.64229037 | AP70: =DFs!AL51 -> -16.64229037 | AQ70: =DFs!AM51 -> -16.64229037
B71: Manutenção | C71: [R$ 000] | D71: -1414.597932 | E71: =SUMIFS($N69:$AQ69,$N$59:$AQ$59,E$61) -> -1.707392426 | F71: -1606.595688 | G71: -42437.93795 | H71: -0.09007829054 | J71: =DFs!D52 -> Wifi | M71: [R$ 000] | N71: =DFs!J52 -> -0.3166409325 | O71: =DFs!K52 -> -10.4524704 | P71: =DFs!L52 -> -90.1083232 | Q71: =DFs!M52 -> -151.4923599 | R71: =DFs!N52 -> -208.0283686 | S71: =DFs!O52 -> -326.0163131 | T71: =DFs!P52 -> -404.5843766 | U71: =DFs!Q52 -> -404.5843766 | V71: =DFs!R52 -> -404.5843766 | W71: =DFs!S52 -> -404.5843766 | X71: =DFs!T52 -> -404.5843766 | Y71: =DFs!U52 -> -404.5843766 | Z71: =DFs!V52 -> -404.5843766 | AA71: =DFs!W52 -> -404.5843766 | AB71: =DFs!X52 -> -404.5843766 | AC71: =DFs!Y52 -> -404.5843766 | AD71: =DFs!Z52 -> -404.5843766 | AE71: =DFs!AA52 -> -404.5843766 | AF71: =DFs!AB52 -> -404.5843766 | AG71: =DFs!AC52 -> -404.5843766 | AH71: =DFs!AD52 -> -404.5843766 | AI71: =DFs!AE52 -> -404.5843766 | AJ71: =DFs!AF52 -> -404.5843766 | AK71: =DFs!AG52 -> -404.5843766 | AL71: =DFs!AH52 -> -404.5843766 | AM71: =DFs!AI52 -> -404.5843766 | AN71: =DFs!AJ52 -> -404.5843766 | AO71: =DFs!AK52 -> -404.5843766 | AP71: =DFs!AL52 -> -404.5843766 | AQ71: =DFs!AM52 -> -404.5843766
B72: Comunicação Visual | C72: [R$ 000] | D72: -14.38479082 | E72: =SUMIFS($N70:$AQ70,$N$59:$AQ$59,E$61) -> -0.01327576938 | F72: -16.64229037 | G72: -431.5437247 | H72: -0.0009159898639 | J72: =DFs!D53 -> Despesas Gerais / Insumos | M72: [R$ 000] | N72: =DFs!J53 -> -0.8762729716 | O72: =DFs!K53 -> -10.51527566 | P72: =DFs!L53 -> -29.79328103 | Q72: =DFs!M53 -> -86.75102419 | R72: =DFs!N53 -> -105.1527566 | S72: =DFs!O53 -> -105.1527566 | T72: =DFs!P53 -> -105.1527566 | U72: =DFs!Q53 -> -105.1527566 | V72: =DFs!R53 -> -105.1527566 | W72: =DFs!S53 -> -105.1527566 | X72: =DFs!T53 -> -105.1527566 | Y72: =DFs!U53 -> -105.1527566 | Z72: =DFs!V53 -> -105.1527566 | AA72: =DFs!W53 -> -105.1527566 | AB72: =DFs!X53 -> -105.1527566 | AC72: =DFs!Y53 -> -105.1527566 | AD72: =DFs!Z53 -> -105.1527566 | AE72: =DFs!AA53 -> -105.1527566 | AF72: =DFs!AB53 -> -105.1527566 | AG72: =DFs!AC53 -> -105.1527566 | AH72: =DFs!AD53 -> -105.1527566 | AI72: =DFs!AE53 -> -105.1527566 | AJ72: =DFs!AF53 -> -105.1527566 | AK72: =DFs!AG53 -> -105.1527566 | AL72: =DFs!AH53 -> -105.1527566 | AM72: =DFs!AI53 -> -105.1527566 | AN72: =DFs!AJ53 -> -105.1527566 | AO72: =DFs!AK53 -> -105.1527566 | AP72: =DFs!AL53 -> -105.1527566 | AQ72: =DFs!AM53 -> -105.1527566
B73: Wifi | C73: [R$ 000] | D73: -349.8813171 | E73: =SUMIFS($N71:$AQ71,$N$59:$AQ$59,E$61) -> -0.3166409325 | F73: -404.5843766 | G73: -10496.43951 | H73: -0.02227962464 | J73: =DFs!D54 -> CFTV | M73: [R$ 000] | N73: =DFs!J54 -> -0.3166409325 | O73: =DFs!K54 -> -10.4524704 | P73: =DFs!L54 -> -90.1083232 | Q73: =DFs!M54 -> -151.4923599 | R73: =DFs!N54 -> -208.0283686 | S73: =DFs!O54 -> -326.0163131 | T73: =DFs!P54 -> -404.5843766 | U73: =DFs!Q54 -> -404.5843766 | V73: =DFs!R54 -> -404.5843766 | W73: =DFs!S54 -> -404.5843766 | X73: =DFs!T54 -> -404.5843766 | Y73: =DFs!U54 -> -404.5843766 | Z73: =DFs!V54 -> -404.5843766 | AA73: =DFs!W54 -> -404.5843766 | AB73: =DFs!X54 -> -404.5843766 | AC73: =DFs!Y54 -> -404.5843766 | AD73: =DFs!Z54 -> -404.5843766 | AE73: =DFs!AA54 -> -404.5843766 | AF73: =DFs!AB54 -> -404.5843766 | AG73: =DFs!AC54 -> -404.5843766 | AH73: =DFs!AD54 -> -404.5843766 | AI73: =DFs!AE54 -> -404.5843766 | AJ73: =DFs!AF54 -> -404.5843766 | AK73: =DFs!AG54 -> -404.5843766 | AL73: =DFs!AH54 -> -404.5843766 | AM73: =DFs!AI54 -> -404.5843766 | AN73: =DFs!AJ54 -> -404.5843766 | AO73: =DFs!AK54 -> -404.5843766 | AP73: =DFs!AL54 -> -404.5843766 | AQ73: =DFs!AM54 -> -404.5843766
B74: Despesas Gerais / Insumos | C74: [R$ 000] | D74: -95.39691751 | E74: =SUMIFS($N72:$AQ72,$N$59:$AQ$59,E$61) -> -0.8762729716 | F74: -105.1527566 | G74: -2861.907525 | H74: -0.006074652775 | J74: Despesa Total | M74: [R$ 000] | N74: =SUM(N75:N76) -> -2745.812773 | O74: -2786.326819 | P74: -2714.253164 | Q74: -2715.121857 | R74: -2717.566306 | S74: -2738.642268 | T74: -2683.99333 | U74: -2683.99333 | V74: -2683.99333 | W74: -2683.99333 | X74: -2683.99333 | Y74: -2683.99333 | Z74: -2683.99333 | AA74: -2683.99333 | AB74: -2683.99333 | AC74: -2683.99333 | AD74: -2683.99333 | AE74: -2683.99333 | AF74: -2683.99333 | AG74: -2683.99333 | AH74: -2683.99333 | AI74: -2683.99333 | AJ74: -2683.99333 | AK74: -2683.99333 | AL74: -2683.99333 | AM74: -2683.99333 | AN74: -2683.99333 | AO74: -2683.99333 | AP74: -2683.99333 | AQ74: -2676.482294
B75: CFTV | C75: [R$ 000] | D75: -349.8813171 | E75: =SUMIFS($N73:$AQ73,$N$59:$AQ$59,E$61) -> -0.3166409325 | F75: -404.5843766 | G75: -10496.43951 | H75: -0.02227962464 | J75: =DFs!D58 -> G&A | M75: [R$ 000] | N75: =DFs!J58 -> -1800 | O75: =DFs!K58 -> -1800 | P75: =DFs!L58 -> -1800 | Q75: =DFs!M58 -> -1800 | R75: =DFs!N58 -> -1800 | S75: =DFs!O58 -> -1800 | T75: =DFs!P58 -> -1800 | U75: =DFs!Q58 -> -1800 | V75: =DFs!R58 -> -1800 | W75: =DFs!S58 -> -1800 | X75: =DFs!T58 -> -1800 | Y75: =DFs!U58 -> -1800 | Z75: =DFs!V58 -> -1800 | AA75: =DFs!W58 -> -1800 | AB75: =DFs!X58 -> -1800 | AC75: =DFs!Y58 -> -1800 | AD75: =DFs!Z58 -> -1800 | AE75: =DFs!AA58 -> -1800 | AF75: =DFs!AB58 -> -1800 | AG75: =DFs!AC58 -> -1800 | AH75: =DFs!AD58 -> -1800 | AI75: =DFs!AE58 -> -1800 | AJ75: =DFs!AF58 -> -1800 | AK75: =DFs!AG58 -> -1800 | AL75: =DFs!AH58 -> -1800 | AM75: =DFs!AI58 -> -1800 | AN75: =DFs!AJ58 -> -1800 | AO75: =DFs!AK58 -> -1800 | AP75: =DFs!AL58 -> -1800 | AQ75: =DFs!AM58 -> -1800
B76: Despesa Total | C76: [R$ 000] | D76: -2694.201736 | E76: =SUMIFS($N74:$AQ74,$N$59:$AQ$59,E$61) -> -2745.812773 | F76: -2676.482294 | G76: -80826.05207 | H76: -0.1715604705 | J76: =DFs!D59 -> Seguros | M76: [R$ 000] | N76: =DFs!J59 -> -945.8127725 | O76: =DFs!K59 -> -986.3268189 | P76: =DFs!L59 -> -914.2531645 | Q76: =DFs!M59 -> -915.1218571 | R76: =DFs!N59 -> -917.5663056 | S76: =DFs!O59 -> -938.6422681 | T76: =DFs!P59 -> -883.9933298 | U76: =DFs!Q59 -> -883.9933298 | V76: =DFs!R59 -> -883.9933298 | W76: =DFs!S59 -> -883.9933298 | X76: =DFs!T59 -> -883.9933298 | Y76: =DFs!U59 -> -883.9933298 | Z76: =DFs!V59 -> -883.9933298 | AA76: =DFs!W59 -> -883.9933298 | AB76: =DFs!X59 -> -883.9933298 | AC76: =DFs!Y59 -> -883.9933298 | AD76: =DFs!Z59 -> -883.9933298 | AE76: =DFs!AA59 -> -883.9933298 | AF76: =DFs!AB59 -> -883.9933298 | AG76: =DFs!AC59 -> -883.9933298 | AH76: =DFs!AD59 -> -883.9933298 | AI76: =DFs!AE59 -> -883.9933298 | AJ76: =DFs!AF59 -> -883.9933298 | AK76: =DFs!AG59 -> -883.9933298 | AL76: =DFs!AH59 -> -883.9933298 | AM76: =DFs!AI59 -> -883.9933298 | AN76: =DFs!AJ59 -> -883.9933298 | AO76: =DFs!AK59 -> -883.9933298 | AP76: =DFs!AL59 -> -883.9933298 | AQ76: =DFs!AM59 -> -876.482294
B77: G&A | C77: [R$ 000] | D77: -1800 | E77: =SUMIFS($N75:$AQ75,$N$59:$AQ$59,E$61) -> -1800 | F77: -1800 | G77: -54000 | H77: -0.1146197936
B78: Seguros | C78: [R$ 000] | D78: -894.2017355 | E78: =SUMIFS($N76:$AQ76,$N$59:$AQ$59,E$61) -> -945.8127725 | F78: -876.482294 | G78: -26826.05207 | H78: -0.05694067687
B81: Premissas
B83: Ambientes Urbanos - Receitas
B85: Quiosque - Quota de Patrocínio
B86: Unidades Quiosque Tipo 1 | D86: =Controle!E465 -> 170 | E86: Considera a quantidade de ambulantes da região somada a um acrécimo de demanda
B87: Unidades Quiosque Tipo 2 | D87: =Controle!E466 -> 32 | E87: Considera a quantidade de ambulantes da região somada a um acrécimo de demanda
B88: Área locavel Quiosque Tipo 1 | D88: =Controle!F465 -> 6.5 | E88: Baseado no tamanho dos quiosques na avenida Boa Viagem de Recife
B89: Área locavel Quiosque Tipo 2 | D89: =Controle!F466 -> 4.8 | E89: Baseado no tamanho dos quiosques pequenos na avenida Boa Viagem de Recife
B90: Preço por m2 Quiosque Tipo 1 | D90: =Controle!G465 -> 20 | E90: Baseado no valor de aluguel de quiosques na avenida Beira-Mar de Fortaleza
B91: Preço por m2 Quiosque Tipo 2 | D91: =Controle!G466 -> 20 | E91: Baseado no valor de aluguel de quiosques na avenida Beira-Mar de Fortaleza
B93: Eventos
B94: Quantidade de eventos/espaço de locação/mês | D94: =AVERAGE(Controle!E471:E473) -> 3.333333333 | E94: 4 fins de semana num mês, adotando premissa conservadora de 25% de vacância; 1 evento por fim de semana
B95: Espaços de locação | D95: =COUNTA(Controle!D471:D473) -> 3
B96: Tamanho Área para eventos/espaço de locação | D96: =AVERAGE(Controle!F471:F473) -> 1000 | E96: Espaço necessário para eventos de grande porte (+de 500 pessoas)
B97: Preço por m2 para área de eventos | D97: =AVERAGE(Controle!G471:G473) -> 110 | E97: Preço médio para eventos de grande porte em centros de convenções
B99: Publicidade em Rede-Wi-fi
B100: R$ por Pessoa Captada | D100: =Controle!F477 -> 1.694098713
B101: Pessoas por Mês | D101: =Controle!F478 -> 182500 | E101: Média de 6 mil pessoas por dia, levando em consideração transeuntes, moradores da região e hóspedes de hoteis
B102: Taxa de Captação | D102: =Controle!F479 -> 0.1549 | E102: PNAD: cerca de 9% dos usuários de internet do brasil acessam a rede por conexões de escolas, universidades e bibliotecas, considerando parque e outros locais públicos nas contas chegamos ao valor de 15%
B104: Equipamentos Urbanos Patrocináveis
B105: Área Total | D105: =Controle!F488 -> 249.6 | E105: 10% da áreas de Palco Flutuante e Deck (podendo estar em outras áreas)
B106: Preço de patrocínio ou locação por m² | D106: =Controle!F489 -> 200
B108: Mobilidade
B109: Ticket Médio patinete | D109: =Controle!G483 -> 15 | E109: Tempo médio de aluguel de 15 minutos: 0,80 centavos por minuto de uso + 3 reais de liberação
B110: Ticket Médio fluviais | D110: =Controle!G484 -> 100 | E110: Baseado em passeios fluviais na Praia dos Carneiros, Ilha de Boipeba e Praia do Saco, todos no Nordeste
B111: Qtde mensal de passeios de patinete | D111: =Controle!F483 -> 3000 | E111: Média de 20 patinetes, cada um tendo 5 usos por dia - FlipOn estimava 8 viagens por patinete por dia em 2019, no auge dos patinetes, houve um recuo no uso nos últimos anos
B112: Qtde mensal de passeios fluviais | D112: =Controle!F484 -> 2000 | E112: Dois barcos, 3 passeios por dia, capacidade máxima por barco de 25 pessoas e 45% de ocupação média
B113: Revenue-Share Patinete | D113: =Controle!H483 -> 0.1
B114: Revenue-Share Fluvial | D114: =Controle!H484 -> 0.1
B116: Naming Rights
B117: Unidades | D117: =Controle!F493 -> 2 | E117: Infraestruturas disponíveis
B118: Preço de patrocionio por item anual | D118: =Controle!F494 -> 200000 | E118: Baseado no investimento anual da PepsiCo que seria feito no Largo da Batata (550 mil por ano)
B122: MOOH
B123: Preço por Painel do Toten | D123: =Controle!F498 -> 50 | E123: Grandes empresas (Eletromídia) de MOOH cobram cerca de 80 reais por semana, levando em consideração o porte, 50 reais
B124: Número de Toten | D124: =Controle!F499 -> 50
B125: Faces/semana | D125: =Controle!F500 -> 1 | E125: Totens de shopping ficam com 4 a 6 anúncios em loop por vez
B127: Custos e Despesas
B134: Benchmark de custos (mensal) | E134: CARDTEC 2023
B135: OPEX zeladoria/m² total | D135: =Controle!G326 -> 0.9599040347 | E135: Referência Cardtec R$ 0,72
B136: OPEX zeladoria/m² área edificada | D136: =Controle!G327 -> 105.6737705
B137: OPEX zeladoria/conjuntos WC | D137: =Controle!G328 -> 14031.55809
B138: OPEX zeladoria/# WC | D138: =Controle!G329 -> 7392
B139: OPEX zeladoria/visitantes | D139: =Controle!G330 -> 0.6025449114
B140: OPEX manejo/m² total | D140: =Controle!G331 -> 0.1923830326
B141: OPEX manejo/m² área verde | D141: =Controle!G332 -> 1.837272643 | E141: Referência Cardtec R$ 1,03
B142: OPEX manutenção/m² total | D142: =Controle!G333 -> 1.870345123
B143: OPEX zeladoria e manejo/m² total | D143: =Controle!G334 -> 7.422690626
B144: OPEX zeladoria e manejo/m² área edificada | D144: =Controle!G335 -> 164.5435561
B145: OPEX zeladoria e manejo/conjuntos WC ¹ | D145: =Controle!G336 -> 0
B146: OPEX zeladoria/# postos | D146: =Controle!G337 -> 4624.8048
B147: OPEX Atendimento ao usuários/# postos | D147: =Controle!G338 -> 6130.0536
B148: OPEX Atendimento ao usuários/horas extras | D148: =Controle!G339 -> 158.4
B149: OPEX Recepção/# postos | D149: =Controle!G340 -> 12260.1072 | E149: Referência Cardtec R$ 10.519,66 posto 12 horas diária segunda a domingo diurno
B150: OPEX Manejo/# postos | D150: =Controle!G341 -> 5808.426624
B151: OPEX Manutenção/# postos | D151: =Controle!G342 -> 6745.97792
B152: OPEX zeladoria e manejo/# WC | D152: =Controle!G343 -> 1640.869516
B153: OPEX zeladoria e manejo/visitantes | D153: =Controle!G344 -> 0.5172683333
B154: OPEX manutenção/m² área edificada | D154: =Controle!G345 -> 0.4930788204
B155: OPEX segurança/m² total | D155: =Controle!G346 -> 1.028240156
B156: OPEX segurança 24hrs/# postos | D156: =Controle!G347 -> 23889.3883
B157: OPEX segurança volante/# postos | D157: =Controle!G348 -> 16966.99244 | E157: Referência Cardtec R$ 14.985,66 segurança moto
B158: OPEX segurança/# portões | D158: =Controle!G349 -> 14855.24823
B159: OPEX segurança diurno/# postos | D159: =Controle!G350 -> 12156.34081 | E159: Referência Cardtec R$ 14.499 segurança Diurno
B160: OPEX segurança noturno/# postos | D160: =Controle!G351 -> 11725.54842 | E160: Referência Cardtec R$ 16.607 segurança Noturno
B161: OPEX Brigadistas/# postos | D161: =Controle!G352 -> 18613.34112 | E161: Referência Cardtec R$ 20.409 bombeiro civil
B162: OPEX Energia/m² total | D162: =Controle!G353 -> 0.08477389635
B163: OPEX Água e Resíduos/m² | D163: =Controle!G354 -> 0.4104922733
B164: OPEX Wifi/m² | D164: =Controle!G355 -> 0.346860988
B165: OPEX Internet/funcionários | D165: =Controle!G356 -> 126.2557422
B166: Despesas Gerais/visitante | D166: =Controle!G357 -> 0.02112
B167: Comunicação Visual / Vb | D167: =Controle!G358 -> 0.1056
B168: Comunicação Visual / m² | D168: =Controle!G359 -> 0.145428023
B169: OPEX insumos/visitantes | D169: =Controle!G360 -> 0.008773217391
B170: OPEX Uniformes/Funcionário | D170: =Controle!G361 -> 369.6
B171: OPEX Alimentação/Funcionário | D171: =Controle!G362 -> 31.68
B172: OPEX mobiliário/Funcionário | D172: =Controle!G363 -> 1056
B173: OPEX Equipamentos/Funcionário | D173: =Controle!G364 -> 3696
B174: Manutenção Elevador | D174: =Controle!G365 -> 21120
B175: Manutenção Ar Condicionado | D175: =Controle!G366 -> 13200
B176: Transporte de valores | D176: =Controle!G367 -> 13200
B177: Manutenção Mobilidade | D177: =Controle!G368 -> 105600
B178: Combustível Mobilidade | D178: =Controle!G369 -> 176000
B179: OPEX Pesquisa / visitante | D179: =Controle!G370 -> 0.0792
B180: OPEX Telefonia/funcionários | D180: =Controle!G371 -> 158.4
B181: OPEX Resíduos/visitantes | D181: =Controle!G372 -> 0.06336
B183: Análise de Cronograma | CAPEX
B186: (Em R$ 000) | C186: 1 | D186: 2 | E186: 3 | F186: 4 | G186: 5 | H186: 6 | I186: 7 | J186: Total
B187: CapEx | C187: =SUM(C188:C189) ->  | J187: =SUM(C187:I187) -> 
B188: Ambientes Urbanos | C188: =-SUM(DFs!J103:J120) -> 16794.5503 | D188: =-SUM(DFs!K103:K120) -> 28956.78804 | E188: =-SUM(DFs!L103:L120) -> 15966.06764 | F188: =-SUM(DFs!M103:M120) -> 24516.59385 | G188: =-SUM(DFs!N103:N120) -> 25584.41045 | H188: =-SUM(DFs!O103:O120) -> 40091.85542 | I188: =-SUM(DFs!P103:P120) -> 8289.982982 | J188: =SUM(C188:I188) -> 160200.2487
B189: Ativo Reversível | C189: =-DFs!#REF! ->  | D189: =-DFs!#REF! ->  | E189: =-DFs!#REF! ->  | F189: =-DFs!#REF! ->  | G189: =-DFs!#REF! ->  | H189: =-DFs!#REF! ->  | I189: =-DFs!#REF! -> 
B191: Total | C191: =C187 ->  | J191: =SUM(C191:I191) -> 
B192: Total Acumulado | C192: =C191 ->  | D192: =D191+C192 ->  | I192: =I191+H192 -> 
B195: Análise de Premissas Econômicas e Financeiras
B197: Custo de Capital
B199: =WACC!B2 -> Custo de capital | G199: =WACC!G2 -> Premissa | I199: =WACC!H2 -> Fonte
B201: =WACC!B4 -> WACC Real | E201: =WACC!E4 -> 0.1153
B202: =WACC!B5 -> WACC Nominal | E202: =WACC!E5 -> 0.1576814
B204: =WACC!B7 -> Participação de capital próprio | E204: =WACC!E7 -> 0.51
B205: =WACC!B8 -> Participação de capital de terceiros | E205: =WACC!E8 -> 0.49
B207: =WACC!B10 -> Prêmio pelo Risco País (US$) | E207: =WACC!E10 -> 0.02800784716 | G207: =WACC!G10 -> CDS | I207: =WACC!H10 -> 0
B208: =WACC!B11 -> Multiplicador de Volatilidade | E208: =WACC!E11 -> 0.852 | G208: =WACC!G11 -> Razão entre desvio do retorno Ibov e DI | I208: =WACC!H11 -> https://br.investing.com/rates-bonds/one-day-interbank-deposit-rate-historical-data
B209: =WACC!B12 -> Risco país ponderado pela volatilidade | E209: =WACC!E12 -> 0.02386268578
B210: =WACC!B13 -> Taxa Livre de Risco Nominal (EUA) (US$) | E210: =WACC!E13 -> 0.04273571429 | G210: =WACC!G13 -> T-Bond 10Y (US 10Y Yield) | I210: =WACC!H13 -> https://home.treasury.gov/data/treasury-coupon-issues-and-corporate-bond-yield-curves/treasury-coupon-issues
B211: =WACC!B14 -> Taxa livre de risco país ( Nominal US$) | E211: =WACC!E14 -> 0.06659840006
B214: =WACC!B17 -> Beta Desalavancado | E214: =WACC!E17 -> 0.844994 | G214: =WACC!G17 -> Ponderação pela % do CAPEX: Beta Real Engineering/Construction e Real Estate (Development) | I214: =WACC!H17 -> https://pages.stern.nyu.edu/~adamodar/New_Home_Page/datafile/Betas.html
B215: =WACC!B18 -> Dívida / capital próprio | E215: =WACC!E18 -> 0.9607843137
B216: =WACC!B19 -> Beta Alavancado | E216: =WACC!E19 -> 1.65685098
B217: =WACC!B20 -> Retorno de Mercado | E217: =WACC!E20 -> 0.1051932435 | G217: =WACC!G20 -> S&P 500 (10Y) | I217: =WACC!H20 -> https://br.investing.com/indices/us-spx-500-historical-data
B218: =WACC!B21 -> Prêmio pelo Risco de Mercado | E218: =WACC!E21 -> 0.062
B219: =WACC!B22 -> Prêmio pelo Risco da empresa (Nominal US$) | E219: =WACC!E22 -> 0.1027247608
B221: =WACC!B24 -> Custo do Capital Próprio (Nominal US$) | E221: =WACC!E24 -> 0.1693231608
B223: =WACC!B26 -> Inflação americana de longo prazo | E223: =WACC!E26 -> 0.021767861 | G223: =WACC!G26 -> PCE price index | I223: =WACC!H26 -> https://www.cbo.gov/publication/61172#:~:text=%E2%80%8COverall%20Inflation%20and%20Core
B224: =WACC!B27 -> Inflação brasileira de longo prazo | E224: =WACC!E27 -> 0.038 | G224: =WACC!G27 -> IPCA | I224: =WACC!H27 -> Boletim Focus - jul/2025
B226: =WACC!B29 -> Custo de Capital Proprio Nominal (R$) | E226: =WACC!E29 -> 0.1878994117
B227: =WACC!B30 -> Custo de Capital Proprio Real (R$ e US$) | E227: =WACC!E30 -> 0.1444117646
B229: =WACC!B32 -> IPCA | E229: =WACC!E32 -> 0.038 | G229: =WACC!G32 -> IPCA
B230: =WACC!B33 -> Remuneração | E230: =WACC!E33 -> 0.085 | G230: =WACC!G33 -> Spread da Dívida - Histórico da Parcela Fixa da TLP acrescido de estimativa do spread de risco da operação
B232: =WACC!B35 -> Custo Nominal da Dívida (R$) | E232: =WACC!E35 -> 0.12623
B235: Análise do Valor
B237: Avaliação Econômico-Financeira
B238: Indicador | D238: Projeto | E238: Acionista
B239: Prazo | C239: [anos] | D239: =Controle!G38 -> 30
B240: Custo de Capital | C240: [% Real] | D240: =Dashboard!E9 -> 0.1153 | E240: =WACC!E30 -> 0.1444117646
B241: TIR | C241: [% Real] | D241: =Dashboard!G13 -> 0.1153000219 | E241: =FM!I411 -> 0.127103741
B245: Capital - subscrição e integralização
B247: Base de Estimativa
B248: Subscrição de capital | C248: [R$] | D248: =Controle!G309*1000 -> 49000000
B249: CAPEX Obrigatório | C249: [R$] | D249: =G192*1000 -> 
B250: [%] Estimado | C250: [%] | D250: =D248/D249 -> 
B252: Tranches | C252: Mês limite | D252: Total [%] | E252: Total [R$]
B253: 1º integralização | C253: =Controle!F308 -> 2026-01-01 | D253: =E253/$D$248 -> 0.5204081633 | E253: =Controle!F310*1000 -> 25500000
B254: 2º integralização | C254: =Controle!G308 -> 2027-01-01 | D254: =E254/$D$248 -> 0.4795918367 | E254: =Controle!G310*1000 -> 23500000
B256: Sumário Executivo
B258: Avaliação Econômico-Financeira
B260: Prazo do projeto | C260: [anos] | D260: =D239 -> 30
B261: TMA (WACC) | C261: [%] | D261: =D240 -> 0.1153
... 26 more rows

Sheet DFs
C2: =switch_inflacao -> Constante | E2: TIR Real (aa) | F2: VPL (R$ 000)
C3: Projeto | E3: =Dashboard!$G$13 -> 0.1153000219 | F3: =Dashboard!$G$14 -> 0
C5: =Checks!E27 -> ok | E5: =Capa!C2 -> Modelo Econômico Financeiro Guararapes | H5: ="[Valor "&$C$2&"]" -> [Valor Constante] | J5: =YEAR(inicio) -> 2026 | K5: =J5+1 -> 2027 | L5: =K5+1 -> 2028 | M5: 2029 | N5: 2030 | O5: 2031 | P5: 2032 | Q5: 2033 | R5: 2034 | S5: 2035 | T5: 2036 | U5: 2037 | V5: 2038 | W5: 2039 | X5: 2040 | Y5: 2041 | Z5: 2042 | AA5: 2043 | AB5: 2044 | AC5: 2045 | AD5: 2046 | AE5: 2047 | AF5: 2048 | AG5: 2049 | AH5: 2050 | AI5: 2051 | AJ5: 2052 | AK5: 2053 | AL5: 2054 | AM5: 2055
C7: Flags
D19: =Controle!D21 -> Ano | J19: =J5 -> 2026 | K19: =K5 -> 2027 | L19: =L5 -> 2028 | M19: 2029 | N19: 2030 | O19: 2031 | P19: 2032 | Q19: 2033 | R19: 2034 | S19: 2035 | T19: 2036 | U19: 2037 | V19: 2038 | W19: 2039 | X19: 2040 | Y19: 2041 | Z19: 2042 | AA19: 2043 | AB19: 2044 | AC19: 2045 | AD19: 2046 | AE19: 2047 | AF19: 2048 | AG19: 2049 | AH19: 2050 | AI19: 2051 | AJ19: 2052 | AK19: 2053 | AL19: 2054 | AM19: 2055
D20: =Controle!D22 -> Mês | J20: 12 | K20: 12 | L20: 12 | M20: 12 | N20: 12 | O20: 12 | P20: 12 | Q20: 12 | R20: 12 | S20: 12 | T20: 12 | U20: 12 | V20: 12 | W20: 12 | X20: 12 | Y20: 12 | Z20: 12 | AA20: 12 | AB20: 12 | AC20: 12 | AD20: 12 | AE20: 12 | AF20: 12 | AG20: 12 | AH20: 12 | AI20: 12 | AJ20: 12 | AK20: 12 | AL20: 12 | AM20: 12
C25: DRE
D27: =FM!C30 -> [Slot 1] | H27: =SUM(J27:AM27) -> 0 | J27: =SUMIFS(FM!30:30,FM!$21:$21,J$5) -> 0 | K27: =SUMIFS(FM!30:30,FM!$21:$21,K$5) -> 0 | L27: =SUMIFS(FM!30:30,FM!$21:$21,L$5) -> 0 | M27: =SUMIFS(FM!30:30,FM!$21:$21,M$5) -> 0 | N27: =SUMIFS(FM!30:30,FM!$21:$21,N$5) -> 0 | O27: =SUMIFS(FM!30:30,FM!$21:$21,O$5) -> 0 | P27: =SUMIFS(FM!30:30,FM!$21:$21,P$5) -> 0 | Q27: =SUMIFS(FM!30:30,FM!$21:$21,Q$5) -> 0 | R27: =SUMIFS(FM!30:30,FM!$21:$21,R$5) -> 0 | S27: =SUMIFS(FM!30:30,FM!$21:$21,S$5) -> 0 | T27: =SUMIFS(FM!30:30,FM!$21:$21,T$5) -> 0 | U27: =SUMIFS(FM!30:30,FM!$21:$21,U$5) -> 0 | V27: =SUMIFS(FM!30:30,FM!$21:$21,V$5) -> 0 | W27: =SUMIFS(FM!30:30,FM!$21:$21,W$5) -> 0 | X27: =SUMIFS(FM!30:30,FM!$21:$21,X$5) -> 0 | Y27: =SUMIFS(FM!30:30,FM!$21:$21,Y$5) -> 0 | Z27: =SUMIFS(FM!30:30,FM!$21:$21,Z$5) -> 0 | AA27: =SUMIFS(FM!30:30,FM!$21:$21,AA$5) -> 0 | AB27: =SUMIFS(FM!30:30,FM!$21:$21,AB$5) -> 0 | AC27: =SUMIFS(FM!30:30,FM!$21:$21,AC$5) -> 0 | AD27: =SUMIFS(FM!30:30,FM!$21:$21,AD$5) -> 0 | AE27: =SUMIFS(FM!30:30,FM!$21:$21,AE$5) -> 0 | AF27: =SUMIFS(FM!30:30,FM!$21:$21,AF$5) -> 0 | AG27: =SUMIFS(FM!30:30,FM!$21:$21,AG$5) -> 0 | AH27: =SUMIFS(FM!30:30,FM!$21:$21,AH$5) -> 0 | AI27: =SUMIFS(FM!30:30,FM!$21:$21,AI$5) -> 0 | AJ27: =SUMIFS(FM!30:30,FM!$21:$21,AJ$5) -> 0 | AK27: =SUMIFS(FM!30:30,FM!$21:$21,AK$5) -> 0 | AL27: =SUMIFS(FM!30:30,FM!$21:$21,AL$5) -> 0 | AM27: =SUMIFS(FM!30:30,FM!$21:$21,AM$5) -> 0
D28: =FM!C31 -> Estacionamento | G28: =H28/$H$33 -> 0.0850486846 | H28: 62757.6 | J28: =SUMIFS(FM!31:31,FM!$21:$21,J$5) -> 0 | K28: =SUMIFS(FM!31:31,FM!$21:$21,K$5) -> 2162.625 | L28: =SUMIFS(FM!31:31,FM!$21:$21,L$5) -> 2168.55 | M28: =SUMIFS(FM!31:31,FM!$21:$21,M$5) -> 2162.625 | N28: =SUMIFS(FM!31:31,FM!$21:$21,N$5) -> 2162.625 | O28: =SUMIFS(FM!31:31,FM!$21:$21,O$5) -> 2162.625 | P28: =SUMIFS(FM!31:31,FM!$21:$21,P$5) -> 2168.55 | Q28: =SUMIFS(FM!31:31,FM!$21:$21,Q$5) -> 2162.625 | R28: =SUMIFS(FM!31:31,FM!$21:$21,R$5) -> 2162.625 | S28: =SUMIFS(FM!31:31,FM!$21:$21,S$5) -> 2162.625 | T28: =SUMIFS(FM!31:31,FM!$21:$21,T$5) -> 2168.55 | U28: =SUMIFS(FM!31:31,FM!$21:$21,U$5) -> 2162.625 | V28: =SUMIFS(FM!31:31,FM!$21:$21,V$5) -> 2162.625 | W28: =SUMIFS(FM!31:31,FM!$21:$21,W$5) -> 2162.625 | X28: =SUMIFS(FM!31:31,FM!$21:$21,X$5) -> 2168.55 | Y28: =SUMIFS(FM!31:31,FM!$21:$21,Y$5) -> 2162.625 | Z28: =SUMIFS(FM!31:31,FM!$21:$21,Z$5) -> 2162.625 | AA28: =SUMIFS(FM!31:31,FM!$21:$21,AA$5) -> 2162.625 | AB28: =SUMIFS(FM!31:31,FM!$21:$21,AB$5) -> 2168.55 | AC28: =SUMIFS(FM!31:31,FM!$21:$21,AC$5) -> 2162.625 | AD28: =SUMIFS(FM!31:31,FM!$21:$21,AD$5) -> 2162.625 | AE28: =SUMIFS(FM!31:31,FM!$21:$21,AE$5) -> 2162.625 | AF28: =SUMIFS(FM!31:31,FM!$21:$21,AF$5) -> 2168.55 | AG28: =SUMIFS(FM!31:31,FM!$21:$21,AG$5) -> 2162.625 | AH28: =SUMIFS(FM!31:31,FM!$21:$21,AH$5) -> 2162.625 | AI28: =SUMIFS(FM!31:31,FM!$21:$21,AI$5) -> 2162.625 | AJ28: =SUMIFS(FM!31:31,FM!$21:$21,AJ$5) -> 2168.55 | AK28: =SUMIFS(FM!31:31,FM!$21:$21,AK$5) -> 2162.625 | AL28: =SUMIFS(FM!31:31,FM!$21:$21,AL$5) -> 2162.625 | AM28: =SUMIFS(FM!31:31,FM!$21:$21,AM$5) -> 2162.625
D29: =FM!C32 -> Aluguel Fachada Ativa | G29: =H29/$H$33 -> 0.004995134415 | H29: 3685.92 | J29: =SUMIFS(FM!32:32,FM!$21:$21,J$5) -> 0 | K29: =SUMIFS(FM!32:32,FM!$21:$21,K$5) -> 0 | L29: =SUMIFS(FM!32:32,FM!$21:$21,L$5) -> 57.12 | M29: =SUMIFS(FM!32:32,FM!$21:$21,M$5) -> 134.4 | N29: =SUMIFS(FM!32:32,FM!$21:$21,N$5) -> 134.4 | O29: =SUMIFS(FM!32:32,FM!$21:$21,O$5) -> 134.4 | P29: =SUMIFS(FM!32:32,FM!$21:$21,P$5) -> 134.4 | Q29: =SUMIFS(FM!32:32,FM!$21:$21,Q$5) -> 134.4 | R29: =SUMIFS(FM!32:32,FM!$21:$21,R$5) -> 134.4 | S29: =SUMIFS(FM!32:32,FM!$21:$21,S$5) -> 134.4 | T29: =SUMIFS(FM!32:32,FM!$21:$21,T$5) -> 134.4 | U29: =SUMIFS(FM!32:32,FM!$21:$21,U$5) -> 134.4 | V29: =SUMIFS(FM!32:32,FM!$21:$21,V$5) -> 134.4 | W29: =SUMIFS(FM!32:32,FM!$21:$21,W$5) -> 134.4 | X29: =SUMIFS(FM!32:32,FM!$21:$21,X$5) -> 134.4 | Y29: =SUMIFS(FM!32:32,FM!$21:$21,Y$5) -> 134.4 | Z29: =SUMIFS(FM!32:32,FM!$21:$21,Z$5) -> 134.4 | AA29: =SUMIFS(FM!32:32,FM!$21:$21,AA$5) -> 134.4 | AB29: =SUMIFS(FM!32:32,FM!$21:$21,AB$5) -> 134.4 | AC29: =SUMIFS(FM!32:32,FM!$21:$21,AC$5) -> 134.4 | AD29: =SUMIFS(FM!32:32,FM!$21:$21,AD$5) -> 134.4 | AE29: =SUMIFS(FM!32:32,FM!$21:$21,AE$5) -> 134.4 | AF29: =SUMIFS(FM!32:32,FM!$21:$21,AF$5) -> 134.4 | AG29: =SUMIFS(FM!32:32,FM!$21:$21,AG$5) -> 134.4 | AH29: =SUMIFS(FM!32:32,FM!$21:$21,AH$5) -> 134.4 | AI29: =SUMIFS(FM!32:32,FM!$21:$21,AI$5) -> 134.4 | AJ29: =SUMIFS(FM!32:32,FM!$21:$21,AJ$5) -> 134.4 | AK29: =SUMIFS(FM!32:32,FM!$21:$21,AK$5) -> 134.4 | AL29: =SUMIFS(FM!32:32,FM!$21:$21,AL$5) -> 134.4 | AM29: =SUMIFS(FM!32:32,FM!$21:$21,AM$5) -> 134.4
D30: =FM!C33 -> Ambientes Urbanos | G30: 0.6017795079 | H30: 444054.3416 | J30: =SUMIFS(FM!33:33,FM!$21:$21,J$5) -> 0 | K30: =SUMIFS(FM!33:33,FM!$21:$21,K$5) -> 10695.53831 | L30: =SUMIFS(FM!33:33,FM!$21:$21,L$5) -> 14864.34368 | M30: =SUMIFS(FM!33:33,FM!$21:$21,M$5) -> 15499.7948 | N30: =SUMIFS(FM!33:33,FM!$21:$21,N$5) -> 15499.7948 | O30: =SUMIFS(FM!33:33,FM!$21:$21,O$5) -> 15499.7948 | P30: =SUMIFS(FM!33:33,FM!$21:$21,P$5) -> 15499.7948 | Q30: =SUMIFS(FM!33:33,FM!$21:$21,Q$5) -> 15499.7948 | R30: =SUMIFS(FM!33:33,FM!$21:$21,R$5) -> 15499.7948 | S30: =SUMIFS(FM!33:33,FM!$21:$21,S$5) -> 15499.7948 | T30: =SUMIFS(FM!33:33,FM!$21:$21,T$5) -> 15499.7948 | U30: =SUMIFS(FM!33:33,FM!$21:$21,U$5) -> 15499.7948 | V30: =SUMIFS(FM!33:33,FM!$21:$21,V$5) -> 15499.7948 | W30: =SUMIFS(FM!33:33,FM!$21:$21,W$5) -> 15499.7948 | X30: =SUMIFS(FM!33:33,FM!$21:$21,X$5) -> 15499.7948 | Y30: =SUMIFS(FM!33:33,FM!$21:$21,Y$5) -> 15499.7948 | Z30: =SUMIFS(FM!33:33,FM!$21:$21,Z$5) -> 15499.7948 | AA30: =SUMIFS(FM!33:33,FM!$21:$21,AA$5) -> 15499.7948 | AB30: =SUMIFS(FM!33:33,FM!$21:$21,AB$5) -> 15499.7948 | AC30: =SUMIFS(FM!33:33,FM!$21:$21,AC$5) -> 15499.7948 | AD30: =SUMIFS(FM!33:33,FM!$21:$21,AD$5) -> 15499.7948 | AE30: =SUMIFS(FM!33:33,FM!$21:$21,AE$5) -> 15499.7948 | AF30: =SUMIFS(FM!33:33,FM!$21:$21,AF$5) -> 15499.7948 | AG30: =SUMIFS(FM!33:33,FM!$21:$21,AG$5) -> 15499.7948 | AH30: =SUMIFS(FM!33:33,FM!$21:$21,AH$5) -> 15499.7948 | AI30: =SUMIFS(FM!33:33,FM!$21:$21,AI$5) -> 15499.7948 | AJ30: =SUMIFS(FM!33:33,FM!$21:$21,AJ$5) -> 15499.7948 | AK30: =SUMIFS(FM!33:33,FM!$21:$21,AK$5) -> 15499.7948 | AL30: =SUMIFS(FM!33:33,FM!$21:$21,AL$5) -> 15499.7948 | AM30: =SUMIFS(FM!33:33,FM!$21:$21,AM$5) -> 15499.7948
D31: =FM!C34 -> Contraprestação Variável | G31: 0.2714936548 | H31: 200335.7285 | J31: =SUMIFS(FM!34:34,FM!$21:$21,J$5) -> 0 | K31: =SUMIFS(FM!34:34,FM!$21:$21,K$5) -> 647.9555748 | L31: =SUMIFS(FM!34:34,FM!$21:$21,L$5) -> 2576.041563 | M31: =SUMIFS(FM!34:34,FM!$21:$21,M$5) -> 3397.442814 | N31: =SUMIFS(FM!34:34,FM!$21:$21,N$5) -> 4503.405094 | O31: =SUMIFS(FM!34:34,FM!$21:$21,O$5) -> 5694.01096 | P31: =SUMIFS(FM!34:34,FM!$21:$21,P$5) -> 7646.536354 | Q31: =SUMIFS(FM!34:34,FM!$21:$21,Q$5) -> 7646.536354 | R31: =SUMIFS(FM!34:34,FM!$21:$21,R$5) -> 7646.536354 | S31: =SUMIFS(FM!34:34,FM!$21:$21,S$5) -> 7646.536354 | T31: =SUMIFS(FM!34:34,FM!$21:$21,T$5) -> 7646.536354 | U31: =SUMIFS(FM!34:34,FM!$21:$21,U$5) -> 7646.536354 | V31: =SUMIFS(FM!34:34,FM!$21:$21,V$5) -> 7646.536354 | W31: =SUMIFS(FM!34:34,FM!$21:$21,W$5) -> 7646.536354 | X31: =SUMIFS(FM!34:34,FM!$21:$21,X$5) -> 7646.536354 | Y31: =SUMIFS(FM!34:34,FM!$21:$21,Y$5) -> 7646.536354 | Z31: =SUMIFS(FM!34:34,FM!$21:$21,Z$5) -> 7646.536354 | AA31: =SUMIFS(FM!34:34,FM!$21:$21,AA$5) -> 7646.536354 | AB31: =SUMIFS(FM!34:34,FM!$21:$21,AB$5) -> 7646.536354 | AC31: =SUMIFS(FM!34:34,FM!$21:$21,AC$5) -> 7646.536354 | AD31: =SUMIFS(FM!34:34,FM!$21:$21,AD$5) -> 7646.536354 | AE31: =SUMIFS(FM!34:34,FM!$21:$21,AE$5) -> 7646.536354 | AF31: =SUMIFS(FM!34:34,FM!$21:$21,AF$5) -> 7646.536354 | AG31: =SUMIFS(FM!34:34,FM!$21:$21,AG$5) -> 7646.536354 | AH31: =SUMIFS(FM!34:34,FM!$21:$21,AH$5) -> 7646.536354 | AI31: =SUMIFS(FM!34:34,FM!$21:$21,AI$5) -> 7646.536354 | AJ31: =SUMIFS(FM!34:34,FM!$21:$21,AJ$5) -> 7646.536354 | AK31: =SUMIFS(FM!34:34,FM!$21:$21,AK$5) -> 7646.536354 | AL31: =SUMIFS(FM!34:34,FM!$21:$21,AL$5) -> 7646.536354 | AM31: =SUMIFS(FM!34:34,FM!$21:$21,AM$5) -> 7646.536354
D32: =FM!C35 -> Aluguel | G32: 0.03668301836 | H32: 27068.475 | J32: =SUMIFS(FM!35:35,FM!$21:$21,J$5) -> 0 | K32: =SUMIFS(FM!35:35,FM!$21:$21,K$5) -> 0 | L32: =SUMIFS(FM!35:35,FM!$21:$21,L$5) -> 419.475 | M32: =SUMIFS(FM!35:35,FM!$21:$21,M$5) -> 987 | N32: =SUMIFS(FM!35:35,FM!$21:$21,N$5) -> 987 | O32: =SUMIFS(FM!35:35,FM!$21:$21,O$5) -> 987 | P32: =SUMIFS(FM!35:35,FM!$21:$21,P$5) -> 987 | Q32: =SUMIFS(FM!35:35,FM!$21:$21,Q$5) -> 987 | R32: =SUMIFS(FM!35:35,FM!$21:$21,R$5) -> 987 | S32: =SUMIFS(FM!35:35,FM!$21:$21,S$5) -> 987 | T32: =SUMIFS(FM!35:35,FM!$21:$21,T$5) -> 987 | U32: =SUMIFS(FM!35:35,FM!$21:$21,U$5) -> 987 | V32: =SUMIFS(FM!35:35,FM!$21:$21,V$5) -> 987 | W32: =SUMIFS(FM!35:35,FM!$21:$21,W$5) -> 987 | X32: =SUMIFS(FM!35:35,FM!$21:$21,X$5) -> 987 | Y32: =SUMIFS(FM!35:35,FM!$21:$21,Y$5) -> 987 | Z32: =SUMIFS(FM!35:35,FM!$21:$21,Z$5) -> 987 | AA32: =SUMIFS(FM!35:35,FM!$21:$21,AA$5) -> 987 | AB32: =SUMIFS(FM!35:35,FM!$21:$21,AB$5) -> 987 | AC32: =SUMIFS(FM!35:35,FM!$21:$21,AC$5) -> 987 | AD32: =SUMIFS(FM!35:35,FM!$21:$21,AD$5) -> 987 | AE32: =SUMIFS(FM!35:35,FM!$21:$21,AE$5) -> 987 | AF32: =SUMIFS(FM!35:35,FM!$21:$21,AF$5) -> 987 | AG32: =SUMIFS(FM!35:35,FM!$21:$21,AG$5) -> 987 | AH32: =SUMIFS(FM!35:35,FM!$21:$21,AH$5) -> 987 | AI32: =SUMIFS(FM!35:35,FM!$21:$21,AI$5) -> 987 | AJ32: =SUMIFS(FM!35:35,FM!$21:$21,AJ$5) -> 987 | AK32: =SUMIFS(FM!35:35,FM!$21:$21,AK$5) -> 987 | AL32: =SUMIFS(FM!35:35,FM!$21:$21,AL$5) -> 987 | AM32: =SUMIFS(FM!35:35,FM!$21:$21,AM$5) -> 987
D33: =FM!C36 -> Receita bruta | G33: 1 | H33: 737902.0651 | J33: =SUM(J27:J32) -> 0 | K33: 13506.11889 | L33: =SUM(L27:L32) -> 20085.53025 | M33: =SUM(M27:M32) -> 22181.26261 | N33: 23287.22489 | O33: 24477.83076 | P33: 26436.28115 | Q33: 26430.35615 | R33: 26430.35615 | S33: 26430.35615 | T33: 26436.28115 | U33: 26430.35615 | V33: 26430.35615 | W33: 26430.35615 | X33: 26436.28115 | Y33: 26430.35615 | Z33: 26430.35615 | AA33: 26430.35615 | AB33: 26436.28115 | AC33: 26430.35615 | AD33: 26430.35615 | AE33: 26430.35615 | AF33: 26436.28115 | AG33: 26430.35615 | AH33: 26430.35615 | AI33: 26430.35615 | AJ33: 26436.28115 | AK33: 26430.35615 | AL33: 26430.35615 | AM33: 26430.35615
D35: =FM!C39 -> PIS/COFINS - Débito | G35: =H35/(H$33) -> -0.0365 | H35: =SUM(J35:AM35) -> -26933.42538 | J35: =SUMIFS(FM!39:39,FM!$21:$21,J$5) -> 0 | K35: =SUMIFS(FM!39:39,FM!$21:$21,K$5) -> -492.9733394 | L35: =SUMIFS(FM!39:39,FM!$21:$21,L$5) -> -733.121854 | M35: =SUMIFS(FM!39:39,FM!$21:$21,M$5) -> -809.6160854 | N35: =SUMIFS(FM!39:39,FM!$21:$21,N$5) -> -849.9837086 | O35: =SUMIFS(FM!39:39,FM!$21:$21,O$5) -> -893.4408228 | P35: =SUMIFS(FM!39:39,FM!$21:$21,P$5) -> -964.9242621 | Q35: =SUMIFS(FM!39:39,FM!$21:$21,Q$5) -> -964.7079996 | R35: =SUMIFS(FM!39:39,FM!$21:$21,R$5) -> -964.7079996 | S35: =SUMIFS(FM!39:39,FM!$21:$21,S$5) -> -964.7079996 | T35: =SUMIFS(FM!39:39,FM!$21:$21,T$5) -> -964.9242621 | U35: =SUMIFS(FM!39:39,FM!$21:$21,U$5) -> -964.7079996 | V35: =SUMIFS(FM!39:39,FM!$21:$21,V$5) -> -964.7079996 | W35: =SUMIFS(FM!39:39,FM!$21:$21,W$5) -> -964.7079996 | X35: =SUMIFS(FM!39:39,FM!$21:$21,X$5) -> -964.9242621 | Y35: =SUMIFS(FM!39:39,FM!$21:$21,Y$5) -> -964.7079996 | Z35: =SUMIFS(FM!39:39,FM!$21:$21,Z$5) -> -964.7079996 | AA35: =SUMIFS(FM!39:39,FM!$21:$21,AA$5) -> -964.7079996 | AB35: =SUMIFS(FM!39:39,FM!$21:$21,AB$5) -> -964.9242621 | AC35: =SUMIFS(FM!39:39,FM!$21:$21,AC$5) -> -964.7079996 | AD35: =SUMIFS(FM!39:39,FM!$21:$21,AD$5) -> -964.7079996 | AE35: =SUMIFS(FM!39:39,FM!$21:$21,AE$5) -> -964.7079996 | AF35: =SUMIFS(FM!39:39,FM!$21:$21,AF$5) -> -964.9242621 | AG35: =SUMIFS(FM!39:39,FM!$21:$21,AG$5) -> -964.7079996 | AH35: =SUMIFS(FM!39:39,FM!$21:$21,AH$5) -> -964.7079996 | AI35: =SUMIFS(FM!39:39,FM!$21:$21,AI$5) -> -964.7079996 | AJ35: =SUMIFS(FM!39:39,FM!$21:$21,AJ$5) -> -964.9242621 | AK35: =SUMIFS(FM!39:39,FM!$21:$21,AK$5) -> -964.7079996 | AL35: =SUMIFS(FM!39:39,FM!$21:$21,AL$5) -> -964.7079996 | AM35: =SUMIFS(FM!39:39,FM!$21:$21,AM$5) -> -964.7079996
D36: =FM!C40 -> PIS/COFINS - Crédito | G36: =H36/H$33 -> 0 | H36: =SUM(J36:AM36) -> 0 | J36: =SUMIFS(FM!40:40,FM!$21:$21,J$5) -> 0 | K36: =SUMIFS(FM!40:40,FM!$21:$21,K$5) -> 0 | L36: =SUMIFS(FM!40:40,FM!$21:$21,L$5) -> 0 | M36: =SUMIFS(FM!40:40,FM!$21:$21,M$5) -> 0 | N36: =SUMIFS(FM!40:40,FM!$21:$21,N$5) -> 0 | O36: =SUMIFS(FM!40:40,FM!$21:$21,O$5) -> 0 | P36: =SUMIFS(FM!40:40,FM!$21:$21,P$5) -> 0 | Q36: =SUMIFS(FM!40:40,FM!$21:$21,Q$5) -> 0 | R36: =SUMIFS(FM!40:40,FM!$21:$21,R$5) -> 0 | S36: =SUMIFS(FM!40:40,FM!$21:$21,S$5) -> 0 | T36: =SUMIFS(FM!40:40,FM!$21:$21,T$5) -> 0 | U36: =SUMIFS(FM!40:40,FM!$21:$21,U$5) -> 0 | V36: =SUMIFS(FM!40:40,FM!$21:$21,V$5) -> 0 | W36: =SUMIFS(FM!40:40,FM!$21:$21,W$5) -> 0 | X36: =SUMIFS(FM!40:40,FM!$21:$21,X$5) -> 0 | Y36: =SUMIFS(FM!40:40,FM!$21:$21,Y$5) -> 0 | Z36: =SUMIFS(FM!40:40,FM!$21:$21,Z$5) -> 0 | AA36: =SUMIFS(FM!40:40,FM!$21:$21,AA$5) -> 0 | AB36: =SUMIFS(FM!40:40,FM!$21:$21,AB$5) -> 0 | AC36: =SUMIFS(FM!40:40,FM!$21:$21,AC$5) -> 0 | AD36: =SUMIFS(FM!40:40,FM!$21:$21,AD$5) -> 0 | AE36: =SUMIFS(FM!40:40,FM!$21:$21,AE$5) -> 0 | AF36: =SUMIFS(FM!40:40,FM!$21:$21,AF$5) -> 0 | AG36: =SUMIFS(FM!40:40,FM!$21:$21,AG$5) -> 0 | AH36: =SUMIFS(FM!40:40,FM!$21:$21,AH$5) -> 0 | AI36: =SUMIFS(FM!40:40,FM!$21:$21,AI$5) -> 0 | AJ36: =SUMIFS(FM!40:40,FM!$21:$21,AJ$5) -> 0 | AK36: =SUMIFS(FM!40:40,FM!$21:$21,AK$5) -> 0 | AL36: =SUMIFS(FM!40:40,FM!$21:$21,AL$5) -> 0 | AM36: =SUMIFS(FM!40:40,FM!$21:$21,AM$5) -> 0
D37: =FM!C41 -> ISS | G37: =H37/H$33 -> -0.04559865593 | H37: =SUM(J37:AM37) -> -33647.34238 | J37: =SUMIFS(FM!41:41,FM!$21:$21,J$5) -> 0 | K37: =SUMIFS(FM!41:41,FM!$21:$21,K$5) -> -634.1177188 | L37: =SUMIFS(FM!41:41,FM!$21:$21,L$5) -> -923.2045812 | M37: =SUMIFS(FM!41:41,FM!$21:$21,M$5) -> -993.3038447 | N37: =SUMIFS(FM!41:41,FM!$21:$21,N$5) -> -1048.601959 | O37: =SUMIFS(FM!41:41,FM!$21:$21,O$5) -> -1108.132252 | P37: =SUMIFS(FM!41:41,FM!$21:$21,P$5) -> -1206.054772 | Q37: =SUMIFS(FM!41:41,FM!$21:$21,Q$5) -> -1205.758522 | R37: =SUMIFS(FM!41:41,FM!$21:$21,R$5) -> -1205.758522 | S37: =SUMIFS(FM!41:41,FM!$21:$21,S$5) -> -1205.758522 | T37: =SUMIFS(FM!41:41,FM!$21:$21,T$5) -> -1206.054772 | U37: =SUMIFS(FM!41:41,FM!$21:$21,U$5) -> -1205.758522 | V37: =SUMIFS(FM!41:41,FM!$21:$21,V$5) -> -1205.758522 | W37: =SUMIFS(FM!41:41,FM!$21:$21,W$5) -> -1205.758522 | X37: =SUMIFS(FM!41:41,FM!$21:$21,X$5) -> -1206.054772 | Y37: =SUMIFS(FM!41:41,FM!$21:$21,Y$5) -> -1205.758522 | Z37: =SUMIFS(FM!41:41,FM!$21:$21,Z$5) -> -1205.758522 | AA37: =SUMIFS(FM!41:41,FM!$21:$21,AA$5) -> -1205.758522 | AB37: =SUMIFS(FM!41:41,FM!$21:$21,AB$5) -> -1206.054772 | AC37: =SUMIFS(FM!41:41,FM!$21:$21,AC$5) -> -1205.758522 | AD37: =SUMIFS(FM!41:41,FM!$21:$21,AD$5) -> -1205.758522 | AE37: =SUMIFS(FM!41:41,FM!$21:$21,AE$5) -> -1205.758522 | AF37: =SUMIFS(FM!41:41,FM!$21:$21,AF$5) -> -1206.054772 | AG37: =SUMIFS(FM!41:41,FM!$21:$21,AG$5) -> -1205.758522 | AH37: =SUMIFS(FM!41:41,FM!$21:$21,AH$5) -> -1205.758522 | AI37: =SUMIFS(FM!41:41,FM!$21:$21,AI$5) -> -1205.758522 | AJ37: =SUMIFS(FM!41:41,FM!$21:$21,AJ$5) -> -1206.054772 | AK37: =SUMIFS(FM!41:41,FM!$21:$21,AK$5) -> -1205.758522 | AL37: =SUMIFS(FM!41:41,FM!$21:$21,AL$5) -> -1205.758522 | AM37: =SUMIFS(FM!41:41,FM!$21:$21,AM$5) -> -1205.758522
D38: =FM!C42 -> ICMS | G38: =H38/H$33 -> 0 | H38: =SUM(J38:AM38) -> 0 | J38: =SUMIFS(FM!42:42,FM!$21:$21,J$5) -> 0 | K38: =SUMIFS(FM!42:42,FM!$21:$21,K$5) -> 0 | L38: =SUMIFS(FM!42:42,FM!$21:$21,L$5) -> 0 | M38: =SUMIFS(FM!42:42,FM!$21:$21,M$5) -> 0 | N38: =SUMIFS(FM!42:42,FM!$21:$21,N$5) -> 0 | O38: =SUMIFS(FM!42:42,FM!$21:$21,O$5) -> 0 | P38: =SUMIFS(FM!42:42,FM!$21:$21,P$5) -> 0 | Q38: =SUMIFS(FM!42:42,FM!$21:$21,Q$5) -> 0 | R38: =SUMIFS(FM!42:42,FM!$21:$21,R$5) -> 0 | S38: =SUMIFS(FM!42:42,FM!$21:$21,S$5) -> 0 | T38: =SUMIFS(FM!42:42,FM!$21:$21,T$5) -> 0 | U38: =SUMIFS(FM!42:42,FM!$21:$21,U$5) -> 0 | V38: =SUMIFS(FM!42:42,FM!$21:$21,V$5) -> 0 | W38: =SUMIFS(FM!42:42,FM!$21:$21,W$5) -> 0 | X38: =SUMIFS(FM!42:42,FM!$21:$21,X$5) -> 0 | Y38: =SUMIFS(FM!42:42,FM!$21:$21,Y$5) -> 0 | Z38: =SUMIFS(FM!42:42,FM!$21:$21,Z$5) -> 0 | AA38: =SUMIFS(FM!42:42,FM!$21:$21,AA$5) -> 0 | AB38: =SUMIFS(FM!42:42,FM!$21:$21,AB$5) -> 0 | AC38: =SUMIFS(FM!42:42,FM!$21:$21,AC$5) -> 0 | AD38: =SUMIFS(FM!42:42,FM!$21:$21,AD$5) -> 0 | AE38: =SUMIFS(FM!42:42,FM!$21:$21,AE$5) -> 0 | AF38: =SUMIFS(FM!42:42,FM!$21:$21,AF$5) -> 0 | AG38: =SUMIFS(FM!42:42,FM!$21:$21,AG$5) -> 0 | AH38: =SUMIFS(FM!42:42,FM!$21:$21,AH$5) -> 0 | AI38: =SUMIFS(FM!42:42,FM!$21:$21,AI$5) -> 0 | AJ38: =SUMIFS(FM!42:42,FM!$21:$21,AJ$5) -> 0 | AK38: =SUMIFS(FM!42:42,FM!$21:$21,AK$5) -> 0 | AL38: =SUMIFS(FM!42:42,FM!$21:$21,AL$5) -> 0 | AM38: =SUMIFS(FM!42:42,FM!$21:$21,AM$5) -> 0
D39: =FM!C43 -> Deduções | G39: =H39/H$33 -> -0.08209865593 | H39: =SUM(J39:AM39) -> -60580.76775 | J39: =SUM(J35:J38) -> 0 | K39: =SUM(K35:K38) -> -1127.091058 | L39: -1656.326435 | M39: -1802.91993 | N39: -1898.585667 | O39: -2001.573075 | P39: -2170.979034 | Q39: -2170.466521 | R39: -2170.466521 | S39: -2170.466521 | T39: -2170.979034 | U39: -2170.466521 | V39: -2170.466521 | W39: -2170.466521 | X39: -2170.979034 | Y39: -2170.466521 | Z39: -2170.466521 | AA39: -2170.466521 | AB39: -2170.979034 | AC39: -2170.466521 | AD39: -2170.466521 | AE39: -2170.466521 | AF39: -2170.979034 | AG39: -2170.466521 | AH39: -2170.466521 | AI39: -2170.466521 | AJ39: -2170.979034 | AK39: -2170.466521 | AL39: -2170.466521 | AM39: -2170.466521
J40: =J39-SUMIFS(FM!$43:$43,FM!$21:$21,DFs!J5) -> 0 | K40: =K39-SUMIFS(FM!$43:$43,FM!$21:$21,DFs!K5) -> 0 | L40: =L39-SUMIFS(FM!$43:$43,FM!$21:$21,DFs!L5) -> 0 | M40: =M39-SUMIFS(FM!$43:$43,FM!$21:$21,DFs!M5) -> 0 | N40: =N39-SUMIFS(FM!$43:$43,FM!$21:$21,DFs!N5) -> 0 | O40: =O39-SUMIFS(FM!$43:$43,FM!$21:$21,DFs!O5) -> 0 | P40: =P39-SUMIFS(FM!$43:$43,FM!$21:$21,DFs!P5) -> 0 | Q40: =Q39-SUMIFS(FM!$43:$43,FM!$21:$21,DFs!Q5) -> 0 | R40: =R39-SUMIFS(FM!$43:$43,FM!$21:$21,DFs!R5) -> 0 | S40: =S39-SUMIFS(FM!$43:$43,FM!$21:$21,DFs!S5) -> 0 | T40: =T39-SUMIFS(FM!$43:$43,FM!$21:$21,DFs!T5) -> 0 | U40: =U39-SUMIFS(FM!$43:$43,FM!$21:$21,DFs!U5) -> 0 | V40: =V39-SUMIFS(FM!$43:$43,FM!$21:$21,DFs!V5) -> 0 | W40: =W39-SUMIFS(FM!$43:$43,FM!$21:$21,DFs!W5) -> 0 | X40: =X39-SUMIFS(FM!$43:$43,FM!$21:$21,DFs!X5) -> 0 | Y40: =Y39-SUMIFS(FM!$43:$43,FM!$21:$21,DFs!Y5) -> 0 | Z40: =Z39-SUMIFS(FM!$43:$43,FM!$21:$21,DFs!Z5) -> 0 | AA40: =AA39-SUMIFS(FM!$43:$43,FM!$21:$21,DFs!AA5) -> 0 | AB40: =AB39-SUMIFS(FM!$43:$43,FM!$21:$21,DFs!AB5) -> 0 | AC40: =AC39-SUMIFS(FM!$43:$43,FM!$21:$21,DFs!AC5) -> 0 | AD40: =AD39-SUMIFS(FM!$43:$43,FM!$21:$21,DFs!AD5) -> 0 | AE40: =AE39-SUMIFS(FM!$43:$43,FM!$21:$21,DFs!AE5) -> 0 | AF40: =AF39-SUMIFS(FM!$43:$43,FM!$21:$21,DFs!AF5) -> 0 | AG40: =AG39-SUMIFS(FM!$43:$43,FM!$21:$21,DFs!AG5) -> 0 | AH40: =AH39-SUMIFS(FM!$43:$43,FM!$21:$21,DFs!AH5) -> 0 | AI40: =AI39-SUMIFS(FM!$43:$43,FM!$21:$21,DFs!AI5) -> 0 | AJ40: =AJ39-SUMIFS(FM!$43:$43,FM!$21:$21,DFs!AJ5) -> 0 | AK40: =AK39-SUMIFS(FM!$43:$43,FM!$21:$21,DFs!AK5) -> 0 | AL40: =AL39-SUMIFS(FM!$43:$43,FM!$21:$21,DFs!AL5) -> 0 | AM40: =AM39-SUMIFS(FM!$43:$43,FM!$21:$21,DFs!AM5) -> 0
D41: =FM!C45 -> Receita Líquida | H41: =SUM(J41:AM41) -> 677321.2974 | J41: =J39+J33 -> 0 | K41: 12379.02783 | L41: 18429.20381 | M41: =M39+M33 -> 20378.34268 | N41: 21388.63923 | O41: 22476.25769 | P41: 24265.30212 | Q41: 24259.88963 | R41: 24259.88963 | S41: 24259.88963 | T41: 24265.30212 | U41: 24259.88963 | V41: 24259.88963 | W41: 24259.88963 | X41: 24265.30212 | Y41: 24259.88963 | Z41: 24259.88963 | AA41: 24259.88963 | AB41: 24265.30212 | AC41: 24259.88963 | AD41: 24259.88963 | AE41: 24259.88963 | AF41: 24265.30212 | AG41: 24259.88963 | AH41: 24259.88963 | AI41: 24259.88963 | AJ41: 24265.30212 | AK41: 24259.88963 | AL41: 24259.88963 | AM41: 24259.88963
D43: =FM!C47 -> Custo de Obra | H43: =SUM(J43:AM43) -> 0 | J43: =SUMIFS(FM!47:47,FM!$21:$21,J$5) -> 0 | K43: =SUMIFS(FM!47:47,FM!$21:$21,K$5) -> 0 | L43: =SUMIFS(FM!47:47,FM!$21:$21,L$5) -> 0 | M43: =SUMIFS(FM!47:47,FM!$21:$21,M$5) -> 0 | N43: =SUMIFS(FM!47:47,FM!$21:$21,N$5) -> 0 | O43: =SUMIFS(FM!47:47,FM!$21:$21,O$5) -> 0 | P43: =SUMIFS(FM!47:47,FM!$21:$21,P$5) -> 0 | Q43: =SUMIFS(FM!47:47,FM!$21:$21,Q$5) -> 0 | R43: =SUMIFS(FM!47:47,FM!$21:$21,R$5) -> 0 | S43: =SUMIFS(FM!47:47,FM!$21:$21,S$5) -> 0 | T43: =SUMIFS(FM!47:47,FM!$21:$21,T$5) -> 0 | U43: =SUMIFS(FM!47:47,FM!$21:$21,U$5) -> 0 | V43: =SUMIFS(FM!47:47,FM!$21:$21,V$5) -> 0 | W43: =SUMIFS(FM!47:47,FM!$21:$21,W$5) -> 0 | X43: =SUMIFS(FM!47:47,FM!$21:$21,X$5) -> 0 | Y43: =SUMIFS(FM!47:47,FM!$21:$21,Y$5) -> 0 | Z43: =SUMIFS(FM!47:47,FM!$21:$21,Z$5) -> 0 | AA43: =SUMIFS(FM!47:47,FM!$21:$21,AA$5) -> 0 | AB43: =SUMIFS(FM!47:47,FM!$21:$21,AB$5) -> 0 | AC43: =SUMIFS(FM!47:47,FM!$21:$21,AC$5) -> 0 | AD43: =SUMIFS(FM!47:47,FM!$21:$21,AD$5) -> 0 | AE43: =SUMIFS(FM!47:47,FM!$21:$21,AE$5) -> 0 | AF43: =SUMIFS(FM!47:47,FM!$21:$21,AF$5) -> 0 | AG43: =SUMIFS(FM!47:47,FM!$21:$21,AG$5) -> 0 | AH43: =SUMIFS(FM!47:47,FM!$21:$21,AH$5) -> 0 | AI43: =SUMIFS(FM!47:47,FM!$21:$21,AI$5) -> 0 | AJ43: =SUMIFS(FM!47:47,FM!$21:$21,AJ$5) -> 0 | AK43: =SUMIFS(FM!47:47,FM!$21:$21,AK$5) -> 0 | AL43: =SUMIFS(FM!47:47,FM!$21:$21,AL$5) -> 0 | AM43: =SUMIFS(FM!47:47,FM!$21:$21,AM$5) -> 0
D44: =FM!C48 -> Despesas Concessão | H44: -10800 | J44: =SUMIFS(FM!48:48,FM!$21:$21,J$5) -> -680 | K44: =SUMIFS(FM!48:48,FM!$21:$21,K$5) -> -680 | L44: =SUMIFS(FM!48:48,FM!$21:$21,L$5) -> -680 | M44: =SUMIFS(FM!48:48,FM!$21:$21,M$5) -> -680 | N44: =SUMIFS(FM!48:48,FM!$21:$21,N$5) -> -680 | O44: =SUMIFS(FM!48:48,FM!$21:$21,O$5) -> -680 | P44: =SUMIFS(FM!48:48,FM!$21:$21,P$5) -> -280 | Q44: =SUMIFS(FM!48:48,FM!$21:$21,Q$5) -> -280 | R44: =SUMIFS(FM!48:48,FM!$21:$21,R$5) -> -280 | S44: =SUMIFS(FM!48:48,FM!$21:$21,S$5) -> -280 | T44: =SUMIFS(FM!48:48,FM!$21:$21,T$5) -> -280 | U44: =SUMIFS(FM!48:48,FM!$21:$21,U$5) -> -280 | V44: =SUMIFS(FM!48:48,FM!$21:$21,V$5) -> -280 | W44: =SUMIFS(FM!48:48,FM!$21:$21,W$5) -> -280 | X44: =SUMIFS(FM!48:48,FM!$21:$21,X$5) -> -280 | Y44: =SUMIFS(FM!48:48,FM!$21:$21,Y$5) -> -280 | Z44: =SUMIFS(FM!48:48,FM!$21:$21,Z$5) -> -280 | AA44: =SUMIFS(FM!48:48,FM!$21:$21,AA$5) -> -280 | AB44: =SUMIFS(FM!48:48,FM!$21:$21,AB$5) -> -280 | AC44: =SUMIFS(FM!48:48,FM!$21:$21,AC$5) -> -280 | AD44: =SUMIFS(FM!48:48,FM!$21:$21,AD$5) -> -280 | AE44: =SUMIFS(FM!48:48,FM!$21:$21,AE$5) -> -280 | AF44: =SUMIFS(FM!48:48,FM!$21:$21,AF$5) -> -280 | AG44: =SUMIFS(FM!48:48,FM!$21:$21,AG$5) -> -280 | AH44: =SUMIFS(FM!48:48,FM!$21:$21,AH$5) -> -280 | AI44: =SUMIFS(FM!48:48,FM!$21:$21,AI$5) -> -280 | AJ44: =SUMIFS(FM!48:48,FM!$21:$21,AJ$5) -> -280 | AK44: =SUMIFS(FM!48:48,FM!$21:$21,AK$5) -> -280 | AL44: =SUMIFS(FM!48:48,FM!$21:$21,AL$5) -> -280 | AM44: =SUMIFS(FM!48:48,FM!$21:$21,AM$5) -> -280
D45: =FM!C49 -> Manejo e Conservação de Áreas Verde | H45: -15396.3048 | J45: =SUMIFS(FM!49:49,FM!$21:$21,J$5) -> 0 | K45: =SUMIFS(FM!49:49,FM!$21:$21,K$5) -> -26.25361171 | L45: =SUMIFS(FM!49:49,FM!$21:$21,L$5) -> -288.3636656 | M45: =SUMIFS(FM!49:49,FM!$21:$21,M$5) -> -406.1366779 | N45: =SUMIFS(FM!49:49,FM!$21:$21,N$5) -> -502.8611512 | O45: =SUMIFS(FM!49:49,FM!$21:$21,O$5) -> -566.9075876 | P45: =SUMIFS(FM!49:49,FM!$21:$21,P$5) -> -566.9075876 | Q45: =SUMIFS(FM!49:49,FM!$21:$21,Q$5) -> -566.9075876 | R45: =SUMIFS(FM!49:49,FM!$21:$21,R$5) -> -566.9075876 | S45: =SUMIFS(FM!49:49,FM!$21:$21,S$5) -> -566.9075876 | T45: =SUMIFS(FM!49:49,FM!$21:$21,T$5) -> -566.9075876 | U45: =SUMIFS(FM!49:49,FM!$21:$21,U$5) -> -566.9075876 | V45: =SUMIFS(FM!49:49,FM!$21:$21,V$5) -> -566.9075876 | W45: =SUMIFS(FM!49:49,FM!$21:$21,W$5) -> -566.9075876 | X45: =SUMIFS(FM!49:49,FM!$21:$21,X$5) -> -566.9075876 | Y45: =SUMIFS(FM!49:49,FM!$21:$21,Y$5) -> -566.9075876 | Z45: =SUMIFS(FM!49:49,FM!$21:$21,Z$5) -> -566.9075876 | AA45: =SUMIFS(FM!49:49,FM!$21:$21,AA$5) -> -566.9075876 | AB45: =SUMIFS(FM!49:49,FM!$21:$21,AB$5) -> -566.9075876 | AC45: =SUMIFS(FM!49:49,FM!$21:$21,AC$5) -> -566.9075876 | AD45: =SUMIFS(FM!49:49,FM!$21:$21,AD$5) -> -566.9075876 | AE45: =SUMIFS(FM!49:49,FM!$21:$21,AE$5) -> -566.9075876 | AF45: =SUMIFS(FM!49:49,FM!$21:$21,AF$5) -> -566.9075876 | AG45: =SUMIFS(FM!49:49,FM!$21:$21,AG$5) -> -566.9075876 | AH45: =SUMIFS(FM!49:49,FM!$21:$21,AH$5) -> -566.9075876 | AI45: =SUMIFS(FM!49:49,FM!$21:$21,AI$5) -> -566.9075876 | AJ45: =SUMIFS(FM!49:49,FM!$21:$21,AJ$5) -> -566.9075876 | AK45: =SUMIFS(FM!49:49,FM!$21:$21,AK$5) -> -566.9075876 | AL45: =SUMIFS(FM!49:49,FM!$21:$21,AL$5) -> -566.9075876 | AM45: =SUMIFS(FM!49:49,FM!$21:$21,AM$5) -> -566.9075876
D46: =FM!C50 -> Conservação e Limpeza | H46: -112309.8675 | J46: =SUMIFS(FM!50:50,FM!$21:$21,J$5) -> -3.387996579 | K46: =SUMIFS(FM!50:50,FM!$21:$21,K$5) -> -111.8394064 | L46: =SUMIFS(FM!50:50,FM!$21:$21,L$5) -> -964.1415856 | M46: =SUMIFS(FM!50:50,FM!$21:$21,M$5) -> -1620.938876 | N46: =SUMIFS(FM!50:50,FM!$21:$21,N$5) -> -2225.863206 | O46: =SUMIFS(FM!50:50,FM!$21:$21,O$5) -> -3488.311333 | P46: =SUMIFS(FM!50:50,FM!$21:$21,P$5) -> -4328.974378 | Q46: =SUMIFS(FM!50:50,FM!$21:$21,Q$5) -> -4328.974378 | R46: =SUMIFS(FM!50:50,FM!$21:$21,R$5) -> -4328.974378 | S46: =SUMIFS(FM!50:50,FM!$21:$21,S$5) -> -4328.974378 | T46: =SUMIFS(FM!50:50,FM!$21:$21,T$5) -> -4328.974378 | U46: =SUMIFS(FM!50:50,FM!$21:$21,U$5) -> -4328.974378 | V46: =SUMIFS(FM!50:50,FM!$21:$21,V$5) -> -4328.974378 | W46: =SUMIFS(FM!50:50,FM!$21:$21,W$5) -> -4328.974378 | X46: =SUMIFS(FM!50:50,FM!$21:$21,X$5) -> -4328.974378 | Y46: =SUMIFS(FM!50:50,FM!$21:$21,Y$5) -> -4328.974378 | Z46: =SUMIFS(FM!50:50,FM!$21:$21,Z$5) -> -4328.974378 | AA46: =SUMIFS(FM!50:50,FM!$21:$21,AA$5) -> -4328.974378 | AB46: =SUMIFS(FM!50:50,FM!$21:$21,AB$5) -> -4328.974378 | AC46: =SUMIFS(FM!50:50,FM!$21:$21,AC$5) -> -4328.974378 | AD46: =SUMIFS(FM!50:50,FM!$21:$21,AD$5) -> -4328.974378 | AE46: =SUMIFS(FM!50:50,FM!$21:$21,AE$5) -> -4328.974378 | AF46: =SUMIFS(FM!50:50,FM!$21:$21,AF$5) -> -4328.974378 | AG46: =SUMIFS(FM!50:50,FM!$21:$21,AG$5) -> -4328.974378 | AH46: =SUMIFS(FM!50:50,FM!$21:$21,AH$5) -> -4328.974378 | AI46: =SUMIFS(FM!50:50,FM!$21:$21,AI$5) -> -4328.974378 | AJ46: =SUMIFS(FM!50:50,FM!$21:$21,AJ$5) -> -4328.974378 | AK46: =SUMIFS(FM!50:50,FM!$21:$21,AK$5) -> -4328.974378 | AL46: =SUMIFS(FM!50:50,FM!$21:$21,AL$5) -> -4328.974378 | AM46: =SUMIFS(FM!50:50,FM!$21:$21,AM$5) -> -4328.974378
D47: =FM!C51 -> Utilidades | H47: -290.8135205 | J47: =SUMIFS(FM!51:51,FM!$21:$21,J$5) -> 0 | K47: =SUMIFS(FM!51:51,FM!$21:$21,K$5) -> -0.06307753025 | L47: =SUMIFS(FM!51:51,FM!$21:$21,L$5) -> -4.100039466 | M47: =SUMIFS(FM!51:51,FM!$21:$21,M$5) -> -7.56930363 | N47: =SUMIFS(FM!51:51,FM!$21:$21,N$5) -> -7.597232756 | O47: =SUMIFS(FM!51:51,FM!$21:$21,O$5) -> -9.384696827 | P47: =SUMIFS(FM!51:51,FM!$21:$21,P$5) -> -10.92079876 | Q47: =SUMIFS(FM!51:51,FM!$21:$21,Q$5) -> -10.92079876 | R47: =SUMIFS(FM!51:51,FM!$21:$21,R$5) -> -10.92079876 | S47: =SUMIFS(FM!51:51,FM!$21:$21,S$5) -> -10.92079876 | T47: =SUMIFS(FM!51:51,FM!$21:$21,T$5) -> -10.92079876 | U47: =SUMIFS(FM!51:51,FM!$21:$21,U$5) -> -10.92079876 | V47: =SUMIFS(FM!51:51,FM!$21:$21,V$5) -> -10.92079876 | W47: =SUMIFS(FM!51:51,FM!$21:$21,W$5) -> -10.92079876 | X47: =SUMIFS(FM!51:51,FM!$21:$21,X$5) -> -10.92079876 | Y47: =SUMIFS(FM!51:51,FM!$21:$21,Y$5) -> -10.92079876 | Z47: =SUMIFS(FM!51:51,FM!$21:$21,Z$5) -> -10.92079876 | AA47: =SUMIFS(FM!51:51,FM!$21:$21,AA$5) -> -10.92079876 | AB47: =SUMIFS(FM!51:51,FM!$21:$21,AB$5) -> -10.92079876 | AC47: =SUMIFS(FM!51:51,FM!$21:$21,AC$5) -> -10.92079876 | AD47: =SUMIFS(FM!51:51,FM!$21:$21,AD$5) -> -10.92079876 | AE47: =SUMIFS(FM!51:51,FM!$21:$21,AE$5) -> -10.92079876 | AF47: =SUMIFS(FM!51:51,FM!$21:$21,AF$5) -> -10.92079876 | AG47: =SUMIFS(FM!51:51,FM!$21:$21,AG$5) -> -10.92079876 | AH47: =SUMIFS(FM!51:51,FM!$21:$21,AH$5) -> -10.92079876 | AI47: =SUMIFS(FM!51:51,FM!$21:$21,AI$5) -> -10.92079876 | AJ47: =SUMIFS(FM!51:51,FM!$21:$21,AJ$5) -> -10.92079876 | AK47: =SUMIFS(FM!51:51,FM!$21:$21,AK$5) -> -10.92079876 | AL47: =SUMIFS(FM!51:51,FM!$21:$21,AL$5) -> -10.92079876 | AM47: =SUMIFS(FM!51:51,FM!$21:$21,AM$5) -> -10.92079876
D48: =FM!C52 -> Segurança e Vigilância | H48: -16134.93442 | J48: =SUMIFS(FM!52:52,FM!$21:$21,J$5) -> 0 | K48: =SUMIFS(FM!52:52,FM!$21:$21,K$5) -> -25.12446967 | L48: =SUMIFS(FM!52:52,FM!$21:$21,L$5) -> -266.3193785 | M48: =SUMIFS(FM!52:52,FM!$21:$21,M$5) -> -304.006083 | N48: =SUMIFS(FM!52:52,FM!$21:$21,N$5) -> -464.8026889 | O48: =SUMIFS(FM!52:52,FM!$21:$21,O$5) -> -602.9872721 | P48: =SUMIFS(FM!52:52,FM!$21:$21,P$5) -> -602.9872721 | Q48: =SUMIFS(FM!52:52,FM!$21:$21,Q$5) -> -602.9872721 | R48: =SUMIFS(FM!52:52,FM!$21:$21,R$5) -> -602.9872721 | S48: =SUMIFS(FM!52:52,FM!$21:$21,S$5) -> -602.9872721 | T48: =SUMIFS(FM!52:52,FM!$21:$21,T$5) -> -602.9872721 | U48: =SUMIFS(FM!52:52,FM!$21:$21,U$5) -> -602.9872721 | V48: =SUMIFS(FM!52:52,FM!$21:$21,V$5) -> -602.9872721 | W48: =SUMIFS(FM!52:52,FM!$21:$21,W$5) -> -602.9872721 | X48: =SUMIFS(FM!52:52,FM!$21:$21,X$5) -> -602.9872721 | Y48: =SUMIFS(FM!52:52,FM!$21:$21,Y$5) -> -602.9872721 | Z48: =SUMIFS(FM!52:52,FM!$21:$21,Z$5) -> -602.9872721 | AA48: =SUMIFS(FM!52:52,FM!$21:$21,AA$5) -> -602.9872721 | AB48: =SUMIFS(FM!52:52,FM!$21:$21,AB$5) -> -602.9872721 | AC48: =SUMIFS(FM!52:52,FM!$21:$21,AC$5) -> -602.9872721 | AD48: =SUMIFS(FM!52:52,FM!$21:$21,AD$5) -> -602.9872721 | AE48: =SUMIFS(FM!52:52,FM!$21:$21,AE$5) -> -602.9872721 | AF48: =SUMIFS(FM!52:52,FM!$21:$21,AF$5) -> -602.9872721 | AG48: =SUMIFS(FM!52:52,FM!$21:$21,AG$5) -> -602.9872721 | AH48: =SUMIFS(FM!52:52,FM!$21:$21,AH$5) -> -602.9872721 | AI48: =SUMIFS(FM!52:52,FM!$21:$21,AI$5) -> -602.9872721 | AJ48: =SUMIFS(FM!52:52,FM!$21:$21,AJ$5) -> -602.9872721 | AK48: =SUMIFS(FM!52:52,FM!$21:$21,AK$5) -> -602.9872721 | AL48: =SUMIFS(FM!52:52,FM!$21:$21,AL$5) -> -602.9872721 | AM48: =SUMIFS(FM!52:52,FM!$21:$21,AM$5) -> -602.9872721
D49: =FM!C53 -> Brigadistas | H49: -12743.74871 | J49: =SUMIFS(FM!53:53,FM!$21:$21,J$5) -> -0.815652119 | K49: =SUMIFS(FM!53:53,FM!$21:$21,K$5) -> -73.40869071 | L49: =SUMIFS(FM!53:53,FM!$21:$21,L$5) -> -190.8625958 | M49: =SUMIFS(FM!53:53,FM!$21:$21,M$5) -> -308.316501 | N49: =SUMIFS(FM!53:53,FM!$21:$21,N$5) -> -424.954754 | O49: =SUMIFS(FM!53:53,FM!$21:$21,O$5) -> -469.8156205 | P49: =SUMIFS(FM!53:53,FM!$21:$21,P$5) -> -469.8156205 | Q49: =SUMIFS(FM!53:53,FM!$21:$21,Q$5) -> -469.8156205 | R49: =SUMIFS(FM!53:53,FM!$21:$21,R$5) -> -469.8156205 | S49: =SUMIFS(FM!53:53,FM!$21:$21,S$5) -> -469.8156205 | T49: =SUMIFS(FM!53:53,FM!$21:$21,T$5) -> -469.8156205 | U49: =SUMIFS(FM!53:53,FM!$21:$21,U$5) -> -469.8156205 | V49: =SUMIFS(FM!53:53,FM!$21:$21,V$5) -> -469.8156205 | W49: =SUMIFS(FM!53:53,FM!$21:$21,W$5) -> -469.8156205 | X49: =SUMIFS(FM!53:53,FM!$21:$21,X$5) -> -469.8156205 | Y49: =SUMIFS(FM!53:53,FM!$21:$21,Y$5) -> -469.8156205 | Z49: =SUMIFS(FM!53:53,FM!$21:$21,Z$5) -> -469.8156205 | AA49: =SUMIFS(FM!53:53,FM!$21:$21,AA$5) -> -469.8156205 | AB49: =SUMIFS(FM!53:53,FM!$21:$21,AB$5) -> -469.8156205 | AC49: =SUMIFS(FM!53:53,FM!$21:$21,AC$5) -> -469.8156205 | AD49: =SUMIFS(FM!53:53,FM!$21:$21,AD$5) -> -469.8156205 | AE49: =SUMIFS(FM!53:53,FM!$21:$21,AE$5) -> -469.8156205 | AF49: =SUMIFS(FM!53:53,FM!$21:$21,AF$5) -> -469.8156205 | AG49: =SUMIFS(FM!53:53,FM!$21:$21,AG$5) -> -469.8156205 | AH49: =SUMIFS(FM!53:53,FM!$21:$21,AH$5) -> -469.8156205 | AI49: =SUMIFS(FM!53:53,FM!$21:$21,AI$5) -> -469.8156205 | AJ49: =SUMIFS(FM!53:53,FM!$21:$21,AJ$5) -> -469.8156205 | AK49: =SUMIFS(FM!53:53,FM!$21:$21,AK$5) -> -469.8156205 | AL49: =SUMIFS(FM!53:53,FM!$21:$21,AL$5) -> -469.8156205 | AM49: =SUMIFS(FM!53:53,FM!$21:$21,AM$5) -> -469.8156205
D50: =FM!C54 -> Manutenção | H50: -42437.93795 | J50: =SUMIFS(FM!54:54,FM!$21:$21,J$5) -> -1.707392426 | K50: =SUMIFS(FM!54:54,FM!$21:$21,K$5) -> -56.36185014 | L50: =SUMIFS(FM!54:54,FM!$21:$21,L$5) -> -485.8824389 | M50: =SUMIFS(FM!54:54,FM!$21:$21,M$5) -> -813.6556575 | N50: =SUMIFS(FM!54:54,FM!$21:$21,N$5) -> -1089.18074 | O50: =SUMIFS(FM!54:54,FM!$21:$21,O$5) -> -1432.853362 | P50: =SUMIFS(FM!54:54,FM!$21:$21,P$5) -> -1606.595688 | Q50: =SUMIFS(FM!54:54,FM!$21:$21,Q$5) -> -1606.595688 | R50: =SUMIFS(FM!54:54,FM!$21:$21,R$5) -> -1606.595688 | S50: =SUMIFS(FM!54:54,FM!$21:$21,S$5) -> -1606.595688 | T50: =SUMIFS(FM!54:54,FM!$21:$21,T$5) -> -1606.595688 | U50: =SUMIFS(FM!54:54,FM!$21:$21,U$5) -> -1606.595688 | V50: =SUMIFS(FM!54:54,FM!$21:$21,V$5) -> -1606.595688 | W50: =SUMIFS(FM!54:54,FM!$21:$21,W$5) -> -1606.595688 | X50: =SUMIFS(FM!54:54,FM!$21:$21,X$5) -> -1606.595688 | Y50: =SUMIFS(FM!54:54,FM!$21:$21,Y$5) -> -1606.595688 | Z50: =SUMIFS(FM!54:54,FM!$21:$21,Z$5) -> -1606.595688 | AA50: =SUMIFS(FM!54:54,FM!$21:$21,AA$5) -> -1606.595688 | AB50: =SUMIFS(FM!54:54,FM!$21:$21,AB$5) -> -1606.595688 | AC50: =SUMIFS(FM!54:54,FM!$21:$21,AC$5) -> -1606.595688 | AD50: =SUMIFS(FM!54:54,FM!$21:$21,AD$5) -> -1606.595688 | AE50: =SUMIFS(FM!54:54,FM!$21:$21,AE$5) -> -1606.595688 | AF50: =SUMIFS(FM!54:54,FM!$21:$21,AF$5) -> -1606.595688 | AG50: =SUMIFS(FM!54:54,FM!$21:$21,AG$5) -> -1606.595688 | AH50: =SUMIFS(FM!54:54,FM!$21:$21,AH$5) -> -1606.595688 | AI50: =SUMIFS(FM!54:54,FM!$21:$21,AI$5) -> -1606.595688 | AJ50: =SUMIFS(FM!54:54,FM!$21:$21,AJ$5) -> -1606.595688 | AK50: =SUMIFS(FM!54:54,FM!$21:$21,AK$5) -> -1606.595688 | AL50: =SUMIFS(FM!54:54,FM!$21:$21,AL$5) -> -1606.595688 | AM50: =SUMIFS(FM!54:54,FM!$21:$21,AM$5) -> -1606.595688
D51: =FM!C55 -> Comunicação Visual | H51: -431.5437247 | J51: =SUMIFS(FM!55:55,FM!$21:$21,J$5) -> -0.01327576938 | K51: =SUMIFS(FM!55:55,FM!$21:$21,K$5) -> -0.436387387 | L51: =SUMIFS(FM!55:55,FM!$21:$21,L$5) -> -3.657569749 | M51: =SUMIFS(FM!55:55,FM!$21:$21,M$5) -> -6.129341354 | N51: =SUMIFS(FM!55:55,FM!$21:$21,N$5) -> -8.498900241 | O51: =SUMIFS(FM!55:55,FM!$21:$21,O$5) -> -13.39328135 | P51: =SUMIFS(FM!55:55,FM!$21:$21,P$5) -> -16.64229037 | Q51: =SUMIFS(FM!55:55,FM!$21:$21,Q$5) -> -16.64229037 | R51: =SUMIFS(FM!55:55,FM!$21:$21,R$5) -> -16.64229037 | S51: =SUMIFS(FM!55:55,FM!$21:$21,S$5) -> -16.64229037 | T51: =SUMIFS(FM!55:55,FM!$21:$21,T$5) -> -16.64229037 | U51: =SUMIFS(FM!55:55,FM!$21:$21,U$5) -> -16.64229037 | V51: =SUMIFS(FM!55:55,FM!$21:$21,V$5) -> -16.64229037 | W51: =SUMIFS(FM!55:55,FM!$21:$21,W$5) -> -16.64229037 | X51: =SUMIFS(FM!55:55,FM!$21:$21,X$5) -> -16.64229037 | Y51: =SUMIFS(FM!55:55,FM!$21:$21,Y$5) -> -16.64229037 | Z51: =SUMIFS(FM!55:55,FM!$21:$21,Z$5) -> -16.64229037 | AA51: =SUMIFS(FM!55:55,FM!$21:$21,AA$5) -> -16.64229037 | AB51: =SUMIFS(FM!55:55,FM!$21:$21,AB$5) -> -16.64229037 | AC51: =SUMIFS(FM!55:55,FM!$21:$21,AC$5) -> -16.64229037 | AD51: =SUMIFS(FM!55:55,FM!$21:$21,AD$5) -> -16.64229037 | AE51: =SUMIFS(FM!55:55,FM!$21:$21,AE$5) -> -16.64229037 | AF51: =SUMIFS(FM!55:55,FM!$21:$21,AF$5) -> -16.64229037 | AG51: =SUMIFS(FM!55:55,FM!$21:$21,AG$5) -> -16.64229037 | AH51: =SUMIFS(FM!55:55,FM!$21:$21,AH$5) -> -16.64229037 | AI51: =SUMIFS(FM!55:55,FM!$21:$21,AI$5) -> -16.64229037 | AJ51: =SUMIFS(FM!55:55,FM!$21:$21,AJ$5) -> -16.64229037 | AK51: =SUMIFS(FM!55:55,FM!$21:$21,AK$5) -> -16.64229037 | AL51: =SUMIFS(FM!55:55,FM!$21:$21,AL$5) -> -16.64229037 | AM51: =SUMIFS(FM!55:55,FM!$21:$21,AM$5) -> -16.64229037
D52: =FM!C56 -> Wifi | H52: -10496.43951 | J52: =SUMIFS(FM!56:56,FM!$21:$21,J$5) -> -0.3166409325 | K52: =SUMIFS(FM!56:56,FM!$21:$21,K$5) -> -10.4524704 | L52: =SUMIFS(FM!56:56,FM!$21:$21,L$5) -> -90.1083232 | M52: =SUMIFS(FM!56:56,FM!$21:$21,M$5) -> -151.4923599 | N52: =SUMIFS(FM!56:56,FM!$21:$21,N$5) -> -208.0283686 | O52: =SUMIFS(FM!56:56,FM!$21:$21,O$5) -> -326.0163131 | P52: =SUMIFS(FM!56:56,FM!$21:$21,P$5) -> -404.5843766 | Q52: =SUMIFS(FM!56:56,FM!$21:$21,Q$5) -> -404.5843766 | R52: =SUMIFS(FM!56:56,FM!$21:$21,R$5) -> -404.5843766 | S52: =SUMIFS(FM!56:56,FM!$21:$21,S$5) -> -404.5843766 | T52: =SUMIFS(FM!56:56,FM!$21:$21,T$5) -> -404.5843766 | U52: =SUMIFS(FM!56:56,FM!$21:$21,U$5) -> -404.5843766 | V52: =SUMIFS(FM!56:56,FM!$21:$21,V$5) -> -404.5843766 | W52: =SUMIFS(FM!56:56,FM!$21:$21,W$5) -> -404.5843766 | X52: =SUMIFS(FM!56:56,FM!$21:$21,X$5) -> -404.5843766 | Y52: =SUMIFS(FM!56:56,FM!$21:$21,Y$5) -> -404.5843766 | Z52: =SUMIFS(FM!56:56,FM!$21:$21,Z$5) -> -404.5843766 | AA52: =SUMIFS(FM!56:56,FM!$21:$21,AA$5) -> -404.5843766 | AB52: =SUMIFS(FM!56:56,FM!$21:$21,AB$5) -> -404.5843766 | AC52: =SUMIFS(FM!56:56,FM!$21:$21,AC$5) -> -404.5843766 | AD52: =SUMIFS(FM!56:56,FM!$21:$21,AD$5) -> -404.5843766 | AE52: =SUMIFS(FM!56:56,FM!$21:$21,AE$5) -> -404.5843766 | AF52: =SUMIFS(FM!56:56,FM!$21:$21,AF$5) -> -404.5843766 | AG52: =SUMIFS(FM!56:56,FM!$21:$21,AG$5) -> -404.5843766 | AH52: =SUMIFS(FM!56:56,FM!$21:$21,AH$5) -> -404.5843766 | AI52: =SUMIFS(FM!56:56,FM!$21:$21,AI$5) -> -404.5843766 | AJ52: =SUMIFS(FM!56:56,FM!$21:$21,AJ$5) -> -404.5843766 | AK52: =SUMIFS(FM!56:56,FM!$21:$21,AK$5) -> -404.5843766 | AL52: =SUMIFS(FM!56:56,FM!$21:$21,AL$5) -> -404.5843766 | AM52: =SUMIFS(FM!56:56,FM!$21:$21,AM$5) -> -404.5843766
D53: =FM!C57 -> Despesas Gerais / Insumos | H53: -2861.907525 | J53: =SUMIFS(FM!57:57,FM!$21:$21,J$5) -> -0.8762729716 | K53: =SUMIFS(FM!57:57,FM!$21:$21,K$5) -> -10.51527566 | L53: =SUMIFS(FM!57:57,FM!$21:$21,L$5) -> -29.79328103 | M53: =SUMIFS(FM!57:57,FM!$21:$21,M$5) -> -86.75102419 | N53: =SUMIFS(FM!57:57,FM!$21:$21,N$5) -> -105.1527566 | O53: =SUMIFS(FM!57:57,FM!$21:$21,O$5) -> -105.1527566 | P53: =SUMIFS(FM!57:57,FM!$21:$21,P$5) -> -105.1527566 | Q53: =SUMIFS(FM!57:57,FM!$21:$21,Q$5) -> -105.1527566 | R53: =SUMIFS(FM!57:57,FM!$21:$21,R$5) -> -105.1527566 | S53: =SUMIFS(FM!57:57,FM!$21:$21,S$5) -> -105.1527566 | T53: =SUMIFS(FM!57:57,FM!$21:$21,T$5) -> -105.1527566 | U53: =SUMIFS(FM!57:57,FM!$21:$21,U$5) -> -105.1527566 | V53: =SUMIFS(FM!57:57,FM!$21:$21,V$5) -> -105.1527566 | W53: =SUMIFS(FM!57:57,FM!$21:$21,W$5) -> -105.1527566 | X53: =SUMIFS(FM!57:57,FM!$21:$21,X$5) -> -105.1527566 | Y53: =SUMIFS(FM!57:57,FM!$21:$21,Y$5) -> -105.1527566 | Z53: =SUMIFS(FM!57:57,FM!$21:$21,Z$5) -> -105.1527566 | AA53: =SUMIFS(FM!57:57,FM!$21:$21,AA$5) -> -105.1527566 | AB53: =SUMIFS(FM!57:57,FM!$21:$21,AB$5) -> -105.1527566 | AC53: =SUMIFS(FM!57:57,FM!$21:$21,AC$5) -> -105.1527566 | AD53: =SUMIFS(FM!57:57,FM!$21:$21,AD$5) -> -105.1527566 | AE53: =SUMIFS(FM!57:57,FM!$21:$21,AE$5) -> -105.1527566 | AF53: =SUMIFS(FM!57:57,FM!$21:$21,AF$5) -> -105.1527566 | AG53: =SUMIFS(FM!57:57,FM!$21:$21,AG$5) -> -105.1527566 | AH53: =SUMIFS(FM!57:57,FM!$21:$21,AH$5) -> -105.1527566 | AI53: =SUMIFS(FM!57:57,FM!$21:$21,AI$5) -> -105.1527566 | AJ53: =SUMIFS(FM!57:57,FM!$21:$21,AJ$5) -> -105.1527566 | AK53: =SUMIFS(FM!57:57,FM!$21:$21,AK$5) -> -105.1527566 | AL53: =SUMIFS(FM!57:57,FM!$21:$21,AL$5) -> -105.1527566 | AM53: =SUMIFS(FM!57:57,FM!$21:$21,AM$5) -> -105.1527566
D54: =FM!C58 -> CFTV | H54: -10496.43951 | J54: =SUMIFS(FM!58:58,FM!$21:$21,J$5) -> -0.3166409325 | K54: =SUMIFS(FM!58:58,FM!$21:$21,K$5) -> -10.4524704 | L54: =SUMIFS(FM!58:58,FM!$21:$21,L$5) -> -90.1083232 | M54: =SUMIFS(FM!58:58,FM!$21:$21,M$5) -> -151.4923599 | N54: =SUMIFS(FM!58:58,FM!$21:$21,N$5) -> -208.0283686 | O54: =SUMIFS(FM!58:58,FM!$21:$21,O$5) -> -326.0163131 | P54: =SUMIFS(FM!58:58,FM!$21:$21,P$5) -> -404.5843766 | Q54: =SUMIFS(FM!58:58,FM!$21:$21,Q$5) -> -404.5843766 | R54: =SUMIFS(FM!58:58,FM!$21:$21,R$5) -> -404.5843766 | S54: =SUMIFS(FM!58:58,FM!$21:$21,S$5) -> -404.5843766 | T54: =SUMIFS(FM!58:58,FM!$21:$21,T$5) -> -404.5843766 | U54: =SUMIFS(FM!58:58,FM!$21:$21,U$5) -> -404.5843766 | V54: =SUMIFS(FM!58:58,FM!$21:$21,V$5) -> -404.5843766 | W54: =SUMIFS(FM!58:58,FM!$21:$21,W$5) -> -404.5843766 | X54: =SUMIFS(FM!58:58,FM!$21:$21,X$5) -> -404.5843766 | Y54: =SUMIFS(FM!58:58,FM!$21:$21,Y$5) -> -404.5843766 | Z54: =SUMIFS(FM!58:58,FM!$21:$21,Z$5) -> -404.5843766 | AA54: =SUMIFS(FM!58:58,FM!$21:$21,AA$5) -> -404.5843766 | AB54: =SUMIFS(FM!58:58,FM!$21:$21,AB$5) -> -404.5843766 | AC54: =SUMIFS(FM!58:58,FM!$21:$21,AC$5) -> -404.5843766 | AD54: =SUMIFS(FM!58:58,FM!$21:$21,AD$5) -> -404.5843766 | AE54: =SUMIFS(FM!58:58,FM!$21:$21,AE$5) -> -404.5843766 | AF54: =SUMIFS(FM!58:58,FM!$21:$21,AF$5) -> -404.5843766 | AG54: =SUMIFS(FM!58:58,FM!$21:$21,AG$5) -> -404.5843766 | AH54: =SUMIFS(FM!58:58,FM!$21:$21,AH$5) -> -404.5843766 | AI54: =SUMIFS(FM!58:58,FM!$21:$21,AI$5) -> -404.5843766 | AJ54: =SUMIFS(FM!58:58,FM!$21:$21,AJ$5) -> -404.5843766 | AK54: =SUMIFS(FM!58:58,FM!$21:$21,AK$5) -> -404.5843766 | AL54: =SUMIFS(FM!58:58,FM!$21:$21,AL$5) -> -404.5843766 | AM54: =SUMIFS(FM!58:58,FM!$21:$21,AM$5) -> -404.5843766
D55: =FM!C59 -> Custos Operacionais | G55: =H55/($H$55+$H$61) -> 0.7435933114 | H55: -234399.9371 | J55: =SUM(J43:J54) -> -687.4338717 | K55: -1004.90771 | L55: -3093.337201 | M55: -4536.488184 | N55: -5924.968167 | O55: -8020.838536 | P55: -8797.165145 | Q55: -8797.165145 | R55: -8797.165145 | S55: -8797.165145 | T55: -8797.165145 | U55: -8797.165145 | V55: -8797.165145 | W55: -8797.165145 | X55: -8797.165145 | Y55: -8797.165145 | Z55: -8797.165145 | AA55: -8797.165145 | AB55: -8797.165145 | AC55: -8797.165145 | AD55: -8797.165145 | AE55: -8797.165145 | AF55: -8797.165145 | AG55: -8797.165145 | AH55: -8797.165145 | AI55: -8797.165145 | AJ55: -8797.165145 | AK55: -8797.165145 | AL55: -8797.165145 | AM55: -8797.165145
D57: =FM!C61 -> Despesas com Venda Real Estate | H57: =SUM(J57:AM57) -> 0 | J57: =SUMIFS(FM!61:61,FM!$21:$21,J$5) -> 0 | K57: =SUMIFS(FM!61:61,FM!$21:$21,K$5) -> 0 | L57: =SUMIFS(FM!61:61,FM!$21:$21,L$5) -> 0 | M57: =SUMIFS(FM!61:61,FM!$21:$21,M$5) -> 0 | N57: =SUMIFS(FM!61:61,FM!$21:$21,N$5) -> 0 | O57: =SUMIFS(FM!61:61,FM!$21:$21,O$5) -> 0 | P57: =SUMIFS(FM!61:61,FM!$21:$21,P$5) -> 0 | Q57: =SUMIFS(FM!61:61,FM!$21:$21,Q$5) -> 0 | R57: =SUMIFS(FM!61:61,FM!$21:$21,R$5) -> 0 | S57: =SUMIFS(FM!61:61,FM!$21:$21,S$5) -> 0 | T57: =SUMIFS(FM!61:61,FM!$21:$21,T$5) -> 0 | U57: =SUMIFS(FM!61:61,FM!$21:$21,U$5) -> 0 | V57: =SUMIFS(FM!61:61,FM!$21:$21,V$5) -> 0 | W57: =SUMIFS(FM!61:61,FM!$21:$21,W$5) -> 0 | X57: =SUMIFS(FM!61:61,FM!$21:$21,X$5) -> 0 | Y57: =SUMIFS(FM!61:61,FM!$21:$21,Y$5) -> 0 | Z57: =SUMIFS(FM!61:61,FM!$21:$21,Z$5) -> 0 | AA57: =SUMIFS(FM!61:61,FM!$21:$21,AA$5) -> 0 | AB57: =SUMIFS(FM!61:61,FM!$21:$21,AB$5) -> 0 | AC57: =SUMIFS(FM!61:61,FM!$21:$21,AC$5) -> 0 | AD57: =SUMIFS(FM!61:61,FM!$21:$21,AD$5) -> 0 | AE57: =SUMIFS(FM!61:61,FM!$21:$21,AE$5) -> 0 | AF57: =SUMIFS(FM!61:61,FM!$21:$21,AF$5) -> 0 | AG57: =SUMIFS(FM!61:61,FM!$21:$21,AG$5) -> 0 | AH57: =SUMIFS(FM!61:61,FM!$21:$21,AH$5) -> 0 | AI57: =SUMIFS(FM!61:61,FM!$21:$21,AI$5) -> 0 | AJ57: =SUMIFS(FM!61:61,FM!$21:$21,AJ$5) -> 0 | AK57: =SUMIFS(FM!61:61,FM!$21:$21,AK$5) -> 0 | AL57: =SUMIFS(FM!61:61,FM!$21:$21,AL$5) -> 0 | AM57: =SUMIFS(FM!61:61,FM!$21:$21,AM$5) -> 0
D58: =FM!C62 -> G&A | H58: =SUM(J58:AM58) -> -54000 | J58: =SUMIFS(FM!62:62,FM!$21:$21,J$5) -> -1800 | K58: =SUMIFS(FM!62:62,FM!$21:$21,K$5) -> -1800 | L58: =SUMIFS(FM!62:62,FM!$21:$21,L$5) -> -1800 | M58: =SUMIFS(FM!62:62,FM!$21:$21,M$5) -> -1800 | N58: =SUMIFS(FM!62:62,FM!$21:$21,N$5) -> -1800 | O58: =SUMIFS(FM!62:62,FM!$21:$21,O$5) -> -1800 | P58: =SUMIFS(FM!62:62,FM!$21:$21,P$5) -> -1800 | Q58: =SUMIFS(FM!62:62,FM!$21:$21,Q$5) -> -1800 | R58: =SUMIFS(FM!62:62,FM!$21:$21,R$5) -> -1800 | S58: =SUMIFS(FM!62:62,FM!$21:$21,S$5) -> -1800 | T58: =SUMIFS(FM!62:62,FM!$21:$21,T$5) -> -1800 | U58: =SUMIFS(FM!62:62,FM!$21:$21,U$5) -> -1800 | V58: =SUMIFS(FM!62:62,FM!$21:$21,V$5) -> -1800 | W58: =SUMIFS(FM!62:62,FM!$21:$21,W$5) -> -1800 | X58: =SUMIFS(FM!62:62,FM!$21:$21,X$5) -> -1800 | Y58: =SUMIFS(FM!62:62,FM!$21:$21,Y$5) -> -1800 | Z58: =SUMIFS(FM!62:62,FM!$21:$21,Z$5) -> -1800 | AA58: =SUMIFS(FM!62:62,FM!$21:$21,AA$5) -> -1800 | AB58: =SUMIFS(FM!62:62,FM!$21:$21,AB$5) -> -1800 | AC58: =SUMIFS(FM!62:62,FM!$21:$21,AC$5) -> -1800 | AD58: =SUMIFS(FM!62:62,FM!$21:$21,AD$5) -> -1800 | AE58: =SUMIFS(FM!62:62,FM!$21:$21,AE$5) -> -1800 | AF58: =SUMIFS(FM!62:62,FM!$21:$21,AF$5) -> -1800 | AG58: =SUMIFS(FM!62:62,FM!$21:$21,AG$5) -> -1800 | AH58: =SUMIFS(FM!62:62,FM!$21:$21,AH$5) -> -1800 | AI58: =SUMIFS(FM!62:62,FM!$21:$21,AI$5) -> -1800 | AJ58: =SUMIFS(FM!62:62,FM!$21:$21,AJ$5) -> -1800 | AK58: =SUMIFS(FM!62:62,FM!$21:$21,AK$5) -> -1800 | AL58: =SUMIFS(FM!62:62,FM!$21:$21,AL$5) -> -1800 | AM58: =SUMIFS(FM!62:62,FM!$21:$21,AM$5) -> -1800
D59: =FM!C63 -> Seguros | H59: =SUM(J59:AM59) -> -26826.05207 | J59: =SUMIFS(FM!63:63,FM!$21:$21,J$5) -> -945.8127725 | K59: =SUMIFS(FM!63:63,FM!$21:$21,K$5) -> -986.3268189 | L59: =SUMIFS(FM!63:63,FM!$21:$21,L$5) -> -914.2531645 | M59: =SUMIFS(FM!63:63,FM!$21:$21,M$5) -> -915.1218571 | N59: =SUMIFS(FM!63:63,FM!$21:$21,N$5) -> -917.5663056 | O59: =SUMIFS(FM!63:63,FM!$21:$21,O$5) -> -938.6422681 | P59: =SUMIFS(FM!63:63,FM!$21:$21,P$5) -> -883.9933298 | Q59: =SUMIFS(FM!63:63,FM!$21:$21,Q$5) -> -883.9933298 | R59: =SUMIFS(FM!63:63,FM!$21:$21,R$5) -> -883.9933298 | S59: =SUMIFS(FM!63:63,FM!$21:$21,S$5) -> -883.9933298 | T59: =SUMIFS(FM!63:63,FM!$21:$21,T$5) -> -883.9933298 | U59: =SUMIFS(FM!63:63,FM!$21:$21,U$5) -> -883.9933298 | V59: =SUMIFS(FM!63:63,FM!$21:$21,V$5) -> -883.9933298 | W59: =SUMIFS(FM!63:63,FM!$21:$21,W$5) -> -883.9933298 | X59: =SUMIFS(FM!63:63,FM!$21:$21,X$5) -> -883.9933298 | Y59: =SUMIFS(FM!63:63,FM!$21:$21,Y$5) -> -883.9933298 | Z59: =SUMIFS(FM!63:63,FM!$21:$21,Z$5) -> -883.9933298 | AA59: =SUMIFS(FM!63:63,FM!$21:$21,AA$5) -> -883.9933298 | AB59: =SUMIFS(FM!63:63,FM!$21:$21,AB$5) -> -883.9933298 | AC59: =SUMIFS(FM!63:63,FM!$21:$21,AC$5) -> -883.9933298 | AD59: =SUMIFS(FM!63:63,FM!$21:$21,AD$5) -> -883.9933298 | AE59: =SUMIFS(FM!63:63,FM!$21:$21,AE$5) -> -883.9933298 | AF59: =SUMIFS(FM!63:63,FM!$21:$21,AF$5) -> -883.9933298 | AG59: =SUMIFS(FM!63:63,FM!$21:$21,AG$5) -> -883.9933298 | AH59: =SUMIFS(FM!63:63,FM!$21:$21,AH$5) -> -883.9933298 | AI59: =SUMIFS(FM!63:63,FM!$21:$21,AI$5) -> -883.9933298 | AJ59: =SUMIFS(FM!63:63,FM!$21:$21,AJ$5) -> -883.9933298 | AK59: =SUMIFS(FM!63:63,FM!$21:$21,AK$5) -> -883.9933298 | AL59: =SUMIFS(FM!63:63,FM!$21:$21,AL$5) -> -883.9933298 | AM59: =SUMIFS(FM!63:63,FM!$21:$21,AM$5) -> -876.482294
D60: =FM!C64 -> Repex Despesados | H60: =SUM(J60:AM60) -> 0 | J60: =SUMIFS(FM!64:64,FM!$21:$21,J$5) -> 0 | K60: =SUMIFS(FM!64:64,FM!$21:$21,K$5) -> 0 | L60: =SUMIFS(FM!64:64,FM!$21:$21,L$5) -> 0 | M60: =SUMIFS(FM!64:64,FM!$21:$21,M$5) -> 0 | N60: =SUMIFS(FM!64:64,FM!$21:$21,N$5) -> 0 | O60: =SUMIFS(FM!64:64,FM!$21:$21,O$5) -> 0 | P60: =SUMIFS(FM!64:64,FM!$21:$21,P$5) -> 0 | Q60: =SUMIFS(FM!64:64,FM!$21:$21,Q$5) -> 0 | R60: =SUMIFS(FM!64:64,FM!$21:$21,R$5) -> 0 | S60: =SUMIFS(FM!64:64,FM!$21:$21,S$5) -> 0 | T60: =SUMIFS(FM!64:64,FM!$21:$21,T$5) -> 0 | U60: =SUMIFS(FM!64:64,FM!$21:$21,U$5) -> 0 | V60: =SUMIFS(FM!64:64,FM!$21:$21,V$5) -> 0 | W60: =SUMIFS(FM!64:64,FM!$21:$21,W$5) -> 0 | X60: =SUMIFS(FM!64:64,FM!$21:$21,X$5) -> 0 | Y60: =SUMIFS(FM!64:64,FM!$21:$21,Y$5) -> 0 | Z60: =SUMIFS(FM!64:64,FM!$21:$21,Z$5) -> 0 | AA60: =SUMIFS(FM!64:64,FM!$21:$21,AA$5) -> 0 | AB60: =SUMIFS(FM!64:64,FM!$21:$21,AB$5) -> 0 | AC60: =SUMIFS(FM!64:64,FM!$21:$21,AC$5) -> 0 | AD60: =SUMIFS(FM!64:64,FM!$21:$21,AD$5) -> 0 | AE60: =SUMIFS(FM!64:64,FM!$21:$21,AE$5) -> 0 | AF60: =SUMIFS(FM!64:64,FM!$21:$21,AF$5) -> 0 | AG60: =SUMIFS(FM!64:64,FM!$21:$21,AG$5) -> 0 | AH60: =SUMIFS(FM!64:64,FM!$21:$21,AH$5) -> 0 | AI60: =SUMIFS(FM!64:64,FM!$21:$21,AI$5) -> 0 | AJ60: =SUMIFS(FM!64:64,FM!$21:$21,AJ$5) -> 0 | AK60: =SUMIFS(FM!64:64,FM!$21:$21,AK$5) -> 0 | AL60: =SUMIFS(FM!64:64,FM!$21:$21,AL$5) -> 0 | AM60: =SUMIFS(FM!64:64,FM!$21:$21,AM$5) -> 0
D61: =FM!C65 -> Despesas | G61: =H61/($H$55+$H$61) -> 0.2564066886 | H61: =SUM(J61:AM61) -> -80826.05207 | J61: =SUM(J57:J60) -> -2745.812773 | K61: -2786.326819 | L61: -2714.253164 | M61: -2715.121857 | N61: -2717.566306 | O61: -2738.642268 | P61: -2683.99333 | Q61: -2683.99333 | R61: -2683.99333 | S61: -2683.99333 | T61: -2683.99333 | U61: -2683.99333 | V61: -2683.99333 | W61: -2683.99333 | X61: -2683.99333 | Y61: -2683.99333 | Z61: -2683.99333 | AA61: -2683.99333 | AB61: -2683.99333 | AC61: -2683.99333 | AD61: -2683.99333 | AE61: -2683.99333 | AF61: -2683.99333 | AG61: -2683.99333 | AH61: -2683.99333 | AI61: -2683.99333 | AJ61: -2683.99333 | AK61: -2683.99333 | AL61: -2683.99333 | AM61: -2676.482294
AL62: -1
D63: =FM!C69 -> EBITDA | H63: =SUM(J63:AM63) -> 362095.3082 | J63: =J61+J55+J41 -> -3433.246644 | K63: =K61+K55+K41 -> 8587.793301 | L63: 12621.61345 | M63: 13126.73264 | N63: 12746.10475 | O63: 11716.77688 | P63: 12784.14365 | Q63: 12778.73116 | R63: 12778.73116 | S63: 12778.73116 | T63: 12784.14365 | U63: 12778.73116 | V63: 12778.73116 | W63: 12778.73116 | X63: 12784.14365 | Y63: 12778.73116 | Z63: 12778.73116 | AA63: 12778.73116 | AB63: 12784.14365 | AC63: 12778.73116 | AD63: 12778.73116 | AE63: 12778.73116 | AF63: 12784.14365 | AG63: 12778.73116 | AH63: 12778.73116 | AI63: 12778.73116 | AJ63: 12784.14365 | AK63: 12778.73116 | AL63: 12778.73116 | AM63: 12786.24219
D64: =FM!C70&" (antes da ativação do opex)" -> Margem EBITDA (antes da ativação do opex) | G64: =H63/$H$41 -> 0.5345990294 | J64: =IFERROR(J63/J$41,) -> 0 | K64: =IFERROR(K63/K$41,) -> 0.6937372966 | L64: 0.6848702513 | M64: 0.6441511386 | N64: 0.5959287367 | O64: 0.5212957177 | P64: 0.5268487317 | Q64: 0.5267431696 | R64: 0.5267431696 | S64: 0.5267431696 | T64: 0.5268487317 | U64: 0.5267431696 | V64: 0.5267431696 | W64: 0.5267431696 | X64: 0.5268487317 | Y64: 0.5267431696 | Z64: 0.5267431696 | AA64: 0.5267431696 | AB64: 0.5268487317 | AC64: 0.5267431696 | AD64: 0.5267431696 | AE64: 0.5267431696 | AF64: 0.5268487317 | AG64: 0.5267431696 | AH64: 0.5267431696 | AI64: 0.5267431696 | AJ64: 0.5268487317 | AK64: 0.5267431696 | AL64: 0.5267431696 | AM64: 0.5270527767
D66: =FM!C67 -> Ativação do opex | H66: =SUM(J66:AM66) -> 134341.8505 | J66: =SUMIFS(FM!67:67,FM!$21:$21,J$5) -> 140.788701 | K66: =SUMIFS(FM!67:67,FM!$21:$21,K$5) -> 299.5670357 | L66: =SUMIFS(FM!67:67,FM!$21:$21,L$5) -> 1546.889665 | M66: =SUMIFS(FM!67:67,FM!$21:$21,M$5) -> 2475.394904 | N66: =SUMIFS(FM!67:67,FM!$21:$21,N$5) -> 3272.15312 | O66: =SUMIFS(FM!67:67,FM!$21:$21,O$5) -> 4580.257758 | P66: =SUMIFS(FM!67:67,FM!$21:$21,P$5) -> 5286.359535 | Q66: =SUMIFS(FM!67:67,FM!$21:$21,Q$5) -> 5286.359535 | R66: =SUMIFS(FM!67:67,FM!$21:$21,R$5) -> 5286.359535 | S66: =SUMIFS(FM!67:67,FM!$21:$21,S$5) -> 5286.359535 | T66: =SUMIFS(FM!67:67,FM!$21:$21,T$5) -> 5286.359535 | U66: =SUMIFS(FM!67:67,FM!$21:$21,U$5) -> 5286.359535 | V66: =SUMIFS(FM!67:67,FM!$21:$21,V$5) -> 5286.359535 | W66: =SUMIFS(FM!67:67,FM!$21:$21,W$5) -> 5286.359535 | X66: =SUMIFS(FM!67:67,FM!$21:$21,X$5) -> 5286.359535 | Y66: =SUMIFS(FM!67:67,FM!$21:$21,Y$5) -> 5286.359535 | Z66: =SUMIFS(FM!67:67,FM!$21:$21,Z$5) -> 5286.359535 | AA66: =SUMIFS(FM!67:67,FM!$21:$21,AA$5) -> 5286.359535 | AB66: =SUMIFS(FM!67:67,FM!$21:$21,AB$5) -> 5286.359535 | AC66: =SUMIFS(FM!67:67,FM!$21:$21,AC$5) -> 5286.359535 | AD66: =SUMIFS(FM!67:67,FM!$21:$21,AD$5) -> 5286.359535 | AE66: =SUMIFS(FM!67:67,FM!$21:$21,AE$5) -> 5286.359535 | AF66: =SUMIFS(FM!67:67,FM!$21:$21,AF$5) -> 5286.359535 | AG66: =SUMIFS(FM!67:67,FM!$21:$21,AG$5) -> 5286.359535 | AH66: =SUMIFS(FM!67:67,FM!$21:$21,AH$5) -> 5286.359535 | AI66: =SUMIFS(FM!67:67,FM!$21:$21,AI$5) -> 5286.359535 | AJ66: =SUMIFS(FM!67:67,FM!$21:$21,AJ$5) -> 5286.359535 | AK66: =SUMIFS(FM!67:67,FM!$21:$21,AK$5) -> 5286.359535 | AL66: =SUMIFS(FM!67:67,FM!$21:$21,AL$5) -> 5286.359535 | AM66: =SUMIFS(FM!67:67,FM!$21:$21,AM$5) -> 440.5299613
D67: =FM!C69&" Ajustado" -> EBITDA Ajustado | H67: =SUM(J67:AM67) -> 496437.1586 | J67: =J66+J61+J55+J41 -> -3292.457943 | K67: =K66+K61+K55+K41 -> 8887.360337 | L67: 14168.50311 | M67: 15602.12755 | N67: 16018.25787 | O67: 16297.03464 | P67: 18070.50318 | Q67: 18065.09069 | R67: 18065.09069 | S67: 18065.09069 | T67: 18070.50318 | U67: 18065.09069 | V67: 18065.09069 | W67: 18065.09069 | X67: 18070.50318 | Y67: 18065.09069 | Z67: 18065.09069 | AA67: 18065.09069 | AB67: 18070.50318 | AC67: 18065.09069 | AD67: 18065.09069 | AE67: 18065.09069 | AF67: 18070.50318 | AG67: 18065.09069 | AH67: 18065.09069 | AI67: 18065.09069 | AJ67: 18070.50318 | AK67: 18065.09069 | AL67: 18065.09069 | AM67: 13226.77216
D68: =FM!C70&" Ajustada (após ativação do opex)" -> Margem EBITDA Ajustada (após ativação do opex) | G68: =H67/$H$41 -> 0.7329419 | J68: =IFERROR(J67/J$41,) -> 0 | K68: =IFERROR(K67/K$41,) -> 0.7179368573 | L68: 0.7688071203 | M68: 0.7656229846 | N68: 0.7489143047 | O68: 0.7250777628 | P68: 0.7447054684 | Q68: 0.7446485111 | R68: 0.7446485111 | S68: 0.7446485111 | T68: 0.7447054684 | U68: 0.7446485111 | V68: 0.7446485111 | W68: 0.7446485111 | X68: 0.7447054684 | Y68: 0.7446485111 | Z68: 0.7446485111 | AA68: 0.7446485111 | AB68: 0.7447054684 | AC68: 0.7446485111 | AD68: 0.7446485111 | AE68: 0.7446485111 | AF68: 0.7447054684 | AG68: 0.7446485111 | AH68: 0.7446485111 | AI68: 0.7446485111 | AJ68: 0.7447054684 | AK68: 0.7446485111 | AL68: 0.7446485111 | AM68: 0.5452115552
D70: =FM!C72 -> Depreciação e Amortização | H70: =SUM(J70:AM70) -> -161948.7902 | J70: =SUMIFS(FM!72:72,FM!$21:$21,J$5) -> -380.0894827 | K70: =SUMIFS(FM!72:72,FM!$21:$21,K$5) -> -991.8276503 | L70: =SUMIFS(FM!72:72,FM!$21:$21,L$5) -> -1541.046801 | M70: =SUMIFS(FM!72:72,FM!$21:$21,M$5) -> -1901.327835 | N70: =SUMIFS(FM!72:72,FM!$21:$21,N$5) -> -2276.977327 | O70: =SUMIFS(FM!72:72,FM!$21:$21,O$5) -> -2910.313435 | P70: =SUMIFS(FM!72:72,FM!$21:$21,P$5) -> -3242.799183 | Q70: =SUMIFS(FM!72:72,FM!$21:$21,Q$5) -> -3258.934355 | R70: =SUMIFS(FM!72:72,FM!$21:$21,R$5) -> -3280.976205 | S70: =SUMIFS(FM!72:72,FM!$21:$21,S$5) -> -3309.453237 | T70: =SUMIFS(FM!72:72,FM!$21:$21,T$5) -> -3345.016572 | U70: =SUMIFS(FM!72:72,FM!$21:$21,U$5) -> -3388.469148 | V70: =SUMIFS(FM!72:72,FM!$21:$21,V$5) -> -3440.80461 | W70: =SUMIFS(FM!72:72,FM!$21:$21,W$5) -> -3503.259798 | X70: =SUMIFS(FM!72:72,FM!$21:$21,X$5) -> -3577.386648 | Y70: =SUMIFS(FM!72:72,FM!$21:$21,Y$5) -> -3665.152406 | Z70: =SUMIFS(FM!72:72,FM!$21:$21,Z$5) -> -3769.082096 | AA70: =SUMIFS(FM!72:72,FM!$21:$21,AA$5) -> -3892.465702 | AB70: =SUMIFS(FM!72:72,FM!$21:$21,AB$5) -> -4039.667423 | AC70: =SUMIFS(FM!72:72,FM!$21:$21,AC$5) -> -4216.601517 | AD70: =SUMIFS(FM!72:72,FM!$21:$21,AD$5) -> -4431.490971 | AE70: =SUMIFS(FM!72:72,FM!$21:$21,AE$5) -> -4696.129345 | AF70: =SUMIFS(FM!72:72,FM!$21:$21,AF$5) -> -5028.089559 | AG70: =SUMIFS(FM!72:72,FM!$21:$21,AG$5) -> -5454.842083 | AH70: =SUMIFS(FM!72:72,FM!$21:$21,AH$5) -> -6022.073439 | AI70: =SUMIFS(FM!72:72,FM!$21:$21,AI$5) -> -6812.359566 | AJ70: =SUMIFS(FM!72:72,FM!$21:$21,AJ$5) -> -7993.709904 | AK70: =SUMIFS(FM!72:72,FM!$21:$21,AK$5) -> -9977.185098 | AL70: =SUMIFS(FM!72:72,FM!$21:$21,AL$5) -> -14178.90109 | AM70: =SUMIFS(FM!72:72,FM!$21:$21,AM$5) -> -37422.35773
D71: =FM!C73 -> Atualização do Ativo Financeiro | H71: =SUM(J71:AM71) -> 2.539622164e-05 | J71: =SUMIFS(FM!73:73,FM!$21:$21,J$5) -> 0 | K71: =SUMIFS(FM!73:73,FM!$21:$21,K$5) -> 821.8333461 | L71: =SUMIFS(FM!73:73,FM!$21:$21,L$5) -> 17.79299051 | M71: =SUMIFS(FM!73:73,FM!$21:$21,M$5) -> -67.56668809 | N71: =SUMIFS(FM!73:73,FM!$21:$21,N$5) -> -344.268204 | O71: =SUMIFS(FM!73:73,FM!$21:$21,O$5) -> -195.1142617 | P71: =SUMIFS(FM!73:73,FM!$21:$21,P$5) -> -1304.48219 | Q71: =SUMIFS(FM!73:73,FM!$21:$21,Q$5) -> -1633.412562 | R71: =SUMIFS(FM!73:73,FM!$21:$21,R$5) -> -1573.891736 | S71: =SUMIFS(FM!73:73,FM!$21:$21,S$5) -> -1507.508159 | T71: =SUMIFS(FM!73:73,FM!$21:$21,T$5) -> -1433.470555 | U71: =SUMIFS(FM!73:73,FM!$21:$21,U$5) -> -1350.896416 | V71: =SUMIFS(FM!73:73,FM!$21:$21,V$5) -> -1258.801478 | W71: =SUMIFS(FM!73:73,FM!$21:$21,W$5) -> -1156.087994 | X71: =SUMIFS(FM!73:73,FM!$21:$21,X$5) -> -1041.531646 | Y71: =SUMIFS(FM!73:73,FM!$21:$21,Y$5) -> -913.7669499 | Z71: =SUMIFS(FM!73:73,FM!$21:$21,Z$5) -> -771.2709848 | AA71: =SUMIFS(FM!73:73,FM!$21:$21,AA$5) -> -612.345235 | AB71: =SUMIFS(FM!73:73,FM!$21:$21,AB$5) -> -435.0953463 | AC71: =SUMIFS(FM!73:73,FM!$21:$21,AC$5) -> -237.4085453 | AD71: =SUMIFS(FM!73:73,FM!$21:$21,AD$5) -> -16.92845624 | AE71: =SUMIFS(FM!73:73,FM!$21:$21,AE$5) -> 228.9729871 | AF71: =SUMIFS(FM!73:73,FM!$21:$21,AF$5) -> 503.2268668 | AG71: =SUMIFS(FM!73:73,FM!$21:$21,AG$5) -> 809.1022189 | AH71: =SUMIFS(FM!73:73,FM!$21:$21,AH$5) -> 1150.244999 | AI71: =SUMIFS(FM!73:73,FM!$21:$21,AI$5) -> 1530.721542 | AJ71: =SUMIFS(FM!73:73,FM!$21:$21,AJ$5) -> 1955.06703 | AK71: =SUMIFS(FM!73:73,FM!$21:$21,AK$5) -> 2428.339553 | AL71: =SUMIFS(FM!73:73,FM!$21:$21,AL$5) -> 2956.180397 | AM71: =SUMIFS(FM!73:73,FM!$21:$21,AM$5) -> 3452.365503
D72: =FM!C74 -> EBIT | H72: =SUM(J72:AM72) -> 334488.3684 | J72: =SUM(J70:J71)+J67 -> -3672.547426 | K72: =SUM(K70:K71)+K67 -> 8717.366033 | L72: 12645.2493 | M72: 13633.23302 | N72: 13397.01234 | O72: 13191.60694 | P72: 13523.22181 | Q72: 13172.74378 | R72: 13210.22275 | S72: 13248.1293 | T72: 13292.01605 | U72: 13325.72513 | V72: 13365.48461 | W72: 13405.7429 | X72: 13451.58489 | Y72: 13486.17134 | Z72: 13524.73761 | AA72: 13560.27976 | AB72: 13595.74041 | AC72: 13611.08063 | AD72: 13616.67127 | AE72: 13597.93434 | AF72: 13545.64049 | AG72: 13419.35083 | AH72: 13193.26225 | AI72: 12783.45267 | AJ72: 12031.86031 | AK72: 10516.24515 | AL72: 6842.370005 | AM72: -20743.22007
D73: =FM!C75 -> Margem EBIT | G73: =H72/$H$41 -> 0.493840028 | J73: =IFERROR(J72/J$41,) -> 0 | K73: =IFERROR(K72/K$41,) -> 0.7042044135 | L73: 0.6861527731 | M73: 0.6690059754 | N73: 0.626361135 | O73: 0.5869129607 | P73: 0.5573069621 | Q73: 0.542984489 | R73: 0.5445293838 | S73: 0.5460919031 | T73: 0.5477787166 | U73: 0.5492904268 | V73: 0.5509293244 | W73: 0.5525887836 | X73: 0.5543547252 | Y73: 0.5559040681 | Z73: 0.5574937816 | AA73: 0.5589588396 | AB73: 0.5602955341 | AC73: 0.561052867 | AD73: 0.5612833147 | AE73: 0.5605109727 | AF73: 0.5582308607 | AG73: 0.5531497065 | AH73: 0.5438302669 | AI73: 0.5269377917 | AJ73: 0.4958463013 | AK73: 0.4334828108 | AL73: 0.2820445644 | AM73: -0.8550418152
D75: =FM!C77 -> Receitas Financeiras | H75: =SUM(J75:AM75) -> 18353.14726 | J75: =SUMIFS(FM!77:77,FM!$21:$21,J$5) -> 1085.035575 | K75: =SUMIFS(FM!77:77,FM!$21:$21,K$5) -> 1110.861426 | L75: =SUMIFS(FM!77:77,FM!$21:$21,L$5) -> 226.4288975 | M75: =SUMIFS(FM!77:77,FM!$21:$21,M$5) -> 3457.634073 | N75: =SUMIFS(FM!77:77,FM!$21:$21,N$5) -> 3549.663776 | O75: =SUMIFS(FM!77:77,FM!$21:$21,O$5) -> 1857.291868 | P75: =SUMIFS(FM!77:77,FM!$21:$21,P$5) -> 1886.316483 | Q75: =SUMIFS(FM!77:77,FM!$21:$21,Q$5) -> 709.4664246 | R75: =SUMIFS(FM!77:77,FM!$21:$21,R$5) -> 146.6956535 | S75: =SUMIFS(FM!77:77,FM!$21:$21,S$5) -> 154.8398465 | T75: =SUMIFS(FM!77:77,FM!$21:$21,T$5) -> 159.209352 | U75: =SUMIFS(FM!77:77,FM!$21:$21,U$5) -> 163.3085889 | V75: =SUMIFS(FM!77:77,FM!$21:$21,V$5) -> 167.8980028 | W75: =SUMIFS(FM!77:77,FM!$21:$21,W$5) -> 172.2267272 | X75: =SUMIFS(FM!77:77,FM!$21:$21,X$5) -> 176.586437 | Y75: =SUMIFS(FM!77:77,FM!$21:$21,Y$5) -> 181.1167973 | Z75: =SUMIFS(FM!77:77,FM!$21:$21,Z$5) -> 185.4300827 | AA75: =SUMIFS(FM!77:77,FM!$21:$21,AA$5) -> 189.8271983 | AB75: =SUMIFS(FM!77:77,FM!$21:$21,AB$5) -> 221.0694158 | AC75: =SUMIFS(FM!77:77,FM!$21:$21,AC$5) -> 230.8893071 | AD75: =SUMIFS(FM!77:77,FM!$21:$21,AD$5) -> 230.8893071 | AE75: =SUMIFS(FM!77:77,FM!$21:$21,AE$5) -> 230.8893071 | AF75: =SUMIFS(FM!77:77,FM!$21:$21,AF$5) -> 230.8893071 | AG75: =SUMIFS(FM!77:77,FM!$21:$21,AG$5) -> 230.8893071 | AH75: =SUMIFS(FM!77:77,FM!$21:$21,AH$5) -> 230.8893071 | AI75: =SUMIFS(FM!77:77,FM!$21:$21,AI$5) -> 230.8893071 | AJ75: =SUMIFS(FM!77:77,FM!$21:$21,AJ$5) -> 230.8893071 | AK75: =SUMIFS(FM!77:77,FM!$21:$21,AK$5) -> 230.8893071 | AL75: =SUMIFS(FM!77:77,FM!$21:$21,AL$5) -> 230.8893071 | AM75: =SUMIFS(FM!77:77,FM!$21:$21,AM$5) -> 243.3475607
D76: =FM!C80 -> Juros | H76: =SUM(J76:AM76) -> -47853.14905 | J76: =SUMIFS(FM!80:80,FM!$21:$21,J$5) -> 0 | K76: =SUMIFS(FM!80:80,FM!$21:$21,K$5) -> 0 | L76: =SUMIFS(FM!80:80,FM!$21:$21,L$5) -> 0 | M76: =SUMIFS(FM!80:80,FM!$21:$21,M$5) -> -5226.221088 | N76: =SUMIFS(FM!80:80,FM!$21:$21,N$5) -> -5789.752407 | O76: =SUMIFS(FM!80:80,FM!$21:$21,O$5) -> -5368.667809 | P76: =SUMIFS(FM!80:80,FM!$21:$21,P$5) -> -4948.084461 | Q76: =SUMIFS(FM!80:80,FM!$21:$21,Q$5) -> -4514.099565 | R76: =SUMIFS(FM!80:80,FM!$21:$21,R$5) -> -4061.359711 | S76: =SUMIFS(FM!80:80,FM!$21:$21,S$5) -> -3654.311588 | T76: =SUMIFS(FM!80:80,FM!$21:$21,T$5) -> -3271.949377 | U76: =SUMIFS(FM!80:80,FM!$21:$21,U$5) -> -2819.215413 | V76: =SUMIFS(FM!80:80,FM!$21:$21,V$5) -> -2413.826115 | W76: =SUMIFS(FM!80:80,FM!$21:$21,W$5) -> -1994.23728 | X76: =SUMIFS(FM!80:80,FM!$21:$21,X$5) -> -1571.396903 | Y76: =SUMIFS(FM!80:80,FM!$21:$21,Y$5) -> -1157.95384 | Z76: =SUMIFS(FM!80:80,FM!$21:$21,Z$5) -> -736.0794496 | AA76: =SUMIFS(FM!80:80,FM!$21:$21,AA$5) -> -312.5977497 | AB76: =SUMIFS(FM!80:80,FM!$21:$21,AB$5) -> -13.39629838 | AC76: =SUMIFS(FM!80:80,FM!$21:$21,AC$5) -> -2.173424051e-14 | AD76: =SUMIFS(FM!80:80,FM!$21:$21,AD$5) -> -2.214334087e-14 | AE76: =SUMIFS(FM!80:80,FM!$21:$21,AE$5) -> -2.256014165e-14 | AF76: =SUMIFS(FM!80:80,FM!$21:$21,AF$5) -> -2.298478782e-14 | AG76: =SUMIFS(FM!80:80,FM!$21:$21,AG$5) -> -2.341742704e-14 | AH76: =SUMIFS(FM!80:80,FM!$21:$21,AH$5) -> -2.385820976e-14 | AI76: =SUMIFS(FM!80:80,FM!$21:$21,AI$5) -> -2.430728926e-14 | AJ76: =SUMIFS(FM!80:80,FM!$21:$21,AJ$5) -> -2.476482173e-14 | AK76: =SUMIFS(FM!80:80,FM!$21:$21,AK$5) -> -2.523096625e-14 | AL76: =SUMIFS(FM!80:80,FM!$21:$21,AL$5) -> -2.570588495e-14 | AM76: =SUMIFS(FM!80:80,FM!$21:$21,AM$5) -> -2.618974297e-14
D77: =FM!C81 -> Fees financeiros | H77: =SUM(J77:AM77) -> -857.1428571 | J77: =SUMIFS(FM!81:81,FM!$21:$21,J$5) -> 0 | K77: =SUMIFS(FM!81:81,FM!$21:$21,K$5) -> 0 | L77: =SUMIFS(FM!81:81,FM!$21:$21,L$5) -> 0 | M77: =SUMIFS(FM!81:81,FM!$21:$21,M$5) -> -51.66841002 | N77: =SUMIFS(FM!81:81,FM!$21:$21,N$5) -> -56.42767684 | O77: =SUMIFS(FM!81:81,FM!$21:$21,O$5) -> -56.49258968 | P77: =SUMIFS(FM!81:81,FM!$21:$21,P$5) -> -56.55757718 | Q77: =SUMIFS(FM!81:81,FM!$21:$21,Q$5) -> -56.62263945 | R77: =SUMIFS(FM!81:81,FM!$21:$21,R$5) -> -56.68777656 | S77: =SUMIFS(FM!81:81,FM!$21:$21,S$5) -> -56.7529886 | T77: =SUMIFS(FM!81:81,FM!$21:$21,T$5) -> -56.81827566 | U77: =SUMIFS(FM!81:81,FM!$21:$21,U$5) -> -56.88363783 | V77: =SUMIFS(FM!81:81,FM!$21:$21,V$5) -> -56.94907519 | W77: =SUMIFS(FM!81:81,FM!$21:$21,W$5) -> -57.01458782 | X77: =SUMIFS(FM!81:81,FM!$21:$21,X$5) -> -57.08017582 | Y77: =SUMIFS(FM!81:81,FM!$21:$21,Y$5) -> -57.14583927 | Z77: =SUMIFS(FM!81:81,FM!$21:$21,Z$5) -> -57.21157825 | AA77: =SUMIFS(FM!81:81,FM!$21:$21,AA$5) -> -57.27739286 | AB77: =SUMIFS(FM!81:81,FM!$21:$21,AB$5) -> -9.552636102 | AC77: =SUMIFS(FM!81:81,FM!$21:$21,AC$5) -> 0 | AD77: =SUMIFS(FM!81:81,FM!$21:$21,AD$5) -> 0 | AE77: =SUMIFS(FM!81:81,FM!$21:$21,AE$5) -> 0 | AF77: =SUMIFS(FM!81:81,FM!$21:$21,AF$5) -> 0 | AG77: =SUMIFS(FM!81:81,FM!$21:$21,AG$5) -> 0 | AH77: =SUMIFS(FM!81:81,FM!$21:$21,AH$5) -> 0 | AI77: =SUMIFS(FM!81:81,FM!$21:$21,AI$5) -> 0 | AJ77: =SUMIFS(FM!81:81,FM!$21:$21,AJ$5) -> 0 | AK77: =SUMIFS(FM!81:81,FM!$21:$21,AK$5) -> 0 | AL77: =SUMIFS(FM!81:81,FM!$21:$21,AL$5) -> 0 | AM77: =SUMIFS(FM!81:81,FM!$21:$21,AM$5) -> 0
D78: =FM!C82 -> Resultado Financeiro | H78: =SUM(J78:AM78) -> -30357.14465 | J78: =SUM(J75:J77) -> 1085.035575 | K78: 1110.861426 | L78: 226.4288975 | M78: -1820.255425 | N78: -2296.516308 | O78: -3567.868531 | P78: -3118.325554 | Q78: -3861.25578 | R78: -3971.351834 | S78: -3556.22473 | T78: -3169.5583 | U78: -2712.790462 | V78: -2302.877188 | W78: -1879.02514 | X78: -1451.890641 | Y78: -1033.982882 | Z78: -607.8609451 | AA78: -180.0479442 | AB78: 198.1204813 | AC78: 230.8893071 | AD78: 230.8893071 | AE78: 230.8893071 | AF78: 230.8893071 | AG78: 230.8893071 | AH78: 230.8893071 | AI78: 230.8893071 | AJ78: 230.8893071 | AK78: 230.8893071 | AL78: 230.8893071 | AM78: 243.3475607
D80: =FM!C84 -> EBT | H80: =SUM(J80:AM80) -> 304131.2238 | J80: =J78+J72 -> -2587.511851 | K80: =K78+K72 -> 9828.227459 | L80: 12871.6782 | M80: 11812.9776 | N80: 11100.49604 | O80: 9623.738412 | P80: 10404.89625 | Q80: 9311.487997 | R80: 9238.870919 | S80: 9691.904569 | T80: 10122.45775 | U80: 10612.93467 | V80: 11062.60742 | W80: 11526.71776 | X80: 11999.69425 | Y80: 12452.18846 | Z80: 12916.87667 | AA80: 13380.23181 | AB80: 13793.86089 | AC80: 13841.96994 | AD80: 13847.56057 | AE80: 13828.82364 | AF80: 13776.5298 | AG80: 13650.24014 | AH80: 13424.15156 | AI80: 13014.34198 | AJ80: 12262.74961 | AK80: 10747.13446 | AL80: 7073.259312 | AM80: -20499.87251
D81: =FM!C85 -> Margem EBT | G81: =H80/$H$41 -> 0.4490206125 | J81: =IFERROR(J80/J$41,) -> 0 | K81: 0.7939417856 | L81: 0.6984391909 | M81: 0.57968294 | N81: 0.5189902882 | O81: 0.4281735219 | P81: 0.4287973091 | Q81: 0.3838223561 | R81: 0.3808290581 | S81: 0.3995032424 | T81: 0.4171577054 | U81: 0.4374683821 | V81: 0.4560040291 | W81: 0.4751347981 | X81: 0.4945207023 | Y81: 0.5132829805 | Z81: 0.5324375693 | AA81: 0.5515372087 | AB81: 0.5684602988 | AC81: 0.5705701942 | AD81: 0.5708006418 | AE81: 0.5700282999 | AF81: 0.567746065 | AG81: 0.5626670337 | AH81: 0.5533475941 | AI81: 0.5364551188 | AJ81: 0.5053615056 | AK81: 0.443000138 | AL81: 0.2915618916 | AM81: -0.845010955
D83: =FM!C87 -> IR/CSLL | H83: =SUM(J83:AM83) -> -85827.81475 | J83: =SUMIFS(FM!87:87,FM!$21:$21,J$5) -> -368.9120953 | K83: =SUMIFS(FM!87:87,FM!$21:$21,K$5) -> -1823.15862 | L83: =SUMIFS(FM!87:87,FM!$21:$21,L$5) -> -2238.291516 | M83: =SUMIFS(FM!87:87,FM!$21:$21,M$5) -> -3564.916957 | N83: =SUMIFS(FM!87:87,FM!$21:$21,N$5) -> -3716.535752 | O83: =SUMIFS(FM!87:87,FM!$21:$21,O$5) -> -3270.667222 | P83: =SUMIFS(FM!87:87,FM!$21:$21,P$5) -> -3493.614994 | Q83: =SUMIFS(FM!87:87,FM!$21:$21,Q$5) -> -3092.841334 | R83: =SUMIFS(FM!87:87,FM!$21:$21,R$5) -> -2901.499272 | S83: =SUMIFS(FM!87:87,FM!$21:$21,S$5) -> -2904.268297 | T83: =SUMIFS(FM!87:87,FM!$21:$21,T$5) -> -2906.398569 | U83: =SUMIFS(FM!87:87,FM!$21:$21,U$5) -> -2907.14767 | V83: =SUMIFS(FM!87:87,FM!$21:$21,V$5) -> -2908.708071 | W83: =SUMIFS(FM!87:87,FM!$21:$21,W$5) -> -2910.179837 | X83: =SUMIFS(FM!87:87,FM!$21:$21,X$5) -> -2912.306778 | Y83: =SUMIFS(FM!87:87,FM!$21:$21,Y$5) -> -2913.202461 | Z83: =SUMIFS(FM!87:87,FM!$21:$21,Z$5) -> -2914.668978 | AA83: =SUMIFS(FM!87:87,FM!$21:$21,AA$5) -> -2916.163997 | AB83: =SUMIFS(FM!87:87,FM!$21:$21,AB$5) -> -2927.430991 | AC83: =SUMIFS(FM!87:87,FM!$21:$21,AC$5) -> -2930.125114 | AD83: =SUMIFS(FM!87:87,FM!$21:$21,AD$5) -> -2930.125114 | AE83: =SUMIFS(FM!87:87,FM!$21:$21,AE$5) -> -2930.125114 | AF83: =SUMIFS(FM!87:87,FM!$21:$21,AF$5) -> -2930.769754 | AG83: =SUMIFS(FM!87:87,FM!$21:$21,AG$5) -> -2930.125114 | AH83: =SUMIFS(FM!87:87,FM!$21:$21,AH$5) -> -2930.125114 | AI83: =SUMIFS(FM!87:87,FM!$21:$21,AI$5) -> -2930.125114 | AJ83: =SUMIFS(FM!87:87,FM!$21:$21,AJ$5) -> -2930.769754 | AK83: =SUMIFS(FM!87:87,FM!$21:$21,AK$5) -> -2930.125114 | AL83: =SUMIFS(FM!87:87,FM!$21:$21,AL$5) -> -2930.125114 | AM83: =SUMIFS(FM!87:87,FM!$21:$21,AM$5) -> -2934.36092
D84: =FM!C88 -> Corrente | H84: =SUM(J84:AM84) -> -85827.81475 | J84: =SUMIFS(FM!88:88,FM!$21:$21,J$5) -> -368.9120953 | K84: =SUMIFS(FM!88:88,FM!$21:$21,K$5) -> -1823.15862 | L84: =SUMIFS(FM!88:88,FM!$21:$21,L$5) -> -2238.291516 | M84: =SUMIFS(FM!88:88,FM!$21:$21,M$5) -> -3564.916957 | N84: =SUMIFS(FM!88:88,FM!$21:$21,N$5) -> -3716.535752 | O84: =SUMIFS(FM!88:88,FM!$21:$21,O$5) -> -3270.667222 | P84: =SUMIFS(FM!88:88,FM!$21:$21,P$5) -> -3493.614994 | Q84: =SUMIFS(FM!88:88,FM!$21:$21,Q$5) -> -3092.841334 | R84: =SUMIFS(FM!88:88,FM!$21:$21,R$5) -> -2901.499272 | S84: =SUMIFS(FM!88:88,FM!$21:$21,S$5) -> -2904.268297 | T84: =SUMIFS(FM!88:88,FM!$21:$21,T$5) -> -2906.398569 | U84: =SUMIFS(FM!88:88,FM!$21:$21,U$5) -> -2907.14767 | V84: =SUMIFS(FM!88:88,FM!$21:$21,V$5) -> -2908.708071 | W84: =SUMIFS(FM!88:88,FM!$21:$21,W$5) -> -2910.179837 | X84: =SUMIFS(FM!88:88,FM!$21:$21,X$5) -> -2912.306778 | Y84: =SUMIFS(FM!88:88,FM!$21:$21,Y$5) -> -2913.202461 | Z84: =SUMIFS(FM!88:88,FM!$21:$21,Z$5) -> -2914.668978 | AA84: =SUMIFS(FM!88:88,FM!$21:$21,AA$5) -> -2916.163997 | AB84: =SUMIFS(FM!88:88,FM!$21:$21,AB$5) -> -2927.430991 | AC84: =SUMIFS(FM!88:88,FM!$21:$21,AC$5) -> -2930.125114 | AD84: =SUMIFS(FM!88:88,FM!$21:$21,AD$5) -> -2930.125114 | AE84: =SUMIFS(FM!88:88,FM!$21:$21,AE$5) -> -2930.125114 | AF84: =SUMIFS(FM!88:88,FM!$21:$21,AF$5) -> -2930.769754 | AG84: =SUMIFS(FM!88:88,FM!$21:$21,AG$5) -> -2930.125114 | AH84: =SUMIFS(FM!88:88,FM!$21:$21,AH$5) -> -2930.125114 | AI84: =SUMIFS(FM!88:88,FM!$21:$21,AI$5) -> -2930.125114 | AJ84: =SUMIFS(FM!88:88,FM!$21:$21,AJ$5) -> -2930.769754 | AK84: =SUMIFS(FM!88:88,FM!$21:$21,AK$5) -> -2930.125114 | AL84: =SUMIFS(FM!88:88,FM!$21:$21,AL$5) -> -2930.125114 | AM84: =SUMIFS(FM!88:88,FM!$21:$21,AM$5) -> -2934.36092
D85: =FM!C89 -> Diferido | H85: =SUM(J85:AM85) -> 0 | J85: =SUMIFS(FM!89:89,FM!$21:$21,J$5) -> 0 | K85: =SUMIFS(FM!89:89,FM!$21:$21,K$5) -> 0 | L85: =SUMIFS(FM!89:89,FM!$21:$21,L$5) -> 0 | M85: =SUMIFS(FM!89:89,FM!$21:$21,M$5) -> 0 | N85: =SUMIFS(FM!89:89,FM!$21:$21,N$5) -> 0 | O85: =SUMIFS(FM!89:89,FM!$21:$21,O$5) -> 0 | P85: =SUMIFS(FM!89:89,FM!$21:$21,P$5) -> 0 | Q85: =SUMIFS(FM!89:89,FM!$21:$21,Q$5) -> 0 | R85: =SUMIFS(FM!89:89,FM!$21:$21,R$5) -> 0 | S85: =SUMIFS(FM!89:89,FM!$21:$21,S$5) -> 0 | T85: =SUMIFS(FM!89:89,FM!$21:$21,T$5) -> 0 | U85: =SUMIFS(FM!89:89,FM!$21:$21,U$5) -> 0 | V85: =SUMIFS(FM!89:89,FM!$21:$21,V$5) -> 0 | W85: =SUMIFS(FM!89:89,FM!$21:$21,W$5) -> 0 | X85: =SUMIFS(FM!89:89,FM!$21:$21,X$5) -> 0 | Y85: =SUMIFS(FM!89:89,FM!$21:$21,Y$5) -> 0 | Z85: =SUMIFS(FM!89:89,FM!$21:$21,Z$5) -> 0 | AA85: =SUMIFS(FM!89:89,FM!$21:$21,AA$5) -> 0 | AB85: =SUMIFS(FM!89:89,FM!$21:$21,AB$5) -> 0 | AC85: =SUMIFS(FM!89:89,FM!$21:$21,AC$5) -> 0 | AD85: =SUMIFS(FM!89:89,FM!$21:$21,AD$5) -> 0 | AE85: =SUMIFS(FM!89:89,FM!$21:$21,AE$5) -> 0 | AF85: =SUMIFS(FM!89:89,FM!$21:$21,AF$5) -> 0 | AG85: =SUMIFS(FM!89:89,FM!$21:$21,AG$5) -> 0 | AH85: =SUMIFS(FM!89:89,FM!$21:$21,AH$5) -> 0 | AI85: =SUMIFS(FM!89:89,FM!$21:$21,AI$5) -> 0 | AJ85: =SUMIFS(FM!89:89,FM!$21:$21,AJ$5) -> 0 | AK85: =SUMIFS(FM!89:89,FM!$21:$21,AK$5) -> 0 | AL85: =SUMIFS(FM!89:89,FM!$21:$21,AL$5) -> 0 | AM85: =SUMIFS(FM!89:89,FM!$21:$21,AM$5) -> 0
D86: =FM!C90 -> Lucro Líquido | H86: =SUM(J86:AM86) -> 218303.409 | J86: =J83+J80 -> -2956.423947 | K86: =K83+K80 -> 8005.068839 | L86: 10633.38668 | M86: 8248.060642 | N86: 7383.960283 | O86: =O83+O80 -> 6353.07119 | P86: 6911.28126 | Q86: 6218.646663 | R86: 6337.371647 | S86: 6787.636271 | T86: 7216.059185 | U86: 7705.786998 | V86: 8153.899348 | W86: 8616.537925 | X86: 9087.387468 | Y86: 9538.985996 | Z86: 10002.20769 | AA86: 10464.06782 | AB86: 10866.4299 | AC86: 10911.84482 | AD86: 10917.43546 | AE86: 10898.69853 | AF86: 10845.76004 | AG86: 10720.11502 | AH86: 10494.02645 | AI86: 10084.21686 | AJ86: 9331.97986 | AK86: 7817.009341 | AL86: 4143.134198 | AM86: -23434.23343
D87: =FM!C91 -> Margem Líquida | G87: =H86/$H$41 -> 0.3223040673 | J87: =IFERROR(J86/J$41,) -> 0 | K87: 0.6466637727 | L87: 0.5769856794 | M87: 0.4047463903 | N87: 0.3452281468 | O87: 0.2826569832 | P87: 0.2848215623 | Q87: 0.2563344993 | R87: 0.2612283792 | S87: 0.2797884234 | T87: 0.2973817985 | U87: 0.3176348745 | V87: 0.3361062013 | W87: 0.3551763036 | X87: 0.3745013115 | Y87: 0.3931998925 | Z87: 0.4122940311 | AA87: 0.4313320454 | AB87: 0.4478176224 | AC87: 0.4497895493 | AD87: 0.450019997 | AE87: 0.449247655 | AF87: 0.4469657945 | AG87: 0.4418863888 | AH87: 0.4325669492 | AI87: 0.415674474 | AJ87: 0.3845812351 | AK87: 0.3222194931 | AL87: 0.1707812468 | AM87: -0.9659662011
C90: DFC
D92: =FM!C96 -> EBITDA | H92: =SUM(J92:AM92) -> 496437.1586 | J92: =SUMIFS(FM!96:96,FM!$21:$21,J$5) -> -3292.457943 | K92: =SUMIFS(FM!96:96,FM!$21:$21,K$5) -> 8887.360337 | L92: =SUMIFS(FM!96:96,FM!$21:$21,L$5) -> 14168.50311 | M92: =SUMIFS(FM!96:96,FM!$21:$21,M$5) -> 15602.12755 | N92: =SUMIFS(FM!96:96,FM!$21:$21,N$5) -> 16018.25787 | O92: =SUMIFS(FM!96:96,FM!$21:$21,O$5) -> 16297.03464 | P92: =SUMIFS(FM!96:96,FM!$21:$21,P$5) -> 18070.50318 | Q92: =SUMIFS(FM!96:96,FM!$21:$21,Q$5) -> 18065.09069 | R92: =SUMIFS(FM!96:96,FM!$21:$21,R$5) -> 18065.09069 | S92: =SUMIFS(FM!96:96,FM!$21:$21,S$5) -> 18065.09069 | T92: =SUMIFS(FM!96:96,FM!$21:$21,T$5) -> 18070.50318 | U92: =SUMIFS(FM!96:96,FM!$21:$21,U$5) -> 18065.09069 | V92: =SUMIFS(FM!96:96,FM!$21:$21,V$5) -> 18065.09069 | W92: =SUMIFS(FM!96:96,FM!$21:$21,W$5) -> 18065.09069 | X92: =SUMIFS(FM!96:96,FM!$21:$21,X$5) -> 18070.50318 | Y92: =SUMIFS(FM!96:96,FM!$21:$21,Y$5) -> 18065.09069 | Z92: =SUMIFS(FM!96:96,FM!$21:$21,Z$5) -> 18065.09069 | AA92: =SUMIFS(FM!96:96,FM!$21:$21,AA$5) -> 18065.09069 | AB92: =SUMIFS(FM!96:96,FM!$21:$21,AB$5) -> 18070.50318 | AC92: =SUMIFS(FM!96:96,FM!$21:$21,AC$5) -> 18065.09069 | AD92: =SUMIFS(FM!96:96,FM!$21:$21,AD$5) -> 18065.09069 | AE92: =SUMIFS(FM!96:96,FM!$21:$21,AE$5) -> 18065.09069 | AF92: =SUMIFS(FM!96:96,FM!$21:$21,AF$5) -> 18070.50318 | AG92: =SUMIFS(FM!96:96,FM!$21:$21,AG$5) -> 18065.09069 | AH92: =SUMIFS(FM!96:96,FM!$21:$21,AH$5) -> 18065.09069 | AI92: =SUMIFS(FM!96:96,FM!$21:$21,AI$5) -> 18065.09069 | AJ92: =SUMIFS(FM!96:96,FM!$21:$21,AJ$5) -> 18070.50318 | AK92: =SUMIFS(FM!96:96,FM!$21:$21,AK$5) -> 18065.09069 | AL92: =SUMIFS(FM!96:96,FM!$21:$21,AL$5) -> 18065.09069 | AM92: =SUMIFS(FM!96:96,FM!$21:$21,AM$5) -> 13226.77216
D93: =FM!C97 -> Custo de Obra | H93: 0 | J93: =SUMIFS(FM!97:97,FM!$21:$21,J$5) -> 0 | K93: =SUMIFS(FM!97:97,FM!$21:$21,K$5) -> 0 | L93: =SUMIFS(FM!97:97,FM!$21:$21,L$5) -> 0 | M93: =SUMIFS(FM!97:97,FM!$21:$21,M$5) -> 0 | N93: =SUMIFS(FM!97:97,FM!$21:$21,N$5) -> 0 | O93: =SUMIFS(FM!97:97,FM!$21:$21,O$5) -> 0 | P93: =SUMIFS(FM!97:97,FM!$21:$21,P$5) -> 0 | Q93: =SUMIFS(FM!97:97,FM!$21:$21,Q$5) -> 0 | R93: =SUMIFS(FM!97:97,FM!$21:$21,R$5) -> 0 | S93: =SUMIFS(FM!97:97,FM!$21:$21,S$5) -> 0 | T93: =SUMIFS(FM!97:97,FM!$21:$21,T$5) -> 0 | U93: =SUMIFS(FM!97:97,FM!$21:$21,U$5) -> 0 | V93: =SUMIFS(FM!97:97,FM!$21:$21,V$5) -> 0 | W93: =SUMIFS(FM!97:97,FM!$21:$21,W$5) -> 0 | X93: =SUMIFS(FM!97:97,FM!$21:$21,X$5) -> 0 | Y93: =SUMIFS(FM!97:97,FM!$21:$21,Y$5) -> 0 | Z93: =SUMIFS(FM!97:97,FM!$21:$21,Z$5) -> 0 | AA93: =SUMIFS(FM!97:97,FM!$21:$21,AA$5) -> 0 | AB93: =SUMIFS(FM!97:97,FM!$21:$21,AB$5) -> 0 | AC93: =SUMIFS(FM!97:97,FM!$21:$21,AC$5) -> 0 | AD93: =SUMIFS(FM!97:97,FM!$21:$21,AD$5) -> 0 | AE93: =SUMIFS(FM!97:97,FM!$21:$21,AE$5) -> 0 | AF93: =SUMIFS(FM!97:97,FM!$21:$21,AF$5) -> 0 | AG93: =SUMIFS(FM!97:97,FM!$21:$21,AG$5) -> 0 | AH93: =SUMIFS(FM!97:97,FM!$21:$21,AH$5) -> 0 | AI93: =SUMIFS(FM!97:97,FM!$21:$21,AI$5) -> 0 | AJ93: =SUMIFS(FM!97:97,FM!$21:$21,AJ$5) -> 0 | AK93: =SUMIFS(FM!97:97,FM!$21:$21,AK$5) -> 0 | AL93: =SUMIFS(FM!97:97,FM!$21:$21,AL$5) -> 0 | AM93: =SUMIFS(FM!97:97,FM!$21:$21,AM$5) -> 0
D94: =FM!C98 -> Ajustes de IFRS - Margem de Construção | H94: 0 | J94: =SUMIFS(FM!98:98,FM!$21:$21,J$5) -> 0 | K94: =SUMIFS(FM!98:98,FM!$21:$21,K$5) -> 0 | L94: =SUMIFS(FM!98:98,FM!$21:$21,L$5) -> 0 | M94: =SUMIFS(FM!98:98,FM!$21:$21,M$5) -> 0 | N94: =SUMIFS(FM!98:98,FM!$21:$21,N$5) -> 0 | O94: =SUMIFS(FM!98:98,FM!$21:$21,O$5) -> 0 | P94: =SUMIFS(FM!98:98,FM!$21:$21,P$5) -> 0 | Q94: =SUMIFS(FM!98:98,FM!$21:$21,Q$5) -> 0 | R94: =SUMIFS(FM!98:98,FM!$21:$21,R$5) -> 0 | S94: =SUMIFS(FM!98:98,FM!$21:$21,S$5) -> 0 | T94: =SUMIFS(FM!98:98,FM!$21:$21,T$5) -> 0 | U94: =SUMIFS(FM!98:98,FM!$21:$21,U$5) -> 0 | V94: =SUMIFS(FM!98:98,FM!$21:$21,V$5) -> 0 | W94: =SUMIFS(FM!98:98,FM!$21:$21,W$5) -> 0 | X94: =SUMIFS(FM!98:98,FM!$21:$21,X$5) -> 0 | Y94: =SUMIFS(FM!98:98,FM!$21:$21,Y$5) -> 0 | Z94: =SUMIFS(FM!98:98,FM!$21:$21,Z$5) -> 0 | AA94: =SUMIFS(FM!98:98,FM!$21:$21,AA$5) -> 0 | AB94: =SUMIFS(FM!98:98,FM!$21:$21,AB$5) -> 0 | AC94: =SUMIFS(FM!98:98,FM!$21:$21,AC$5) -> 0 | AD94: =SUMIFS(FM!98:98,FM!$21:$21,AD$5) -> 0 | AE94: =SUMIFS(FM!98:98,FM!$21:$21,AE$5) -> 0 | AF94: =SUMIFS(FM!98:98,FM!$21:$21,AF$5) -> 0 | AG94: =SUMIFS(FM!98:98,FM!$21:$21,AG$5) -> 0 | AH94: =SUMIFS(FM!98:98,FM!$21:$21,AH$5) -> 0 | AI94: =SUMIFS(FM!98:98,FM!$21:$21,AI$5) -> 0 | AJ94: =SUMIFS(FM!98:98,FM!$21:$21,AJ$5) -> 0 | AK94: =SUMIFS(FM!98:98,FM!$21:$21,AK$5) -> 0 | AL94: =SUMIFS(FM!98:98,FM!$21:$21,AL$5) -> 0 | AM94: =SUMIFS(FM!98:98,FM!$21:$21,AM$5) -> 0
D95: =FM!C99 -> IR / CSLL | H95: -85827.81475 | J95: =SUMIFS(FM!99:99,FM!$21:$21,J$5) -> -359.2212911 | K95: =SUMIFS(FM!99:99,FM!$21:$21,K$5) -> -1631.932873 | L95: =SUMIFS(FM!99:99,FM!$21:$21,L$5) -> -2193.150036 | M95: =SUMIFS(FM!99:99,FM!$21:$21,M$5) -> -3464.97454 | N95: =SUMIFS(FM!99:99,FM!$21:$21,N$5) -> -3727.031449 | O95: =SUMIFS(FM!99:99,FM!$21:$21,O$5) -> -3327.731982 | P95: =SUMIFS(FM!99:99,FM!$21:$21,P$5) -> -3427.731905 | Q95: =SUMIFS(FM!99:99,FM!$21:$21,Q$5) -> -3153.668675 | R95: =SUMIFS(FM!99:99,FM!$21:$21,R$5) -> -2900.934653 | S95: =SUMIFS(FM!99:99,FM!$21:$21,S$5) -> -2903.864295 | T95: =SUMIFS(FM!99:99,FM!$21:$21,T$5) -> -2906.399883 | U95: =SUMIFS(FM!99:99,FM!$21:$21,U$5) -> -2907.148909 | V95: =SUMIFS(FM!99:99,FM!$21:$21,V$5) -> -2908.709175 | W95: =SUMIFS(FM!99:99,FM!$21:$21,W$5) -> -2910.181034 | X95: =SUMIFS(FM!99:99,FM!$21:$21,X$5) -> -2912.307952 | Y95: =SUMIFS(FM!99:99,FM!$21:$21,Y$5) -> -2913.203707 | Z95: =SUMIFS(FM!99:99,FM!$21:$21,Z$5) -> -2914.670183 | AA95: =SUMIFS(FM!99:99,FM!$21:$21,AA$5) -> -2916.165169 | AB95: =SUMIFS(FM!99:99,FM!$21:$21,AB$5) -> -2925.383691 | AC95: =SUMIFS(FM!99:99,FM!$21:$21,AC$5) -> -2930.125114 | AD95: =SUMIFS(FM!99:99,FM!$21:$21,AD$5) -> -2930.125114 | AE95: =SUMIFS(FM!99:99,FM!$21:$21,AE$5) -> -2930.125114 | AF95: =SUMIFS(FM!99:99,FM!$21:$21,AF$5) -> -2930.769754 | AG95: =SUMIFS(FM!99:99,FM!$21:$21,AG$5) -> -2930.125114 | AH95: =SUMIFS(FM!99:99,FM!$21:$21,AH$5) -> -2930.125114 | AI95: =SUMIFS(FM!99:99,FM!$21:$21,AI$5) -> -2930.125114 | AJ95: =SUMIFS(FM!99:99,FM!$21:$21,AJ$5) -> -2930.769754 | AK95: =SUMIFS(FM!99:99,FM!$21:$21,AK$5) -> -2930.125114 | AL95: =SUMIFS(FM!99:99,FM!$21:$21,AL$5) -> -2930.125114 | AM95: =SUMIFS(FM!99:99,FM!$21:$21,AM$5) -> -3220.86293
D96: =FM!C100 -> Aporte Poder Concedente | H96: 50871.6544 | J96: =SUMIFS(FM!100:100,FM!$21:$21,J$5) -> 0 | K96: =SUMIFS(FM!100:100,FM!$21:$21,K$5) -> 4967.003897 | L96: =SUMIFS(FM!100:100,FM!$21:$21,L$5) -> 7918.32653 | M96: =SUMIFS(FM!100:100,FM!$21:$21,M$5) -> 2197.004708 | N96: =SUMIFS(FM!100:100,FM!$21:$21,N$5) -> 9667.400323 | O96: =SUMIFS(FM!100:100,FM!$21:$21,O$5) -> 4910.070681 | P96: =SUMIFS(FM!100:100,FM!$21:$21,P$5) -> 21211.84826 | Q96: =SUMIFS(FM!100:100,FM!$21:$21,Q$5) -> 0 | R96: =SUMIFS(FM!100:100,FM!$21:$21,R$5) -> 0 | S96: =SUMIFS(FM!100:100,FM!$21:$21,S$5) -> 0 | T96: =SUMIFS(FM!100:100,FM!$21:$21,T$5) -> 0 | U96: =SUMIFS(FM!100:100,FM!$21:$21,U$5) -> 0 | V96: =SUMIFS(FM!100:100,FM!$21:$21,V$5) -> 0 | W96: =SUMIFS(FM!100:100,FM!$21:$21,W$5) -> 0 | X96: =SUMIFS(FM!100:100,FM!$21:$21,X$5) -> 0 | Y96: =SUMIFS(FM!100:100,FM!$21:$21,Y$5) -> 0 | Z96: =SUMIFS(FM!100:100,FM!$21:$21,Z$5) -> 0 | AA96: =SUMIFS(FM!100:100,FM!$21:$21,AA$5) -> 0 | AB96: =SUMIFS(FM!100:100,FM!$21:$21,AB$5) -> 0 | AC96: =SUMIFS(FM!100:100,FM!$21:$21,AC$5) -> 0 | AD96: =SUMIFS(FM!100:100,FM!$21:$21,AD$5) -> 0 | AE96: =SUMIFS(FM!100:100,FM!$21:$21,AE$5) -> 0 | AF96: =SUMIFS(FM!100:100,FM!$21:$21,AF$5) -> 0 | AG96: =SUMIFS(FM!100:100,FM!$21:$21,AG$5) -> 0 | AH96: =SUMIFS(FM!100:100,FM!$21:$21,AH$5) -> 0 | AI96: =SUMIFS(FM!100:100,FM!$21:$21,AI$5) -> 0 | AJ96: =SUMIFS(FM!100:100,FM!$21:$21,AJ$5) -> 0 | AK96: =SUMIFS(FM!100:100,FM!$21:$21,AK$5) -> 0 | AL96: =SUMIFS(FM!100:100,FM!$21:$21,AL$5) -> 0 | AM96: =SUMIFS(FM!100:100,FM!$21:$21,AM$5) -> 0
D97: =FM!C101 -> Contraprestação Mensal - Parcela Fixa | H97: 33410.51024 | J97: =SUMIFS(FM!101:101,FM!$21:$21,J$5) -> 0 | K97: =SUMIFS(FM!101:101,FM!$21:$21,K$5) -> 108.0612357 | L97: =SUMIFS(FM!101:101,FM!$21:$21,L$5) -> 429.6131483 | M97: =SUMIFS(FM!101:101,FM!$21:$21,M$5) -> 566.6003702 | N97: =SUMIFS(FM!101:101,FM!$21:$21,N$5) -> 751.0445747 | O97: =SUMIFS(FM!101:101,FM!$21:$21,O$5) -> 949.6050102 | P97: =SUMIFS(FM!101:101,FM!$21:$21,P$5) -> 1275.232746 | Q97: =SUMIFS(FM!101:101,FM!$21:$21,Q$5) -> 1275.232746 | R97: =SUMIFS(FM!101:101,FM!$21:$21,R$5) -> 1275.232746 | S97: =SUMIFS(FM!101:101,FM!$21:$21,S$5) -> 1275.232746 | T97: =SUMIFS(FM!101:101,FM!$21:$21,T$5) -> 1275.232746 | U97: =SUMIFS(FM!101:101,FM!$21:$21,U$5) -> 1275.232746 | V97: =SUMIFS(FM!101:101,FM!$21:$21,V$5) -> 1275.232746 | W97: =SUMIFS(FM!101:101,FM!$21:$21,W$5) -> 1275.232746 | X97: =SUMIFS(FM!101:101,FM!$21:$21,X$5) -> 1275.232746 | Y97: =SUMIFS(FM!101:101,FM!$21:$21,Y$5) -> 1275.232746 | Z97: =SUMIFS(FM!101:101,FM!$21:$21,Z$5) -> 1275.232746 | AA97: =SUMIFS(FM!101:101,FM!$21:$21,AA$5) -> 1275.232746 | AB97: =SUMIFS(FM!101:101,FM!$21:$21,AB$5) -> 1275.232746 | AC97: =SUMIFS(FM!101:101,FM!$21:$21,AC$5) -> 1275.232746 | AD97: =SUMIFS(FM!101:101,FM!$21:$21,AD$5) -> 1275.232746 | AE97: =SUMIFS(FM!101:101,FM!$21:$21,AE$5) -> 1275.232746 | AF97: =SUMIFS(FM!101:101,FM!$21:$21,AF$5) -> 1275.232746 | AG97: =SUMIFS(FM!101:101,FM!$21:$21,AG$5) -> 1275.232746 | AH97: =SUMIFS(FM!101:101,FM!$21:$21,AH$5) -> 1275.232746 | AI97: =SUMIFS(FM!101:101,FM!$21:$21,AI$5) -> 1275.232746 | AJ97: =SUMIFS(FM!101:101,FM!$21:$21,AJ$5) -> 1275.232746 | AK97: =SUMIFS(FM!101:101,FM!$21:$21,AK$5) -> 1275.232746 | AL97: =SUMIFS(FM!101:101,FM!$21:$21,AL$5) -> 1275.232746 | AM97: =SUMIFS(FM!101:101,FM!$21:$21,AM$5) -> 1275.232746
D98: =FM!C102 -> Variação do Capital de Giro | H98: 93.90181976 | J98: =SUMIFS(FM!102:102,FM!$21:$21,J$5) -> 292.9182694 | K98: =SUMIFS(FM!102:102,FM!$21:$21,K$5) -> -1565.827264 | L98: =SUMIFS(FM!102:102,FM!$21:$21,L$5) -> -211.8240782 | M98: =SUMIFS(FM!102:102,FM!$21:$21,M$5) -> 71.21492798 | N98: =SUMIFS(FM!102:102,FM!$21:$21,N$5) -> 122.7952181 | O98: =SUMIFS(FM!102:102,FM!$21:$21,O$5) -> 72.83276287 | P98: =SUMIFS(FM!102:102,FM!$21:$21,P$5) -> -186.5234071 | Q98: =SUMIFS(FM!102:102,FM!$21:$21,Q$5) -> 0 | R98: =SUMIFS(FM!102:102,FM!$21:$21,R$5) -> 0 | S98: =SUMIFS(FM!102:102,FM!$21:$21,S$5) -> 0 | T98: =SUMIFS(FM!102:102,FM!$21:$21,T$5) -> 0 | U98: =SUMIFS(FM!102:102,FM!$21:$21,U$5) -> 0 | V98: =SUMIFS(FM!102:102,FM!$21:$21,V$5) -> 0 | W98: =SUMIFS(FM!102:102,FM!$21:$21,W$5) -> 0 | X98: =SUMIFS(FM!102:102,FM!$21:$21,X$5) -> 0 | Y98: =SUMIFS(FM!102:102,FM!$21:$21,Y$5) -> 0 | Z98: =SUMIFS(FM!102:102,FM!$21:$21,Z$5) -> 0 | AA98: =SUMIFS(FM!102:102,FM!$21:$21,AA$5) -> 0 | AB98: =SUMIFS(FM!102:102,FM!$21:$21,AB$5) -> 0 | AC98: =SUMIFS(FM!102:102,FM!$21:$21,AC$5) -> 0 | AD98: =SUMIFS(FM!102:102,FM!$21:$21,AD$5) -> 0 | AE98: =SUMIFS(FM!102:102,FM!$21:$21,AE$5) -> 0 | AF98: =SUMIFS(FM!102:102,FM!$21:$21,AF$5) -> 0 | AG98: =SUMIFS(FM!102:102,FM!$21:$21,AG$5) -> 0 | AH98: =SUMIFS(FM!102:102,FM!$21:$21,AH$5) -> 0 | AI98: =SUMIFS(FM!102:102,FM!$21:$21,AI$5) -> 0 | AJ98: =SUMIFS(FM!102:102,FM!$21:$21,AJ$5) -> 0 | AK98: =SUMIFS(FM!102:102,FM!$21:$21,AK$5) -> 0 | AL98: =SUMIFS(FM!102:102,FM!$21:$21,AL$5) -> 0 | AM98: =SUMIFS(FM!102:102,FM!$21:$21,AM$5) -> 1498.315391
D99: =FM!C103 -> Fluxo de Caixa de Operações | F99: =NPV(Dashboard!$E$9,J99:AM99) -> 130820.3124 | H99: =SUM(J99:XK99) -> 494985.4103 | J99: =SUM(J92:J98) -> -3358.760965 | K99: 10764.66533 | L99: 20111.46868 | M99: 14971.97301 | N99: 22832.46654 | O99: 18901.81111 | P99: 36943.32887 | Q99: 16186.65477 | R99: 16439.38879 | S99: 16436.45914 | T99: 16439.33604 | U99: 16433.17453 | V99: 16431.61427 | W99: 16430.14241 | X99: 16433.42798 | Y99: 16427.11973 | Z99: 16425.65326 | AA99: 16424.15827 | AB99: 16420.35224 | AC99: 16410.19833 | AD99: 16410.19833 | AE99: 16410.19833 | AF99: 16414.96617 | AG99: 16410.19833 | AH99: 16410.19833 | AI99: 16410.19833 | AJ99: 16414.96617 | AK99: 16410.19833 | AL99: 16410.19833 | AM99: 12779.45736
D101: =FM!C105 -> Ativo Imobiliário 01 | G101: =H101/SUM($H$101:$H$119) -> 0.02513849225 | H101: =-SUM(J101:AM101)/1000 -> 3.904572276 | J101: =SUMIFS(FM!105:105,FM!$21:$21,J$5) -> -3489.927432 | K101: =SUMIFS(FM!105:105,FM!$21:$21,K$5) -> -414.6448434 | L101: =SUMIFS(FM!105:105,FM!$21:$21,L$5) -> 0 | M101: =SUMIFS(FM!105:105,FM!$21:$21,M$5) -> 0 | N101: =SUMIFS(FM!105:105,FM!$21:$21,N$5) -> 0 | O101: =SUMIFS(FM!105:105,FM!$21:$21,O$5) -> 0 | P101: =SUMIFS(FM!105:105,FM!$21:$21,P$5) -> 0 | Q101: =SUMIFS(FM!105:105,FM!$21:$21,Q$5) -> 0 | R101: =SUMIFS(FM!105:105,FM!$21:$21,R$5) -> 0 | S101: =SUMIFS(FM!105:105,FM!$21:$21,S$5) -> 0 | T101: =SUMIFS(FM!105:105,FM!$21:$21,T$5) -> 0 | U101: =SUMIFS(FM!105:105,FM!$21:$21,U$5) -> 0 | V101: =SUMIFS(FM!105:105,FM!$21:$21,V$5) -> 0 | W101: =SUMIFS(FM!105:105,FM!$21:$21,W$5) -> 0 | X101: =SUMIFS(FM!105:105,FM!$21:$21,X$5) -> 0 | Y101: =SUMIFS(FM!105:105,FM!$21:$21,Y$5) -> 0 | Z101: =SUMIFS(FM!105:105,FM!$21:$21,Z$5) -> 0 | AA101: =SUMIFS(FM!105:105,FM!$21:$21,AA$5) -> 0 | AB101: =SUMIFS(FM!105:105,FM!$21:$21,AB$5) -> 0 | AC101: =SUMIFS(FM!105:105,FM!$21:$21,AC$5) -> 0 | AD101: =SUMIFS(FM!105:105,FM!$21:$21,AD$5) -> 0 | AE101: =SUMIFS(FM!105:105,FM!$21:$21,AE$5) -> 0 | AF101: =SUMIFS(FM!105:105,FM!$21:$21,AF$5) -> 0 | AG101: =SUMIFS(FM!105:105,FM!$21:$21,AG$5) -> 0 | AH101: =SUMIFS(FM!105:105,FM!$21:$21,AH$5) -> 0 | AI101: =SUMIFS(FM!105:105,FM!$21:$21,AI$5) -> 0 | AJ101: =SUMIFS(FM!105:105,FM!$21:$21,AJ$5) -> 0 | AK101: =SUMIFS(FM!105:105,FM!$21:$21,AK$5) -> 0 | AL101: =SUMIFS(FM!105:105,FM!$21:$21,AL$5) -> 0 | AM101: =SUMIFS(FM!105:105,FM!$21:$21,AM$5) -> 0
D102: =FM!C106 -> Ativo Imobiliário 02 | G102: 0.05394270081 | H102: 8.3785126 | J102: =SUMIFS(FM!106:106,FM!$21:$21,J$5) -> -339.8364255 | K102: =SUMIFS(FM!106:106,FM!$21:$21,K$5) -> -5369.415523 | L102: =SUMIFS(FM!106:106,FM!$21:$21,L$5) -> -2669.260651 | M102: =SUMIFS(FM!106:106,FM!$21:$21,M$5) -> 0 | N102: =SUMIFS(FM!106:106,FM!$21:$21,N$5) -> 0 | O102: =SUMIFS(FM!106:106,FM!$21:$21,O$5) -> 0 | P102: =SUMIFS(FM!106:106,FM!$21:$21,P$5) -> 0 | Q102: =SUMIFS(FM!106:106,FM!$21:$21,Q$5) -> 0 | R102: =SUMIFS(FM!106:106,FM!$21:$21,R$5) -> 0 | S102: =SUMIFS(FM!106:106,FM!$21:$21,S$5) -> 0 | T102: =SUMIFS(FM!106:106,FM!$21:$21,T$5) -> 0 | U102: =SUMIFS(FM!106:106,FM!$21:$21,U$5) -> 0 | V102: =SUMIFS(FM!106:106,FM!$21:$21,V$5) -> 0 | W102: =SUMIFS(FM!106:106,FM!$21:$21,W$5) -> 0 | X102: =SUMIFS(FM!106:106,FM!$21:$21,X$5) -> 0 | Y102: =SUMIFS(FM!106:106,FM!$21:$21,Y$5) -> 0 | Z102: =SUMIFS(FM!106:106,FM!$21:$21,Z$5) -> 0 | AA102: =SUMIFS(FM!106:106,FM!$21:$21,AA$5) -> 0 | AB102: =SUMIFS(FM!106:106,FM!$21:$21,AB$5) -> 0 | AC102: =SUMIFS(FM!106:106,FM!$21:$21,AC$5) -> 0 | AD102: =SUMIFS(FM!106:106,FM!$21:$21,AD$5) -> 0 | AE102: =SUMIFS(FM!106:106,FM!$21:$21,AE$5) -> 0 | AF102: =SUMIFS(FM!106:106,FM!$21:$21,AF$5) -> 0 | AG102: =SUMIFS(FM!106:106,FM!$21:$21,AG$5) -> 0 | AH102: =SUMIFS(FM!106:106,FM!$21:$21,AH$5) -> 0 | AI102: =SUMIFS(FM!106:106,FM!$21:$21,AI$5) -> 0 | AJ102: =SUMIFS(FM!106:106,FM!$21:$21,AJ$5) -> 0 | AK102: =SUMIFS(FM!106:106,FM!$21:$21,AK$5) -> 0 | AL102: =SUMIFS(FM!106:106,FM!$21:$21,AL$5) -> 0 | AM102: =SUMIFS(FM!106:106,FM!$21:$21,AM$5) -> 0
D103: =FM!C107 -> Orla Sol Nascente - Etapa 1 | G103: 0.02636117738 | H103: 4.094482729 | J103: =SUMIFS(FM!107:107,FM!$21:$21,J$5) -> -1700.785134 | K103: =SUMIFS(FM!107:107,FM!$21:$21,K$5) -> -2393.697596 | L103: =SUMIFS(FM!107:107,FM!$21:$21,L$5) -> 0 | M103: =SUMIFS(FM!107:107,FM!$21:$21,M$5) -> 0 | N103: =SUMIFS(FM!107:107,FM!$21:$21,N$5) -> 0 | O103: =SUMIFS(FM!107:107,FM!$21:$21,O$5) -> 0 | P103: =SUMIFS(FM!107:107,FM!$21:$21,P$5) -> 0 | Q103: =SUMIFS(FM!107:107,FM!$21:$21,Q$5) -> 0 | R103: =SUMIFS(FM!107:107,FM!$21:$21,R$5) -> 0 | S103: =SUMIFS(FM!107:107,FM!$21:$21,S$5) -> 0 | T103: =SUMIFS(FM!107:107,FM!$21:$21,T$5) -> 0 | U103: =SUMIFS(FM!107:107,FM!$21:$21,U$5) -> 0 | V103: =SUMIFS(FM!107:107,FM!$21:$21,V$5) -> 0 | W103: =SUMIFS(FM!107:107,FM!$21:$21,W$5) -> 0 | X103: =SUMIFS(FM!107:107,FM!$21:$21,X$5) -> 0 | Y103: =SUMIFS(FM!107:107,FM!$21:$21,Y$5) -> 0 | Z103: =SUMIFS(FM!107:107,FM!$21:$21,Z$5) -> 0 | AA103: =SUMIFS(FM!107:107,FM!$21:$21,AA$5) -> 0 | AB103: =SUMIFS(FM!107:107,FM!$21:$21,AB$5) -> 0 | AC103: =SUMIFS(FM!107:107,FM!$21:$21,AC$5) -> 0 | AD103: =SUMIFS(FM!107:107,FM!$21:$21,AD$5) -> 0 | AE103: =SUMIFS(FM!107:107,FM!$21:$21,AE$5) -> 0 | AF103: =SUMIFS(FM!107:107,FM!$21:$21,AF$5) -> 0 | AG103: =SUMIFS(FM!107:107,FM!$21:$21,AG$5) -> 0 | AH103: =SUMIFS(FM!107:107,FM!$21:$21,AH$5) -> 0 | AI103: =SUMIFS(FM!107:107,FM!$21:$21,AI$5) -> 0 | AJ103: =SUMIFS(FM!107:107,FM!$21:$21,AJ$5) -> 0 | AK103: =SUMIFS(FM!107:107,FM!$21:$21,AK$5) -> 0 | AL103: =SUMIFS(FM!107:107,FM!$21:$21,AL$5) -> 0 | AM103: =SUMIFS(FM!107:107,FM!$21:$21,AM$5) -> 0
D104: =FM!C108 -> Orla Sol Nascente - Etapa 2 | G104: 0.05666660671 | H104: =-SUM(J104:AM104)/1000 -> 8.801596346 | J104: =SUMIFS(FM!108:108,FM!$21:$21,J$5) -> -403.4064992 | K104: =SUMIFS(FM!108:108,FM!$21:$21,K$5) -> -7701.396802 | L104: =SUMIFS(FM!108:108,FM!$21:$21,L$5) -> -696.793044 | M104: =SUMIFS(FM!108:108,FM!$21:$21,M$5) -> 0 | N104: =SUMIFS(FM!108:108,FM!$21:$21,N$5) -> 0 | O104: =SUMIFS(FM!108:108,FM!$21:$21,O$5) -> 0 | P104: =SUMIFS(FM!108:108,FM!$21:$21,P$5) -> 0 | Q104: =SUMIFS(FM!108:108,FM!$21:$21,Q$5) -> 0 | R104: =SUMIFS(FM!108:108,FM!$21:$21,R$5) -> 0 | S104: =SUMIFS(FM!108:108,FM!$21:$21,S$5) -> 0 | T104: =SUMIFS(FM!108:108,FM!$21:$21,T$5) -> 0 | U104: =SUMIFS(FM!108:108,FM!$21:$21,U$5) -> 0 | V104: =SUMIFS(FM!108:108,FM!$21:$21,V$5) -> 0 | W104: =SUMIFS(FM!108:108,FM!$21:$21,W$5) -> 0 | X104: =SUMIFS(FM!108:108,FM!$21:$21,X$5) -> 0 | Y104: =SUMIFS(FM!108:108,FM!$21:$21,Y$5) -> 0 | Z104: =SUMIFS(FM!108:108,FM!$21:$21,Z$5) -> 0 | AA104: =SUMIFS(FM!108:108,FM!$21:$21,AA$5) -> 0 | AB104: =SUMIFS(FM!108:108,FM!$21:$21,AB$5) -> 0 | AC104: =SUMIFS(FM!108:108,FM!$21:$21,AC$5) -> 0 | AD104: =SUMIFS(FM!108:108,FM!$21:$21,AD$5) -> 0 | AE104: =SUMIFS(FM!108:108,FM!$21:$21,AE$5) -> 0 | AF104: =SUMIFS(FM!108:108,FM!$21:$21,AF$5) -> 0 | AG104: =SUMIFS(FM!108:108,FM!$21:$21,AG$5) -> 0 | AH104: =SUMIFS(FM!108:108,FM!$21:$21,AH$5) -> 0 | AI104: =SUMIFS(FM!108:108,FM!$21:$21,AI$5) -> 0 | AJ104: =SUMIFS(FM!108:108,FM!$21:$21,AJ$5) -> 0 | AK104: =SUMIFS(FM!108:108,FM!$21:$21,AK$5) -> 0 | AL104: =SUMIFS(FM!108:108,FM!$21:$21,AL$5) -> 0 | AM104: =SUMIFS(FM!108:108,FM!$21:$21,AM$5) -> 0
D105: =FM!C109 -> Orla Sol Nascente - Etapa 3 | G105: 0.1147774355 | H105: 17.8275128 | J105: =SUMIFS(FM!109:109,FM!$21:$21,J$5) -> -817.0943367 | K105: =SUMIFS(FM!109:109,FM!$21:$21,K$5) -> -15599.0737 | L105: =SUMIFS(FM!109:109,FM!$21:$21,L$5) -> -1411.344763 | M105: =SUMIFS(FM!109:109,FM!$21:$21,M$5) -> 0 | N105: =SUMIFS(FM!109:109,FM!$21:$21,N$5) -> 0 | O105: =SUMIFS(FM!109:109,FM!$21:$21,O$5) -> 0 | P105: =SUMIFS(FM!109:109,FM!$21:$21,P$5) -> 0 | Q105: =SUMIFS(FM!109:109,FM!$21:$21,Q$5) -> 0 | R105: =SUMIFS(FM!109:109,FM!$21:$21,R$5) -> 0 | S105: =SUMIFS(FM!109:109,FM!$21:$21,S$5) -> 0 | T105: =SUMIFS(FM!109:109,FM!$21:$21,T$5) -> 0 | U105: =SUMIFS(FM!109:109,FM!$21:$21,U$5) -> 0 | V105: =SUMIFS(FM!109:109,FM!$21:$21,V$5) -> 0 | W105: =SUMIFS(FM!109:109,FM!$21:$21,W$5) -> 0 | X105: =SUMIFS(FM!109:109,FM!$21:$21,X$5) -> 0 | Y105: =SUMIFS(FM!109:109,FM!$21:$21,Y$5) -> 0 | Z105: =SUMIFS(FM!109:109,FM!$21:$21,Z$5) -> 0 | AA105: =SUMIFS(FM!109:109,FM!$21:$21,AA$5) -> 0 | AB105: =SUMIFS(FM!109:109,FM!$21:$21,AB$5) -> 0 | AC105: =SUMIFS(FM!109:109,FM!$21:$21,AC$5) -> 0 | AD105: =SUMIFS(FM!109:109,FM!$21:$21,AD$5) -> 0 | AE105: =SUMIFS(FM!109:109,FM!$21:$21,AE$5) -> 0 | AF105: =SUMIFS(FM!109:109,FM!$21:$21,AF$5) -> 0 | AG105: =SUMIFS(FM!109:109,FM!$21:$21,AG$5) -> 0 | AH105: =SUMIFS(FM!109:109,FM!$21:$21,AH$5) -> 0 | AI105: =SUMIFS(FM!109:109,FM!$21:$21,AI$5) -> 0 | AJ105: =SUMIFS(FM!109:109,FM!$21:$21,AJ$5) -> 0 | AK105: =SUMIFS(FM!109:109,FM!$21:$21,AK$5) -> 0 | AL105: =SUMIFS(FM!109:109,FM!$21:$21,AL$5) -> 0 | AM105: =SUMIFS(FM!109:109,FM!$21:$21,AM$5) -> 0
D106: =FM!C110 -> Av Guararapes - Etapa 1 | G106: 0.04427299374 | H106: 6.87658998 | J106: =SUMIFS(FM!110:110,FM!$21:$21,J$5) -> -5787.796567 | K106: =SUMIFS(FM!110:110,FM!$21:$21,K$5) -> -1088.793414 | L106: =SUMIFS(FM!110:110,FM!$21:$21,L$5) -> 0 | M106: =SUMIFS(FM!110:110,FM!$21:$21,M$5) -> 0 | N106: =SUMIFS(FM!110:110,FM!$21:$21,N$5) -> 0 | O106: =SUMIFS(FM!110:110,FM!$21:$21,O$5) -> 0 | P106: =SUMIFS(FM!110:110,FM!$21:$21,P$5) -> 0 | Q106: =SUMIFS(FM!110:110,FM!$21:$21,Q$5) -> 0 | R106: =SUMIFS(FM!110:110,FM!$21:$21,R$5) -> 0 | S106: =SUMIFS(FM!110:110,FM!$21:$21,S$5) -> 0 | T106: =SUMIFS(FM!110:110,FM!$21:$21,T$5) -> 0 | U106: =SUMIFS(FM!110:110,FM!$21:$21,U$5) -> 0 | V106: =SUMIFS(FM!110:110,FM!$21:$21,V$5) -> 0 | W106: =SUMIFS(FM!110:110,FM!$21:$21,W$5) -> 0 | X106: =SUMIFS(FM!110:110,FM!$21:$21,X$5) -> 0 | Y106: =SUMIFS(FM!110:110,FM!$21:$21,Y$5) -> 0 | Z106: =SUMIFS(FM!110:110,FM!$21:$21,Z$5) -> 0 | AA106: =SUMIFS(FM!110:110,FM!$21:$21,AA$5) -> 0 | AB106: =SUMIFS(FM!110:110,FM!$21:$21,AB$5) -> 0 | AC106: =SUMIFS(FM!110:110,FM!$21:$21,AC$5) -> 0 | AD106: =SUMIFS(FM!110:110,FM!$21:$21,AD$5) -> 0 | AE106: =SUMIFS(FM!110:110,FM!$21:$21,AE$5) -> 0 | AF106: =SUMIFS(FM!110:110,FM!$21:$21,AF$5) -> 0 | AG106: =SUMIFS(FM!110:110,FM!$21:$21,AG$5) -> 0 | AH106: =SUMIFS(FM!110:110,FM!$21:$21,AH$5) -> 0 | AI106: =SUMIFS(FM!110:110,FM!$21:$21,AI$5) -> 0 | AJ106: =SUMIFS(FM!110:110,FM!$21:$21,AJ$5) -> 0 | AK106: =SUMIFS(FM!110:110,FM!$21:$21,AK$5) -> 0 | AL106: =SUMIFS(FM!110:110,FM!$21:$21,AL$5) -> 0 | AM106: =SUMIFS(FM!110:110,FM!$21:$21,AM$5) -> 0
D107: =FM!C111 -> Vias Compartilhadas - Etapa 1 | G107: 0.05018187181 | H107: 7.794371416 | J107: =SUMIFS(FM!111:111,FM!$21:$21,J$5) -> 0 | K107: =SUMIFS(FM!111:111,FM!$21:$21,K$5) -> -334.0444893 | L107: =SUMIFS(FM!111:111,FM!$21:$21,L$5) -> -7460.326927 | M107: =SUMIFS(FM!111:111,FM!$21:$21,M$5) -> 0 | N107: =SUMIFS(FM!111:111,FM!$21:$21,N$5) -> 0 | O107: =SUMIFS(FM!111:111,FM!$21:$21,O$5) -> 0 | P107: =SUMIFS(FM!111:111,FM!$21:$21,P$5) -> 0 | Q107: =SUMIFS(FM!111:111,FM!$21:$21,Q$5) -> 0 | R107: =SUMIFS(FM!111:111,FM!$21:$21,R$5) -> 0 | S107: =SUMIFS(FM!111:111,FM!$21:$21,S$5) -> 0 | T107: =SUMIFS(FM!111:111,FM!$21:$21,T$5) -> 0 | U107: =SUMIFS(FM!111:111,FM!$21:$21,U$5) -> 0 | V107: =SUMIFS(FM!111:111,FM!$21:$21,V$5) -> 0 | W107: =SUMIFS(FM!111:111,FM!$21:$21,W$5) -> 0 | X107: =SUMIFS(FM!111:111,FM!$21:$21,X$5) -> 0 | Y107: =SUMIFS(FM!111:111,FM!$21:$21,Y$5) -> 0 | Z107: =SUMIFS(FM!111:111,FM!$21:$21,Z$5) -> 0 | AA107: =SUMIFS(FM!111:111,FM!$21:$21,AA$5) -> 0 | AB107: =SUMIFS(FM!111:111,FM!$21:$21,AB$5) -> 0 | AC107: =SUMIFS(FM!111:111,FM!$21:$21,AC$5) -> 0 | AD107: =SUMIFS(FM!111:111,FM!$21:$21,AD$5) -> 0 | AE107: =SUMIFS(FM!111:111,FM!$21:$21,AE$5) -> 0 | AF107: =SUMIFS(FM!111:111,FM!$21:$21,AF$5) -> 0 | AG107: =SUMIFS(FM!111:111,FM!$21:$21,AG$5) -> 0 | AH107: =SUMIFS(FM!111:111,FM!$21:$21,AH$5) -> 0 | AI107: =SUMIFS(FM!111:111,FM!$21:$21,AI$5) -> 0 | AJ107: =SUMIFS(FM!111:111,FM!$21:$21,AJ$5) -> 0 | AK107: =SUMIFS(FM!111:111,FM!$21:$21,AK$5) -> 0 | AL107: =SUMIFS(FM!111:111,FM!$21:$21,AL$5) -> 0 | AM107: =SUMIFS(FM!111:111,FM!$21:$21,AM$5) -> 0
D108: =FM!C112 -> Praça da Independência | G108: 0.01720752628 | H108: 2.672715188 | J108: =SUMIFS(FM!112:112,FM!$21:$21,J$5) -> 0 | K108: =SUMIFS(FM!112:112,FM!$21:$21,K$5) -> -1191.585521 | L108: =SUMIFS(FM!112:112,FM!$21:$21,L$5) -> -1481.129667 | M108: =SUMIFS(FM!112:112,FM!$21:$21,M$5) -> 0 | N108: =SUMIFS(FM!112:112,FM!$21:$21,N$5) -> 0 | O108: =SUMIFS(FM!112:112,FM!$21:$21,O$5) -> 0 | P108: =SUMIFS(FM!112:112,FM!$21:$21,P$5) -> 0 | Q108: =SUMIFS(FM!112:112,FM!$21:$21,Q$5) -> 0 | R108: =SUMIFS(FM!112:112,FM!$21:$21,R$5) -> 0 | S108: =SUMIFS(FM!112:112,FM!$21:$21,S$5) -> 0 | T108: =SUMIFS(FM!112:112,FM!$21:$21,T$5) -> 0 | U108: =SUMIFS(FM!112:112,FM!$21:$21,U$5) -> 0 | V108: =SUMIFS(FM!112:112,FM!$21:$21,V$5) -> 0 | W108: =SUMIFS(FM!112:112,FM!$21:$21,W$5) -> 0 | X108: =SUMIFS(FM!112:112,FM!$21:$21,X$5) -> 0 | Y108: =SUMIFS(FM!112:112,FM!$21:$21,Y$5) -> 0 | Z108: =SUMIFS(FM!112:112,FM!$21:$21,Z$5) -> 0 | AA108: =SUMIFS(FM!112:112,FM!$21:$21,AA$5) -> 0 | AB108: =SUMIFS(FM!112:112,FM!$21:$21,AB$5) -> 0 | AC108: =SUMIFS(FM!112:112,FM!$21:$21,AC$5) -> 0 | AD108: =SUMIFS(FM!112:112,FM!$21:$21,AD$5) -> 0 | AE108: =SUMIFS(FM!112:112,FM!$21:$21,AE$5) -> 0 | AF108: =SUMIFS(FM!112:112,FM!$21:$21,AF$5) -> 0 | AG108: =SUMIFS(FM!112:112,FM!$21:$21,AG$5) -> 0 | AH108: =SUMIFS(FM!112:112,FM!$21:$21,AH$5) -> 0 | AI108: =SUMIFS(FM!112:112,FM!$21:$21,AI$5) -> 0 | AJ108: =SUMIFS(FM!112:112,FM!$21:$21,AJ$5) -> 0 | AK108: =SUMIFS(FM!112:112,FM!$21:$21,AK$5) -> 0 | AL108: =SUMIFS(FM!112:112,FM!$21:$21,AL$5) -> 0 | AM108: =SUMIFS(FM!112:112,FM!$21:$21,AM$5) -> 0
D109: =FM!C113 -> Rua 1º de Março | G109: 0.001851492662 | H109: 0.2875783816 | J109: =SUMIFS(FM!113:113,FM!$21:$21,J$5) -> 0 | K109: =SUMIFS(FM!113:113,FM!$21:$21,K$5) -> -242.0451378 | L109: =SUMIFS(FM!113:113,FM!$21:$21,L$5) -> -45.53324375 | M109: =SUMIFS(FM!113:113,FM!$21:$21,M$5) -> 0 | N109: =SUMIFS(FM!113:113,FM!$21:$21,N$5) -> 0 | O109: =SUMIFS(FM!113:113,FM!$21:$21,O$5) -> 0 | P109: =SUMIFS(FM!113:113,FM!$21:$21,P$5) -> 0 | Q109: =SUMIFS(FM!113:113,FM!$21:$21,Q$5) -> 0 | R109: =SUMIFS(FM!113:113,FM!$21:$21,R$5) -> 0 | S109: =SUMIFS(FM!113:113,FM!$21:$21,S$5) -> 0 | T109: =SUMIFS(FM!113:113,FM!$21:$21,T$5) -> 0 | U109: =SUMIFS(FM!113:113,FM!$21:$21,U$5) -> 0 | V109: =SUMIFS(FM!113:113,FM!$21:$21,V$5) -> 0 | W109: =SUMIFS(FM!113:113,FM!$21:$21,W$5) -> 0 | X109: =SUMIFS(FM!113:113,FM!$21:$21,X$5) -> 0 | Y109: =SUMIFS(FM!113:113,FM!$21:$21,Y$5) -> 0 | Z109: =SUMIFS(FM!113:113,FM!$21:$21,Z$5) -> 0 | AA109: =SUMIFS(FM!113:113,FM!$21:$21,AA$5) -> 0 | AB109: =SUMIFS(FM!113:113,FM!$21:$21,AB$5) -> 0 | AC109: =SUMIFS(FM!113:113,FM!$21:$21,AC$5) -> 0 | AD109: =SUMIFS(FM!113:113,FM!$21:$21,AD$5) -> 0 | AE109: =SUMIFS(FM!113:113,FM!$21:$21,AE$5) -> 0 | AF109: =SUMIFS(FM!113:113,FM!$21:$21,AF$5) -> 0 | AG109: =SUMIFS(FM!113:113,FM!$21:$21,AG$5) -> 0 | AH109: =SUMIFS(FM!113:113,FM!$21:$21,AH$5) -> 0 | AI109: =SUMIFS(FM!113:113,FM!$21:$21,AI$5) -> 0 | AJ109: =SUMIFS(FM!113:113,FM!$21:$21,AJ$5) -> 0 | AK109: =SUMIFS(FM!113:113,FM!$21:$21,AK$5) -> 0 | AL109: =SUMIFS(FM!113:113,FM!$21:$21,AL$5) -> 0 | AM109: =SUMIFS(FM!113:113,FM!$21:$21,AM$5) -> 0
D110: =FM!C114 -> Av Guararapes - Etapa 2 | G110: 0.0321377674 | H110: 4.99171686 | J110: =SUMIFS(FM!114:114,FM!$21:$21,J$5) -> 0 | K110: =SUMIFS(FM!114:114,FM!$21:$21,K$5) -> -115.193466 | L110: =SUMIFS(FM!114:114,FM!$21:$21,L$5) -> -2110.280301 | M110: =SUMIFS(FM!114:114,FM!$21:$21,M$5) -> -2766.243093 | N110: =SUMIFS(FM!114:114,FM!$21:$21,N$5) -> 0 | O110: =SUMIFS(FM!114:114,FM!$21:$21,O$5) -> 0 | P110: =SUMIFS(FM!114:114,FM!$21:$21,P$5) -> 0 | Q110: =SUMIFS(FM!114:114,FM!$21:$21,Q$5) -> 0 | R110: =SUMIFS(FM!114:114,FM!$21:$21,R$5) -> 0 | S110: =SUMIFS(FM!114:114,FM!$21:$21,S$5) -> 0 | T110: =SUMIFS(FM!114:114,FM!$21:$21,T$5) -> 0 | U110: =SUMIFS(FM!114:114,FM!$21:$21,U$5) -> 0 | V110: =SUMIFS(FM!114:114,FM!$21:$21,V$5) -> 0 | W110: =SUMIFS(FM!114:114,FM!$21:$21,W$5) -> 0 | X110: =SUMIFS(FM!114:114,FM!$21:$21,X$5) -> 0 | Y110: =SUMIFS(FM!114:114,FM!$21:$21,Y$5) -> 0 | Z110: =SUMIFS(FM!114:114,FM!$21:$21,Z$5) -> 0 | AA110: =SUMIFS(FM!114:114,FM!$21:$21,AA$5) -> 0 | AB110: =SUMIFS(FM!114:114,FM!$21:$21,AB$5) -> 0 | AC110: =SUMIFS(FM!114:114,FM!$21:$21,AC$5) -> 0 | AD110: =SUMIFS(FM!114:114,FM!$21:$21,AD$5) -> 0 | AE110: =SUMIFS(FM!114:114,FM!$21:$21,AE$5) -> 0 | AF110: =SUMIFS(FM!114:114,FM!$21:$21,AF$5) -> 0 | AG110: =SUMIFS(FM!114:114,FM!$21:$21,AG$5) -> 0 | AH110: =SUMIFS(FM!114:114,FM!$21:$21,AH$5) -> 0 | AI110: =SUMIFS(FM!114:114,FM!$21:$21,AI$5) -> 0 | AJ110: =SUMIFS(FM!114:114,FM!$21:$21,AJ$5) -> 0 | AK110: =SUMIFS(FM!114:114,FM!$21:$21,AK$5) -> 0 | AL110: =SUMIFS(FM!114:114,FM!$21:$21,AL$5) -> 0 | AM110: =SUMIFS(FM!114:114,FM!$21:$21,AM$5) -> 0
D111: =FM!C115 -> Praça do Sebo | G111: 0.006592327681 | H111: 1.023936505 | J111: =SUMIFS(FM!115:115,FM!$21:$21,J$5) -> 0 | K111: =SUMIFS(FM!115:115,FM!$21:$21,K$5) -> -23.62930396 | L111: =SUMIFS(FM!115:115,FM!$21:$21,L$5) -> -432.8757212 | M111: =SUMIFS(FM!115:115,FM!$21:$21,M$5) -> -567.4314799 | N111: =SUMIFS(FM!115:115,FM!$21:$21,N$5) -> 0 | O111: =SUMIFS(FM!115:115,FM!$21:$21,O$5) -> 0 | P111: =SUMIFS(FM!115:115,FM!$21:$21,P$5) -> 0 | Q111: =SUMIFS(FM!115:115,FM!$21:$21,Q$5) -> 0 | R111: =SUMIFS(FM!115:115,FM!$21:$21,R$5) -> 0 | S111: =SUMIFS(FM!115:115,FM!$21:$21,S$5) -> 0 | T111: =SUMIFS(FM!115:115,FM!$21:$21,T$5) -> 0 | U111: =SUMIFS(FM!115:115,FM!$21:$21,U$5) -> 0 | V111: =SUMIFS(FM!115:115,FM!$21:$21,V$5) -> 0 | W111: =SUMIFS(FM!115:115,FM!$21:$21,W$5) -> 0 | X111: =SUMIFS(FM!115:115,FM!$21:$21,X$5) -> 0 | Y111: =SUMIFS(FM!115:115,FM!$21:$21,Y$5) -> 0 | Z111: =SUMIFS(FM!115:115,FM!$21:$21,Z$5) -> 0 | AA111: =SUMIFS(FM!115:115,FM!$21:$21,AA$5) -> 0 | AB111: =SUMIFS(FM!115:115,FM!$21:$21,AB$5) -> 0 | AC111: =SUMIFS(FM!115:115,FM!$21:$21,AC$5) -> 0 | AD111: =SUMIFS(FM!115:115,FM!$21:$21,AD$5) -> 0 | AE111: =SUMIFS(FM!115:115,FM!$21:$21,AE$5) -> 0 | AF111: =SUMIFS(FM!115:115,FM!$21:$21,AF$5) -> 0 | AG111: =SUMIFS(FM!115:115,FM!$21:$21,AG$5) -> 0 | AH111: =SUMIFS(FM!115:115,FM!$21:$21,AH$5) -> 0 | AI111: =SUMIFS(FM!115:115,FM!$21:$21,AI$5) -> 0 | AJ111: =SUMIFS(FM!115:115,FM!$21:$21,AJ$5) -> 0 | AK111: =SUMIFS(FM!115:115,FM!$21:$21,AK$5) -> 0 | AL111: =SUMIFS(FM!115:115,FM!$21:$21,AL$5) -> 0 | AM111: =SUMIFS(FM!115:115,FM!$21:$21,AM$5) -> 0
D112: =FM!C116 -> Vias Compartilhadas - Etapa 2 | G112: 0.03600250615 | H112: 5.591997562 | J112: =SUMIFS(FM!116:116,FM!$21:$21,J$5) -> 0 | K112: =SUMIFS(FM!116:116,FM!$21:$21,K$5) -> 0 | L112: =SUMIFS(FM!116:116,FM!$21:$21,L$5) -> -239.6570384 | M112: =SUMIFS(FM!116:116,FM!$21:$21,M$5) -> -5352.340524 | N112: =SUMIFS(FM!116:116,FM!$21:$21,N$5) -> 0 | O112: =SUMIFS(FM!116:116,FM!$21:$21,O$5) -> 0 | P112: =SUMIFS(FM!116:116,FM!$21:$21,P$5) -> 0 | Q112: =SUMIFS(FM!116:116,FM!$21:$21,Q$5) -> 0 | R112: =SUMIFS(FM!116:116,FM!$21:$21,R$5) -> 0 | S112: =SUMIFS(FM!116:116,FM!$21:$21,S$5) -> 0 | T112: =SUMIFS(FM!116:116,FM!$21:$21,T$5) -> 0 | U112: =SUMIFS(FM!116:116,FM!$21:$21,U$5) -> 0 | V112: =SUMIFS(FM!116:116,FM!$21:$21,V$5) -> 0 | W112: =SUMIFS(FM!116:116,FM!$21:$21,W$5) -> 0 | X112: =SUMIFS(FM!116:116,FM!$21:$21,X$5) -> 0 | Y112: =SUMIFS(FM!116:116,FM!$21:$21,Y$5) -> 0 | Z112: =SUMIFS(FM!116:116,FM!$21:$21,Z$5) -> 0 | AA112: =SUMIFS(FM!116:116,FM!$21:$21,AA$5) -> 0 | AB112: =SUMIFS(FM!116:116,FM!$21:$21,AB$5) -> 0 | AC112: =SUMIFS(FM!116:116,FM!$21:$21,AC$5) -> 0 | AD112: =SUMIFS(FM!116:116,FM!$21:$21,AD$5) -> 0 | AE112: =SUMIFS(FM!116:116,FM!$21:$21,AE$5) -> 0 | AF112: =SUMIFS(FM!116:116,FM!$21:$21,AF$5) -> 0 | AG112: =SUMIFS(FM!116:116,FM!$21:$21,AG$5) -> 0 | AH112: =SUMIFS(FM!116:116,FM!$21:$21,AH$5) -> 0 | AI112: =SUMIFS(FM!116:116,FM!$21:$21,AI$5) -> 0 | AJ112: =SUMIFS(FM!116:116,FM!$21:$21,AJ$5) -> 0 | AK112: =SUMIFS(FM!116:116,FM!$21:$21,AK$5) -> 0 | AL112: =SUMIFS(FM!116:116,FM!$21:$21,AL$5) -> 0 | AM112: =SUMIFS(FM!116:116,FM!$21:$21,AM$5) -> 0
D113: =FM!C117 -> Av Dantas Barreto - Etapa 1 | G113: 0.03456156282 | H113: 5.36818671 | J113: =SUMIFS(FM!117:117,FM!$21:$21,J$5) -> 0 | K113: =SUMIFS(FM!117:117,FM!$21:$21,K$5) -> 0 | L113: =SUMIFS(FM!117:117,FM!$21:$21,L$5) -> -230.0651447 | M113: =SUMIFS(FM!117:117,FM!$21:$21,M$5) -> -4713.140117 | N113: =SUMIFS(FM!117:117,FM!$21:$21,N$5) -> -424.9814479 | O113: =SUMIFS(FM!117:117,FM!$21:$21,O$5) -> 0 | P113: =SUMIFS(FM!117:117,FM!$21:$21,P$5) -> 0 | Q113: =SUMIFS(FM!117:117,FM!$21:$21,Q$5) -> 0 | R113: =SUMIFS(FM!117:117,FM!$21:$21,R$5) -> 0 | S113: =SUMIFS(FM!117:117,FM!$21:$21,S$5) -> 0 | T113: =SUMIFS(FM!117:117,FM!$21:$21,T$5) -> 0 | U113: =SUMIFS(FM!117:117,FM!$21:$21,U$5) -> 0 | V113: =SUMIFS(FM!117:117,FM!$21:$21,V$5) -> 0 | W113: =SUMIFS(FM!117:117,FM!$21:$21,W$5) -> 0 | X113: =SUMIFS(FM!117:117,FM!$21:$21,X$5) -> 0 | Y113: =SUMIFS(FM!117:117,FM!$21:$21,Y$5) -> 0 | Z113: =SUMIFS(FM!117:117,FM!$21:$21,Z$5) -> 0 | AA113: =SUMIFS(FM!117:117,FM!$21:$21,AA$5) -> 0 | AB113: =SUMIFS(FM!117:117,FM!$21:$21,AB$5) -> 0 | AC113: =SUMIFS(FM!117:117,FM!$21:$21,AC$5) -> 0 | AD113: =SUMIFS(FM!117:117,FM!$21:$21,AD$5) -> 0 | AE113: =SUMIFS(FM!117:117,FM!$21:$21,AE$5) -> 0 | AF113: =SUMIFS(FM!117:117,FM!$21:$21,AF$5) -> 0 | AG113: =SUMIFS(FM!117:117,FM!$21:$21,AG$5) -> 0 | AH113: =SUMIFS(FM!117:117,FM!$21:$21,AH$5) -> 0 | AI113: =SUMIFS(FM!117:117,FM!$21:$21,AI$5) -> 0 | AJ113: =SUMIFS(FM!117:117,FM!$21:$21,AJ$5) -> 0 | AK113: =SUMIFS(FM!117:117,FM!$21:$21,AK$5) -> 0 | AL113: =SUMIFS(FM!117:117,FM!$21:$21,AL$5) -> 0 | AM113: =SUMIFS(FM!117:117,FM!$21:$21,AM$5) -> 0
D114: =FM!C118 -> Av Dantas Barreto - Etapa 2 | G114: 0.0287702202 | H114: 4.468661169 | J114: =SUMIFS(FM!118:118,FM!$21:$21,J$5) -> 0 | K114: =SUMIFS(FM!118:118,FM!$21:$21,K$5) -> 0 | L114: =SUMIFS(FM!118:118,FM!$21:$21,L$5) -> -103.1229501 | M114: =SUMIFS(FM!118:118,FM!$21:$21,M$5) -> -1889.155155 | N114: =SUMIFS(FM!118:118,FM!$21:$21,N$5) -> -2476.383065 | O114: =SUMIFS(FM!118:118,FM!$21:$21,O$5) -> 0 | P114: =SUMIFS(FM!118:118,FM!$21:$21,P$5) -> 0 | Q114: =SUMIFS(FM!118:118,FM!$21:$21,Q$5) -> 0 | R114: =SUMIFS(FM!118:118,FM!$21:$21,R$5) -> 0 | S114: =SUMIFS(FM!118:118,FM!$21:$21,S$5) -> 0 | T114: =SUMIFS(FM!118:118,FM!$21:$21,T$5) -> 0 | U114: =SUMIFS(FM!118:118,FM!$21:$21,U$5) -> 0 | V114: =SUMIFS(FM!118:118,FM!$21:$21,V$5) -> 0 | W114: =SUMIFS(FM!118:118,FM!$21:$21,W$5) -> 0 | X114: =SUMIFS(FM!118:118,FM!$21:$21,X$5) -> 0 | Y114: =SUMIFS(FM!118:118,FM!$21:$21,Y$5) -> 0 | Z114: =SUMIFS(FM!118:118,FM!$21:$21,Z$5) -> 0 | AA114: =SUMIFS(FM!118:118,FM!$21:$21,AA$5) -> 0 | AB114: =SUMIFS(FM!118:118,FM!$21:$21,AB$5) -> 0 | AC114: =SUMIFS(FM!118:118,FM!$21:$21,AC$5) -> 0 | AD114: =SUMIFS(FM!118:118,FM!$21:$21,AD$5) -> 0 | AE114: =SUMIFS(FM!118:118,FM!$21:$21,AE$5) -> 0 | AF114: =SUMIFS(FM!118:118,FM!$21:$21,AF$5) -> 0 | AG114: =SUMIFS(FM!118:118,FM!$21:$21,AG$5) -> 0 | AH114: =SUMIFS(FM!118:118,FM!$21:$21,AH$5) -> 0 | AI114: =SUMIFS(FM!118:118,FM!$21:$21,AI$5) -> 0 | AJ114: =SUMIFS(FM!118:118,FM!$21:$21,AJ$5) -> 0 | AK114: =SUMIFS(FM!118:118,FM!$21:$21,AK$5) -> 0 | AL114: =SUMIFS(FM!118:118,FM!$21:$21,AL$5) -> 0 | AM114: =SUMIFS(FM!118:118,FM!$21:$21,AM$5) -> 0
D115: =FM!C119 -> Av Dantas Barreto - Etapa 3 | G115: 0.2422602571 | H115: 37.62845735 | J115: =SUMIFS(FM!119:119,FM!$21:$21,J$5) -> 0 | K115: =SUMIFS(FM!119:119,FM!$21:$21,K$5) -> 0 | L115: =SUMIFS(FM!119:119,FM!$21:$21,L$5) -> 0 | M115: =SUMIFS(FM!119:119,FM!$21:$21,M$5) -> 0 | N115: =SUMIFS(FM!119:119,FM!$21:$21,N$5) -> -1526.22799 | O115: =SUMIFS(FM!119:119,FM!$21:$21,O$5) -> -33105.27258 | P115: =SUMIFS(FM!119:119,FM!$21:$21,P$5) -> -2996.95678 | Q115: =SUMIFS(FM!119:119,FM!$21:$21,Q$5) -> 0 | R115: =SUMIFS(FM!119:119,FM!$21:$21,R$5) -> 0 | S115: =SUMIFS(FM!119:119,FM!$21:$21,S$5) -> 0 | T115: =SUMIFS(FM!119:119,FM!$21:$21,T$5) -> 0 | U115: =SUMIFS(FM!119:119,FM!$21:$21,U$5) -> 0 | V115: =SUMIFS(FM!119:119,FM!$21:$21,V$5) -> 0 | W115: =SUMIFS(FM!119:119,FM!$21:$21,W$5) -> 0 | X115: =SUMIFS(FM!119:119,FM!$21:$21,X$5) -> 0 | Y115: =SUMIFS(FM!119:119,FM!$21:$21,Y$5) -> 0 | Z115: =SUMIFS(FM!119:119,FM!$21:$21,Z$5) -> 0 | AA115: =SUMIFS(FM!119:119,FM!$21:$21,AA$5) -> 0 | AB115: =SUMIFS(FM!119:119,FM!$21:$21,AB$5) -> 0 | AC115: =SUMIFS(FM!119:119,FM!$21:$21,AC$5) -> 0 | AD115: =SUMIFS(FM!119:119,FM!$21:$21,AD$5) -> 0 | AE115: =SUMIFS(FM!119:119,FM!$21:$21,AE$5) -> 0 | AF115: =SUMIFS(FM!119:119,FM!$21:$21,AF$5) -> 0 | AG115: =SUMIFS(FM!119:119,FM!$21:$21,AG$5) -> 0 | AH115: =SUMIFS(FM!119:119,FM!$21:$21,AH$5) -> 0 | AI115: =SUMIFS(FM!119:119,FM!$21:$21,AI$5) -> 0 | AJ115: =SUMIFS(FM!119:119,FM!$21:$21,AJ$5) -> 0 | AK115: =SUMIFS(FM!119:119,FM!$21:$21,AK$5) -> 0 | AL115: =SUMIFS(FM!119:119,FM!$21:$21,AL$5) -> 0 | AM115: =SUMIFS(FM!119:119,FM!$21:$21,AM$5) -> 0
D116: =FM!C120 -> Orla Sol Poente - Etapa 1 | G116: 0.04707947672 | H116: 7.3124998 | J116: =SUMIFS(FM!120:120,FM!$21:$21,J$5) -> 0 | K116: =SUMIFS(FM!120:120,FM!$21:$21,K$5) -> 0 | L116: =SUMIFS(FM!120:120,FM!$21:$21,L$5) -> -313.3928486 | M116: =SUMIFS(FM!120:120,FM!$21:$21,M$5) -> -6420.200717 | N116: =SUMIFS(FM!120:120,FM!$21:$21,N$5) -> -578.9062342 | O116: =SUMIFS(FM!120:120,FM!$21:$21,O$5) -> 0 | P116: =SUMIFS(FM!120:120,FM!$21:$21,P$5) -> 0 | Q116: =SUMIFS(FM!120:120,FM!$21:$21,Q$5) -> 0 | R116: =SUMIFS(FM!120:120,FM!$21:$21,R$5) -> 0 | S116: =SUMIFS(FM!120:120,FM!$21:$21,S$5) -> 0 | T116: =SUMIFS(FM!120:120,FM!$21:$21,T$5) -> 0 | U116: =SUMIFS(FM!120:120,FM!$21:$21,U$5) -> 0 | V116: =SUMIFS(FM!120:120,FM!$21:$21,V$5) -> 0 | W116: =SUMIFS(FM!120:120,FM!$21:$21,W$5) -> 0 | X116: =SUMIFS(FM!120:120,FM!$21:$21,X$5) -> 0 | Y116: =SUMIFS(FM!120:120,FM!$21:$21,Y$5) -> 0 | Z116: =SUMIFS(FM!120:120,FM!$21:$21,Z$5) -> 0 | AA116: =SUMIFS(FM!120:120,FM!$21:$21,AA$5) -> 0 | AB116: =SUMIFS(FM!120:120,FM!$21:$21,AB$5) -> 0 | AC116: =SUMIFS(FM!120:120,FM!$21:$21,AC$5) -> 0 | AD116: =SUMIFS(FM!120:120,FM!$21:$21,AD$5) -> 0 | AE116: =SUMIFS(FM!120:120,FM!$21:$21,AE$5) -> 0 | AF116: =SUMIFS(FM!120:120,FM!$21:$21,AF$5) -> 0 | AG116: =SUMIFS(FM!120:120,FM!$21:$21,AG$5) -> 0 | AH116: =SUMIFS(FM!120:120,FM!$21:$21,AH$5) -> 0 | AI116: =SUMIFS(FM!120:120,FM!$21:$21,AI$5) -> 0 | AJ116: =SUMIFS(FM!120:120,FM!$21:$21,AJ$5) -> 0 | AK116: =SUMIFS(FM!120:120,FM!$21:$21,AK$5) -> 0 | AL116: =SUMIFS(FM!120:120,FM!$21:$21,AL$5) -> 0 | AM116: =SUMIFS(FM!120:120,FM!$21:$21,AM$5) -> 0
D117: =FM!C121 -> Orla Sol Poente - Etapa 2 | G117: 0.05815814158 | H117: 9.0332652 | J117: =SUMIFS(FM!121:121,FM!$21:$21,J$5) -> 0 | K117: =SUMIFS(FM!121:121,FM!$21:$21,K$5) -> 0 | L117: =SUMIFS(FM!121:121,FM!$21:$21,L$5) -> 0 | M117: =SUMIFS(FM!121:121,FM!$21:$21,M$5) -> -414.024655 | N117: =SUMIFS(FM!121:121,FM!$21:$21,N$5) -> -7904.10705 | O117: =SUMIFS(FM!121:121,FM!$21:$21,O$5) -> -715.133495 | P117: =SUMIFS(FM!121:121,FM!$21:$21,P$5) -> 0 | Q117: =SUMIFS(FM!121:121,FM!$21:$21,Q$5) -> 0 | R117: =SUMIFS(FM!121:121,FM!$21:$21,R$5) -> 0 | S117: =SUMIFS(FM!121:121,FM!$21:$21,S$5) -> 0 | T117: =SUMIFS(FM!121:121,FM!$21:$21,T$5) -> 0 | U117: =SUMIFS(FM!121:121,FM!$21:$21,U$5) -> 0 | V117: =SUMIFS(FM!121:121,FM!$21:$21,V$5) -> 0 | W117: =SUMIFS(FM!121:121,FM!$21:$21,W$5) -> 0 | X117: =SUMIFS(FM!121:121,FM!$21:$21,X$5) -> 0 | Y117: =SUMIFS(FM!121:121,FM!$21:$21,Y$5) -> 0 | Z117: =SUMIFS(FM!121:121,FM!$21:$21,Z$5) -> 0 | AA117: =SUMIFS(FM!121:121,FM!$21:$21,AA$5) -> 0 | AB117: =SUMIFS(FM!121:121,FM!$21:$21,AB$5) -> 0 | AC117: =SUMIFS(FM!121:121,FM!$21:$21,AC$5) -> 0 | AD117: =SUMIFS(FM!121:121,FM!$21:$21,AD$5) -> 0 | AE117: =SUMIFS(FM!121:121,FM!$21:$21,AE$5) -> 0 | AF117: =SUMIFS(FM!121:121,FM!$21:$21,AF$5) -> 0 | AG117: =SUMIFS(FM!121:121,FM!$21:$21,AG$5) -> 0 | AH117: =SUMIFS(FM!121:121,FM!$21:$21,AH$5) -> 0 | AI117: =SUMIFS(FM!121:121,FM!$21:$21,AI$5) -> 0 | AJ117: =SUMIFS(FM!121:121,FM!$21:$21,AJ$5) -> 0 | AK117: =SUMIFS(FM!121:121,FM!$21:$21,AK$5) -> 0 | AL117: =SUMIFS(FM!121:121,FM!$21:$21,AL$5) -> 0 | AM117: =SUMIFS(FM!121:121,FM!$21:$21,AM$5) -> 0
D118: =FM!C122 -> Vias Compartilhadas - Etapa 3 e Demais Vias | G118: 0.07278406071 | H118: 11.30499883 | J118: =SUMIFS(FM!122:122,FM!$21:$21,J$5) -> 0 | K118: =SUMIFS(FM!122:122,FM!$21:$21,K$5) -> 0 | L118: =SUMIFS(FM!122:122,FM!$21:$21,L$5) -> 0 | M118: =SUMIFS(FM!122:122,FM!$21:$21,M$5) -> 0 | N118: =SUMIFS(FM!122:122,FM!$21:$21,N$5) -> -9515.040685 | O118: =SUMIFS(FM!122:122,FM!$21:$21,O$5) -> -1789.958149 | P118: =SUMIFS(FM!122:122,FM!$21:$21,P$5) -> 0 | Q118: =SUMIFS(FM!122:122,FM!$21:$21,Q$5) -> 0 | R118: =SUMIFS(FM!122:122,FM!$21:$21,R$5) -> 0 | S118: =SUMIFS(FM!122:122,FM!$21:$21,S$5) -> 0 | T118: =SUMIFS(FM!122:122,FM!$21:$21,T$5) -> 0 | U118: =SUMIFS(FM!122:122,FM!$21:$21,U$5) -> 0 | V118: =SUMIFS(FM!122:122,FM!$21:$21,V$5) -> 0 | W118: =SUMIFS(FM!122:122,FM!$21:$21,W$5) -> 0 | X118: =SUMIFS(FM!122:122,FM!$21:$21,X$5) -> 0 | Y118: =SUMIFS(FM!122:122,FM!$21:$21,Y$5) -> 0 | Z118: =SUMIFS(FM!122:122,FM!$21:$21,Z$5) -> 0 | AA118: =SUMIFS(FM!122:122,FM!$21:$21,AA$5) -> 0 | AB118: =SUMIFS(FM!122:122,FM!$21:$21,AB$5) -> 0 | AC118: =SUMIFS(FM!122:122,FM!$21:$21,AC$5) -> 0 | AD118: =SUMIFS(FM!122:122,FM!$21:$21,AD$5) -> 0 | AE118: =SUMIFS(FM!122:122,FM!$21:$21,AE$5) -> 0 | AF118: =SUMIFS(FM!122:122,FM!$21:$21,AF$5) -> 0 | AG118: =SUMIFS(FM!122:122,FM!$21:$21,AG$5) -> 0 | AH118: =SUMIFS(FM!122:122,FM!$21:$21,AH$5) -> 0 | AI118: =SUMIFS(FM!122:122,FM!$21:$21,AI$5) -> 0 | AJ118: =SUMIFS(FM!122:122,FM!$21:$21,AJ$5) -> 0 | AK118: =SUMIFS(FM!122:122,FM!$21:$21,AK$5) -> 0 | AL118: =SUMIFS(FM!122:122,FM!$21:$21,AL$5) -> 0 | AM118: =SUMIFS(FM!122:122,FM!$21:$21,AM$5) -> 0
D119: =FM!C123 -> Despesas Pré-Operacionais | G119: 0.05125338257 | H119: 7.960801094 | J119: =SUMIFS(FM!123:123,FM!$21:$21,J$5) -> -7960.801094 | K119: =SUMIFS(FM!123:123,FM!$21:$21,K$5) -> 0 | L119: =SUMIFS(FM!123:123,FM!$21:$21,L$5) -> 0 | M119: =SUMIFS(FM!123:123,FM!$21:$21,M$5) -> 0 | N119: =SUMIFS(FM!123:123,FM!$21:$21,N$5) -> 0 | O119: =SUMIFS(FM!123:123,FM!$21:$21,O$5) -> 0 | P119: =SUMIFS(FM!123:123,FM!$21:$21,P$5) -> 0 | Q119: =SUMIFS(FM!123:123,FM!$21:$21,Q$5) -> 0 | R119: =SUMIFS(FM!123:123,FM!$21:$21,R$5) -> 0 | S119: =SUMIFS(FM!123:123,FM!$21:$21,S$5) -> 0 | T119: =SUMIFS(FM!123:123,FM!$21:$21,T$5) -> 0 | U119: =SUMIFS(FM!123:123,FM!$21:$21,U$5) -> 0 | V119: =SUMIFS(FM!123:123,FM!$21:$21,V$5) -> 0 | W119: =SUMIFS(FM!123:123,FM!$21:$21,W$5) -> 0 | X119: =SUMIFS(FM!123:123,FM!$21:$21,X$5) -> 0 | Y119: =SUMIFS(FM!123:123,FM!$21:$21,Y$5) -> 0 | Z119: =SUMIFS(FM!123:123,FM!$21:$21,Z$5) -> 0 | AA119: =SUMIFS(FM!123:123,FM!$21:$21,AA$5) -> 0 | AB119: =SUMIFS(FM!123:123,FM!$21:$21,AB$5) -> 0 | AC119: =SUMIFS(FM!123:123,FM!$21:$21,AC$5) -> 0 | AD119: =SUMIFS(FM!123:123,FM!$21:$21,AD$5) -> 0 | AE119: =SUMIFS(FM!123:123,FM!$21:$21,AE$5) -> 0 | AF119: =SUMIFS(FM!123:123,FM!$21:$21,AF$5) -> 0 | AG119: =SUMIFS(FM!123:123,FM!$21:$21,AG$5) -> 0 | AH119: =SUMIFS(FM!123:123,FM!$21:$21,AH$5) -> 0 | AI119: =SUMIFS(FM!123:123,FM!$21:$21,AI$5) -> 0 | AJ119: =SUMIFS(FM!123:123,FM!$21:$21,AJ$5) -> 0 | AK119: =SUMIFS(FM!123:123,FM!$21:$21,AK$5) -> 0 | AL119: =SUMIFS(FM!123:123,FM!$21:$21,AL$5) -> 0 | AM119: =SUMIFS(FM!123:123,FM!$21:$21,AM$5) -> 0
D120: =FM!C124 -> Ativação do opex | H120: 134.3418505 | J120: =SUMIFS(FM!124:124,FM!$21:$21,J$5) -> -124.6666667 | K120: =SUMIFS(FM!124:124,FM!$21:$21,K$5) -> -267.328612 | L120: =SUMIFS(FM!124:124,FM!$21:$21,L$5) -> -1441.545988 | M120: =SUMIFS(FM!124:124,FM!$21:$21,M$5) -> -2394.05811 | N120: =SUMIFS(FM!124:124,FM!$21:$21,N$5) -> -3158.763977 | O120: =SUMIFS(FM!124:124,FM!$21:$21,O$5) -> -4481.491204 | P120: =SUMIFS(FM!124:124,FM!$21:$21,P$5) -> -5293.026202 | Q120: =SUMIFS(FM!124:124,FM!$21:$21,Q$5) -> -5286.359535 | R120: =SUMIFS(FM!124:124,FM!$21:$21,R$5) -> -5286.359535 | S120: =SUMIFS(FM!124:124,FM!$21:$21,S$5) -> -5286.359535 | T120: =SUMIFS(FM!124:124,FM!$21:$21,T$5) -> -5286.359535 | U120: =SUMIFS(FM!124:124,FM!$21:$21,U$5) -> -5286.359535 | V120: =SUMIFS(FM!124:124,FM!$21:$21,V$5) -> -5286.359535 | W120: =SUMIFS(FM!124:124,FM!$21:$21,W$5) -> -5286.359535 | X120: =SUMIFS(FM!124:124,FM!$21:$21,X$5) -> -5286.359535 | Y120: =SUMIFS(FM!124:124,FM!$21:$21,Y$5) -> -5286.359535 | Z120: =SUMIFS(FM!124:124,FM!$21:$21,Z$5) -> -5286.359535 | AA120: =SUMIFS(FM!124:124,FM!$21:$21,AA$5) -> -5286.359535 | AB120: =SUMIFS(FM!124:124,FM!$21:$21,AB$5) -> -5286.359535 | AC120: =SUMIFS(FM!124:124,FM!$21:$21,AC$5) -> -5286.359535 | AD120: =SUMIFS(FM!124:124,FM!$21:$21,AD$5) -> -5286.359535 | AE120: =SUMIFS(FM!124:124,FM!$21:$21,AE$5) -> -5286.359535 | AF120: =SUMIFS(FM!124:124,FM!$21:$21,AF$5) -> -5286.359535 | AG120: =SUMIFS(FM!124:124,FM!$21:$21,AG$5) -> -5286.359535 | AH120: =SUMIFS(FM!124:124,FM!$21:$21,AH$5) -> -5286.359535 | AI120: =SUMIFS(FM!124:124,FM!$21:$21,AI$5) -> -5286.359535 | AJ120: =SUMIFS(FM!124:124,FM!$21:$21,AJ$5) -> -5286.359535 | AK120: =SUMIFS(FM!124:124,FM!$21:$21,AK$5) -> -5286.359535 | AL120: =SUMIFS(FM!124:124,FM!$21:$21,AL$5) -> -5286.359535 | AM120: =SUMIFS(FM!124:124,FM!$21:$21,AM$5) -> -881.0599225
D121: =FM!C125 -> Fluxo de Caixa de Investimentos | F121: =NPV(Dashboard!$E$9,J121:AM121) -> -134673.8286 | H121: =SUM(J121:AM121) -> -289664.3033 | J121: =SUM(J100:J120) -> -20624.31416 | K121: -34740.84841 | L121: -18635.32829 | M121: -24516.59385 | N121: -25584.41045 | O121: -40091.85542 | P121: -8289.982982 | Q121: -5286.359535 | R121: -5286.359535 | S121: -5286.359535 | T121: -5286.359535 | U121: -5286.359535 | V121: -5286.359535 | W121: -5286.359535 | X121: -5286.359535 | Y121: -5286.359535 | Z121: -5286.359535 | AA121: -5286.359535 | AB121: -5286.359535 | AC121: -5286.359535 | AD121: -5286.359535 | AE121: -5286.359535 | AF121: -5286.359535 | AG121: -5286.359535 | AH121: -5286.359535 | AI121: -5286.359535 | AJ121: -5286.359535 | AK121: -5286.359535 | AL121: -5286.359535 | AM121: -881.0599225
D123: =FM!C127 -> Fluxo do Projeto | F123: =NPV(Dashboard!$E$9,J123:AM123) -> -3853.516229 | G123: =IRR(J123:AM123) -> 0.1078999652 | H123: =SUM(J123:AM123) -> 205321.1071 | J123: =J121+J99 -> -23983.07512 | K123: -23976.18308 | L123: 1476.140388 | M123: -9544.620837 | N123: -2751.943908 | O123: -21190.04431 | P123: 28653.34589 | Q123: 10900.29523 | R123: 11153.02925 | S123: 11150.09961 | T123: 11152.97651 | U123: 11146.815 | V123: 11145.25473 | W123: 11143.78287 | X123: 11147.06844 | Y123: 11140.7602 | Z123: 11139.29372 | AA123: 11137.79874 | AB123: 11133.9927 | AC123: 11123.83879 | AD123: 11123.83879 | AE123: 11123.83879 | AF123: 11128.60664 | AG123: 11123.83879 | AH123: 11123.83879 | AI123: 11123.83879 | AJ123: 11128.60664 | AK123: 11123.83879 | AL123: 11123.83879 | AM123: 11898.39744
D125: =FM!C129 -> Desembolsos | H125: =SUM(J125:AM125) -> 49000 | J125: =SUMIFS(FM!129:129,FM!$21:$21,J$5) -> 0 | K125: =SUMIFS(FM!129:129,FM!$21:$21,K$5) -> 0 | L125: =SUMIFS(FM!129:129,FM!$21:$21,L$5) -> 0 | M125: =SUMIFS(FM!129:129,FM!$21:$21,M$5) -> 49000 | N125: =SUMIFS(FM!129:129,FM!$21:$21,N$5) -> 0 | O125: =SUMIFS(FM!129:129,FM!$21:$21,O$5) -> 0 | P125: =SUMIFS(FM!129:129,FM!$21:$21,P$5) -> 0 | Q125: =SUMIFS(FM!129:129,FM!$21:$21,Q$5) -> 0 | R125: =SUMIFS(FM!129:129,FM!$21:$21,R$5) -> 0 | S125: =SUMIFS(FM!129:129,FM!$21:$21,S$5) -> 0 | T125: =SUMIFS(FM!129:129,FM!$21:$21,T$5) -> 0 | U125: =SUMIFS(FM!129:129,FM!$21:$21,U$5) -> 0 | V125: =SUMIFS(FM!129:129,FM!$21:$21,V$5) -> 0 | W125: =SUMIFS(FM!129:129,FM!$21:$21,W$5) -> 0 | X125: =SUMIFS(FM!129:129,FM!$21:$21,X$5) -> 0 | Y125: =SUMIFS(FM!129:129,FM!$21:$21,Y$5) -> 0 | Z125: =SUMIFS(FM!129:129,FM!$21:$21,Z$5) -> 0 | AA125: =SUMIFS(FM!129:129,FM!$21:$21,AA$5) -> 0 | AB125: =SUMIFS(FM!129:129,FM!$21:$21,AB$5) -> 0 | AC125: =SUMIFS(FM!129:129,FM!$21:$21,AC$5) -> 0 | AD125: =SUMIFS(FM!129:129,FM!$21:$21,AD$5) -> 0 | AE125: =SUMIFS(FM!129:129,FM!$21:$21,AE$5) -> 0 | AF125: =SUMIFS(FM!129:129,FM!$21:$21,AF$5) -> 0 | AG125: =SUMIFS(FM!129:129,FM!$21:$21,AG$5) -> 0 | AH125: =SUMIFS(FM!129:129,FM!$21:$21,AH$5) -> 0 | AI125: =SUMIFS(FM!129:129,FM!$21:$21,AI$5) -> 0 | AJ125: =SUMIFS(FM!129:129,FM!$21:$21,AJ$5) -> 0 | AK125: =SUMIFS(FM!129:129,FM!$21:$21,AK$5) -> 0 | AL125: =SUMIFS(FM!129:129,FM!$21:$21,AL$5) -> 0 | AM125: =SUMIFS(FM!129:129,FM!$21:$21,AM$5) -> 0
D126: =FM!C130 -> Ponte | H126: 0 | J126: =SUMIFS(FM!130:130,FM!$21:$21,J$5) -> 0 | K126: =SUMIFS(FM!130:130,FM!$21:$21,K$5) -> 0 | L126: =SUMIFS(FM!130:130,FM!$21:$21,L$5) -> 0 | M126: =SUMIFS(FM!130:130,FM!$21:$21,M$5) -> 0 | N126: =SUMIFS(FM!130:130,FM!$21:$21,N$5) -> 0 | O126: =SUMIFS(FM!130:130,FM!$21:$21,O$5) -> 0 | P126: =SUMIFS(FM!130:130,FM!$21:$21,P$5) -> 0 | Q126: =SUMIFS(FM!130:130,FM!$21:$21,Q$5) -> 0 | R126: =SUMIFS(FM!130:130,FM!$21:$21,R$5) -> 0 | S126: =SUMIFS(FM!130:130,FM!$21:$21,S$5) -> 0 | T126: =SUMIFS(FM!130:130,FM!$21:$21,T$5) -> 0 | U126: =SUMIFS(FM!130:130,FM!$21:$21,U$5) -> 0 | V126: =SUMIFS(FM!130:130,FM!$21:$21,V$5) -> 0 | W126: =SUMIFS(FM!130:130,FM!$21:$21,W$5) -> 0 | X126: =SUMIFS(FM!130:130,FM!$21:$21,X$5) -> 0 | Y126: =SUMIFS(FM!130:130,FM!$21:$21,Y$5) -> 0 | Z126: =SUMIFS(FM!130:130,FM!$21:$21,Z$5) -> 0 | AA126: =SUMIFS(FM!130:130,FM!$21:$21,AA$5) -> 0 | AB126: =SUMIFS(FM!130:130,FM!$21:$21,AB$5) -> 0 | AC126: =SUMIFS(FM!130:130,FM!$21:$21,AC$5) -> 0 | AD126: =SUMIFS(FM!130:130,FM!$21:$21,AD$5) -> 0 | AE126: =SUMIFS(FM!130:130,FM!$21:$21,AE$5) -> 0 | AF126: =SUMIFS(FM!130:130,FM!$21:$21,AF$5) -> 0 | AG126: =SUMIFS(FM!130:130,FM!$21:$21,AG$5) -> 0 | AH126: =SUMIFS(FM!130:130,FM!$21:$21,AH$5) -> 0 | AI126: =SUMIFS(FM!130:130,FM!$21:$21,AI$5) -> 0 | AJ126: =SUMIFS(FM!130:130,FM!$21:$21,AJ$5) -> 0 | AK126: =SUMIFS(FM!130:130,FM!$21:$21,AK$5) -> 0 | AL126: =SUMIFS(FM!130:130,FM!$21:$21,AL$5) -> 0 | AM126: =SUMIFS(FM!130:130,FM!$21:$21,AM$5) -> 0
D127: =FM!C131 -> Finem | H127: 49000 | J127: =SUMIFS(FM!131:131,FM!$21:$21,J$5) -> 0 | K127: =SUMIFS(FM!131:131,FM!$21:$21,K$5) -> 0 | L127: =SUMIFS(FM!131:131,FM!$21:$21,L$5) -> 0 | M127: =SUMIFS(FM!131:131,FM!$21:$21,M$5) -> 49000 | N127: =SUMIFS(FM!131:131,FM!$21:$21,N$5) -> 0 | O127: =SUMIFS(FM!131:131,FM!$21:$21,O$5) -> 0 | P127: =SUMIFS(FM!131:131,FM!$21:$21,P$5) -> 0 | Q127: =SUMIFS(FM!131:131,FM!$21:$21,Q$5) -> 0 | R127: =SUMIFS(FM!131:131,FM!$21:$21,R$5) -> 0 | S127: =SUMIFS(FM!131:131,FM!$21:$21,S$5) -> 0 | T127: =SUMIFS(FM!131:131,FM!$21:$21,T$5) -> 0 | U127: =SUMIFS(FM!131:131,FM!$21:$21,U$5) -> 0 | V127: =SUMIFS(FM!131:131,FM!$21:$21,V$5) -> 0 | W127: =SUMIFS(FM!131:131,FM!$21:$21,W$5) -> 0 | X127: =SUMIFS(FM!131:131,FM!$21:$21,X$5) -> 0 | Y127: =SUMIFS(FM!131:131,FM!$21:$21,Y$5) -> 0 | Z127: =SUMIFS(FM!131:131,FM!$21:$21,Z$5) -> 0 | AA127: =SUMIFS(FM!131:131,FM!$21:$21,AA$5) -> 0 | AB127: =SUMIFS(FM!131:131,FM!$21:$21,AB$5) -> 0 | AC127: =SUMIFS(FM!131:131,FM!$21:$21,AC$5) -> 0 | AD127: =SUMIFS(FM!131:131,FM!$21:$21,AD$5) -> 0 | AE127: =SUMIFS(FM!131:131,FM!$21:$21,AE$5) -> 0 | AF127: =SUMIFS(FM!131:131,FM!$21:$21,AF$5) -> 0 | AG127: =SUMIFS(FM!131:131,FM!$21:$21,AG$5) -> 0 | AH127: =SUMIFS(FM!131:131,FM!$21:$21,AH$5) -> 0 | AI127: =SUMIFS(FM!131:131,FM!$21:$21,AI$5) -> 0 | AJ127: =SUMIFS(FM!131:131,FM!$21:$21,AJ$5) -> 0 | AK127: =SUMIFS(FM!131:131,FM!$21:$21,AK$5) -> 0 | AL127: =SUMIFS(FM!131:131,FM!$21:$21,AL$5) -> 0 | AM127: =SUMIFS(FM!131:131,FM!$21:$21,AM$5) -> 0
D128: =FM!C132 -> 0 | H128: 0 | J128: =SUMIFS(FM!132:132,FM!$21:$21,J$5) -> 0 | K128: =SUMIFS(FM!132:132,FM!$21:$21,K$5) -> 0 | L128: =SUMIFS(FM!132:132,FM!$21:$21,L$5) -> 0 | M128: =SUMIFS(FM!132:132,FM!$21:$21,M$5) -> 0 | N128: =SUMIFS(FM!132:132,FM!$21:$21,N$5) -> 0 | O128: =SUMIFS(FM!132:132,FM!$21:$21,O$5) -> 0 | P128: =SUMIFS(FM!132:132,FM!$21:$21,P$5) -> 0 | Q128: =SUMIFS(FM!132:132,FM!$21:$21,Q$5) -> 0 | R128: =SUMIFS(FM!132:132,FM!$21:$21,R$5) -> 0 | S128: =SUMIFS(FM!132:132,FM!$21:$21,S$5) -> 0 | T128: =SUMIFS(FM!132:132,FM!$21:$21,T$5) -> 0 | U128: =SUMIFS(FM!132:132,FM!$21:$21,U$5) -> 0 | V128: =SUMIFS(FM!132:132,FM!$21:$21,V$5) -> 0 | W128: =SUMIFS(FM!132:132,FM!$21:$21,W$5) -> 0 | X128: =SUMIFS(FM!132:132,FM!$21:$21,X$5) -> 0 | Y128: =SUMIFS(FM!132:132,FM!$21:$21,Y$5) -> 0 | Z128: =SUMIFS(FM!132:132,FM!$21:$21,Z$5) -> 0 | AA128: =SUMIFS(FM!132:132,FM!$21:$21,AA$5) -> 0 | AB128: =SUMIFS(FM!132:132,FM!$21:$21,AB$5) -> 0 | AC128: =SUMIFS(FM!132:132,FM!$21:$21,AC$5) -> 0 | AD128: =SUMIFS(FM!132:132,FM!$21:$21,AD$5) -> 0 | AE128: =SUMIFS(FM!132:132,FM!$21:$21,AE$5) -> 0 | AF128: =SUMIFS(FM!132:132,FM!$21:$21,AF$5) -> 0 | AG128: =SUMIFS(FM!132:132,FM!$21:$21,AG$5) -> 0 | AH128: =SUMIFS(FM!132:132,FM!$21:$21,AH$5) -> 0 | AI128: =SUMIFS(FM!132:132,FM!$21:$21,AI$5) -> 0 | AJ128: =SUMIFS(FM!132:132,FM!$21:$21,AJ$5) -> 0 | AK128: =SUMIFS(FM!132:132,FM!$21:$21,AK$5) -> 0 | AL128: =SUMIFS(FM!132:132,FM!$21:$21,AL$5) -> 0 | AM128: =SUMIFS(FM!132:132,FM!$21:$21,AM$5) -> 0
D129: =FM!C133 -> Revolver | H129: 0 | J129: =SUMIFS(FM!133:133,FM!$21:$21,J$5) -> 0 | K129: =SUMIFS(FM!133:133,FM!$21:$21,K$5) -> 0 | L129: =SUMIFS(FM!133:133,FM!$21:$21,L$5) -> 0 | M129: =SUMIFS(FM!133:133,FM!$21:$21,M$5) -> 0 | N129: =SUMIFS(FM!133:133,FM!$21:$21,N$5) -> 0 | O129: =SUMIFS(FM!133:133,FM!$21:$21,O$5) -> 0 | P129: =SUMIFS(FM!133:133,FM!$21:$21,P$5) -> 0 | Q129: =SUMIFS(FM!133:133,FM!$21:$21,Q$5) -> 0 | R129: =SUMIFS(FM!133:133,FM!$21:$21,R$5) -> 0 | S129: =SUMIFS(FM!133:133,FM!$21:$21,S$5) -> 0 | T129: =SUMIFS(FM!133:133,FM!$21:$21,T$5) -> 0 | U129: =SUMIFS(FM!133:133,FM!$21:$21,U$5) -> 0 | V129: =SUMIFS(FM!133:133,FM!$21:$21,V$5) -> 0 | W129: =SUMIFS(FM!133:133,FM!$21:$21,W$5) -> 0 | X129: =SUMIFS(FM!133:133,FM!$21:$21,X$5) -> 0 | Y129: =SUMIFS(FM!133:133,FM!$21:$21,Y$5) -> 0 | Z129: =SUMIFS(FM!133:133,FM!$21:$21,Z$5) -> 0 | AA129: =SUMIFS(FM!133:133,FM!$21:$21,AA$5) -> 0 | AB129: =SUMIFS(FM!133:133,FM!$21:$21,AB$5) -> 0 | AC129: =SUMIFS(FM!133:133,FM!$21:$21,AC$5) -> 0 | AD129: =SUMIFS(FM!133:133,FM!$21:$21,AD$5) -> 0 | AE129: =SUMIFS(FM!133:133,FM!$21:$21,AE$5) -> 0 | AF129: =SUMIFS(FM!133:133,FM!$21:$21,AF$5) -> 0 | AG129: =SUMIFS(FM!133:133,FM!$21:$21,AG$5) -> 0 | AH129: =SUMIFS(FM!133:133,FM!$21:$21,AH$5) -> 0 | AI129: =SUMIFS(FM!133:133,FM!$21:$21,AI$5) -> 0 | AJ129: =SUMIFS(FM!133:133,FM!$21:$21,AJ$5) -> 0 | AK129: =SUMIFS(FM!133:133,FM!$21:$21,AK$5) -> 0 | AL129: =SUMIFS(FM!133:133,FM!$21:$21,AL$5) -> 0 | AM129: =SUMIFS(FM!133:133,FM!$21:$21,AM$5) -> 0
D130: =FM!C134 -> Amortização de dívidas | H130: -49000 | J130: =SUMIFS(FM!134:134,FM!$21:$21,J$5) -> 0 | K130: =SUMIFS(FM!134:134,FM!$21:$21,K$5) -> 0 | L130: =SUMIFS(FM!134:134,FM!$21:$21,L$5) -> 0 | M130: =SUMIFS(FM!134:134,FM!$21:$21,M$5) -> 0 | N130: =SUMIFS(FM!134:134,FM!$21:$21,N$5) -> -3438.596491 | O130: =SUMIFS(FM!134:134,FM!$21:$21,O$5) -> -3438.596491 | P130: =SUMIFS(FM!134:134,FM!$21:$21,P$5) -> -3438.596491 | Q130: =SUMIFS(FM!134:134,FM!$21:$21,Q$5) -> -3438.596491 | R130: =SUMIFS(FM!134:134,FM!$21:$21,R$5) -> -3438.596491 | S130: =SUMIFS(FM!134:134,FM!$21:$21,S$5) -> -3438.596491 | T130: =SUMIFS(FM!134:134,FM!$21:$21,T$5) -> -3438.596491 | U130: =SUMIFS(FM!134:134,FM!$21:$21,U$5) -> -3438.596491 | V130: =SUMIFS(FM!134:134,FM!$21:$21,V$5) -> -3438.596491 | W130: =SUMIFS(FM!134:134,FM!$21:$21,W$5) -> -3438.596491 | X130: =SUMIFS(FM!134:134,FM!$21:$21,X$5) -> -3438.596491 | Y130: =SUMIFS(FM!134:134,FM!$21:$21,Y$5) -> -3438.596491 | Z130: =SUMIFS(FM!134:134,FM!$21:$21,Z$5) -> -3438.596491 | AA130: =SUMIFS(FM!134:134,FM!$21:$21,AA$5) -> -3438.596491 | AB130: =SUMIFS(FM!134:134,FM!$21:$21,AB$5) -> -859.6491228 | AC130: =SUMIFS(FM!134:134,FM!$21:$21,AC$5) -> 0 | AD130: =SUMIFS(FM!134:134,FM!$21:$21,AD$5) -> 0 | AE130: =SUMIFS(FM!134:134,FM!$21:$21,AE$5) -> 0 | AF130: =SUMIFS(FM!134:134,FM!$21:$21,AF$5) -> 0 | AG130: =SUMIFS(FM!134:134,FM!$21:$21,AG$5) -> 0 | AH130: =SUMIFS(FM!134:134,FM!$21:$21,AH$5) -> 0 | AI130: =SUMIFS(FM!134:134,FM!$21:$21,AI$5) -> 0 | AJ130: =SUMIFS(FM!134:134,FM!$21:$21,AJ$5) -> 0 | AK130: =SUMIFS(FM!134:134,FM!$21:$21,AK$5) -> 0 | AL130: =SUMIFS(FM!134:134,FM!$21:$21,AL$5) -> 0 | AM130: =SUMIFS(FM!134:134,FM!$21:$21,AM$5) -> 0
D131: =FM!C135 -> Ponte | H131: 0 | J131: =SUMIFS(FM!135:135,FM!$21:$21,J$5) -> 0 | K131: =SUMIFS(FM!135:135,FM!$21:$21,K$5) -> 0 | L131: =SUMIFS(FM!135:135,FM!$21:$21,L$5) -> 0 | M131: =SUMIFS(FM!135:135,FM!$21:$21,M$5) -> 0 | N131: =SUMIFS(FM!135:135,FM!$21:$21,N$5) -> 0 | O131: =SUMIFS(FM!135:135,FM!$21:$21,O$5) -> 0 | P131: =SUMIFS(FM!135:135,FM!$21:$21,P$5) -> 0 | Q131: =SUMIFS(FM!135:135,FM!$21:$21,Q$5) -> 0 | R131: =SUMIFS(FM!135:135,FM!$21:$21,R$5) -> 0 | S131: =SUMIFS(FM!135:135,FM!$21:$21,S$5) -> 0 | T131: =SUMIFS(FM!135:135,FM!$21:$21,T$5) -> 0 | U131: =SUMIFS(FM!135:135,FM!$21:$21,U$5) -> 0 | V131: =SUMIFS(FM!135:135,FM!$21:$21,V$5) -> 0 | W131: =SUMIFS(FM!135:135,FM!$21:$21,W$5) -> 0 | X131: =SUMIFS(FM!135:135,FM!$21:$21,X$5) -> 0 | Y131: =SUMIFS(FM!135:135,FM!$21:$21,Y$5) -> 0 | Z131: =SUMIFS(FM!135:135,FM!$21:$21,Z$5) -> 0 | AA131: =SUMIFS(FM!135:135,FM!$21:$21,AA$5) -> 0 | AB131: =SUMIFS(FM!135:135,FM!$21:$21,AB$5) -> 0 | AC131: =SUMIFS(FM!135:135,FM!$21:$21,AC$5) -> 0 | AD131: =SUMIFS(FM!135:135,FM!$21:$21,AD$5) -> 0 | AE131: =SUMIFS(FM!135:135,FM!$21:$21,AE$5) -> 0 | AF131: =SUMIFS(FM!135:135,FM!$21:$21,AF$5) -> 0 | AG131: =SUMIFS(FM!135:135,FM!$21:$21,AG$5) -> 0 | AH131: =SUMIFS(FM!135:135,FM!$21:$21,AH$5) -> 0 | AI131: =SUMIFS(FM!135:135,FM!$21:$21,AI$5) -> 0 | AJ131: =SUMIFS(FM!135:135,FM!$21:$21,AJ$5) -> 0 | AK131: =SUMIFS(FM!135:135,FM!$21:$21,AK$5) -> 0 | AL131: =SUMIFS(FM!135:135,FM!$21:$21,AL$5) -> 0 | AM131: =SUMIFS(FM!135:135,FM!$21:$21,AM$5) -> 0
D132: =FM!C136 -> Finem | H132: -49000 | J132: =SUMIFS(FM!136:136,FM!$21:$21,J$5) -> 0 | K132: =SUMIFS(FM!136:136,FM!$21:$21,K$5) -> 0 | L132: =SUMIFS(FM!136:136,FM!$21:$21,L$5) -> 0 | M132: =SUMIFS(FM!136:136,FM!$21:$21,M$5) -> 0 | N132: =SUMIFS(FM!136:136,FM!$21:$21,N$5) -> -3438.596491 | O132: =SUMIFS(FM!136:136,FM!$21:$21,O$5) -> -3438.596491 | P132: =SUMIFS(FM!136:136,FM!$21:$21,P$5) -> -3438.596491 | Q132: =SUMIFS(FM!136:136,FM!$21:$21,Q$5) -> -3438.596491 | R132: =SUMIFS(FM!136:136,FM!$21:$21,R$5) -> -3438.596491 | S132: =SUMIFS(FM!136:136,FM!$21:$21,S$5) -> -3438.596491 | T132: =SUMIFS(FM!136:136,FM!$21:$21,T$5) -> -3438.596491 | U132: =SUMIFS(FM!136:136,FM!$21:$21,U$5) -> -3438.596491 | V132: =SUMIFS(FM!136:136,FM!$21:$21,V$5) -> -3438.596491 | W132: =SUMIFS(FM!136:136,FM!$21:$21,W$5) -> -3438.596491 | X132: =SUMIFS(FM!136:136,FM!$21:$21,X$5) -> -3438.596491 | Y132: =SUMIFS(FM!136:136,FM!$21:$21,Y$5) -> -3438.596491 | Z132: =SUMIFS(FM!136:136,FM!$21:$21,Z$5) -> -3438.596491 | AA132: =SUMIFS(FM!136:136,FM!$21:$21,AA$5) -> -3438.596491 | AB132: =SUMIFS(FM!136:136,FM!$21:$21,AB$5) -> -859.6491228 | AC132: =SUMIFS(FM!136:136,FM!$21:$21,AC$5) -> 0 | AD132: =SUMIFS(FM!136:136,FM!$21:$21,AD$5) -> 0 | AE132: =SUMIFS(FM!136:136,FM!$21:$21,AE$5) -> 0 | AF132: =SUMIFS(FM!136:136,FM!$21:$21,AF$5) -> 0 | AG132: =SUMIFS(FM!136:136,FM!$21:$21,AG$5) -> 0 | AH132: =SUMIFS(FM!136:136,FM!$21:$21,AH$5) -> 0 | AI132: =SUMIFS(FM!136:136,FM!$21:$21,AI$5) -> 0 | AJ132: =SUMIFS(FM!136:136,FM!$21:$21,AJ$5) -> 0 | AK132: =SUMIFS(FM!136:136,FM!$21:$21,AK$5) -> 0 | AL132: =SUMIFS(FM!136:136,FM!$21:$21,AL$5) -> 0 | AM132: =SUMIFS(FM!136:136,FM!$21:$21,AM$5) -> 0
D133: =FM!C137 -> 0 | H133: 0 | J133: =SUMIFS(FM!137:137,FM!$21:$21,J$5) -> 0 | K133: =SUMIFS(FM!137:137,FM!$21:$21,K$5) -> 0 | L133: =SUMIFS(FM!137:137,FM!$21:$21,L$5) -> 0 | M133: =SUMIFS(FM!137:137,FM!$21:$21,M$5) -> 0 | N133: =SUMIFS(FM!137:137,FM!$21:$21,N$5) -> 0 | O133: =SUMIFS(FM!137:137,FM!$21:$21,O$5) -> 0 | P133: =SUMIFS(FM!137:137,FM!$21:$21,P$5) -> 0 | Q133: =SUMIFS(FM!137:137,FM!$21:$21,Q$5) -> 0 | R133: =SUMIFS(FM!137:137,FM!$21:$21,R$5) -> 0 | S133: =SUMIFS(FM!137:137,FM!$21:$21,S$5) -> 0 | T133: =SUMIFS(FM!137:137,FM!$21:$21,T$5) -> 0 | U133: =SUMIFS(FM!137:137,FM!$21:$21,U$5) -> 0 | V133: =SUMIFS(FM!137:137,FM!$21:$21,V$5) -> 0 | W133: =SUMIFS(FM!137:137,FM!$21:$21,W$5) -> 0 | X133: =SUMIFS(FM!137:137,FM!$21:$21,X$5) -> 0 | Y133: =SUMIFS(FM!137:137,FM!$21:$21,Y$5) -> 0 | Z133: =SUMIFS(FM!137:137,FM!$21:$21,Z$5) -> 0 | AA133: =SUMIFS(FM!137:137,FM!$21:$21,AA$5) -> 0 | AB133: =SUMIFS(FM!137:137,FM!$21:$21,AB$5) -> 0 | AC133: =SUMIFS(FM!137:137,FM!$21:$21,AC$5) -> 0 | AD133: =SUMIFS(FM!137:137,FM!$21:$21,AD$5) -> 0 | AE133: =SUMIFS(FM!137:137,FM!$21:$21,AE$5) -> 0 | AF133: =SUMIFS(FM!137:137,FM!$21:$21,AF$5) -> 0 | AG133: =SUMIFS(FM!137:137,FM!$21:$21,AG$5) -> 0 | AH133: =SUMIFS(FM!137:137,FM!$21:$21,AH$5) -> 0 | AI133: =SUMIFS(FM!137:137,FM!$21:$21,AI$5) -> 0 | AJ133: =SUMIFS(FM!137:137,FM!$21:$21,AJ$5) -> 0 | AK133: =SUMIFS(FM!137:137,FM!$21:$21,AK$5) -> 0 | AL133: =SUMIFS(FM!137:137,FM!$21:$21,AL$5) -> 0 | AM133: =SUMIFS(FM!137:137,FM!$21:$21,AM$5) -> 0
D134: =FM!C138 -> Revolver | H134: 0 | J134: =SUMIFS(FM!138:138,FM!$21:$21,J$5) -> 0 | K134: =SUMIFS(FM!138:138,FM!$21:$21,K$5) -> 0 | L134: =SUMIFS(FM!138:138,FM!$21:$21,L$5) -> 0 | M134: =SUMIFS(FM!138:138,FM!$21:$21,M$5) -> 0 | N134: =SUMIFS(FM!138:138,FM!$21:$21,N$5) -> 0 | O134: =SUMIFS(FM!138:138,FM!$21:$21,O$5) -> 0 | P134: =SUMIFS(FM!138:138,FM!$21:$21,P$5) -> 0 | Q134: =SUMIFS(FM!138:138,FM!$21:$21,Q$5) -> 0 | R134: =SUMIFS(FM!138:138,FM!$21:$21,R$5) -> 0 | S134: =SUMIFS(FM!138:138,FM!$21:$21,S$5) -> 0 | T134: =SUMIFS(FM!138:138,FM!$21:$21,T$5) -> 0 | U134: =SUMIFS(FM!138:138,FM!$21:$21,U$5) -> 0 | V134: =SUMIFS(FM!138:138,FM!$21:$21,V$5) -> 0 | W134: =SUMIFS(FM!138:138,FM!$21:$21,W$5) -> 0 | X134: =SUMIFS(FM!138:138,FM!$21:$21,X$5) -> 0 | Y134: =SUMIFS(FM!138:138,FM!$21:$21,Y$5) -> 0 | Z134: =SUMIFS(FM!138:138,FM!$21:$21,Z$5) -> 0 | AA134: =SUMIFS(FM!138:138,FM!$21:$21,AA$5) -> 0 | AB134: =SUMIFS(FM!138:138,FM!$21:$21,AB$5) -> 0 | AC134: =SUMIFS(FM!138:138,FM!$21:$21,AC$5) -> 0 | AD134: =SUMIFS(FM!138:138,FM!$21:$21,AD$5) -> 0 | AE134: =SUMIFS(FM!138:138,FM!$21:$21,AE$5) -> 0 | AF134: =SUMIFS(FM!138:138,FM!$21:$21,AF$5) -> 0 | AG134: =SUMIFS(FM!138:138,FM!$21:$21,AG$5) -> 0 | AH134: =SUMIFS(FM!138:138,FM!$21:$21,AH$5) -> 0 | AI134: =SUMIFS(FM!138:138,FM!$21:$21,AI$5) -> 0 | AJ134: =SUMIFS(FM!138:138,FM!$21:$21,AJ$5) -> 0 | AK134: =SUMIFS(FM!138:138,FM!$21:$21,AK$5) -> 0 | AL134: =SUMIFS(FM!138:138,FM!$21:$21,AL$5) -> 0 | AM134: =SUMIFS(FM!138:138,FM!$21:$21,AM$5) -> 0
D135: =FM!C139 -> Juros | H135: -47853.14905 | J135: =SUMIFS(FM!139:139,FM!$21:$21,J$5) -> 0 | K135: =SUMIFS(FM!139:139,FM!$21:$21,K$5) -> 0 | L135: =SUMIFS(FM!139:139,FM!$21:$21,L$5) -> 0 | M135: =SUMIFS(FM!139:139,FM!$21:$21,M$5) -> -3000.752206 | N135: =SUMIFS(FM!139:139,FM!$21:$21,N$5) -> -5872.45627 | O135: =SUMIFS(FM!139:139,FM!$21:$21,O$5) -> -5514.053245 | P135: =SUMIFS(FM!139:139,FM!$21:$21,P$5) -> -5136.272784 | Q135: =SUMIFS(FM!139:139,FM!$21:$21,Q$5) -> -4672.601044 | R135: =SUMIFS(FM!139:139,FM!$21:$21,R$5) -> -4241.131662 | S135: =SUMIFS(FM!139:139,FM!$21:$21,S$5) -> -3810.484842 | T135: =SUMIFS(FM!139:139,FM!$21:$21,T$5) -> -3393.470422 | U135: =SUMIFS(FM!139:139,FM!$21:$21,U$5) -> -3002.757835 | V135: =SUMIFS(FM!139:139,FM!$21:$21,V$5) -> -2565.324837 | W135: =SUMIFS(FM!139:139,FM!$21:$21,W$5) -> -2152.738758 | X135: =SUMIFS(FM!139:139,FM!$21:$21,X$5) -> -1737.19951 | Y135: =SUMIFS(FM!139:139,FM!$21:$21,Y$5) -> -1305.394841 | Z135: =SUMIFS(FM!139:139,FM!$21:$21,Z$5) -> -894.2804846 | AA135: =SUMIFS(FM!139:139,FM!$21:$21,AA$5) -> -475.1759767 | AB135: =SUMIFS(FM!139:139,FM!$21:$21,AB$5) -> -79.05433554 | AC135: =SUMIFS(FM!139:139,FM!$21:$21,AC$5) -> 0 | AD135: =SUMIFS(FM!139:139,FM!$21:$21,AD$5) -> 0 | AE135: =SUMIFS(FM!139:139,FM!$21:$21,AE$5) -> 0 | AF135: =SUMIFS(FM!139:139,FM!$21:$21,AF$5) -> 0 | AG135: =SUMIFS(FM!139:139,FM!$21:$21,AG$5) -> 0 | AH135: =SUMIFS(FM!139:139,FM!$21:$21,AH$5) -> 0 | AI135: =SUMIFS(FM!139:139,FM!$21:$21,AI$5) -> 0 | AJ135: =SUMIFS(FM!139:139,FM!$21:$21,AJ$5) -> 0 | AK135: =SUMIFS(FM!139:139,FM!$21:$21,AK$5) -> 0 | AL135: =SUMIFS(FM!139:139,FM!$21:$21,AL$5) -> 0 | AM135: =SUMIFS(FM!139:139,FM!$21:$21,AM$5) -> 0
D136: =FM!C140 -> Ponte | H136: 0 | J136: =SUMIFS(FM!140:140,FM!$21:$21,J$5) -> 0 | K136: =SUMIFS(FM!140:140,FM!$21:$21,K$5) -> 0 | L136: =SUMIFS(FM!140:140,FM!$21:$21,L$5) -> 0 | M136: =SUMIFS(FM!140:140,FM!$21:$21,M$5) -> 0 | N136: =SUMIFS(FM!140:140,FM!$21:$21,N$5) -> 0 | O136: =SUMIFS(FM!140:140,FM!$21:$21,O$5) -> 0 | P136: =SUMIFS(FM!140:140,FM!$21:$21,P$5) -> 0 | Q136: =SUMIFS(FM!140:140,FM!$21:$21,Q$5) -> 0 | R136: =SUMIFS(FM!140:140,FM!$21:$21,R$5) -> 0 | S136: =SUMIFS(FM!140:140,FM!$21:$21,S$5) -> 0 | T136: =SUMIFS(FM!140:140,FM!$21:$21,T$5) -> 0 | U136: =SUMIFS(FM!140:140,FM!$21:$21,U$5) -> 0 | V136: =SUMIFS(FM!140:140,FM!$21:$21,V$5) -> 0 | W136: =SUMIFS(FM!140:140,FM!$21:$21,W$5) -> 0 | X136: =SUMIFS(FM!140:140,FM!$21:$21,X$5) -> 0 | Y136: =SUMIFS(FM!140:140,FM!$21:$21,Y$5) -> 0 | Z136: =SUMIFS(FM!140:140,FM!$21:$21,Z$5) -> 0 | AA136: =SUMIFS(FM!140:140,FM!$21:$21,AA$5) -> 0 | AB136: =SUMIFS(FM!140:140,FM!$21:$21,AB$5) -> 0 | AC136: =SUMIFS(FM!140:140,FM!$21:$21,AC$5) -> 0 | AD136: =SUMIFS(FM!140:140,FM!$21:$21,AD$5) -> 0 | AE136: =SUMIFS(FM!140:140,FM!$21:$21,AE$5) -> 0 | AF136: =SUMIFS(FM!140:140,FM!$21:$21,AF$5) -> 0 | AG136: =SUMIFS(FM!140:140,FM!$21:$21,AG$5) -> 0 | AH136: =SUMIFS(FM!140:140,FM!$21:$21,AH$5) -> 0 | AI136: =SUMIFS(FM!140:140,FM!$21:$21,AI$5) -> 0 | AJ136: =SUMIFS(FM!140:140,FM!$21:$21,AJ$5) -> 0 | AK136: =SUMIFS(FM!140:140,FM!$21:$21,AK$5) -> 0 | AL136: =SUMIFS(FM!140:140,FM!$21:$21,AL$5) -> 0 | AM136: =SUMIFS(FM!140:140,FM!$21:$21,AM$5) -> 0
D137: =FM!C141 -> Finem | H137: -47853.14905 | J137: =SUMIFS(FM!141:141,FM!$21:$21,J$5) -> 0 | K137: =SUMIFS(FM!141:141,FM!$21:$21,K$5) -> 0 | L137: =SUMIFS(FM!141:141,FM!$21:$21,L$5) -> 0 | M137: =SUMIFS(FM!141:141,FM!$21:$21,M$5) -> -3000.752206 | N137: =SUMIFS(FM!141:141,FM!$21:$21,N$5) -> -5872.45627 | O137: =SUMIFS(FM!141:141,FM!$21:$21,O$5) -> -5514.053245 | P137: =SUMIFS(FM!141:141,FM!$21:$21,P$5) -> -5136.272784 | Q137: =SUMIFS(FM!141:141,FM!$21:$21,Q$5) -> -4672.601044 | R137: =SUMIFS(FM!141:141,FM!$21:$21,R$5) -> -4241.131662 | S137: =SUMIFS(FM!141:141,FM!$21:$21,S$5) -> -3810.484842 | T137: =SUMIFS(FM!141:141,FM!$21:$21,T$5) -> -3393.470422 | U137: =SUMIFS(FM!141:141,FM!$21:$21,U$5) -> -3002.757835 | V137: =SUMIFS(FM!141:141,FM!$21:$21,V$5) -> -2565.324837 | W137: =SUMIFS(FM!141:141,FM!$21:$21,W$5) -> -2152.738758 | X137: =SUMIFS(FM!141:141,FM!$21:$21,X$5) -> -1737.19951 | Y137: =SUMIFS(FM!141:141,FM!$21:$21,Y$5) -> -1305.394841 | Z137: =SUMIFS(FM!141:141,FM!$21:$21,Z$5) -> -894.2804846 | AA137: =SUMIFS(FM!141:141,FM!$21:$21,AA$5) -> -475.1759767 | AB137: =SUMIFS(FM!141:141,FM!$21:$21,AB$5) -> -79.05433554 | AC137: =SUMIFS(FM!141:141,FM!$21:$21,AC$5) -> 0 | AD137: =SUMIFS(FM!141:141,FM!$21:$21,AD$5) -> 0 | AE137: =SUMIFS(FM!141:141,FM!$21:$21,AE$5) -> 0 | AF137: =SUMIFS(FM!141:141,FM!$21:$21,AF$5) -> 0 | AG137: =SUMIFS(FM!141:141,FM!$21:$21,AG$5) -> 0 | AH137: =SUMIFS(FM!141:141,FM!$21:$21,AH$5) -> 0 | AI137: =SUMIFS(FM!141:141,FM!$21:$21,AI$5) -> 0 | AJ137: =SUMIFS(FM!141:141,FM!$21:$21,AJ$5) -> 0 | AK137: =SUMIFS(FM!141:141,FM!$21:$21,AK$5) -> 0 | AL137: =SUMIFS(FM!141:141,FM!$21:$21,AL$5) -> 0 | AM137: =SUMIFS(FM!141:141,FM!$21:$21,AM$5) -> 0
D138: =FM!C142 -> 0 | H138: 0 | J138: =SUMIFS(FM!142:142,FM!$21:$21,J$5) -> 0 | K138: =SUMIFS(FM!142:142,FM!$21:$21,K$5) -> 0 | L138: =SUMIFS(FM!142:142,FM!$21:$21,L$5) -> 0 | M138: =SUMIFS(FM!142:142,FM!$21:$21,M$5) -> 0 | N138: =SUMIFS(FM!142:142,FM!$21:$21,N$5) -> 0 | O138: =SUMIFS(FM!142:142,FM!$21:$21,O$5) -> 0 | P138: =SUMIFS(FM!142:142,FM!$21:$21,P$5) -> 0 | Q138: =SUMIFS(FM!142:142,FM!$21:$21,Q$5) -> 0 | R138: =SUMIFS(FM!142:142,FM!$21:$21,R$5) -> 0 | S138: =SUMIFS(FM!142:142,FM!$21:$21,S$5) -> 0 | T138: =SUMIFS(FM!142:142,FM!$21:$21,T$5) -> 0 | U138: =SUMIFS(FM!142:142,FM!$21:$21,U$5) -> 0 | V138: =SUMIFS(FM!142:142,FM!$21:$21,V$5) -> 0 | W138: =SUMIFS(FM!142:142,FM!$21:$21,W$5) -> 0 | X138: =SUMIFS(FM!142:142,FM!$21:$21,X$5) -> 0 | Y138: =SUMIFS(FM!142:142,FM!$21:$21,Y$5) -> 0 | Z138: =SUMIFS(FM!142:142,FM!$21:$21,Z$5) -> 0 | AA138: =SUMIFS(FM!142:142,FM!$21:$21,AA$5) -> 0 | AB138: =SUMIFS(FM!142:142,FM!$21:$21,AB$5) -> 0 | AC138: =SUMIFS(FM!142:142,FM!$21:$21,AC$5) -> 0 | AD138: =SUMIFS(FM!142:142,FM!$21:$21,AD$5) -> 0 | AE138: =SUMIFS(FM!142:142,FM!$21:$21,AE$5) -> 0 | AF138: =SUMIFS(FM!142:142,FM!$21:$21,AF$5) -> 0 | AG138: =SUMIFS(FM!142:142,FM!$21:$21,AG$5) -> 0 | AH138: =SUMIFS(FM!142:142,FM!$21:$21,AH$5) -> 0 | AI138: =SUMIFS(FM!142:142,FM!$21:$21,AI$5) -> 0 | AJ138: =SUMIFS(FM!142:142,FM!$21:$21,AJ$5) -> 0 | AK138: =SUMIFS(FM!142:142,FM!$21:$21,AK$5) -> 0 | AL138: =SUMIFS(FM!142:142,FM!$21:$21,AL$5) -> 0 | AM138: =SUMIFS(FM!142:142,FM!$21:$21,AM$5) -> 0
D139: =FM!C143 -> Revolver | H139: 0 | J139: =SUMIFS(FM!143:143,FM!$21:$21,J$5) -> 0 | K139: =SUMIFS(FM!143:143,FM!$21:$21,K$5) -> 0 | L139: =SUMIFS(FM!143:143,FM!$21:$21,L$5) -> 0 | M139: =SUMIFS(FM!143:143,FM!$21:$21,M$5) -> 0 | N139: =SUMIFS(FM!143:143,FM!$21:$21,N$5) -> 0 | O139: =SUMIFS(FM!143:143,FM!$21:$21,O$5) -> 0 | P139: =SUMIFS(FM!143:143,FM!$21:$21,P$5) -> 0 | Q139: =SUMIFS(FM!143:143,FM!$21:$21,Q$5) -> 0 | R139: =SUMIFS(FM!143:143,FM!$21:$21,R$5) -> 0 | S139: =SUMIFS(FM!143:143,FM!$21:$21,S$5) -> 0 | T139: =SUMIFS(FM!143:143,FM!$21:$21,T$5) -> 0 | U139: =SUMIFS(FM!143:143,FM!$21:$21,U$5) -> 0 | V139: =SUMIFS(FM!143:143,FM!$21:$21,V$5) -> 0 | W139: =SUMIFS(FM!143:143,FM!$21:$21,W$5) -> 0 | X139: =SUMIFS(FM!143:143,FM!$21:$21,X$5) -> 0 | Y139: =SUMIFS(FM!143:143,FM!$21:$21,Y$5) -> 0 | Z139: =SUMIFS(FM!143:143,FM!$21:$21,Z$5) -> 0 | AA139: =SUMIFS(FM!143:143,FM!$21:$21,AA$5) -> 0 | AB139: =SUMIFS(FM!143:143,FM!$21:$21,AB$5) -> 0 | AC139: =SUMIFS(FM!143:143,FM!$21:$21,AC$5) -> 0 | AD139: =SUMIFS(FM!143:143,FM!$21:$21,AD$5) -> 0 | AE139: =SUMIFS(FM!143:143,FM!$21:$21,AE$5) -> 0 | AF139: =SUMIFS(FM!143:143,FM!$21:$21,AF$5) -> 0 | AG139: =SUMIFS(FM!143:143,FM!$21:$21,AG$5) -> 0 | AH139: =SUMIFS(FM!143:143,FM!$21:$21,AH$5) -> 0 | AI139: =SUMIFS(FM!143:143,FM!$21:$21,AI$5) -> 0 | AJ139: =SUMIFS(FM!143:143,FM!$21:$21,AJ$5) -> 0 | AK139: =SUMIFS(FM!143:143,FM!$21:$21,AK$5) -> 0 | AL139: =SUMIFS(FM!143:143,FM!$21:$21,AL$5) -> 0 | AM139: =SUMIFS(FM!143:143,FM!$21:$21,AM$5) -> 0
D140: =FM!C144 -> Fees financeiros | H140: -857.1428571 | J140: =SUMIFS(FM!144:144,FM!$21:$21,J$5) -> 0 | K140: =SUMIFS(FM!144:144,FM!$21:$21,K$5) -> 0 | L140: =SUMIFS(FM!144:144,FM!$21:$21,L$5) -> 0 | M140: =SUMIFS(FM!144:144,FM!$21:$21,M$5) -> -857.1428571 | N140: =SUMIFS(FM!144:144,FM!$21:$21,N$5) -> 0 | O140: =SUMIFS(FM!144:144,FM!$21:$21,O$5) -> 0 | P140: =SUMIFS(FM!144:144,FM!$21:$21,P$5) -> 0 | Q140: =SUMIFS(FM!144:144,FM!$21:$21,Q$5) -> 0 | R140: =SUMIFS(FM!144:144,FM!$21:$21,R$5) -> 0 | S140: =SUMIFS(FM!144:144,FM!$21:$21,S$5) -> 0 | T140: =SUMIFS(FM!144:144,FM!$21:$21,T$5) -> 0 | U140: =SUMIFS(FM!144:144,FM!$21:$21,U$5) -> 0 | V140: =SUMIFS(FM!144:144,FM!$21:$21,V$5) -> 0 | W140: =SUMIFS(FM!144:144,FM!$21:$21,W$5) -> 0 | X140: =SUMIFS(FM!144:144,FM!$21:$21,X$5) -> 0 | Y140: =SUMIFS(FM!144:144,FM!$21:$21,Y$5) -> 0 | Z140: =SUMIFS(FM!144:144,FM!$21:$21,Z$5) -> 0 | AA140: =SUMIFS(FM!144:144,FM!$21:$21,AA$5) -> 0 | AB140: =SUMIFS(FM!144:144,FM!$21:$21,AB$5) -> 0 | AC140: =SUMIFS(FM!144:144,FM!$21:$21,AC$5) -> 0 | AD140: =SUMIFS(FM!144:144,FM!$21:$21,AD$5) -> 0 | AE140: =SUMIFS(FM!144:144,FM!$21:$21,AE$5) -> 0 | AF140: =SUMIFS(FM!144:144,FM!$21:$21,AF$5) -> 0 | AG140: =SUMIFS(FM!144:144,FM!$21:$21,AG$5) -> 0 | AH140: =SUMIFS(FM!144:144,FM!$21:$21,AH$5) -> 0 | AI140: =SUMIFS(FM!144:144,FM!$21:$21,AI$5) -> 0 | AJ140: =SUMIFS(FM!144:144,FM!$21:$21,AJ$5) -> 0 | AK140: =SUMIFS(FM!144:144,FM!$21:$21,AK$5) -> 0 | AL140: =SUMIFS(FM!144:144,FM!$21:$21,AL$5) -> 0 | AM140: =SUMIFS(FM!144:144,FM!$21:$21,AM$5) -> 0
D141: =FM!C145 -> Receitas Financeiras | H141: 18353.14726 | J141: =SUMIFS(FM!145:145,FM!$21:$21,J$5) -> 1085.035575 | K141: =SUMIFS(FM!145:145,FM!$21:$21,K$5) -> 1110.861426 | L141: =SUMIFS(FM!145:145,FM!$21:$21,L$5) -> 226.4288975 | M141: =SUMIFS(FM!145:145,FM!$21:$21,M$5) -> 3457.634073 | N141: =SUMIFS(FM!145:145,FM!$21:$21,N$5) -> 3549.663776 | O141: =SUMIFS(FM!145:145,FM!$21:$21,O$5) -> 1857.291868 | P141: =SUMIFS(FM!145:145,FM!$21:$21,P$5) -> 1886.316483 | Q141: =SUMIFS(FM!145:145,FM!$21:$21,Q$5) -> 709.4664246 | R141: =SUMIFS(FM!145:145,FM!$21:$21,R$5) -> 146.6956535 | S141: =SUMIFS(FM!145:145,FM!$21:$21,S$5) -> 154.8398465 | T141: =SUMIFS(FM!145:145,FM!$21:$21,T$5) -> 159.209352 | U141: =SUMIFS(FM!145:145,FM!$21:$21,U$5) -> 163.3085889 | V141: =SUMIFS(FM!145:145,FM!$21:$21,V$5) -> 167.8980028 | W141: =SUMIFS(FM!145:145,FM!$21:$21,W$5) -> 172.2267272 | X141: =SUMIFS(FM!145:145,FM!$21:$21,X$5) -> 176.586437 | Y141: =SUMIFS(FM!145:145,FM!$21:$21,Y$5) -> 181.1167973 | Z141: =SUMIFS(FM!145:145,FM!$21:$21,Z$5) -> 185.4300827 | AA141: =SUMIFS(FM!145:145,FM!$21:$21,AA$5) -> 189.8271983 | AB141: =SUMIFS(FM!145:145,FM!$21:$21,AB$5) -> 221.0694158 | AC141: =SUMIFS(FM!145:145,FM!$21:$21,AC$5) -> 230.8893071 | AD141: =SUMIFS(FM!145:145,FM!$21:$21,AD$5) -> 230.8893071 | AE141: =SUMIFS(FM!145:145,FM!$21:$21,AE$5) -> 230.8893071 | AF141: =SUMIFS(FM!145:145,FM!$21:$21,AF$5) -> 230.8893071 | AG141: =SUMIFS(FM!145:145,FM!$21:$21,AG$5) -> 230.8893071 | AH141: =SUMIFS(FM!145:145,FM!$21:$21,AH$5) -> 230.8893071 | AI141: =SUMIFS(FM!145:145,FM!$21:$21,AI$5) -> 230.8893071 | AJ141: =SUMIFS(FM!145:145,FM!$21:$21,AJ$5) -> 230.8893071 | AK141: =SUMIFS(FM!145:145,FM!$21:$21,AK$5) -> 230.8893071 | AL141: =SUMIFS(FM!145:145,FM!$21:$21,AL$5) -> 230.8893071 | AM141: =SUMIFS(FM!145:145,FM!$21:$21,AM$5) -> 243.3475607
D142: =FM!C146 -> Fluxo de Caixa de Financiamento | H142: -30357.14465 | J142: =J141+J140+J135+J130+J125 -> 1085.035575 | K142: =K141+K140+K135+K130+K125 -> 1110.861426 | L142: 226.4288975 | M142: 48599.73901 | N142: -5761.388985 | O142: -7095.357868 | P142: -6688.552792 | Q142: -7401.73111 | R142: -7533.0325 | S142: -7094.241487 | T142: -6672.857561 | U142: -6278.045737 | V142: -5836.023325 | W142: -5419.108522 | X142: -4999.209564 | Y142: -4562.874535 | Z142: -4147.446893 | AA142: -3723.94527 | AB142: -717.6340425 | AC142: 230.8893071 | AD142: 230.8893071 | AE142: 230.8893071 | AF142: 230.8893071 | AG142: 230.8893071 | AH142: 230.8893071 | AI142: 230.8893071 | AJ142: 230.8893071 | AK142: 230.8893071 | AL142: 230.8893071 | AM142: 243.3475607
D144: =FM!C148 -> Fluxo de Caixa após financiamentos | G144: =IRR(J144:AM144) -> 0.1209661843 | H144: =SUM(J144:AM144) -> 174963.9624 | J144: =J142+J123 -> -22898.03955 | K144: -22865.32165 | L144: 1702.569285 | M144: 39055.11817 | N144: -8513.332893 | O144: -28285.40218 | P144: 21964.7931 | Q144: 3498.564119 | R144: 3619.996752 | S144: 4055.858123 | T144: 4480.118948 | U144: 4868.769258 | V144: 5309.231405 | W144: 5724.674348 | X144: 6147.858877 | Y144: 6577.885663 | Z144: 6991.846828 | AA144: 7413.853466 | AB144: 10416.35866 | AC144: 11354.7281 | AD144: 11354.7281 | AE144: 11354.7281 | AF144: 11359.49595 | AG144: 11354.7281 | AH144: 11354.7281 | AI144: 11354.7281 | AJ144: 11359.49595 | AK144: 11354.7281 | AL144: 11354.7281 | AM144: 12141.745
D146: =FM!C150 -> Injeção de Capital Editalício | H146: =SUM(J146:AM146) -> 49000 | J146: =SUMIFS(FM!150:150,FM!$21:$21,J$5) -> 25500 | K146: =SUMIFS(FM!150:150,FM!$21:$21,K$5) -> 23500 | L146: =SUMIFS(FM!150:150,FM!$21:$21,L$5) -> 0 | M146: =SUMIFS(FM!150:150,FM!$21:$21,M$5) -> 0 | N146: =SUMIFS(FM!150:150,FM!$21:$21,N$5) -> 0 | O146: =SUMIFS(FM!150:150,FM!$21:$21,O$5) -> 0 | P146: =SUMIFS(FM!150:150,FM!$21:$21,P$5) -> 0 | Q146: =SUMIFS(FM!150:150,FM!$21:$21,Q$5) -> 0 | R146: =SUMIFS(FM!150:150,FM!$21:$21,R$5) -> 0 | S146: =SUMIFS(FM!150:150,FM!$21:$21,S$5) -> 0 | T146: =SUMIFS(FM!150:150,FM!$21:$21,T$5) -> 0 | U146: =SUMIFS(FM!150:150,FM!$21:$21,U$5) -> 0 | V146: =SUMIFS(FM!150:150,FM!$21:$21,V$5) -> 0 | W146: =SUMIFS(FM!150:150,FM!$21:$21,W$5) -> 0 | X146: =SUMIFS(FM!150:150,FM!$21:$21,X$5) -> 0 | Y146: =SUMIFS(FM!150:150,FM!$21:$21,Y$5) -> 0 | Z146: =SUMIFS(FM!150:150,FM!$21:$21,Z$5) -> 0 | AA146: =SUMIFS(FM!150:150,FM!$21:$21,AA$5) -> 0 | AB146: =SUMIFS(FM!150:150,FM!$21:$21,AB$5) -> 0 | AC146: =SUMIFS(FM!150:150,FM!$21:$21,AC$5) -> 0 | AD146: =SUMIFS(FM!150:150,FM!$21:$21,AD$5) -> 0 | AE146: =SUMIFS(FM!150:150,FM!$21:$21,AE$5) -> 0 | AF146: =SUMIFS(FM!150:150,FM!$21:$21,AF$5) -> 0 | AG146: =SUMIFS(FM!150:150,FM!$21:$21,AG$5) -> 0 | AH146: =SUMIFS(FM!150:150,FM!$21:$21,AH$5) -> 0 | AI146: =SUMIFS(FM!150:150,FM!$21:$21,AI$5) -> 0 | AJ146: =SUMIFS(FM!150:150,FM!$21:$21,AJ$5) -> 0 | AK146: =SUMIFS(FM!150:150,FM!$21:$21,AK$5) -> 0 | AL146: =SUMIFS(FM!150:150,FM!$21:$21,AL$5) -> 0 | AM146: =SUMIFS(FM!150:150,FM!$21:$21,AM$5) -> 0
D147: =FM!C151 -> Injeção para suprir Furo de Caixa | H147: 0 | J147: =SUMIFS(FM!151:151,FM!$21:$21,J$5) -> 0 | K147: =SUMIFS(FM!151:151,FM!$21:$21,K$5) -> 0 | L147: =SUMIFS(FM!151:151,FM!$21:$21,L$5) -> 0 | M147: =SUMIFS(FM!151:151,FM!$21:$21,M$5) -> 0 | N147: =SUMIFS(FM!151:151,FM!$21:$21,N$5) -> 0 | O147: =SUMIFS(FM!151:151,FM!$21:$21,O$5) -> 0 | P147: =SUMIFS(FM!151:151,FM!$21:$21,P$5) -> 0 | Q147: =SUMIFS(FM!151:151,FM!$21:$21,Q$5) -> 0 | R147: =SUMIFS(FM!151:151,FM!$21:$21,R$5) -> 0 | S147: =SUMIFS(FM!151:151,FM!$21:$21,S$5) -> 0 | T147: =SUMIFS(FM!151:151,FM!$21:$21,T$5) -> 0 | U147: =SUMIFS(FM!151:151,FM!$21:$21,U$5) -> 0 | V147: =SUMIFS(FM!151:151,FM!$21:$21,V$5) -> 0 | W147: =SUMIFS(FM!151:151,FM!$21:$21,W$5) -> 0 | X147: =SUMIFS(FM!151:151,FM!$21:$21,X$5) -> 0 | Y147: =SUMIFS(FM!151:151,FM!$21:$21,Y$5) -> 0 | Z147: =SUMIFS(FM!151:151,FM!$21:$21,Z$5) -> 0 | AA147: =SUMIFS(FM!151:151,FM!$21:$21,AA$5) -> 0 | AB147: =SUMIFS(FM!151:151,FM!$21:$21,AB$5) -> 0 | AC147: =SUMIFS(FM!151:151,FM!$21:$21,AC$5) -> 0 | AD147: =SUMIFS(FM!151:151,FM!$21:$21,AD$5) -> 0 | AE147: =SUMIFS(FM!151:151,FM!$21:$21,AE$5) -> 0 | AF147: =SUMIFS(FM!151:151,FM!$21:$21,AF$5) -> 0 | AG147: =SUMIFS(FM!151:151,FM!$21:$21,AG$5) -> 0 | AH147: =SUMIFS(FM!151:151,FM!$21:$21,AH$5) -> 0 | AI147: =SUMIFS(FM!151:151,FM!$21:$21,AI$5) -> 0 | AJ147: =SUMIFS(FM!151:151,FM!$21:$21,AJ$5) -> 0 | AK147: =SUMIFS(FM!151:151,FM!$21:$21,AK$5) -> 0 | AL147: =SUMIFS(FM!151:151,FM!$21:$21,AL$5) -> 0 | AM147: =SUMIFS(FM!151:151,FM!$21:$21,AM$5) -> 0
D148: =FM!C152 -> Injeção para suprir Covenant | H148: 0 | J148: =SUMIFS(FM!152:152,FM!$21:$21,J$5) -> 0 | K148: =SUMIFS(FM!152:152,FM!$21:$21,K$5) -> 0 | L148: =SUMIFS(FM!152:152,FM!$21:$21,L$5) -> 0 | M148: =SUMIFS(FM!152:152,FM!$21:$21,M$5) -> 0 | N148: =SUMIFS(FM!152:152,FM!$21:$21,N$5) -> 0 | O148: =SUMIFS(FM!152:152,FM!$21:$21,O$5) -> 0 | P148: =SUMIFS(FM!152:152,FM!$21:$21,P$5) -> 0 | Q148: =SUMIFS(FM!152:152,FM!$21:$21,Q$5) -> 0 | R148: =SUMIFS(FM!152:152,FM!$21:$21,R$5) -> 0 | S148: =SUMIFS(FM!152:152,FM!$21:$21,S$5) -> 0 | T148: =SUMIFS(FM!152:152,FM!$21:$21,T$5) -> 0 | U148: =SUMIFS(FM!152:152,FM!$21:$21,U$5) -> 0 | V148: =SUMIFS(FM!152:152,FM!$21:$21,V$5) -> 0 | W148: =SUMIFS(FM!152:152,FM!$21:$21,W$5) -> 0 | X148: =SUMIFS(FM!152:152,FM!$21:$21,X$5) -> 0 | Y148: =SUMIFS(FM!152:152,FM!$21:$21,Y$5) -> 0 | Z148: =SUMIFS(FM!152:152,FM!$21:$21,Z$5) -> 0 | AA148: =SUMIFS(FM!152:152,FM!$21:$21,AA$5) -> 0 | AB148: =SUMIFS(FM!152:152,FM!$21:$21,AB$5) -> 0 | AC148: =SUMIFS(FM!152:152,FM!$21:$21,AC$5) -> 0 | AD148: =SUMIFS(FM!152:152,FM!$21:$21,AD$5) -> 0 | AE148: =SUMIFS(FM!152:152,FM!$21:$21,AE$5) -> 0 | AF148: =SUMIFS(FM!152:152,FM!$21:$21,AF$5) -> 0 | AG148: =SUMIFS(FM!152:152,FM!$21:$21,AG$5) -> 0 | AH148: =SUMIFS(FM!152:152,FM!$21:$21,AH$5) -> 0 | AI148: =SUMIFS(FM!152:152,FM!$21:$21,AI$5) -> 0 | AJ148: =SUMIFS(FM!152:152,FM!$21:$21,AJ$5) -> 0 | AK148: =SUMIFS(FM!152:152,FM!$21:$21,AK$5) -> 0 | AL148: =SUMIFS(FM!152:152,FM!$21:$21,AL$5) -> 0 | AM148: =SUMIFS(FM!152:152,FM!$21:$21,AM$5) -> 0
D149: =FM!C153 -> Dividendos | H149: -218303.409 | J149: =SUMIFS(FM!153:153,FM!$21:$21,J$5) -> 0 | K149: =SUMIFS(FM!153:153,FM!$21:$21,K$5) -> 0 | L149: =SUMIFS(FM!153:153,FM!$21:$21,L$5) -> 0 | M149: =SUMIFS(FM!153:153,FM!$21:$21,M$5) -> 0 | N149: =SUMIFS(FM!153:153,FM!$21:$21,N$5) -> 0 | O149: =SUMIFS(FM!153:153,FM!$21:$21,O$5) -> 0 | P149: =SUMIFS(FM!153:153,FM!$21:$21,P$5) -> 0 | Q149: =SUMIFS(FM!153:153,FM!$21:$21,Q$5) -> -30658.94841 | R149: =SUMIFS(FM!153:153,FM!$21:$21,R$5) -> -3619.996752 | S149: =SUMIFS(FM!153:153,FM!$21:$21,S$5) -> -4055.858123 | T149: =SUMIFS(FM!153:153,FM!$21:$21,T$5) -> -4480.118948 | U149: =SUMIFS(FM!153:153,FM!$21:$21,U$5) -> -4868.769258 | V149: =SUMIFS(FM!153:153,FM!$21:$21,V$5) -> -5309.231405 | W149: =SUMIFS(FM!153:153,FM!$21:$21,W$5) -> -5724.674348 | X149: =SUMIFS(FM!153:153,FM!$21:$21,X$5) -> -6147.858877 | Y149: =SUMIFS(FM!153:153,FM!$21:$21,Y$5) -> -6577.885663 | Z149: =SUMIFS(FM!153:153,FM!$21:$21,Z$5) -> -6991.846828 | AA149: =SUMIFS(FM!153:153,FM!$21:$21,AA$5) -> -7413.853466 | AB149: =SUMIFS(FM!153:153,FM!$21:$21,AB$5) -> -10416.35866 | AC149: =SUMIFS(FM!153:153,FM!$21:$21,AC$5) -> -11354.7281 | AD149: =SUMIFS(FM!153:153,FM!$21:$21,AD$5) -> -11354.7281 | AE149: =SUMIFS(FM!153:153,FM!$21:$21,AE$5) -> -11354.7281 | AF149: =SUMIFS(FM!153:153,FM!$21:$21,AF$5) -> -11359.49595 | AG149: =SUMIFS(FM!153:153,FM!$21:$21,AG$5) -> -11354.7281 | AH149: =SUMIFS(FM!153:153,FM!$21:$21,AH$5) -> -11354.7281 | AI149: =SUMIFS(FM!153:153,FM!$21:$21,AI$5) -> -11354.7281 | AJ149: =SUMIFS(FM!153:153,FM!$21:$21,AJ$5) -> -11359.49595 | AK149: =SUMIFS(FM!153:153,FM!$21:$21,AK$5) -> -11354.7281 | AL149: =SUMIFS(FM!153:153,FM!$21:$21,AL$5) -> -11354.7281 | AM149: =SUMIFS(FM!153:153,FM!$21:$21,AM$5) -> -8481.191613
D150: =FM!C154 -> Redução de Capital | H150: -5660.553388 | J150: =SUMIFS(FM!154:154,FM!$21:$21,J$5) -> 0 | K150: =SUMIFS(FM!154:154,FM!$21:$21,K$5) -> 0 | L150: =SUMIFS(FM!154:154,FM!$21:$21,L$5) -> 0 | M150: =SUMIFS(FM!154:154,FM!$21:$21,M$5) -> 0 | N150: =SUMIFS(FM!154:154,FM!$21:$21,N$5) -> 0 | O150: =SUMIFS(FM!154:154,FM!$21:$21,O$5) -> 0 | P150: =SUMIFS(FM!154:154,FM!$21:$21,P$5) -> 0 | Q150: =SUMIFS(FM!154:154,FM!$21:$21,Q$5) -> 0 | R150: =SUMIFS(FM!154:154,FM!$21:$21,R$5) -> 0 | S150: =SUMIFS(FM!154:154,FM!$21:$21,S$5) -> 0 | T150: =SUMIFS(FM!154:154,FM!$21:$21,T$5) -> 0 | U150: =SUMIFS(FM!154:154,FM!$21:$21,U$5) -> 0 | V150: =SUMIFS(FM!154:154,FM!$21:$21,V$5) -> 0 | W150: =SUMIFS(FM!154:154,FM!$21:$21,W$5) -> 0 | X150: =SUMIFS(FM!154:154,FM!$21:$21,X$5) -> 0 | Y150: =SUMIFS(FM!154:154,FM!$21:$21,Y$5) -> 0 | Z150: =SUMIFS(FM!154:154,FM!$21:$21,Z$5) -> 0 | AA150: =SUMIFS(FM!154:154,FM!$21:$21,AA$5) -> 0 | AB150: =SUMIFS(FM!154:154,FM!$21:$21,AB$5) -> 0 | AC150: =SUMIFS(FM!154:154,FM!$21:$21,AC$5) -> 0 | AD150: =SUMIFS(FM!154:154,FM!$21:$21,AD$5) -> 0 | AE150: =SUMIFS(FM!154:154,FM!$21:$21,AE$5) -> 0 | AF150: =SUMIFS(FM!154:154,FM!$21:$21,AF$5) -> 0 | AG150: =SUMIFS(FM!154:154,FM!$21:$21,AG$5) -> 0 | AH150: =SUMIFS(FM!154:154,FM!$21:$21,AH$5) -> 0 | AI150: =SUMIFS(FM!154:154,FM!$21:$21,AI$5) -> 0 | AJ150: =SUMIFS(FM!154:154,FM!$21:$21,AJ$5) -> 0 | AK150: =SUMIFS(FM!154:154,FM!$21:$21,AK$5) -> 0 | AL150: =SUMIFS(FM!154:154,FM!$21:$21,AL$5) -> 0 | AM150: =SUMIFS(FM!154:154,FM!$21:$21,AM$5) -> -5660.553388
D151: =FM!C155 -> Fluxo de Caixa de Capital Próprio | H151: -174963.9624 | J151: =SUM(J146:J150) -> 25500 | K151: =SUM(K146:K150) -> 23500 | L151: 0 | M151: 0 | N151: 0 | O151: 0 | P151: 0 | Q151: -30658.94841 | R151: -3619.996752 | S151: -4055.858123 | T151: -4480.118948 | U151: -4868.769258 | V151: -5309.231405 | W151: -5724.674348 | X151: -6147.858877 | Y151: -6577.885663 | Z151: -6991.846828 | AA151: -7413.853466 | AB151: -10416.35866 | AC151: -11354.7281 | AD151: -11354.7281 | AE151: -11354.7281 | AF151: -11359.49595 | AG151: -11354.7281 | AH151: -11354.7281 | AI151: -11354.7281 | AJ151: -11359.49595 | AK151: -11354.7281 | AL151: -11354.7281 | AM151: -14141.745
D153: =FM!C157 -> Fluxo de Caixa Livre | H153: =SUM(J153:AM153) -> -4.001776688e-11 | J153: =J151+J144 -> 2601.960454 | K153: 634.678351 | L153: 1702.569285 | M153: 39055.11817 | N153: -8513.332893 | O153: -28285.40218 | P153: 21964.7931 | Q153: -27160.38429 | R153: 0 | S153: 0 | T153: 0 | U153: 0 | V153: 0 | W153: 0 | X153: 0 | Y153: 0 | Z153: 0 | AA153: 0 | AB153: 0 | AC153: 0 | AD153: 0 | AE153: 0 | AF153: 0 | AG153: 0 | AH153: 0 | AI153: 0 | AJ153: 0 | AK153: 0 | AL153: 0 | AM153: -2000
D155: =FM!C159 -> Caixa BoP | J155: =I162 -> 0 | K155: =J162 -> 2601.960454 | L155: =K162 -> 3236.638805 | M155: 4939.208091 | N155: 43994.32626 | O155: 35480.99337 | P155: 7195.591191 | Q155: 29160.38429 | R155: 2000 | S155: 2000 | T155: 2000 | U155: 2000 | V155: 2000 | W155: 2000 | X155: 2000 | Y155: 2000 | Z155: 2000 | AA155: 2000 | AB155: 2000 | AC155: 2000 | AD155: 2000 | AE155: 2000 | AF155: 2000 | AG155: 2000 | AH155: 2000 | AI155: 2000 | AJ155: 2000 | AK155: 2000 | AL155: 2000 | AM155: 2000
D156: =FM!C160 -> Variação do Caixa | H156: =SUM(J156:AM156) -> -4.001776688e-11 | J156: =J153 -> 2601.960454 | K156: =K153 -> 634.678351 | L156: 1702.569285 | M156: 39055.11817 | N156: -8513.332893 | O156: -28285.40218 | P156: 21964.7931 | Q156: -27160.38429 | R156: 0 | S156: 0 | T156: 0 | U156: 0 | V156: 0 | W156: 0 | X156: 0 | Y156: 0 | Z156: 0 | AA156: 0 | AB156: 0 | AC156: 0 | AD156: 0 | AE156: 0 | AF156: 0 | AG156: 0 | AH156: 0 | AI156: 0 | AJ156: 0 | AK156: 0 | AL156: 0 | AM156: -2000
D157: =FM!C161 -> Caixa EoP | J157: =SUM(J155:J156) -> 2601.960454 | K157: =SUM(K155:K156) -> 3236.638805 | L157: 4939.208091 | M157: 43994.32626 | N157: 35480.99337 | O157: 7195.591191 | P157: 29160.38429 | Q157: 2000 | R157: 2000 | S157: 2000 | T157: 2000 | U157: 2000 | V157: 2000 | W157: 2000 | X157: 2000 | Y157: 2000 | Z157: 2000 | AA157: 2000 | AB157: 2000 | AC157: 2000 | AD157: 2000 | AE157: 2000 | AF157: 2000 | AG157: 2000 | AH157: 2000 | AI157: 2000 | AJ157: 2000 | AK157: 2000 | AL157: 2000 | AM157: 0
C160: BP
D162: =FM!C165 -> Caixa e equivalentes de caixa | J162: =SUMIFS(FM!165:165,FM!$21:$21,J$5,FM!$22:$22,12) -> 2601.960454 | K162: =SUMIFS(FM!165:165,FM!$21:$21,K$5,FM!$22:$22,12) -> 3236.638805 | L162: =SUMIFS(FM!165:165,FM!$21:$21,L$5,FM!$22:$22,12) -> 4939.208091 | M162: =SUMIFS(FM!165:165,FM!$21:$21,M$5,FM!$22:$22,12) -> 43994.32626 | N162: =SUMIFS(FM!165:165,FM!$21:$21,N$5,FM!$22:$22,12) -> 35480.99337 | O162: =SUMIFS(FM!165:165,FM!$21:$21,O$5,FM!$22:$22,12) -> 7195.591191 | P162: =SUMIFS(FM!165:165,FM!$21:$21,P$5,FM!$22:$22,12) -> 29160.38429 | Q162: =SUMIFS(FM!165:165,FM!$21:$21,Q$5,FM!$22:$22,12) -> 2000 | R162: =SUMIFS(FM!165:165,FM!$21:$21,R$5,FM!$22:$22,12) -> 2000 | S162: =SUMIFS(FM!165:165,FM!$21:$21,S$5,FM!$22:$22,12) -> 2000 | T162: =SUMIFS(FM!165:165,FM!$21:$21,T$5,FM!$22:$22,12) -> 2000 | U162: =SUMIFS(FM!165:165,FM!$21:$21,U$5,FM!$22:$22,12) -> 2000 | V162: =SUMIFS(FM!165:165,FM!$21:$21,V$5,FM!$22:$22,12) -> 2000 | W162: =SUMIFS(FM!165:165,FM!$21:$21,W$5,FM!$22:$22,12) -> 2000 | X162: =SUMIFS(FM!165:165,FM!$21:$21,X$5,FM!$22:$22,12) -> 2000 | Y162: =SUMIFS(FM!165:165,FM!$21:$21,Y$5,FM!$22:$22,12) -> 2000 | Z162: =SUMIFS(FM!165:165,FM!$21:$21,Z$5,FM!$22:$22,12) -> 2000 | AA162: =SUMIFS(FM!165:165,FM!$21:$21,AA$5,FM!$22:$22,12) -> 2000 | AB162: =SUMIFS(FM!165:165,FM!$21:$21,AB$5,FM!$22:$22,12) -> 2000 | AC162: =SUMIFS(FM!165:165,FM!$21:$21,AC$5,FM!$22:$22,12) -> 2000 | AD162: =SUMIFS(FM!165:165,FM!$21:$21,AD$5,FM!$22:$22,12) -> 2000 | AE162: =SUMIFS(FM!165:165,FM!$21:$21,AE$5,FM!$22:$22,12) -> 2000 | AF162: =SUMIFS(FM!165:165,FM!$21:$21,AF$5,FM!$22:$22,12) -> 2000 | AG162: =SUMIFS(FM!165:165,FM!$21:$21,AG$5,FM!$22:$22,12) -> 2000 | AH162: =SUMIFS(FM!165:165,FM!$21:$21,AH$5,FM!$22:$22,12) -> 2000 | AI162: =SUMIFS(FM!165:165,FM!$21:$21,AI$5,FM!$22:$22,12) -> 2000 | AJ162: =SUMIFS(FM!165:165,FM!$21:$21,AJ$5,FM!$22:$22,12) -> 2000 | AK162: =SUMIFS(FM!165:165,FM!$21:$21,AK$5,FM!$22:$22,12) -> 2000 | AL162: =SUMIFS(FM!165:165,FM!$21:$21,AL$5,FM!$22:$22,12) -> 2000 | AM162: =SUMIFS(FM!165:165,FM!$21:$21,AM$5,FM!$22:$22,12) -> 0
D163: =FM!C166 -> Contas a receber | J163: =SUMIFS(FM!166:166,FM!$21:$21,J$5,FM!$22:$22,12) -> 0 | K163: =SUMIFS(FM!166:166,FM!$21:$21,K$5,FM!$22:$22,12) -> 1779.225276 | L163: =SUMIFS(FM!166:166,FM!$21:$21,L$5,FM!$22:$22,12) -> 2188.302707 | M163: =SUMIFS(FM!166:166,FM!$21:$21,M$5,FM!$22:$22,12) -> 2247.840732 | N163: =SUMIFS(FM!166:166,FM!$21:$21,N$5,FM!$22:$22,12) -> 2321.996791 | O163: =SUMIFS(FM!166:166,FM!$21:$21,O$5,FM!$22:$22,12) -> 2409.942147 | P163: =SUMIFS(FM!166:166,FM!$21:$21,P$5,FM!$22:$22,12) -> 2572.652596 | Q163: =SUMIFS(FM!166:166,FM!$21:$21,Q$5,FM!$22:$22,12) -> 2572.652596 | R163: =SUMIFS(FM!166:166,FM!$21:$21,R$5,FM!$22:$22,12) -> 2572.652596 | S163: =SUMIFS(FM!166:166,FM!$21:$21,S$5,FM!$22:$22,12) -> 2572.652596 | T163: =SUMIFS(FM!166:166,FM!$21:$21,T$5,FM!$22:$22,12) -> 2572.652596 | U163: =SUMIFS(FM!166:166,FM!$21:$21,U$5,FM!$22:$22,12) -> 2572.652596 | V163: =SUMIFS(FM!166:166,FM!$21:$21,V$5,FM!$22:$22,12) -> 2572.652596 | W163: =SUMIFS(FM!166:166,FM!$21:$21,W$5,FM!$22:$22,12) -> 2572.652596 | X163: =SUMIFS(FM!166:166,FM!$21:$21,X$5,FM!$22:$22,12) -> 2572.652596 | Y163: =SUMIFS(FM!166:166,FM!$21:$21,Y$5,FM!$22:$22,12) -> 2572.652596 | Z163: =SUMIFS(FM!166:166,FM!$21:$21,Z$5,FM!$22:$22,12) -> 2572.652596 | AA163: =SUMIFS(FM!166:166,FM!$21:$21,AA$5,FM!$22:$22,12) -> 2572.652596 | AB163: =SUMIFS(FM!166:166,FM!$21:$21,AB$5,FM!$22:$22,12) -> 2572.652596 | AC163: =SUMIFS(FM!166:166,FM!$21:$21,AC$5,FM!$22:$22,12) -> 2572.652596 | AD163: =SUMIFS(FM!166:166,FM!$21:$21,AD$5,FM!$22:$22,12) -> 2572.652596 | AE163: =SUMIFS(FM!166:166,FM!$21:$21,AE$5,FM!$22:$22,12) -> 2572.652596 | AF163: =SUMIFS(FM!166:166,FM!$21:$21,AF$5,FM!$22:$22,12) -> 2572.652596 | AG163: =SUMIFS(FM!166:166,FM!$21:$21,AG$5,FM!$22:$22,12) -> 2572.652596 | AH163: =SUMIFS(FM!166:166,FM!$21:$21,AH$5,FM!$22:$22,12) -> 2572.652596 | AI163: =SUMIFS(FM!166:166,FM!$21:$21,AI$5,FM!$22:$22,12) -> 2572.652596 | AJ163: =SUMIFS(FM!166:166,FM!$21:$21,AJ$5,FM!$22:$22,12) -> 2572.652596 | AK163: =SUMIFS(FM!166:166,FM!$21:$21,AK$5,FM!$22:$22,12) -> 2572.652596 | AL163: =SUMIFS(FM!166:166,FM!$21:$21,AL$5,FM!$22:$22,12) -> 2572.652596 | AM163: =SUMIFS(FM!166:166,FM!$21:$21,AM$5,FM!$22:$22,12) -> 3.774403012e-11
D164: =FM!C167 -> Despesas Financeiras antecipadas | J164: =SUMIFS(FM!167:167,FM!$21:$21,J$5,FM!$22:$22,12) -> 0 | K164: =SUMIFS(FM!167:167,FM!$21:$21,K$5,FM!$22:$22,12) -> 0 | L164: =SUMIFS(FM!167:167,FM!$21:$21,L$5,FM!$22:$22,12) -> 0 | M164: =SUMIFS(FM!167:167,FM!$21:$21,M$5,FM!$22:$22,12) -> 805.4744471 | N164: =SUMIFS(FM!167:167,FM!$21:$21,N$5,FM!$22:$22,12) -> 749.0467703 | O164: =SUMIFS(FM!167:167,FM!$21:$21,O$5,FM!$22:$22,12) -> 692.5541806 | P164: =SUMIFS(FM!167:167,FM!$21:$21,P$5,FM!$22:$22,12) -> 635.9966034 | Q164: =SUMIFS(FM!167:167,FM!$21:$21,Q$5,FM!$22:$22,12) -> 579.373964 | R164: =SUMIFS(FM!167:167,FM!$21:$21,R$5,FM!$22:$22,12) -> 522.6861874 | S164: =SUMIFS(FM!167:167,FM!$21:$21,S$5,FM!$22:$22,12) -> 465.9331988 | T164: =SUMIFS(FM!167:167,FM!$21:$21,T$5,FM!$22:$22,12) -> 409.1149231 | U164: =SUMIFS(FM!167:167,FM!$21:$21,U$5,FM!$22:$22,12) -> 352.2312853 | V164: =SUMIFS(FM!167:167,FM!$21:$21,V$5,FM!$22:$22,12) -> 295.2822101 | W164: =SUMIFS(FM!167:167,FM!$21:$21,W$5,FM!$22:$22,12) -> 238.2676223 | X164: =SUMIFS(FM!167:167,FM!$21:$21,X$5,FM!$22:$22,12) -> 181.1874465 | Y164: =SUMIFS(FM!167:167,FM!$21:$21,Y$5,FM!$22:$22,12) -> 124.0416072 | Z164: =SUMIFS(FM!167:167,FM!$21:$21,Z$5,FM!$22:$22,12) -> 66.83002897 | AA164: =SUMIFS(FM!167:167,FM!$21:$21,AA$5,FM!$22:$22,12) -> 9.552636102 | AB164: =SUMIFS(FM!167:167,FM!$21:$21,AB$5,FM!$22:$22,12) -> -7.902212218e-11 | AC164: =SUMIFS(FM!167:167,FM!$21:$21,AC$5,FM!$22:$22,12) -> -7.902212218e-11 | AD164: =SUMIFS(FM!167:167,FM!$21:$21,AD$5,FM!$22:$22,12) -> -7.902212218e-11 | AE164: =SUMIFS(FM!167:167,FM!$21:$21,AE$5,FM!$22:$22,12) -> -7.902212218e-11 | AF164: =SUMIFS(FM!167:167,FM!$21:$21,AF$5,FM!$22:$22,12) -> -7.902212218e-11 | AG164: =SUMIFS(FM!167:167,FM!$21:$21,AG$5,FM!$22:$22,12) -> -7.902212218e-11 | AH164: =SUMIFS(FM!167:167,FM!$21:$21,AH$5,FM!$22:$22,12) -> -7.902212218e-11 | AI164: =SUMIFS(FM!167:167,FM!$21:$21,AI$5,FM!$22:$22,12) -> -7.902212218e-11 | AJ164: =SUMIFS(FM!167:167,FM!$21:$21,AJ$5,FM!$22:$22,12) -> -7.902212218e-11 | AK164: =SUMIFS(FM!167:167,FM!$21:$21,AK$5,FM!$22:$22,12) -> -7.902212218e-11 | AL164: =SUMIFS(FM!167:167,FM!$21:$21,AL$5,FM!$22:$22,12) -> -7.902212218e-11 | AM164: =SUMIFS(FM!167:167,FM!$21:$21,AM$5,FM!$22:$22,12) -> -7.902212218e-11
D165: =FM!C168 -> Ativo Financeiro CP | J165: =SUMIFS(FM!168:168,FM!$21:$21,J$5,FM!$22:$22,12) -> 4208.235214 | K165: =SUMIFS(FM!168:168,FM!$21:$21,K$5,FM!$22:$22,12) -> 10909.79205 | L165: =SUMIFS(FM!168:168,FM!$21:$21,L$5,FM!$22:$22,12) -> -4780.820327 | M165: =SUMIFS(FM!168:168,FM!$21:$21,M$5,FM!$22:$22,12) -> -1642.301294 | N165: =SUMIFS(FM!168:168,FM!$21:$21,N$5,FM!$22:$22,12) -> -1447.588548 | O165: =SUMIFS(FM!168:168,FM!$21:$21,O$5,FM!$22:$22,12) -> 2429.294231 | P165: =SUMIFS(FM!168:168,FM!$21:$21,P$5,FM!$22:$22,12) -> -19212.63068 | Q165: =SUMIFS(FM!168:168,FM!$21:$21,Q$5,FM!$22:$22,12) -> -19971.6377 | R165: =SUMIFS(FM!168:168,FM!$21:$21,R$5,FM!$22:$22,12) -> -20671.12389 | S165: =SUMIFS(FM!168:168,FM!$21:$21,S$5,FM!$22:$22,12) -> -21304.22651 | T165: =SUMIFS(FM!168:168,FM!$21:$21,T$5,FM!$22:$22,12) -> -21863.29153 | U165: =SUMIFS(FM!168:168,FM!$21:$21,U$5,FM!$22:$22,12) -> -22339.7824 | V165: =SUMIFS(FM!168:168,FM!$21:$21,V$5,FM!$22:$22,12) -> -22724.17834 | W165: =SUMIFS(FM!168:168,FM!$21:$21,W$5,FM!$22:$22,12) -> -23005.86079 | X165: =SUMIFS(FM!168:168,FM!$21:$21,X$5,FM!$22:$22,12) -> -23172.9869 | Y165: =SUMIFS(FM!168:168,FM!$21:$21,Y$5,FM!$22:$22,12) -> -23212.34831 | Z165: =SUMIFS(FM!168:168,FM!$21:$21,Z$5,FM!$22:$22,12) -> -23109.21375 | AA165: =SUMIFS(FM!168:168,FM!$21:$21,AA$5,FM!$22:$22,12) -> -22847.15345 | AB165: =SUMIFS(FM!168:168,FM!$21:$21,AB$5,FM!$22:$22,12) -> -22407.84325 | AC165: =SUMIFS(FM!168:168,FM!$21:$21,AC$5,FM!$22:$22,12) -> -21770.84626 | AD165: =SUMIFS(FM!168:168,FM!$21:$21,AD$5,FM!$22:$22,12) -> -20913.36917 | AE165: =SUMIFS(FM!168:168,FM!$21:$21,AE$5,FM!$22:$22,12) -> -19809.99065 | AF165: =SUMIFS(FM!168:168,FM!$21:$21,AF$5,FM!$22:$22,12) -> -18432.35824 | AG165: =SUMIFS(FM!168:168,FM!$21:$21,AG$5,FM!$22:$22,12) -> -16748.85048 | AH165: =SUMIFS(FM!168:168,FM!$21:$21,AH$5,FM!$22:$22,12) -> -14724.19994 | AI165: =SUMIFS(FM!168:168,FM!$21:$21,AI$5,FM!$22:$22,12) -> -12319.07286 | AJ165: =SUMIFS(FM!168:168,FM!$21:$21,AJ$5,FM!$22:$22,12) -> -9489.600286 | AK165: =SUMIFS(FM!168:168,FM!$21:$21,AK$5,FM!$22:$22,12) -> -6186.855193 | AL165: =SUMIFS(FM!168:168,FM!$21:$21,AL$5,FM!$22:$22,12) -> -2356.269256 | AM165: =SUMIFS(FM!168:168,FM!$21:$21,AM$5,FM!$22:$22,12) -> 0
D166: =FM!C169 -> Ativo Circulante | J166: =SUM(J162:J165) -> 6810.195669 | K166: =SUM(K162:K165) -> 15925.65613 | L166: 2346.690471 | M166: 45405.34015 | N166: 37104.44838 | O166: 12727.38175 | P166: 13156.40281 | Q166: -14819.61114 | R166: -15575.78511 | S166: -16265.64072 | T166: -16881.52401 | U166: -17414.89852 | V166: -17856.24353 | W166: -18194.94057 | X166: -18419.14686 | Y166: -18515.6541 | Z166: -18469.73113 | AA166: -18264.94821 | AB166: -17835.19066 | AC166: -17198.19366 | AD166: -16340.71658 | AE166: -15237.33805 | AF166: -13859.70564 | AG166: -12176.19788 | AH166: -10151.54734 | AI166: -7746.42026 | AJ166: -4916.94769 | AK166: -1614.202597 | AL166: 2216.383341 | AM166: -4.127809206e-11
D168: =FM!C171 -> IRRF a Compensar | J168: =SUMIFS(FM!171:171,FM!$21:$21,J$5,FM!$22:$22,12) -> 0 | K168: =SUMIFS(FM!171:171,FM!$21:$21,K$5,FM!$22:$22,12) -> 0 | L168: =SUMIFS(FM!171:171,FM!$21:$21,L$5,FM!$22:$22,12) -> 0 | M168: =SUMIFS(FM!171:171,FM!$21:$21,M$5,FM!$22:$22,12) -> 0 | N168: =SUMIFS(FM!171:171,FM!$21:$21,N$5,FM!$22:$22,12) -> 0 | O168: =SUMIFS(FM!171:171,FM!$21:$21,O$5,FM!$22:$22,12) -> 0 | P168: =SUMIFS(FM!171:171,FM!$21:$21,P$5,FM!$22:$22,12) -> 0 | Q168: =SUMIFS(FM!171:171,FM!$21:$21,Q$5,FM!$22:$22,12) -> 0 | R168: =SUMIFS(FM!171:171,FM!$21:$21,R$5,FM!$22:$22,12) -> 0 | S168: =SUMIFS(FM!171:171,FM!$21:$21,S$5,FM!$22:$22,12) -> 0 | T168: =SUMIFS(FM!171:171,FM!$21:$21,T$5,FM!$22:$22,12) -> 0 | U168: =SUMIFS(FM!171:171,FM!$21:$21,U$5,FM!$22:$22,12) -> 0 | V168: =SUMIFS(FM!171:171,FM!$21:$21,V$5,FM!$22:$22,12) -> 0 | W168: =SUMIFS(FM!171:171,FM!$21:$21,W$5,FM!$22:$22,12) -> 0 | X168: =SUMIFS(FM!171:171,FM!$21:$21,X$5,FM!$22:$22,12) -> 0 | Y168: =SUMIFS(FM!171:171,FM!$21:$21,Y$5,FM!$22:$22,12) -> 0 | Z168: =SUMIFS(FM!171:171,FM!$21:$21,Z$5,FM!$22:$22,12) -> 0 | AA168: =SUMIFS(FM!171:171,FM!$21:$21,AA$5,FM!$22:$22,12) -> 0 | AB168: =SUMIFS(FM!171:171,FM!$21:$21,AB$5,FM!$22:$22,12) -> 0 | AC168: =SUMIFS(FM!171:171,FM!$21:$21,AC$5,FM!$22:$22,12) -> 0 | AD168: =SUMIFS(FM!171:171,FM!$21:$21,AD$5,FM!$22:$22,12) -> 0 | AE168: =SUMIFS(FM!171:171,FM!$21:$21,AE$5,FM!$22:$22,12) -> 0 | AF168: =SUMIFS(FM!171:171,FM!$21:$21,AF$5,FM!$22:$22,12) -> 0 | AG168: =SUMIFS(FM!171:171,FM!$21:$21,AG$5,FM!$22:$22,12) -> 0 | AH168: =SUMIFS(FM!171:171,FM!$21:$21,AH$5,FM!$22:$22,12) -> 0 | AI168: =SUMIFS(FM!171:171,FM!$21:$21,AI$5,FM!$22:$22,12) -> 0 | AJ168: =SUMIFS(FM!171:171,FM!$21:$21,AJ$5,FM!$22:$22,12) -> 0 | AK168: =SUMIFS(FM!171:171,FM!$21:$21,AK$5,FM!$22:$22,12) -> 0 | AL168: =SUMIFS(FM!171:171,FM!$21:$21,AL$5,FM!$22:$22,12) -> 0 | AM168: =SUMIFS(FM!171:171,FM!$21:$21,AM$5,FM!$22:$22,12) -> 0
D169: =FM!C172 -> Ativo Imobilizado e Intangível | J169: =SUMIFS(FM!172:172,FM!$21:$21,J$5,FM!$22:$22,12) -> 0 | K169: =SUMIFS(FM!172:172,FM!$21:$21,K$5,FM!$22:$22,12) -> 1217.59005 | L169: =SUMIFS(FM!172:172,FM!$21:$21,L$5,FM!$22:$22,12) -> 14373.17938 | M169: =SUMIFS(FM!172:172,FM!$21:$21,M$5,FM!$22:$22,12) -> 18719.61938 | N169: =SUMIFS(FM!172:172,FM!$21:$21,N$5,FM!$22:$22,12) -> 18719.61938 | O169: =SUMIFS(FM!172:172,FM!$21:$21,O$5,FM!$22:$22,12) -> 25274.59938 | P169: =SUMIFS(FM!172:172,FM!$21:$21,P$5,FM!$22:$22,12) -> 25274.59938 | Q169: =SUMIFS(FM!172:172,FM!$21:$21,Q$5,FM!$22:$22,12) -> 25274.59938 | R169: =SUMIFS(FM!172:172,FM!$21:$21,R$5,FM!$22:$22,12) -> 25274.59938 | S169: =SUMIFS(FM!172:172,FM!$21:$21,S$5,FM!$22:$22,12) -> 25274.59938 | T169: =SUMIFS(FM!172:172,FM!$21:$21,T$5,FM!$22:$22,12) -> 25274.59938 | U169: =SUMIFS(FM!172:172,FM!$21:$21,U$5,FM!$22:$22,12) -> 25274.59938 | V169: =SUMIFS(FM!172:172,FM!$21:$21,V$5,FM!$22:$22,12) -> 25274.59938 | W169: =SUMIFS(FM!172:172,FM!$21:$21,W$5,FM!$22:$22,12) -> 25274.59938 | X169: =SUMIFS(FM!172:172,FM!$21:$21,X$5,FM!$22:$22,12) -> 25274.59938 | Y169: =SUMIFS(FM!172:172,FM!$21:$21,Y$5,FM!$22:$22,12) -> 25274.59938 | Z169: =SUMIFS(FM!172:172,FM!$21:$21,Z$5,FM!$22:$22,12) -> 25274.59938 | AA169: =SUMIFS(FM!172:172,FM!$21:$21,AA$5,FM!$22:$22,12) -> 25274.59938 | AB169: =SUMIFS(FM!172:172,FM!$21:$21,AB$5,FM!$22:$22,12) -> 25274.59938 | AC169: =SUMIFS(FM!172:172,FM!$21:$21,AC$5,FM!$22:$22,12) -> 25274.59938 | AD169: =SUMIFS(FM!172:172,FM!$21:$21,AD$5,FM!$22:$22,12) -> 25274.59938 | AE169: =SUMIFS(FM!172:172,FM!$21:$21,AE$5,FM!$22:$22,12) -> 25274.59938 | AF169: =SUMIFS(FM!172:172,FM!$21:$21,AF$5,FM!$22:$22,12) -> 25274.59938 | AG169: =SUMIFS(FM!172:172,FM!$21:$21,AG$5,FM!$22:$22,12) -> 25274.59938 | AH169: =SUMIFS(FM!172:172,FM!$21:$21,AH$5,FM!$22:$22,12) -> 25274.59938 | AI169: =SUMIFS(FM!172:172,FM!$21:$21,AI$5,FM!$22:$22,12) -> 25274.59938 | AJ169: =SUMIFS(FM!172:172,FM!$21:$21,AJ$5,FM!$22:$22,12) -> 25274.59938 | AK169: =SUMIFS(FM!172:172,FM!$21:$21,AK$5,FM!$22:$22,12) -> 25274.59938 | AL169: =SUMIFS(FM!172:172,FM!$21:$21,AL$5,FM!$22:$22,12) -> 25274.59938 | AM169: =SUMIFS(FM!172:172,FM!$21:$21,AM$5,FM!$22:$22,12) -> 25274.59938
D170: =FM!C173 -> Ativo Imobilizado e Intangível Concessão | J170: =SUMIFS(FM!173:173,FM!$21:$21,J$5,FM!$22:$22,12) -> 17996.61079 | K170: =SUMIFS(FM!173:173,FM!$21:$21,K$5,FM!$22:$22,12) -> 40486.38716 | L170: =SUMIFS(FM!173:173,FM!$21:$21,L$5,FM!$22:$22,12) -> 49689.43908 | M170: =SUMIFS(FM!173:173,FM!$21:$21,M$5,FM!$22:$22,12) -> 62841.26083 | N170: =SUMIFS(FM!173:173,FM!$21:$21,N$5,FM!$22:$22,12) -> 76553.20159 | O170: =SUMIFS(FM!173:173,FM!$21:$21,O$5,FM!$22:$22,12) -> 97699.97454 | P170: =SUMIFS(FM!173:173,FM!$21:$21,P$5,FM!$22:$22,12) -> 97593.89661 | Q170: =SUMIFS(FM!173:173,FM!$21:$21,Q$5,FM!$22:$22,12) -> 97471.6835 | R170: =SUMIFS(FM!173:173,FM!$21:$21,R$5,FM!$22:$22,12) -> 97327.42854 | S170: =SUMIFS(FM!173:173,FM!$21:$21,S$5,FM!$22:$22,12) -> 97154.69656 | T170: =SUMIFS(FM!173:173,FM!$21:$21,T$5,FM!$22:$22,12) -> 96946.40123 | U170: =SUMIFS(FM!173:173,FM!$21:$21,U$5,FM!$22:$22,12) -> 96694.65333 | V170: =SUMIFS(FM!173:173,FM!$21:$21,V$5,FM!$22:$22,12) -> 96390.56997 | W170: =SUMIFS(FM!173:173,FM!$21:$21,W$5,FM!$22:$22,12) -> 96024.03142 | X170: =SUMIFS(FM!173:173,FM!$21:$21,X$5,FM!$22:$22,12) -> 95583.36603 | Y170: =SUMIFS(FM!173:173,FM!$21:$21,Y$5,FM!$22:$22,12) -> 95054.93487 | Z170: =SUMIFS(FM!173:173,FM!$21:$21,Z$5,FM!$22:$22,12) -> 94422.57402 | AA170: =SUMIFS(FM!173:173,FM!$21:$21,AA$5,FM!$22:$22,12) -> 93666.82957 | AB170: =SUMIFS(FM!173:173,FM!$21:$21,AB$5,FM!$22:$22,12) -> 92763.88339 | AC170: =SUMIFS(FM!173:173,FM!$21:$21,AC$5,FM!$22:$22,12) -> 91684.00313 | AD170: =SUMIFS(FM!173:173,FM!$21:$21,AD$5,FM!$22:$22,12) -> 90389.2334 | AE170: =SUMIFS(FM!173:173,FM!$21:$21,AE$5,FM!$22:$22,12) -> 88829.82531 | AF170: =SUMIFS(FM!173:173,FM!$21:$21,AF$5,FM!$22:$22,12) -> 86938.457 | AG170: =SUMIFS(FM!173:173,FM!$21:$21,AG$5,FM!$22:$22,12) -> 84620.33616 | AH170: =SUMIFS(FM!173:173,FM!$21:$21,AH$5,FM!$22:$22,12) -> 81734.98397 | AI170: =SUMIFS(FM!173:173,FM!$21:$21,AI$5,FM!$22:$22,12) -> 78059.34566 | AJ170: =SUMIFS(FM!173:173,FM!$21:$21,AJ$5,FM!$22:$22,12) -> 73202.357 | AK170: =SUMIFS(FM!173:173,FM!$21:$21,AK$5,FM!$22:$22,12) -> 66361.89315 | AL170: =SUMIFS(FM!173:173,FM!$21:$21,AL$5,FM!$22:$22,12) -> 55319.71331 | AM170: =SUMIFS(FM!173:173,FM!$21:$21,AM$5,FM!$22:$22,12) -> 18158.74902
D171: =FM!C174 -> Ativo Financeiro LP | J171: =SUMIFS(FM!174:174,FM!$21:$21,J$5,FM!$22:$22,12) -> 0 | K171: =SUMIFS(FM!174:174,FM!$21:$21,K$5,FM!$22:$22,12) -> 0 | L171: =SUMIFS(FM!174:174,FM!$21:$21,L$5,FM!$22:$22,12) -> 0 | M171: =SUMIFS(FM!174:174,FM!$21:$21,M$5,FM!$22:$22,12) -> 0 | N171: =SUMIFS(FM!174:174,FM!$21:$21,N$5,FM!$22:$22,12) -> 0 | O171: =SUMIFS(FM!174:174,FM!$21:$21,O$5,FM!$22:$22,12) -> 0 | P171: =SUMIFS(FM!174:174,FM!$21:$21,P$5,FM!$22:$22,12) -> 0 | Q171: =SUMIFS(FM!174:174,FM!$21:$21,Q$5,FM!$22:$22,12) -> 0 | R171: =SUMIFS(FM!174:174,FM!$21:$21,R$5,FM!$22:$22,12) -> 0 | S171: =SUMIFS(FM!174:174,FM!$21:$21,S$5,FM!$22:$22,12) -> 0 | T171: =SUMIFS(FM!174:174,FM!$21:$21,T$5,FM!$22:$22,12) -> 0 | U171: =SUMIFS(FM!174:174,FM!$21:$21,U$5,FM!$22:$22,12) -> 0 | V171: =SUMIFS(FM!174:174,FM!$21:$21,V$5,FM!$22:$22,12) -> 0 | W171: =SUMIFS(FM!174:174,FM!$21:$21,W$5,FM!$22:$22,12) -> 0 | X171: =SUMIFS(FM!174:174,FM!$21:$21,X$5,FM!$22:$22,12) -> 0 | Y171: =SUMIFS(FM!174:174,FM!$21:$21,Y$5,FM!$22:$22,12) -> 0 | Z171: =SUMIFS(FM!174:174,FM!$21:$21,Z$5,FM!$22:$22,12) -> 0 | AA171: =SUMIFS(FM!174:174,FM!$21:$21,AA$5,FM!$22:$22,12) -> 0 | AB171: =SUMIFS(FM!174:174,FM!$21:$21,AB$5,FM!$22:$22,12) -> 0 | AC171: =SUMIFS(FM!174:174,FM!$21:$21,AC$5,FM!$22:$22,12) -> 0 | AD171: =SUMIFS(FM!174:174,FM!$21:$21,AD$5,FM!$22:$22,12) -> 0 | AE171: =SUMIFS(FM!174:174,FM!$21:$21,AE$5,FM!$22:$22,12) -> 0 | AF171: =SUMIFS(FM!174:174,FM!$21:$21,AF$5,FM!$22:$22,12) -> 0 | AG171: =SUMIFS(FM!174:174,FM!$21:$21,AG$5,FM!$22:$22,12) -> 0 | AH171: =SUMIFS(FM!174:174,FM!$21:$21,AH$5,FM!$22:$22,12) -> 0 | AI171: =SUMIFS(FM!174:174,FM!$21:$21,AI$5,FM!$22:$22,12) -> 0 | AJ171: =SUMIFS(FM!174:174,FM!$21:$21,AJ$5,FM!$22:$22,12) -> 0 | AK171: =SUMIFS(FM!174:174,FM!$21:$21,AK$5,FM!$22:$22,12) -> 0 | AL171: =SUMIFS(FM!174:174,FM!$21:$21,AL$5,FM!$22:$22,12) -> 0 | AM171: =SUMIFS(FM!174:174,FM!$21:$21,AM$5,FM!$22:$22,12) -> 2.539603054e-05
D172: =FM!C175 -> Ativo Não Circulante | J172: =SUM(J168:J171) -> 17996.61079 | K172: 41703.97721 | L172: 64062.61846 | M172: 81560.88021 | N172: 95272.82098 | O172: 122974.5739 | P172: 122868.496 | Q172: 122746.2829 | R172: 122602.0279 | S172: 122429.2959 | T172: 122221.0006 | U172: 121969.2527 | V172: 121665.1694 | W172: 121298.6308 | X172: 120857.9654 | Y172: 120329.5343 | Z172: 119697.1734 | AA172: 118941.429 | AB172: 118038.4828 | AC172: 116958.6025 | AD172: 115663.8328 | AE172: 114104.4247 | AF172: 112213.0564 | AG172: 109894.9355 | AH172: 107009.5834 | AI172: 103333.945 | AJ172: 98476.95638 | AK172: 91636.49253 | AL172: 80594.3127 | AM172: 43433.34843
D174: =FM!C177 -> Ativo Total | J174: =J172+J166 -> 24806.80646 | K174: 57629.63335 | L174: 66409.30893 | M174: 126966.2204 | N174: 132377.2694 | O174: 135701.9557 | P174: 136024.8988 | Q174: 107926.6717 | R174: 107026.2428 | S174: 106163.6552 | T174: 105339.4766 | U174: 104554.3542 | V174: 103808.9258 | W174: 103103.6902 | X174: 102438.8186 | Y174: 101813.8801 | Z174: 101227.4423 | AA174: 100676.4807 | AB174: 100203.2921 | AC174: 99760.40885 | AD174: 99323.11621 | AE174: 98867.08664 | AF174: 98353.35074 | AG174: 97718.73766 | AH174: 96858.03601 | AI174: 95587.52478 | AJ174: 93560.00869 | AK174: 90022.28994 | AL174: 82810.69604 | AM174: 43433.34843
D176: =FM!C180 -> Financiamento de curto prazo | J176: =SUMIFS(FM!180:180,FM!$21:$21,J$5,FM!$22:$22,12) -> 0 | K176: =SUMIFS(FM!180:180,FM!$21:$21,K$5,FM!$22:$22,12) -> 0 | L176: =SUMIFS(FM!180:180,FM!$21:$21,L$5,FM!$22:$22,12) -> 0 | M176: =SUMIFS(FM!180:180,FM!$21:$21,M$5,FM!$22:$22,12) -> 3438.596491 | N176: =SUMIFS(FM!180:180,FM!$21:$21,N$5,FM!$22:$22,12) -> 3438.596491 | O176: =SUMIFS(FM!180:180,FM!$21:$21,O$5,FM!$22:$22,12) -> 3438.596491 | P176: =SUMIFS(FM!180:180,FM!$21:$21,P$5,FM!$22:$22,12) -> 3438.596491 | Q176: =SUMIFS(FM!180:180,FM!$21:$21,Q$5,FM!$22:$22,12) -> 3438.596491 | R176: =SUMIFS(FM!180:180,FM!$21:$21,R$5,FM!$22:$22,12) -> 3438.596491 | S176: =SUMIFS(FM!180:180,FM!$21:$21,S$5,FM!$22:$22,12) -> 3438.596491 | T176: =SUMIFS(FM!180:180,FM!$21:$21,T$5,FM!$22:$22,12) -> 3438.596491 | U176: =SUMIFS(FM!180:180,FM!$21:$21,U$5,FM!$22:$22,12) -> 3438.596491 | V176: =SUMIFS(FM!180:180,FM!$21:$21,V$5,FM!$22:$22,12) -> 3438.596491 | W176: =SUMIFS(FM!180:180,FM!$21:$21,W$5,FM!$22:$22,12) -> 3438.596491 | X176: =SUMIFS(FM!180:180,FM!$21:$21,X$5,FM!$22:$22,12) -> 3438.596491 | Y176: =SUMIFS(FM!180:180,FM!$21:$21,Y$5,FM!$22:$22,12) -> 3438.596491 | Z176: =SUMIFS(FM!180:180,FM!$21:$21,Z$5,FM!$22:$22,12) -> 3438.596491 | AA176: =SUMIFS(FM!180:180,FM!$21:$21,AA$5,FM!$22:$22,12) -> 859.6491228 | AB176: =SUMIFS(FM!180:180,FM!$21:$21,AB$5,FM!$22:$22,12) -> 0 | AC176: =SUMIFS(FM!180:180,FM!$21:$21,AC$5,FM!$22:$22,12) -> 0 | AD176: =SUMIFS(FM!180:180,FM!$21:$21,AD$5,FM!$22:$22,12) -> 0 | AE176: =SUMIFS(FM!180:180,FM!$21:$21,AE$5,FM!$22:$22,12) -> 0 | AF176: =SUMIFS(FM!180:180,FM!$21:$21,AF$5,FM!$22:$22,12) -> 0 | AG176: =SUMIFS(FM!180:180,FM!$21:$21,AG$5,FM!$22:$22,12) -> 0 | AH176: =SUMIFS(FM!180:180,FM!$21:$21,AH$5,FM!$22:$22,12) -> 0 | AI176: =SUMIFS(FM!180:180,FM!$21:$21,AI$5,FM!$22:$22,12) -> 0 | AJ176: =SUMIFS(FM!180:180,FM!$21:$21,AJ$5,FM!$22:$22,12) -> 0 | AK176: =SUMIFS(FM!180:180,FM!$21:$21,AK$5,FM!$22:$22,12) -> 0 | AL176: =SUMIFS(FM!180:180,FM!$21:$21,AL$5,FM!$22:$22,12) -> 0 | AM176: =SUMIFS(FM!180:180,FM!$21:$21,AM$5,FM!$22:$22,12) -> 0
D177: =FM!C181 -> Contas a pagar | J177: =SUMIFS(FM!181:181,FM!$21:$21,J$5,FM!$22:$22,12) -> 292.9182694 | K177: =SUMIFS(FM!181:181,FM!$21:$21,K$5,FM!$22:$22,12) -> 358.3100043 | L177: =SUMIFS(FM!181:181,FM!$21:$21,L$5,FM!$22:$22,12) -> 524.872831 | M177: =SUMIFS(FM!181:181,FM!$21:$21,M$5,FM!$22:$22,12) -> 650.9429949 | N177: =SUMIFS(FM!181:181,FM!$21:$21,N$5,FM!$22:$22,12) -> 841.479772 | O177: =SUMIFS(FM!181:181,FM!$21:$21,O$5,FM!$22:$22,12) -> 994.6506177 | P177: =SUMIFS(FM!181:181,FM!$21:$21,P$5,FM!$22:$22,12) -> 956.7632062 | Q177: =SUMIFS(FM!181:181,FM!$21:$21,Q$5,FM!$22:$22,12) -> 956.7632062 | R177: =SUMIFS(FM!181:181,FM!$21:$21,R$5,FM!$22:$22,12) -> 956.7632062 | S177: =SUMIFS(FM!181:181,FM!$21:$21,S$5,FM!$22:$22,12) -> 956.7632062 | T177: =SUMIFS(FM!181:181,FM!$21:$21,T$5,FM!$22:$22,12) -> 956.7632062 | U177: =SUMIFS(FM!181:181,FM!$21:$21,U$5,FM!$22:$22,12) -> 956.7632062 | V177: =SUMIFS(FM!181:181,FM!$21:$21,V$5,FM!$22:$22,12) -> 956.7632062 | W177: =SUMIFS(FM!181:181,FM!$21:$21,W$5,FM!$22:$22,12) -> 956.7632062 | X177: =SUMIFS(FM!181:181,FM!$21:$21,X$5,FM!$22:$22,12) -> 956.7632062 | Y177: =SUMIFS(FM!181:181,FM!$21:$21,Y$5,FM!$22:$22,12) -> 956.7632062 | Z177: =SUMIFS(FM!181:181,FM!$21:$21,Z$5,FM!$22:$22,12) -> 956.7632062 | AA177: =SUMIFS(FM!181:181,FM!$21:$21,AA$5,FM!$22:$22,12) -> 956.7632062 | AB177: =SUMIFS(FM!181:181,FM!$21:$21,AB$5,FM!$22:$22,12) -> 956.7632062 | AC177: =SUMIFS(FM!181:181,FM!$21:$21,AC$5,FM!$22:$22,12) -> 956.7632062 | AD177: =SUMIFS(FM!181:181,FM!$21:$21,AD$5,FM!$22:$22,12) -> 956.7632062 | AE177: =SUMIFS(FM!181:181,FM!$21:$21,AE$5,FM!$22:$22,12) -> 956.7632062 | AF177: =SUMIFS(FM!181:181,FM!$21:$21,AF$5,FM!$22:$22,12) -> 956.7632062 | AG177: =SUMIFS(FM!181:181,FM!$21:$21,AG$5,FM!$22:$22,12) -> 956.7632062 | AH177: =SUMIFS(FM!181:181,FM!$21:$21,AH$5,FM!$22:$22,12) -> 956.7632062 | AI177: =SUMIFS(FM!181:181,FM!$21:$21,AI$5,FM!$22:$22,12) -> 956.7632062 | AJ177: =SUMIFS(FM!181:181,FM!$21:$21,AJ$5,FM!$22:$22,12) -> 956.7632062 | AK177: =SUMIFS(FM!181:181,FM!$21:$21,AK$5,FM!$22:$22,12) -> 956.7632062 | AL177: =SUMIFS(FM!181:181,FM!$21:$21,AL$5,FM!$22:$22,12) -> 956.7632062 | AM177: =SUMIFS(FM!181:181,FM!$21:$21,AM$5,FM!$22:$22,12) -> -1.591615728e-12
D178: =FM!C182 -> Capex a pagar | J178: =SUMIFS(FM!182:182,FM!$21:$21,J$5,FM!$22:$22,12) -> 1960.621333 | K178: =SUMIFS(FM!182:182,FM!$21:$21,K$5,FM!$22:$22,12) -> 2873.755622 | L178: =SUMIFS(FM!182:182,FM!$21:$21,L$5,FM!$22:$22,12) -> 777.6496902 | M178: =SUMIFS(FM!182:182,FM!$21:$21,M$5,FM!$22:$22,12) -> 1630.336226 | N178: =SUMIFS(FM!182:182,FM!$21:$21,N$5,FM!$22:$22,12) -> 2992.269716 | O178: =SUMIFS(FM!182:182,FM!$21:$21,O$5,FM!$22:$22,12) -> 3444.153408 | P178: =SUMIFS(FM!182:182,FM!$21:$21,P$5,FM!$22:$22,12) -> 440.5299613 | Q178: =SUMIFS(FM!182:182,FM!$21:$21,Q$5,FM!$22:$22,12) -> 440.5299613 | R178: =SUMIFS(FM!182:182,FM!$21:$21,R$5,FM!$22:$22,12) -> 440.5299613 | S178: =SUMIFS(FM!182:182,FM!$21:$21,S$5,FM!$22:$22,12) -> 440.5299613 | T178: =SUMIFS(FM!182:182,FM!$21:$21,T$5,FM!$22:$22,12) -> 440.5299613 | U178: =SUMIFS(FM!182:182,FM!$21:$21,U$5,FM!$22:$22,12) -> 440.5299613 | V178: =SUMIFS(FM!182:182,FM!$21:$21,V$5,FM!$22:$22,12) -> 440.5299613 | W178: =SUMIFS(FM!182:182,FM!$21:$21,W$5,FM!$22:$22,12) -> 440.5299613 | X178: =SUMIFS(FM!182:182,FM!$21:$21,X$5,FM!$22:$22,12) -> 440.5299613 | Y178: =SUMIFS(FM!182:182,FM!$21:$21,Y$5,FM!$22:$22,12) -> 440.5299613 | Z178: =SUMIFS(FM!182:182,FM!$21:$21,Z$5,FM!$22:$22,12) -> 440.5299613 | AA178: =SUMIFS(FM!182:182,FM!$21:$21,AA$5,FM!$22:$22,12) -> 440.5299613 | AB178: =SUMIFS(FM!182:182,FM!$21:$21,AB$5,FM!$22:$22,12) -> 440.5299613 | AC178: =SUMIFS(FM!182:182,FM!$21:$21,AC$5,FM!$22:$22,12) -> 440.5299613 | AD178: =SUMIFS(FM!182:182,FM!$21:$21,AD$5,FM!$22:$22,12) -> 440.5299613 | AE178: =SUMIFS(FM!182:182,FM!$21:$21,AE$5,FM!$22:$22,12) -> 440.5299613 | AF178: =SUMIFS(FM!182:182,FM!$21:$21,AF$5,FM!$22:$22,12) -> 440.5299613 | AG178: =SUMIFS(FM!182:182,FM!$21:$21,AG$5,FM!$22:$22,12) -> 440.5299613 | AH178: =SUMIFS(FM!182:182,FM!$21:$21,AH$5,FM!$22:$22,12) -> 440.5299613 | AI178: =SUMIFS(FM!182:182,FM!$21:$21,AI$5,FM!$22:$22,12) -> 440.5299613 | AJ178: =SUMIFS(FM!182:182,FM!$21:$21,AJ$5,FM!$22:$22,12) -> 440.5299613 | AK178: =SUMIFS(FM!182:182,FM!$21:$21,AK$5,FM!$22:$22,12) -> 440.5299613 | AL178: =SUMIFS(FM!182:182,FM!$21:$21,AL$5,FM!$22:$22,12) -> 440.5299613 | AM178: =SUMIFS(FM!182:182,FM!$21:$21,AM$5,FM!$22:$22,12) -> 0
D179: =FM!C183 -> Tributos a pagar (a Recuperar) | J179: =SUMIFS(FM!183:183,FM!$21:$21,J$5,FM!$22:$22,12) -> 0 | K179: =SUMIFS(FM!183:183,FM!$21:$21,K$5,FM!$22:$22,12) -> 148.0062768 | L179: =SUMIFS(FM!183:183,FM!$21:$21,L$5,FM!$22:$22,12) -> 178.6968037 | M179: =SUMIFS(FM!183:183,FM!$21:$21,M$5,FM!$22:$22,12) -> 183.3795929 | N179: =SUMIFS(FM!183:183,FM!$21:$21,N$5,FM!$22:$22,12) -> 189.7940919 | O179: =SUMIFS(FM!183:183,FM!$21:$21,O$5,FM!$22:$22,12) -> 197.4013652 | P179: =SUMIFS(FM!183:183,FM!$21:$21,P$5,FM!$22:$22,12) -> 211.4758191 | Q179: =SUMIFS(FM!183:183,FM!$21:$21,Q$5,FM!$22:$22,12) -> 211.4758191 | R179: =SUMIFS(FM!183:183,FM!$21:$21,R$5,FM!$22:$22,12) -> 211.4758191 | S179: =SUMIFS(FM!183:183,FM!$21:$21,S$5,FM!$22:$22,12) -> 211.4758191 | T179: =SUMIFS(FM!183:183,FM!$21:$21,T$5,FM!$22:$22,12) -> 211.4758191 | U179: =SUMIFS(FM!183:183,FM!$21:$21,U$5,FM!$22:$22,12) -> 211.4758191 | V179: =SUMIFS(FM!183:183,FM!$21:$21,V$5,FM!$22:$22,12) -> 211.4758191 | W179: =SUMIFS(FM!183:183,FM!$21:$21,W$5,FM!$22:$22,12) -> 211.4758191 | X179: =SUMIFS(FM!183:183,FM!$21:$21,X$5,FM!$22:$22,12) -> 211.4758191 | Y179: =SUMIFS(FM!183:183,FM!$21:$21,Y$5,FM!$22:$22,12) -> 211.4758191 | Z179: =SUMIFS(FM!183:183,FM!$21:$21,Z$5,FM!$22:$22,12) -> 211.4758191 | AA179: =SUMIFS(FM!183:183,FM!$21:$21,AA$5,FM!$22:$22,12) -> 211.4758191 | AB179: =SUMIFS(FM!183:183,FM!$21:$21,AB$5,FM!$22:$22,12) -> 211.4758191 | AC179: =SUMIFS(FM!183:183,FM!$21:$21,AC$5,FM!$22:$22,12) -> 211.4758191 | AD179: =SUMIFS(FM!183:183,FM!$21:$21,AD$5,FM!$22:$22,12) -> 211.4758191 | AE179: =SUMIFS(FM!183:183,FM!$21:$21,AE$5,FM!$22:$22,12) -> 211.4758191 | AF179: =SUMIFS(FM!183:183,FM!$21:$21,AF$5,FM!$22:$22,12) -> 211.4758191 | AG179: =SUMIFS(FM!183:183,FM!$21:$21,AG$5,FM!$22:$22,12) -> 211.4758191 | AH179: =SUMIFS(FM!183:183,FM!$21:$21,AH$5,FM!$22:$22,12) -> 211.4758191 | AI179: =SUMIFS(FM!183:183,FM!$21:$21,AI$5,FM!$22:$22,12) -> 211.4758191 | AJ179: =SUMIFS(FM!183:183,FM!$21:$21,AJ$5,FM!$22:$22,12) -> 211.4758191 | AK179: =SUMIFS(FM!183:183,FM!$21:$21,AK$5,FM!$22:$22,12) -> 211.4758191 | AL179: =SUMIFS(FM!183:183,FM!$21:$21,AL$5,FM!$22:$22,12) -> 211.4758191 | AM179: =SUMIFS(FM!183:183,FM!$21:$21,AM$5,FM!$22:$22,12) -> 93.90181976
D180: =FM!C184 -> Passivo Circulante | J180: =SUM(J176:J179) -> 2253.539602 | K180: =SUM(K176:K179) -> 3380.071903 | L180: 1481.219325 | M180: 5903.255305 | N180: 7462.140071 | O180: 8074.801882 | P180: 5047.365478 | Q180: 5047.365478 | R180: 5047.365478 | S180: 5047.365478 | T180: 5047.365478 | U180: 5047.365478 | V180: 5047.365478 | W180: 5047.365478 | X180: 5047.365478 | Y180: 5047.365478 | Z180: 5047.365478 | AA180: 2468.418109 | AB180: 1608.768987 | AC180: 1608.768987 | AD180: 1608.768987 | AE180: 1608.768987 | AF180: 1608.768987 | AG180: 1608.768987 | AH180: 1608.768987 | AI180: 1608.768987 | AJ180: 1608.768987 | AK180: 1608.768987 | AL180: 1608.768987 | AM180: 93.90181976
D182: =FM!C186 -> IR/CSLL Diferidos (a Recuperar) | J182: =SUMIFS(FM!186:186,FM!$21:$21,J$5,FM!$22:$22,12) -> 9.690804256 | K182: =SUMIFS(FM!186:186,FM!$21:$21,K$5,FM!$22:$22,12) -> 200.9165516 | L182: =SUMIFS(FM!186:186,FM!$21:$21,L$5,FM!$22:$22,12) -> 246.0580313 | M182: =SUMIFS(FM!186:186,FM!$21:$21,M$5,FM!$22:$22,12) -> 346.0004484 | N182: =SUMIFS(FM!186:186,FM!$21:$21,N$5,FM!$22:$22,12) -> 335.5047519 | O182: =SUMIFS(FM!186:186,FM!$21:$21,O$5,FM!$22:$22,12) -> 278.4399917 | P182: =SUMIFS(FM!186:186,FM!$21:$21,P$5,FM!$22:$22,12) -> 344.323081 | Q182: =SUMIFS(FM!186:186,FM!$21:$21,Q$5,FM!$22:$22,12) -> 283.4957401 | R182: =SUMIFS(FM!186:186,FM!$21:$21,R$5,FM!$22:$22,12) -> 284.0603587 | S182: =SUMIFS(FM!186:186,FM!$21:$21,S$5,FM!$22:$22,12) -> 284.4643611 | T182: =SUMIFS(FM!186:186,FM!$21:$21,T$5,FM!$22:$22,12) -> 284.4630474 | U182: =SUMIFS(FM!186:186,FM!$21:$21,U$5,FM!$22:$22,12) -> 284.4618081 | V182: =SUMIFS(FM!186:186,FM!$21:$21,V$5,FM!$22:$22,12) -> 284.460704 | W182: =SUMIFS(FM!186:186,FM!$21:$21,W$5,FM!$22:$22,12) -> 284.4595069 | X182: =SUMIFS(FM!186:186,FM!$21:$21,X$5,FM!$22:$22,12) -> 284.4583335 | Y182: =SUMIFS(FM!186:186,FM!$21:$21,Y$5,FM!$22:$22,12) -> 284.4570875 | Z182: =SUMIFS(FM!186:186,FM!$21:$21,Z$5,FM!$22:$22,12) -> 284.4558819 | AA182: =SUMIFS(FM!186:186,FM!$21:$21,AA$5,FM!$22:$22,12) -> 284.4547102 | AB182: =SUMIFS(FM!186:186,FM!$21:$21,AB$5,FM!$22:$22,12) -> 286.5020102 | AC182: =SUMIFS(FM!186:186,FM!$21:$21,AC$5,FM!$22:$22,12) -> 286.5020101 | AD182: =SUMIFS(FM!186:186,FM!$21:$21,AD$5,FM!$22:$22,12) -> 286.5020101 | AE182: =SUMIFS(FM!186:186,FM!$21:$21,AE$5,FM!$22:$22,12) -> 286.5020101 | AF182: =SUMIFS(FM!186:186,FM!$21:$21,AF$5,FM!$22:$22,12) -> 286.5020101 | AG182: =SUMIFS(FM!186:186,FM!$21:$21,AG$5,FM!$22:$22,12) -> 286.5020101 | AH182: =SUMIFS(FM!186:186,FM!$21:$21,AH$5,FM!$22:$22,12) -> 286.5020101 | AI182: =SUMIFS(FM!186:186,FM!$21:$21,AI$5,FM!$22:$22,12) -> 286.5020101 | AJ182: =SUMIFS(FM!186:186,FM!$21:$21,AJ$5,FM!$22:$22,12) -> 286.5020101 | AK182: =SUMIFS(FM!186:186,FM!$21:$21,AK$5,FM!$22:$22,12) -> 286.5020101 | AL182: =SUMIFS(FM!186:186,FM!$21:$21,AL$5,FM!$22:$22,12) -> 286.5020101 | AM182: =SUMIFS(FM!186:186,FM!$21:$21,AM$5,FM!$22:$22,12) -> 0
D183: =FM!C187 -> Financiamento de longo prazo | J183: =SUMIFS(FM!187:187,FM!$21:$21,J$5,FM!$22:$22,12) -> 0 | K183: =SUMIFS(FM!187:187,FM!$21:$21,K$5,FM!$22:$22,12) -> 0 | L183: =SUMIFS(FM!187:187,FM!$21:$21,L$5,FM!$22:$22,12) -> 0 | M183: =SUMIFS(FM!187:187,FM!$21:$21,M$5,FM!$22:$22,12) -> 47786.87239 | N183: =SUMIFS(FM!187:187,FM!$21:$21,N$5,FM!$22:$22,12) -> 44265.57204 | O183: =SUMIFS(FM!187:187,FM!$21:$21,O$5,FM!$22:$22,12) -> 40681.59011 | P183: =SUMIFS(FM!187:187,FM!$21:$21,P$5,FM!$22:$22,12) -> 37054.80529 | Q183: =SUMIFS(FM!187:187,FM!$21:$21,Q$5,FM!$22:$22,12) -> 33457.70732 | R183: =SUMIFS(FM!187:187,FM!$21:$21,R$5,FM!$22:$22,12) -> 29839.33888 | S183: =SUMIFS(FM!187:187,FM!$21:$21,S$5,FM!$22:$22,12) -> 26244.56914 | T183: =SUMIFS(FM!187:187,FM!$21:$21,T$5,FM!$22:$22,12) -> 22684.4516 | U183: =SUMIFS(FM!187:187,FM!$21:$21,U$5,FM!$22:$22,12) -> 19062.31269 | V183: =SUMIFS(FM!187:187,FM!$21:$21,V$5,FM!$22:$22,12) -> 15472.21747 | W183: =SUMIFS(FM!187:187,FM!$21:$21,W$5,FM!$22:$22,12) -> 11875.1195 | X183: =SUMIFS(FM!187:187,FM!$21:$21,X$5,FM!$22:$22,12) -> 8270.720406 | Y183: =SUMIFS(FM!187:187,FM!$21:$21,Y$5,FM!$22:$22,12) -> 4684.682913 | Z183: =SUMIFS(FM!187:187,FM!$21:$21,Z$5,FM!$22:$22,12) -> 1087.885387 | AA183: =SUMIFS(FM!187:187,FM!$21:$21,AA$5,FM!$22:$22,12) -> 65.65803716 | AB183: =SUMIFS(FM!187:187,FM!$21:$21,AB$5,FM!$22:$22,12) -> 1.154673194e-12 | AC183: =SUMIFS(FM!187:187,FM!$21:$21,AC$5,FM!$22:$22,12) -> 1.176407435e-12 | AD183: =SUMIFS(FM!187:187,FM!$21:$21,AD$5,FM!$22:$22,12) -> 1.198550776e-12 | AE183: =SUMIFS(FM!187:187,FM!$21:$21,AE$5,FM!$22:$22,12) -> 1.221110917e-12 | AF183: =SUMIFS(FM!187:187,FM!$21:$21,AF$5,FM!$22:$22,12) -> 1.244095705e-12 | AG183: =SUMIFS(FM!187:187,FM!$21:$21,AG$5,FM!$22:$22,12) -> 1.267513132e-12 | AH183: =SUMIFS(FM!187:187,FM!$21:$21,AH$5,FM!$22:$22,12) -> 1.291371342e-12 | AI183: =SUMIFS(FM!187:187,FM!$21:$21,AI$5,FM!$22:$22,12) -> 1.315678631e-12 | AJ183: =SUMIFS(FM!187:187,FM!$21:$21,AJ$5,FM!$22:$22,12) -> 1.340443453e-12 | AK183: =SUMIFS(FM!187:187,FM!$21:$21,AK$5,FM!$22:$22,12) -> 1.365674419e-12 | AL183: =SUMIFS(FM!187:187,FM!$21:$21,AL$5,FM!$22:$22,12) -> 1.391380304e-12 | AM183: =SUMIFS(FM!187:187,FM!$21:$21,AM$5,FM!$22:$22,12) -> 1.417570047e-12
D184: =FM!C188 -> Passivo Não Circulante | J184: =SUM(J182:J183) -> 9.690804256 | K184: 200.9165516 | L184: 246.0580313 | M184: 48132.87284 | N184: 44601.07679 | O184: 40960.0301 | P184: 37399.12838 | Q184: 33741.20306 | R184: 30123.39924 | S184: 26529.0335 | T184: 22968.91465 | U184: 19346.77449 | V184: 15756.67818 | W184: 12159.57901 | X184: 8555.178739 | Y184: 4969.140001 | Z184: 1372.341269 | AA184: 350.1127474 | AB184: 286.5020102 | AC184: 286.5020101 | AD184: 286.5020101 | AE184: 286.5020101 | AF184: 286.5020101 | AG184: 286.5020101 | AH184: 286.5020101 | AI184: 286.5020101 | AJ184: 286.5020101 | AK184: 286.5020101 | AL184: 286.5020101 | AM184: 1.417570047e-12
D186: =FM!C190 -> Capital Próprio | J186: =SUMIFS(FM!190:190,FM!$21:$21,J$5,FM!$22:$22,12) -> 25500 | K186: =SUMIFS(FM!190:190,FM!$21:$21,K$5,FM!$22:$22,12) -> 49000 | L186: =SUMIFS(FM!190:190,FM!$21:$21,L$5,FM!$22:$22,12) -> 49000 | M186: =SUMIFS(FM!190:190,FM!$21:$21,M$5,FM!$22:$22,12) -> 49000 | N186: =SUMIFS(FM!190:190,FM!$21:$21,N$5,FM!$22:$22,12) -> 49000 | O186: =SUMIFS(FM!190:190,FM!$21:$21,O$5,FM!$22:$22,12) -> 49000 | P186: =SUMIFS(FM!190:190,FM!$21:$21,P$5,FM!$22:$22,12) -> 49000 | Q186: =SUMIFS(FM!190:190,FM!$21:$21,Q$5,FM!$22:$22,12) -> 49000 | R186: =SUMIFS(FM!190:190,FM!$21:$21,R$5,FM!$22:$22,12) -> 49000 | S186: =SUMIFS(FM!190:190,FM!$21:$21,S$5,FM!$22:$22,12) -> 49000 | T186: =SUMIFS(FM!190:190,FM!$21:$21,T$5,FM!$22:$22,12) -> 49000 | U186: =SUMIFS(FM!190:190,FM!$21:$21,U$5,FM!$22:$22,12) -> 49000 | V186: =SUMIFS(FM!190:190,FM!$21:$21,V$5,FM!$22:$22,12) -> 49000 | W186: =SUMIFS(FM!190:190,FM!$21:$21,W$5,FM!$22:$22,12) -> 49000 | X186: =SUMIFS(FM!190:190,FM!$21:$21,X$5,FM!$22:$22,12) -> 49000 | Y186: =SUMIFS(FM!190:190,FM!$21:$21,Y$5,FM!$22:$22,12) -> 49000 | Z186: =SUMIFS(FM!190:190,FM!$21:$21,Z$5,FM!$22:$22,12) -> 49000 | AA186: =SUMIFS(FM!190:190,FM!$21:$21,AA$5,FM!$22:$22,12) -> 49000 | AB186: =SUMIFS(FM!190:190,FM!$21:$21,AB$5,FM!$22:$22,12) -> 49000 | AC186: =SUMIFS(FM!190:190,FM!$21:$21,AC$5,FM!$22:$22,12) -> 49000 | AD186: =SUMIFS(FM!190:190,FM!$21:$21,AD$5,FM!$22:$22,12) -> 49000 | AE186: =SUMIFS(FM!190:190,FM!$21:$21,AE$5,FM!$22:$22,12) -> 49000 | AF186: =SUMIFS(FM!190:190,FM!$21:$21,AF$5,FM!$22:$22,12) -> 49000 | AG186: =SUMIFS(FM!190:190,FM!$21:$21,AG$5,FM!$22:$22,12) -> 49000 | AH186: =SUMIFS(FM!190:190,FM!$21:$21,AH$5,FM!$22:$22,12) -> 49000 | AI186: =SUMIFS(FM!190:190,FM!$21:$21,AI$5,FM!$22:$22,12) -> 49000 | AJ186: =SUMIFS(FM!190:190,FM!$21:$21,AJ$5,FM!$22:$22,12) -> 49000 | AK186: =SUMIFS(FM!190:190,FM!$21:$21,AK$5,FM!$22:$22,12) -> 49000 | AL186: =SUMIFS(FM!190:190,FM!$21:$21,AL$5,FM!$22:$22,12) -> 49000 | AM186: =SUMIFS(FM!190:190,FM!$21:$21,AM$5,FM!$22:$22,12) -> 43339.44661
D187: =FM!C191 -> Lucros / Prejuízos acumulados | J187: =SUMIFS(FM!191:191,FM!$21:$21,J$5,FM!$22:$22,12) -> -2956.423947 | K187: =SUMIFS(FM!191:191,FM!$21:$21,K$5,FM!$22:$22,12) -> 5048.644892 | L187: =SUMIFS(FM!191:191,FM!$21:$21,L$5,FM!$22:$22,12) -> 15682.03158 | M187: =SUMIFS(FM!191:191,FM!$21:$21,M$5,FM!$22:$22,12) -> 23930.09222 | N187: =SUMIFS(FM!191:191,FM!$21:$21,N$5,FM!$22:$22,12) -> 31314.0525 | O187: =SUMIFS(FM!191:191,FM!$21:$21,O$5,FM!$22:$22,12) -> 37667.12369 | P187: =SUMIFS(FM!191:191,FM!$21:$21,P$5,FM!$22:$22,12) -> 44578.40495 | Q187: =SUMIFS(FM!191:191,FM!$21:$21,Q$5,FM!$22:$22,12) -> 20138.1032 | R187: =SUMIFS(FM!191:191,FM!$21:$21,R$5,FM!$22:$22,12) -> 22855.4781 | S187: =SUMIFS(FM!191:191,FM!$21:$21,S$5,FM!$22:$22,12) -> 25587.25625 | T187: =SUMIFS(FM!191:191,FM!$21:$21,T$5,FM!$22:$22,12) -> 28323.19649 | U187: =SUMIFS(FM!191:191,FM!$21:$21,U$5,FM!$22:$22,12) -> 31160.21423 | V187: =SUMIFS(FM!191:191,FM!$21:$21,V$5,FM!$22:$22,12) -> 34004.88217 | W187: =SUMIFS(FM!191:191,FM!$21:$21,W$5,FM!$22:$22,12) -> 36896.74574 | X187: =SUMIFS(FM!191:191,FM!$21:$21,X$5,FM!$22:$22,12) -> 39836.27434 | Y187: =SUMIFS(FM!191:191,FM!$21:$21,Y$5,FM!$22:$22,12) -> 42797.37467 | Z187: =SUMIFS(FM!191:191,FM!$21:$21,Z$5,FM!$22:$22,12) -> 45807.73553 | AA187: =SUMIFS(FM!191:191,FM!$21:$21,AA$5,FM!$22:$22,12) -> 48857.94988 | AB187: =SUMIFS(FM!191:191,FM!$21:$21,AB$5,FM!$22:$22,12) -> 49308.02113 | AC187: =SUMIFS(FM!191:191,FM!$21:$21,AC$5,FM!$22:$22,12) -> 48865.13785 | AD187: =SUMIFS(FM!191:191,FM!$21:$21,AD$5,FM!$22:$22,12) -> 48427.84521 | AE187: =SUMIFS(FM!191:191,FM!$21:$21,AE$5,FM!$22:$22,12) -> 47971.81565 | AF187: =SUMIFS(FM!191:191,FM!$21:$21,AF$5,FM!$22:$22,12) -> 47458.07974 | AG187: =SUMIFS(FM!191:191,FM!$21:$21,AG$5,FM!$22:$22,12) -> 46823.46667 | AH187: =SUMIFS(FM!191:191,FM!$21:$21,AH$5,FM!$22:$22,12) -> 45962.76502 | AI187: =SUMIFS(FM!191:191,FM!$21:$21,AI$5,FM!$22:$22,12) -> 44692.25378 | AJ187: =SUMIFS(FM!191:191,FM!$21:$21,AJ$5,FM!$22:$22,12) -> 42664.7377 | AK187: =SUMIFS(FM!191:191,FM!$21:$21,AK$5,FM!$22:$22,12) -> 39127.01894 | AL187: =SUMIFS(FM!191:191,FM!$21:$21,AL$5,FM!$22:$22,12) -> 31915.42504 | AM187: =SUMIFS(FM!191:191,FM!$21:$21,AM$5,FM!$22:$22,12) -> 0
D188: =FM!C192 -> Patrimônio Líquido | J188: =SUM(J186:J187) -> 22543.57605 | K188: 54048.64489 | L188: 64682.03158 | M188: 72930.09222 | N188: 80314.0525 | O188: 86667.12369 | P188: 93578.40495 | Q188: 69138.1032 | R188: 71855.4781 | S188: 74587.25625 | T188: 77323.19649 | U188: 80160.21423 | V188: 83004.88217 | W188: 85896.74574 | X188: 88836.27434 | Y188: 91797.37467 | Z188: 94807.73553 | AA188: 97857.94988 | AB188: 98308.02113 | AC188: 97865.13785 | AD188: 97427.84521 | AE188: 96971.81565 | AF188: 96458.07974 | AG188: 95823.46667 | AH188: 94962.76502 | AI188: 93692.25378 | AJ188: 91664.7377 | AK188: 88127.01894 | AL188: 80915.42504 | AM188: 43339.44661
D190: =FM!C194 -> Passivo e Patrimônio Líquido Total | J190: =J188+J184+J180 -> 24806.80646 | K190: 57629.63335 | L190: 66409.30893 | M190: 126966.2204 | N190: 132377.2694 | O190: 135701.9557 | P190: 136024.8988 | Q190: 107926.6717 | R190: 107026.2428 | S190: 106163.6552 | T190: 105339.4766 | U190: 104554.3542 | V190: 103808.9258 | W190: 103103.6902 | X190: 102438.8186 | Y190: 101813.8801 | Z190: 101227.4423 | AA190: 100676.4807 | AB190: 100203.2921 | AC190: 99760.40885 | AD190: 99323.11621 | AE190: 98867.08664 | AF190: 98353.35074 | AG190: 97718.73766 | AH190: 96858.03601 | AI190: 95587.52478 | AJ190: 93560.00869 | AK190: 90022.28994 | AL190: 82810.69604 | AM190: 43433.34843
D191: =FM!C195 -> Check | J191: =ROUND(J190-J174,2) -> 0 | K191: 0 | L191: 0 | M191: 0 | N191: 0 | O191: 0 | P191: 0 | Q191: 0 | R191: 0 | S191: 0 | T191: 0 | U191: 0 | V191: 0 | W191: 0 | X191: 0 | Y191: 0 | Z191: 0 | AA191: 0 | AB191: 0 | AC191: 0 | AD191: 0 | AE191: 0 | AF191: 0 | AG191: 0 | AH191: 0 | AI191: 0 | AJ191: 0 | AK191: 0 | AL191: 0 | AM191: 0
C194: Covenants
C196: Financiamento | G196: Target
C197: ND / EBITDA | J197: =IFERROR((J176+J183-J162)/J67,) -> 0.7902790253 | K197: -0.3641844915 | L197: -0.3486047927 | M197: 0.4634715744 | N197: 0.7630776863 | O197: 2.265724791 | P197: 0.6271556128 | Q197: 1.931698235 | R197: 1.731402067 | S197: 1.532412214 | T197: 1.334940585 | U197: 1.134835663 | V197: 0.9361045705 | W197: 0.7369858375 | X197: 0.5373019666 | Y197: 0.3389564718 | Z197: 0.13985437 | AA197: -0.05949003292 | AB197: -0.1106776043 | AC197: -0.1107107644 | AD197: -0.1107107644 | AE197: -0.1107107644 | AF197: -0.1106776043 | AG197: -0.1107107644 | AH197: -0.1107107644 | AI197: -0.1107107644 | AJ197: -0.1106776043 | AK197: -0.1107107644 | AL197: -0.1107107644 | AM197: 1.071743e-16
C198: E/(D+E) | J198: =IFERROR(J186/(J186+J176+J183),) -> 1 | K198: 1 | L198: 1 | M198: 0.4888976879 | N198: 0.5066999773 | O198: 0.5262016947 | P198: 0.5475263988 | Q198: 0.5704552795 | R198: 0.5955424109 | S198: 0.6227507448 | T198: 0.6522632034 | U198: 0.6853059711 | V198: 0.7215345707 | W198: 0.7618903564 | X198: 0.8071248781 | Y198: 0.8577938891 | Z198: 0.9154347209 | AA198: 0.9814661699 | AB198: 1 | AC198: 1 | AD198: 1 | AE198: 1 | AF198: 1 | AG198: 1 | AH198: 1 | AI198: 1 | AJ198: 1 | AK198: 1 | AL198: 1 | AM198: 1
C199: E/(D+E) Ajustado | H199: Capex + Aportes (1 = Sim// 0 = Não) | J199: =IFERROR(SUM($I$146:J148)/SUM(J$125:$K125,$I$146:J148),) -> 1 | K199: =IFERROR(SUM($I$146:K148)/SUM($K$125:K125,$I$146:K148),) -> 1 | L199: =IFERROR(SUM($I$146:L148)/SUM($K$125:L125,$I$146:L148),) -> 1 | M199: =IFERROR(SUM($I$146:M148)/SUM($K$125:M125,$I$146:M148),) -> 0.5 | N199: =IFERROR(SUM($I$146:N148)/SUM($K$125:N125,$I$146:N148),) -> 0.5 | O199: =IFERROR(SUM($I$146:O148)/SUM($K$125:O125,$I$146:O148),) -> 0.5 | P199: =IFERROR(SUM($I$146:P148)/SUM($K$125:P125,$I$146:P148),) -> 0.5 | Q199: =IFERROR(SUM($I$146:Q148)/SUM($K$125:Q125,$I$146:Q148),) -> 0.5 | R199: =IFERROR(SUM($I$146:R148)/SUM($K$125:R125,$I$146:R148),) -> 0.5 | S199: =IFERROR(SUM($I$146:S148)/SUM($K$125:S125,$I$146:S148),) -> 0.5 | T199: =IFERROR(SUM($I$146:T148)/SUM($K$125:T125,$I$146:T148),) -> 0.5 | U199: =IFERROR(SUM($I$146:U148)/SUM($K$125:U125,$I$146:U148),) -> 0.5 | V199: =IFERROR(SUM($I$146:V148)/SUM($K$125:V125,$I$146:V148),) -> 0.5 | W199: =IFERROR(SUM($I$146:W148)/SUM($K$125:W125,$I$146:W148),) -> 0.5 | X199: =IFERROR(SUM($I$146:X148)/SUM($K$125:X125,$I$146:X148),) -> 0.5 | Y199: =IFERROR(SUM($I$146:Y148)/SUM($K$125:Y125,$I$146:Y148),) -> 0.5 | Z199: =IFERROR(SUM($I$146:Z148)/SUM($K$125:Z125,$I$146:Z148),) -> 0.5 | AA199: =IFERROR(SUM($I$146:AA148)/SUM($K$125:AA125,$I$146:AA148),) -> 0.5 | AB199: =IFERROR(SUM($I$146:AB148)/SUM($K$125:AB125,$I$146:AB148),) -> 0.5 | AC199: =IFERROR(SUM($I$146:AC148)/SUM($K$125:AC125,$I$146:AC148),) -> 0.5 | AD199: =IFERROR(SUM($I$146:AD148)/SUM($K$125:AD125,$I$146:AD148),) -> 0.5 | AE199: =IFERROR(SUM($I$146:AE148)/SUM($K$125:AE125,$I$146:AE148),) -> 0.5 | AF199: =IFERROR(SUM($I$146:AF148)/SUM($K$125:AF125,$I$146:AF148),) -> 0.5 | AG199: =IFERROR(SUM($I$146:AG148)/SUM($K$125:AG125,$I$146:AG148),) -> 0.5 | AH199: =IFERROR(SUM($I$146:AH148)/SUM($K$125:AH125,$I$146:AH148),) -> 0.5 | AI199: =IFERROR(SUM($I$146:AI148)/SUM($K$125:AI125,$I$146:AI148),) -> 0.5 | AJ199: =IFERROR(SUM($I$146:AJ148)/SUM($K$125:AJ125,$I$146:AJ148),) -> 0.5 | AK199: =IFERROR(SUM($I$146:AK148)/SUM($K$125:AK125,$I$146:AK148),) -> 0.5 | AL199: =IFERROR(SUM($I$146:AL148)/SUM($K$125:AL125,$I$146:AL148),) -> 0.5 | AM199: =IFERROR(SUM($I$146:AM148)/SUM($K$125:AM125,$I$146:AM148),) -> 0.5
C200: ICSD | E200: ICSD Máximo após fim do Completion | G200: =Financiamento!$G$85 -> 1.3 | H200: =(Financiamento!G84="Sim")*1 -> 1 | J200: =-IFERROR(ROUND((J92+J94+J95+J98+J93+J96+J97+J121)/(J130+J135),2),) -> 0 | K200: 0 | L200: 0 | M200: -3.18 | N200: -0.3 | O200: -2.37 | P200: 3.34 | Q200: 1.34 | R200: 1.45 | S200: 1.54 | T200: 1.63 | U200: 1.73 | V200: 1.86 | W200: 1.99 | X200: 2.15 | Y200: 2.35 | Z200: 2.57 | AA200: 2.85 | AB200: 11.86 | AC200: 0 | AD200: 0 | AE200: 0 | AF200: 0 | AG200: 0 | AH200: 0 | AI200: 0 | AJ200: 0 | AK200: 0 | AL200: 0 | AM200: 0
E201: =_xlfn.MINIFS($J$200:$AM$200,$J$5:$AM$5,">=2032",$J$200:$AM$200,">0") -> 1.34 | G201: =IF(G200<=E201,"ok","nok") -> ok
C202: Operacional | G202: Target
C203: ROE | J203: =IFERROR(J91/J189,) -> 0 | K203: 0 | L203: 0 | M203: 0 | N203: 0 | O203: 0 | P203: 0 | Q203: 0 | R203: 0 | S203: 0 | T203: 0 | U203: 0 | V203: 0 | W203: 0 | X203: 0 | Y203: 0 | Z203: 0 | AA203: 0 | AB203: 0 | AC203: 0 | AD203: 0 | AE203: 0 | AF203: 0 | AG203: 0 | AH203: 0 | AI203: 0 | AJ203: 0 | AK203: 0 | AL203: 0 | AM203: 0
C204: Exposição máxima | J204: =SUM($J$144:J144) -> -22898.03955 | K204: =SUM($J$144:K144) -> -45763.36119 | L204: =SUM($J$144:L144) -> -44060.79191 | M204: =SUM($J$144:M144) -> -5005.673737 | N204: =SUM($J$144:N144) -> -13519.00663 | O204: =SUM($J$144:O144) -> -41804.40881 | P204: =SUM($J$144:P144) -> -19839.61571 | Q204: =SUM($J$144:Q144) -> -16341.05159 | R204: =SUM($J$144:R144) -> -12721.05484 | S204: =SUM($J$144:S144) -> -8665.196717 | T204: =SUM($J$144:T144) -> -4185.077769 | U204: =SUM($J$144:U144) -> 683.6914897 | V204: =SUM($J$144:V144) -> 5992.922895 | W204: =SUM($J$144:W144) -> 11717.59724 | X204: =SUM($J$144:X144) -> 17865.45612 | Y204: =SUM($J$144:Y144) -> 24443.34178 | Z204: =SUM($J$144:Z144) -> 31435.18861 | AA204: =SUM($J$144:AA144) -> 38849.04208 | AB204: =SUM($J$144:AB144) -> 49265.40074 | AC204: =SUM($J$144:AC144) -> 60620.12883 | AD204: =SUM($J$144:AD144) -> 71974.85693 | AE204: =SUM($J$144:AE144) -> 83329.58503 | AF204: =SUM($J$144:AF144) -> 94689.08097 | AG204: =SUM($J$144:AG144) -> 106043.8091 | AH204: =SUM($J$144:AH144) -> 117398.5372 | AI204: =SUM($J$144:AI144) -> 128753.2653 | AJ204: =SUM($J$144:AJ144) -> 140112.7612 | AK204: =SUM($J$144:AK144) -> 151467.4893 | AL204: =SUM($J$144:AL144) -> 162822.2174 | AM204: =SUM($J$144:AM144) -> 174963.9624
C205: Margem EBITDA | J205: =J68 -> 0 | K205: 0.7179368573 | L205: 0.7688071203 | M205: 0.7656229846 | N205: 0.7489143047 | O205: 0.7250777628 | P205: 0.7447054684 | Q205: 0.7446485111 | R205: 0.7446485111 | S205: 0.7446485111 | T205: 0.7447054684 | U205: 0.7446485111 | V205: 0.7446485111 | W205: 0.7446485111 | X205: 0.7447054684 | Y205: 0.7446485111 | Z205: 0.7446485111 | AA205: 0.7446485111 | AB205: 0.7447054684 | AC205: 0.7446485111 | AD205: 0.7446485111 | AE205: 0.7446485111 | AF205: 0.7447054684 | AG205: 0.7446485111 | AH205: 0.7446485111 | AI205: 0.7446485111 | AJ205: 0.7447054684 | AK205: 0.7446485111 | AL205: 0.7446485111 | AM205: 0.5452115552
C206: Margem líquida | J206: =J87 -> 0 | K206: 0.6466637727 | L206: 0.5769856794 | M206: 0.4047463903 | N206: 0.3452281468 | O206: 0.2826569832 | P206: 0.2848215623 | Q206: 0.2563344993 | R206: 0.2612283792 | S206: 0.2797884234 | T206: 0.2973817985 | U206: 0.3176348745 | V206: 0.3361062013 | W206: 0.3551763036 | X206: 0.3745013115 | Y206: 0.3931998925 | Z206: 0.4122940311 | AA206: 0.4313320454 | AB206: 0.4478176224 | AC206: 0.4497895493 | AD206: 0.450019997 | AE206: 0.449247655 | AF206: 0.4469657945 | AG206: 0.4418863888 | AH206: 0.4325669492 | AI206: 0.415674474 | AJ206: 0.3845812351 | AK206: 0.3222194931 | AL206: 0.1707812468 | AM206: -0.9659662011
C207: Fluxo pós financiamento acumulado | J207: =I207+J144 -> -22898.03955 | K207: -45763.36119 | L207: -44060.79191 | M207: -5005.673737 | N207: -13519.00663 | O207: -41804.40881 | P207: -19839.61571 | Q207: -16341.05159 | R207: -12721.05484 | S207: -8665.196717 | T207: -4185.077769 | U207: 683.6914897 | V207: 5992.922895 | W207: 11717.59724 | X207: 17865.45612 | Y207: 24443.34178 | Z207: 31435.18861 | AA207: 38849.04208 | AB207: 49265.40074 | AC207: 60620.12883 | AD207: 71974.85693 | AE207: 83329.58503 | AF207: 94689.08097 | AG207: 106043.8091 | AH207: 117398.5372 | AI207: 128753.2653 | AJ207: 140112.7612 | AK207: 151467.4893 | AL207: 162822.2174 | AM207: 174963.9624
C208: Custos + Despesas | J208: =-(J61+J55) -> 3433.246644 | K208: 3791.234529 | L208: 5807.590366 | M208: 7251.610041 | N208: 8642.534473 | O208: 10759.4808 | P208: 11481.15847 | Q208: 11481.15847 | R208: 11481.15847 | S208: 11481.15847 | T208: 11481.15847 | U208: 11481.15847 | V208: 11481.15847 | W208: 11481.15847 | X208: 11481.15847 | Y208: 11481.15847 | Z208: 11481.15847 | AA208: 11481.15847 | AB208: 11481.15847 | AC208: 11481.15847 | AD208: 11481.15847 | AE208: 11481.15847 | AF208: 11481.15847 | AG208: 11481.15847 | AH208: 11481.15847 | AI208: 11481.15847 | AJ208: 11481.15847 | AK208: 11481.15847 | AL208: 11481.15847 | AM208: 11473.64744
C209: Aporte de Equity | J209: =SUM(J146:J146) -> 25500 | K209: 23500 | L209: 0 | M209: 0 | N209: 0 | O209: 0 | P209: 0 | Q209: 0 | R209: 0 | S209: 0 | T209: 0 | U209: 0 | V209: 0 | W209: 0 | X209: 0 | Y209: 0 | Z209: 0 | AA209: 0 | AB209: 0 | AC209: 0 | AD209: 0 | AE209: 0 | AF209: 0 | AG209: 0 | AH209: 0 | AI209: 0 | AJ209: 0 | AK209: 0 | AL209: 0 | AM209: 0
C210: CFDS | J210: =(J92+J95+J98) -> -3358.760965 | K210: 5689.6002 | L210: 11763.529 | M210: 12208.36794 | N210: 12414.02164 | O210: 13042.13542 | P210: 14456.24787 | Q210: 14911.42202 | R210: 15164.15604 | S210: 15161.2264 | T210: 15164.1033 | U210: 15157.94178 | V210: 15156.38152 | W210: 15154.90966 | X210: 15158.19523 | Y210: 15151.88699 | Z210: 15150.42051 | AA210: 15148.92553 | AB210: 15145.11949 | AC210: 15134.96558 | AD210: 15134.96558 | AE210: 15134.96558 | AF210: 15139.73343 | AG210: 15134.96558 | AH210: 15134.96558 | AI210: 15134.96558 | AJ210: 15139.73343 | AK210: 15134.96558 | AL210: 15134.96558 | AM210: 11504.22462
C218: Usos e fontes
E220: =FM!C430 -> Ativo Imobiliário 01 | G220: =H220-FM!K430 -> 0 | H220: =SUM(J220:AM220) -> -3904.572276 | J220: =SUMIFS(FM!430:430,FM!$21:$21,J$5) -> -3489.927432 | K220: =SUMIFS(FM!430:430,FM!$21:$21,K$5) -> -414.6448434 | L220: =SUMIFS(FM!430:430,FM!$21:$21,L$5) -> 0 | M220: =SUMIFS(FM!430:430,FM!$21:$21,M$5) -> 0 | N220: =SUMIFS(FM!430:430,FM!$21:$21,N$5) -> 0 | O220: =SUMIFS(FM!430:430,FM!$21:$21,O$5) -> 0 | P220: =SUMIFS(FM!430:430,FM!$21:$21,P$5) -> 0 | Q220: =SUMIFS(FM!430:430,FM!$21:$21,Q$5) -> 0 | R220: =SUMIFS(FM!430:430,FM!$21:$21,R$5) -> 0 | S220: =SUMIFS(FM!430:430,FM!$21:$21,S$5) -> 0 | T220: =SUMIFS(FM!430:430,FM!$21:$21,T$5) -> 0 | U220: =SUMIFS(FM!430:430,FM!$21:$21,U$5) -> 0 | V220: =SUMIFS(FM!430:430,FM!$21:$21,V$5) -> 0 | W220: =SUMIFS(FM!430:430,FM!$21:$21,W$5) -> 0 | X220: =SUMIFS(FM!430:430,FM!$21:$21,X$5) -> 0 | Y220: =SUMIFS(FM!430:430,FM!$21:$21,Y$5) -> 0 | Z220: =SUMIFS(FM!430:430,FM!$21:$21,Z$5) -> 0 | AA220: =SUMIFS(FM!430:430,FM!$21:$21,AA$5) -> 0 | AB220: =SUMIFS(FM!430:430,FM!$21:$21,AB$5) -> 0 | AC220: =SUMIFS(FM!430:430,FM!$21:$21,AC$5) -> 0 | AD220: =SUMIFS(FM!430:430,FM!$21:$21,AD$5) -> 0 | AE220: =SUMIFS(FM!430:430,FM!$21:$21,AE$5) -> 0 | AF220: =SUMIFS(FM!430:430,FM!$21:$21,AF$5) -> 0 | AG220: =SUMIFS(FM!430:430,FM!$21:$21,AG$5) -> 0 | AH220: =SUMIFS(FM!430:430,FM!$21:$21,AH$5) -> 0 | AI220: =SUMIFS(FM!430:430,FM!$21:$21,AI$5) -> 0 | AJ220: =SUMIFS(FM!430:430,FM!$21:$21,AJ$5) -> 0 | AK220: =SUMIFS(FM!430:430,FM!$21:$21,AK$5) -> 0 | AL220: =SUMIFS(FM!430:430,FM!$21:$21,AL$5) -> 0 | AM220: =SUMIFS(FM!430:430,FM!$21:$21,AM$5) -> 0
E221: =FM!C431 -> Ativo Imobiliário 02 | G221: =H221-FM!K431 -> 0 | H221: -8378.5126 | J221: =SUMIFS(FM!431:431,FM!$21:$21,J$5) -> -339.8364255 | K221: =SUMIFS(FM!431:431,FM!$21:$21,K$5) -> -5369.415523 | L221: =SUMIFS(FM!431:431,FM!$21:$21,L$5) -> -2669.260651 | M221: =SUMIFS(FM!431:431,FM!$21:$21,M$5) -> 0 | N221: =SUMIFS(FM!431:431,FM!$21:$21,N$5) -> 0 | O221: =SUMIFS(FM!431:431,FM!$21:$21,O$5) -> 0 | P221: =SUMIFS(FM!431:431,FM!$21:$21,P$5) -> 0 | Q221: =SUMIFS(FM!431:431,FM!$21:$21,Q$5) -> 0 | R221: =SUMIFS(FM!431:431,FM!$21:$21,R$5) -> 0 | S221: =SUMIFS(FM!431:431,FM!$21:$21,S$5) -> 0 | T221: =SUMIFS(FM!431:431,FM!$21:$21,T$5) -> 0 | U221: =SUMIFS(FM!431:431,FM!$21:$21,U$5) -> 0 | V221: =SUMIFS(FM!431:431,FM!$21:$21,V$5) -> 0 | W221: =SUMIFS(FM!431:431,FM!$21:$21,W$5) -> 0 | X221: =SUMIFS(FM!431:431,FM!$21:$21,X$5) -> 0 | Y221: =SUMIFS(FM!431:431,FM!$21:$21,Y$5) -> 0 | Z221: =SUMIFS(FM!431:431,FM!$21:$21,Z$5) -> 0 | AA221: =SUMIFS(FM!431:431,FM!$21:$21,AA$5) -> 0 | AB221: =SUMIFS(FM!431:431,FM!$21:$21,AB$5) -> 0 | AC221: =SUMIFS(FM!431:431,FM!$21:$21,AC$5) -> 0 | AD221: =SUMIFS(FM!431:431,FM!$21:$21,AD$5) -> 0 | AE221: =SUMIFS(FM!431:431,FM!$21:$21,AE$5) -> 0 | AF221: =SUMIFS(FM!431:431,FM!$21:$21,AF$5) -> 0 | AG221: =SUMIFS(FM!431:431,FM!$21:$21,AG$5) -> 0 | AH221: =SUMIFS(FM!431:431,FM!$21:$21,AH$5) -> 0 | AI221: =SUMIFS(FM!431:431,FM!$21:$21,AI$5) -> 0 | AJ221: =SUMIFS(FM!431:431,FM!$21:$21,AJ$5) -> 0 | AK221: =SUMIFS(FM!431:431,FM!$21:$21,AK$5) -> 0 | AL221: =SUMIFS(FM!431:431,FM!$21:$21,AL$5) -> 0 | AM221: =SUMIFS(FM!431:431,FM!$21:$21,AM$5) -> 0
E222: =FM!C432 -> Orla Sol Nascente - Etapa 1 | G222: =H222-FM!K432 -> 0 | H222: -4094.482729 | J222: =SUMIFS(FM!432:432,FM!$21:$21,J$5) -> -1700.785134 | K222: =SUMIFS(FM!432:432,FM!$21:$21,K$5) -> -2393.697596 | L222: =SUMIFS(FM!432:432,FM!$21:$21,L$5) -> 0 | M222: =SUMIFS(FM!432:432,FM!$21:$21,M$5) -> 0 | N222: =SUMIFS(FM!432:432,FM!$21:$21,N$5) -> 0 | O222: =SUMIFS(FM!432:432,FM!$21:$21,O$5) -> 0 | P222: =SUMIFS(FM!432:432,FM!$21:$21,P$5) -> 0 | Q222: =SUMIFS(FM!432:432,FM!$21:$21,Q$5) -> 0 | R222: =SUMIFS(FM!432:432,FM!$21:$21,R$5) -> 0 | S222: =SUMIFS(FM!432:432,FM!$21:$21,S$5) -> 0 | T222: =SUMIFS(FM!432:432,FM!$21:$21,T$5) -> 0 | U222: =SUMIFS(FM!432:432,FM!$21:$21,U$5) -> 0 | V222: =SUMIFS(FM!432:432,FM!$21:$21,V$5) -> 0 | W222: =SUMIFS(FM!432:432,FM!$21:$21,W$5) -> 0 | X222: =SUMIFS(FM!432:432,FM!$21:$21,X$5) -> 0 | Y222: =SUMIFS(FM!432:432,FM!$21:$21,Y$5) -> 0 | Z222: =SUMIFS(FM!432:432,FM!$21:$21,Z$5) -> 0 | AA222: =SUMIFS(FM!432:432,FM!$21:$21,AA$5) -> 0 | AB222: =SUMIFS(FM!432:432,FM!$21:$21,AB$5) -> 0 | AC222: =SUMIFS(FM!432:432,FM!$21:$21,AC$5) -> 0 | AD222: =SUMIFS(FM!432:432,FM!$21:$21,AD$5) -> 0 | AE222: =SUMIFS(FM!432:432,FM!$21:$21,AE$5) -> 0 | AF222: =SUMIFS(FM!432:432,FM!$21:$21,AF$5) -> 0 | AG222: =SUMIFS(FM!432:432,FM!$21:$21,AG$5) -> 0 | AH222: =SUMIFS(FM!432:432,FM!$21:$21,AH$5) -> 0 | AI222: =SUMIFS(FM!432:432,FM!$21:$21,AI$5) -> 0 | AJ222: =SUMIFS(FM!432:432,FM!$21:$21,AJ$5) -> 0 | AK222: =SUMIFS(FM!432:432,FM!$21:$21,AK$5) -> 0 | AL222: =SUMIFS(FM!432:432,FM!$21:$21,AL$5) -> 0 | AM222: =SUMIFS(FM!432:432,FM!$21:$21,AM$5) -> 0
E223: =FM!C433 -> Orla Sol Nascente - Etapa 2 | G223: =H223-FM!K433 -> 0 | H223: =SUM(J223:AM223) -> -8801.596346 | J223: =SUMIFS(FM!433:433,FM!$21:$21,J$5) -> -403.4064992 | K223: =SUMIFS(FM!433:433,FM!$21:$21,K$5) -> -7701.396802 | L223: =SUMIFS(FM!433:433,FM!$21:$21,L$5) -> -696.793044 | M223: =SUMIFS(FM!433:433,FM!$21:$21,M$5) -> 0 | N223: =SUMIFS(FM!433:433,FM!$21:$21,N$5) -> 0 | O223: =SUMIFS(FM!433:433,FM!$21:$21,O$5) -> 0 | P223: =SUMIFS(FM!433:433,FM!$21:$21,P$5) -> 0 | Q223: =SUMIFS(FM!433:433,FM!$21:$21,Q$5) -> 0 | R223: =SUMIFS(FM!433:433,FM!$21:$21,R$5) -> 0 | S223: =SUMIFS(FM!433:433,FM!$21:$21,S$5) -> 0 | T223: =SUMIFS(FM!433:433,FM!$21:$21,T$5) -> 0 | U223: =SUMIFS(FM!433:433,FM!$21:$21,U$5) -> 0 | V223: =SUMIFS(FM!433:433,FM!$21:$21,V$5) -> 0 | W223: =SUMIFS(FM!433:433,FM!$21:$21,W$5) -> 0 | X223: =SUMIFS(FM!433:433,FM!$21:$21,X$5) -> 0 | Y223: =SUMIFS(FM!433:433,FM!$21:$21,Y$5) -> 0 | Z223: =SUMIFS(FM!433:433,FM!$21:$21,Z$5) -> 0 | AA223: =SUMIFS(FM!433:433,FM!$21:$21,AA$5) -> 0 | AB223: =SUMIFS(FM!433:433,FM!$21:$21,AB$5) -> 0 | AC223: =SUMIFS(FM!433:433,FM!$21:$21,AC$5) -> 0 | AD223: =SUMIFS(FM!433:433,FM!$21:$21,AD$5) -> 0 | AE223: =SUMIFS(FM!433:433,FM!$21:$21,AE$5) -> 0 | AF223: =SUMIFS(FM!433:433,FM!$21:$21,AF$5) -> 0 | AG223: =SUMIFS(FM!433:433,FM!$21:$21,AG$5) -> 0 | AH223: =SUMIFS(FM!433:433,FM!$21:$21,AH$5) -> 0 | AI223: =SUMIFS(FM!433:433,FM!$21:$21,AI$5) -> 0 | AJ223: =SUMIFS(FM!433:433,FM!$21:$21,AJ$5) -> 0 | AK223: =SUMIFS(FM!433:433,FM!$21:$21,AK$5) -> 0 | AL223: =SUMIFS(FM!433:433,FM!$21:$21,AL$5) -> 0 | AM223: =SUMIFS(FM!433:433,FM!$21:$21,AM$5) -> 0
E224: =FM!C434 -> Orla Sol Nascente - Etapa 3 | G224: =H224-FM!K434 -> 0 | H224: -17827.5128 | J224: =SUMIFS(FM!434:434,FM!$21:$21,J$5) -> -817.0943367 | K224: =SUMIFS(FM!434:434,FM!$21:$21,K$5) -> -15599.0737 | L224: =SUMIFS(FM!434:434,FM!$21:$21,L$5) -> -1411.344763 | M224: =SUMIFS(FM!434:434,FM!$21:$21,M$5) -> 0 | N224: =SUMIFS(FM!434:434,FM!$21:$21,N$5) -> 0 | O224: =SUMIFS(FM!434:434,FM!$21:$21,O$5) -> 0 | P224: =SUMIFS(FM!434:434,FM!$21:$21,P$5) -> 0 | Q224: =SUMIFS(FM!434:434,FM!$21:$21,Q$5) -> 0 | R224: =SUMIFS(FM!434:434,FM!$21:$21,R$5) -> 0 | S224: =SUMIFS(FM!434:434,FM!$21:$21,S$5) -> 0 | T224: =SUMIFS(FM!434:434,FM!$21:$21,T$5) -> 0 | U224: =SUMIFS(FM!434:434,FM!$21:$21,U$5) -> 0 | V224: =SUMIFS(FM!434:434,FM!$21:$21,V$5) -> 0 | W224: =SUMIFS(FM!434:434,FM!$21:$21,W$5) -> 0 | X224: =SUMIFS(FM!434:434,FM!$21:$21,X$5) -> 0 | Y224: =SUMIFS(FM!434:434,FM!$21:$21,Y$5) -> 0 | Z224: =SUMIFS(FM!434:434,FM!$21:$21,Z$5) -> 0 | AA224: =SUMIFS(FM!434:434,FM!$21:$21,AA$5) -> 0 | AB224: =SUMIFS(FM!434:434,FM!$21:$21,AB$5) -> 0 | AC224: =SUMIFS(FM!434:434,FM!$21:$21,AC$5) -> 0 | AD224: =SUMIFS(FM!434:434,FM!$21:$21,AD$5) -> 0 | AE224: =SUMIFS(FM!434:434,FM!$21:$21,AE$5) -> 0 | AF224: =SUMIFS(FM!434:434,FM!$21:$21,AF$5) -> 0 | AG224: =SUMIFS(FM!434:434,FM!$21:$21,AG$5) -> 0 | AH224: =SUMIFS(FM!434:434,FM!$21:$21,AH$5) -> 0 | AI224: =SUMIFS(FM!434:434,FM!$21:$21,AI$5) -> 0 | AJ224: =SUMIFS(FM!434:434,FM!$21:$21,AJ$5) -> 0 | AK224: =SUMIFS(FM!434:434,FM!$21:$21,AK$5) -> 0 | AL224: =SUMIFS(FM!434:434,FM!$21:$21,AL$5) -> 0 | AM224: =SUMIFS(FM!434:434,FM!$21:$21,AM$5) -> 0
E225: =FM!C435 -> Av Guararapes - Etapa 1 | G225: =H225-FM!K435 -> 0 | H225: -6876.58998 | J225: =SUMIFS(FM!435:435,FM!$21:$21,J$5) -> -5787.796567 | K225: =SUMIFS(FM!435:435,FM!$21:$21,K$5) -> -1088.793414 | L225: =SUMIFS(FM!435:435,FM!$21:$21,L$5) -> 0 | M225: =SUMIFS(FM!435:435,FM!$21:$21,M$5) -> 0 | N225: =SUMIFS(FM!435:435,FM!$21:$21,N$5) -> 0 | O225: =SUMIFS(FM!435:435,FM!$21:$21,O$5) -> 0 | P225: =SUMIFS(FM!435:435,FM!$21:$21,P$5) -> 0 | Q225: =SUMIFS(FM!435:435,FM!$21:$21,Q$5) -> 0 | R225: =SUMIFS(FM!435:435,FM!$21:$21,R$5) -> 0 | S225: =SUMIFS(FM!435:435,FM!$21:$21,S$5) -> 0 | T225: =SUMIFS(FM!435:435,FM!$21:$21,T$5) -> 0 | U225: =SUMIFS(FM!435:435,FM!$21:$21,U$5) -> 0 | V225: =SUMIFS(FM!435:435,FM!$21:$21,V$5) -> 0 | W225: =SUMIFS(FM!435:435,FM!$21:$21,W$5) -> 0 | X225: =SUMIFS(FM!435:435,FM!$21:$21,X$5) -> 0 | Y225: =SUMIFS(FM!435:435,FM!$21:$21,Y$5) -> 0 | Z225: =SUMIFS(FM!435:435,FM!$21:$21,Z$5) -> 0 | AA225: =SUMIFS(FM!435:435,FM!$21:$21,AA$5) -> 0 | AB225: =SUMIFS(FM!435:435,FM!$21:$21,AB$5) -> 0 | AC225: =SUMIFS(FM!435:435,FM!$21:$21,AC$5) -> 0 | AD225: =SUMIFS(FM!435:435,FM!$21:$21,AD$5) -> 0 | AE225: =SUMIFS(FM!435:435,FM!$21:$21,AE$5) -> 0 | AF225: =SUMIFS(FM!435:435,FM!$21:$21,AF$5) -> 0 | AG225: =SUMIFS(FM!435:435,FM!$21:$21,AG$5) -> 0 | AH225: =SUMIFS(FM!435:435,FM!$21:$21,AH$5) -> 0 | AI225: =SUMIFS(FM!435:435,FM!$21:$21,AI$5) -> 0 | AJ225: =SUMIFS(FM!435:435,FM!$21:$21,AJ$5) -> 0 | AK225: =SUMIFS(FM!435:435,FM!$21:$21,AK$5) -> 0 | AL225: =SUMIFS(FM!435:435,FM!$21:$21,AL$5) -> 0 | AM225: =SUMIFS(FM!435:435,FM!$21:$21,AM$5) -> 0
E226: =FM!C436 -> Vias Compartilhadas - Etapa 1 | G226: =H226-FM!K436 -> 0 | H226: -7794.371416 | J226: =SUMIFS(FM!436:436,FM!$21:$21,J$5) -> 0 | K226: =SUMIFS(FM!436:436,FM!$21:$21,K$5) -> -334.0444893 | L226: =SUMIFS(FM!436:436,FM!$21:$21,L$5) -> -7460.326927 | M226: =SUMIFS(FM!436:436,FM!$21:$21,M$5) -> 0 | N226: =SUMIFS(FM!436:436,FM!$21:$21,N$5) -> 0 | O226: =SUMIFS(FM!436:436,FM!$21:$21,O$5) -> 0 | P226: =SUMIFS(FM!436:436,FM!$21:$21,P$5) -> 0 | Q226: =SUMIFS(FM!436:436,FM!$21:$21,Q$5) -> 0 | R226: =SUMIFS(FM!436:436,FM!$21:$21,R$5) -> 0 | S226: =SUMIFS(FM!436:436,FM!$21:$21,S$5) -> 0 | T226: =SUMIFS(FM!436:436,FM!$21:$21,T$5) -> 0 | U226: =SUMIFS(FM!436:436,FM!$21:$21,U$5) -> 0 | V226: =SUMIFS(FM!436:436,FM!$21:$21,V$5) -> 0 | W226: =SUMIFS(FM!436:436,FM!$21:$21,W$5) -> 0 | X226: =SUMIFS(FM!436:436,FM!$21:$21,X$5) -> 0 | Y226: =SUMIFS(FM!436:436,FM!$21:$21,Y$5) -> 0 | Z226: =SUMIFS(FM!436:436,FM!$21:$21,Z$5) -> 0 | AA226: =SUMIFS(FM!436:436,FM!$21:$21,AA$5) -> 0 | AB226: =SUMIFS(FM!436:436,FM!$21:$21,AB$5) -> 0 | AC226: =SUMIFS(FM!436:436,FM!$21:$21,AC$5) -> 0 | AD226: =SUMIFS(FM!436:436,FM!$21:$21,AD$5) -> 0 | AE226: =SUMIFS(FM!436:436,FM!$21:$21,AE$5) -> 0 | AF226: =SUMIFS(FM!436:436,FM!$21:$21,AF$5) -> 0 | AG226: =SUMIFS(FM!436:436,FM!$21:$21,AG$5) -> 0 | AH226: =SUMIFS(FM!436:436,FM!$21:$21,AH$5) -> 0 | AI226: =SUMIFS(FM!436:436,FM!$21:$21,AI$5) -> 0 | AJ226: =SUMIFS(FM!436:436,FM!$21:$21,AJ$5) -> 0 | AK226: =SUMIFS(FM!436:436,FM!$21:$21,AK$5) -> 0 | AL226: =SUMIFS(FM!436:436,FM!$21:$21,AL$5) -> 0 | AM226: =SUMIFS(FM!436:436,FM!$21:$21,AM$5) -> 0
E227: =FM!C437 -> Praça da Independência | G227: =H227-FM!K437 -> 0 | H227: -2672.715188 | J227: =SUMIFS(FM!437:437,FM!$21:$21,J$5) -> 0 | K227: =SUMIFS(FM!437:437,FM!$21:$21,K$5) -> -1191.585521 | L227: =SUMIFS(FM!437:437,FM!$21:$21,L$5) -> -1481.129667 | M227: =SUMIFS(FM!437:437,FM!$21:$21,M$5) -> 0 | N227: =SUMIFS(FM!437:437,FM!$21:$21,N$5) -> 0 | O227: =SUMIFS(FM!437:437,FM!$21:$21,O$5) -> 0 | P227: =SUMIFS(FM!437:437,FM!$21:$21,P$5) -> 0 | Q227: =SUMIFS(FM!437:437,FM!$21:$21,Q$5) -> 0 | R227: =SUMIFS(FM!437:437,FM!$21:$21,R$5) -> 0 | S227: =SUMIFS(FM!437:437,FM!$21:$21,S$5) -> 0 | T227: =SUMIFS(FM!437:437,FM!$21:$21,T$5) -> 0 | U227: =SUMIFS(FM!437:437,FM!$21:$21,U$5) -> 0 | V227: =SUMIFS(FM!437:437,FM!$21:$21,V$5) -> 0 | W227: =SUMIFS(FM!437:437,FM!$21:$21,W$5) -> 0 | X227: =SUMIFS(FM!437:437,FM!$21:$21,X$5) -> 0 | Y227: =SUMIFS(FM!437:437,FM!$21:$21,Y$5) -> 0 | Z227: =SUMIFS(FM!437:437,FM!$21:$21,Z$5) -> 0 | AA227: =SUMIFS(FM!437:437,FM!$21:$21,AA$5) -> 0 | AB227: =SUMIFS(FM!437:437,FM!$21:$21,AB$5) -> 0 | AC227: =SUMIFS(FM!437:437,FM!$21:$21,AC$5) -> 0 | AD227: =SUMIFS(FM!437:437,FM!$21:$21,AD$5) -> 0 | AE227: =SUMIFS(FM!437:437,FM!$21:$21,AE$5) -> 0 | AF227: =SUMIFS(FM!437:437,FM!$21:$21,AF$5) -> 0 | AG227: =SUMIFS(FM!437:437,FM!$21:$21,AG$5) -> 0 | AH227: =SUMIFS(FM!437:437,FM!$21:$21,AH$5) -> 0 | AI227: =SUMIFS(FM!437:437,FM!$21:$21,AI$5) -> 0 | AJ227: =SUMIFS(FM!437:437,FM!$21:$21,AJ$5) -> 0 | AK227: =SUMIFS(FM!437:437,FM!$21:$21,AK$5) -> 0 | AL227: =SUMIFS(FM!437:437,FM!$21:$21,AL$5) -> 0 | AM227: =SUMIFS(FM!437:437,FM!$21:$21,AM$5) -> 0
E228: =FM!C438 -> Rua 1º de Março | G228: =H228-FM!K438 -> 0 | H228: -287.5783816 | J228: =SUMIFS(FM!438:438,FM!$21:$21,J$5) -> 0 | K228: =SUMIFS(FM!438:438,FM!$21:$21,K$5) -> -242.0451378 | L228: =SUMIFS(FM!438:438,FM!$21:$21,L$5) -> -45.53324375 | M228: =SUMIFS(FM!438:438,FM!$21:$21,M$5) -> 0 | N228: =SUMIFS(FM!438:438,FM!$21:$21,N$5) -> 0 | O228: =SUMIFS(FM!438:438,FM!$21:$21,O$5) -> 0 | P228: =SUMIFS(FM!438:438,FM!$21:$21,P$5) -> 0 | Q228: =SUMIFS(FM!438:438,FM!$21:$21,Q$5) -> 0 | R228: =SUMIFS(FM!438:438,FM!$21:$21,R$5) -> 0 | S228: =SUMIFS(FM!438:438,FM!$21:$21,S$5) -> 0 | T228: =SUMIFS(FM!438:438,FM!$21:$21,T$5) -> 0 | U228: =SUMIFS(FM!438:438,FM!$21:$21,U$5) -> 0 | V228: =SUMIFS(FM!438:438,FM!$21:$21,V$5) -> 0 | W228: =SUMIFS(FM!438:438,FM!$21:$21,W$5) -> 0 | X228: =SUMIFS(FM!438:438,FM!$21:$21,X$5) -> 0 | Y228: =SUMIFS(FM!438:438,FM!$21:$21,Y$5) -> 0 | Z228: =SUMIFS(FM!438:438,FM!$21:$21,Z$5) -> 0 | AA228: =SUMIFS(FM!438:438,FM!$21:$21,AA$5) -> 0 | AB228: =SUMIFS(FM!438:438,FM!$21:$21,AB$5) -> 0 | AC228: =SUMIFS(FM!438:438,FM!$21:$21,AC$5) -> 0 | AD228: =SUMIFS(FM!438:438,FM!$21:$21,AD$5) -> 0 | AE228: =SUMIFS(FM!438:438,FM!$21:$21,AE$5) -> 0 | AF228: =SUMIFS(FM!438:438,FM!$21:$21,AF$5) -> 0 | AG228: =SUMIFS(FM!438:438,FM!$21:$21,AG$5) -> 0 | AH228: =SUMIFS(FM!438:438,FM!$21:$21,AH$5) -> 0 | AI228: =SUMIFS(FM!438:438,FM!$21:$21,AI$5) -> 0 | AJ228: =SUMIFS(FM!438:438,FM!$21:$21,AJ$5) -> 0 | AK228: =SUMIFS(FM!438:438,FM!$21:$21,AK$5) -> 0 | AL228: =SUMIFS(FM!438:438,FM!$21:$21,AL$5) -> 0 | AM228: =SUMIFS(FM!438:438,FM!$21:$21,AM$5) -> 0
E229: =FM!C439 -> Av Guararapes - Etapa 2 | G229: =H229-FM!K439 -> 0 | H229: -4991.71686 | J229: =SUMIFS(FM!439:439,FM!$21:$21,J$5) -> 0 | K229: =SUMIFS(FM!439:439,FM!$21:$21,K$5) -> -115.193466 | L229: =SUMIFS(FM!439:439,FM!$21:$21,L$5) -> -2110.280301 | M229: =SUMIFS(FM!439:439,FM!$21:$21,M$5) -> -2766.243093 | N229: =SUMIFS(FM!439:439,FM!$21:$21,N$5) -> 0 | O229: =SUMIFS(FM!439:439,FM!$21:$21,O$5) -> 0 | P229: =SUMIFS(FM!439:439,FM!$21:$21,P$5) -> 0 | Q229: =SUMIFS(FM!439:439,FM!$21:$21,Q$5) -> 0 | R229: =SUMIFS(FM!439:439,FM!$21:$21,R$5) -> 0 | S229: =SUMIFS(FM!439:439,FM!$21:$21,S$5) -> 0 | T229: =SUMIFS(FM!439:439,FM!$21:$21,T$5) -> 0 | U229: =SUMIFS(FM!439:439,FM!$21:$21,U$5) -> 0 | V229: =SUMIFS(FM!439:439,FM!$21:$21,V$5) -> 0 | W229: =SUMIFS(FM!439:439,FM!$21:$21,W$5) -> 0 | X229: =SUMIFS(FM!439:439,FM!$21:$21,X$5) -> 0 | Y229: =SUMIFS(FM!439:439,FM!$21:$21,Y$5) -> 0 | Z229: =SUMIFS(FM!439:439,FM!$21:$21,Z$5) -> 0 | AA229: =SUMIFS(FM!439:439,FM!$21:$21,AA$5) -> 0 | AB229: =SUMIFS(FM!439:439,FM!$21:$21,AB$5) -> 0 | AC229: =SUMIFS(FM!439:439,FM!$21:$21,AC$5) -> 0 | AD229: =SUMIFS(FM!439:439,FM!$21:$21,AD$5) -> 0 | AE229: =SUMIFS(FM!439:439,FM!$21:$21,AE$5) -> 0 | AF229: =SUMIFS(FM!439:439,FM!$21:$21,AF$5) -> 0 | AG229: =SUMIFS(FM!439:439,FM!$21:$21,AG$5) -> 0 | AH229: =SUMIFS(FM!439:439,FM!$21:$21,AH$5) -> 0 | AI229: =SUMIFS(FM!439:439,FM!$21:$21,AI$5) -> 0 | AJ229: =SUMIFS(FM!439:439,FM!$21:$21,AJ$5) -> 0 | AK229: =SUMIFS(FM!439:439,FM!$21:$21,AK$5) -> 0 | AL229: =SUMIFS(FM!439:439,FM!$21:$21,AL$5) -> 0 | AM229: =SUMIFS(FM!439:439,FM!$21:$21,AM$5) -> 0
E230: =FM!C440 -> Praça do Sebo | G230: =H230-FM!K440 -> 0 | H230: -1023.936505 | J230: =SUMIFS(FM!440:440,FM!$21:$21,J$5) -> 0 | K230: =SUMIFS(FM!440:440,FM!$21:$21,K$5) -> -23.62930396 | L230: =SUMIFS(FM!440:440,FM!$21:$21,L$5) -> -432.8757212 | M230: =SUMIFS(FM!440:440,FM!$21:$21,M$5) -> -567.4314799 | N230: =SUMIFS(FM!440:440,FM!$21:$21,N$5) -> 0 | O230: =SUMIFS(FM!440:440,FM!$21:$21,O$5) -> 0 | P230: =SUMIFS(FM!440:440,FM!$21:$21,P$5) -> 0 | Q230: =SUMIFS(FM!440:440,FM!$21:$21,Q$5) -> 0 | R230: =SUMIFS(FM!440:440,FM!$21:$21,R$5) -> 0 | S230: =SUMIFS(FM!440:440,FM!$21:$21,S$5) -> 0 | T230: =SUMIFS(FM!440:440,FM!$21:$21,T$5) -> 0 | U230: =SUMIFS(FM!440:440,FM!$21:$21,U$5) -> 0 | V230: =SUMIFS(FM!440:440,FM!$21:$21,V$5) -> 0 | W230: =SUMIFS(FM!440:440,FM!$21:$21,W$5) -> 0 | X230: =SUMIFS(FM!440:440,FM!$21:$21,X$5) -> 0 | Y230: =SUMIFS(FM!440:440,FM!$21:$21,Y$5) -> 0 | Z230: =SUMIFS(FM!440:440,FM!$21:$21,Z$5) -> 0 | AA230: =SUMIFS(FM!440:440,FM!$21:$21,AA$5) -> 0 | AB230: =SUMIFS(FM!440:440,FM!$21:$21,AB$5) -> 0 | AC230: =SUMIFS(FM!440:440,FM!$21:$21,AC$5) -> 0 | AD230: =SUMIFS(FM!440:440,FM!$21:$21,AD$5) -> 0 | AE230: =SUMIFS(FM!440:440,FM!$21:$21,AE$5) -> 0 | AF230: =SUMIFS(FM!440:440,FM!$21:$21,AF$5) -> 0 | AG230: =SUMIFS(FM!440:440,FM!$21:$21,AG$5) -> 0 | AH230: =SUMIFS(FM!440:440,FM!$21:$21,AH$5) -> 0 | AI230: =SUMIFS(FM!440:440,FM!$21:$21,AI$5) -> 0 | AJ230: =SUMIFS(FM!440:440,FM!$21:$21,AJ$5) -> 0 | AK230: =SUMIFS(FM!440:440,FM!$21:$21,AK$5) -> 0 | AL230: =SUMIFS(FM!440:440,FM!$21:$21,AL$5) -> 0 | AM230: =SUMIFS(FM!440:440,FM!$21:$21,AM$5) -> 0
E231: =FM!C441 -> Vias Compartilhadas - Etapa 2 | G231: =H231-FM!K441 -> 0 | H231: -5591.997562 | J231: =SUMIFS(FM!441:441,FM!$21:$21,J$5) -> 0 | K231: =SUMIFS(FM!441:441,FM!$21:$21,K$5) -> 0 | L231: =SUMIFS(FM!441:441,FM!$21:$21,L$5) -> -239.6570384 | M231: =SUMIFS(FM!441:441,FM!$21:$21,M$5) -> -5352.340524 | N231: =SUMIFS(FM!441:441,FM!$21:$21,N$5) -> 0 | O231: =SUMIFS(FM!441:441,FM!$21:$21,O$5) -> 0 | P231: =SUMIFS(FM!441:441,FM!$21:$21,P$5) -> 0 | Q231: =SUMIFS(FM!441:441,FM!$21:$21,Q$5) -> 0 | R231: =SUMIFS(FM!441:441,FM!$21:$21,R$5) -> 0 | S231: =SUMIFS(FM!441:441,FM!$21:$21,S$5) -> 0 | T231: =SUMIFS(FM!441:441,FM!$21:$21,T$5) -> 0 | U231: =SUMIFS(FM!441:441,FM!$21:$21,U$5) -> 0 | V231: =SUMIFS(FM!441:441,FM!$21:$21,V$5) -> 0 | W231: =SUMIFS(FM!441:441,FM!$21:$21,W$5) -> 0 | X231: =SUMIFS(FM!441:441,FM!$21:$21,X$5) -> 0 | Y231: =SUMIFS(FM!441:441,FM!$21:$21,Y$5) -> 0 | Z231: =SUMIFS(FM!441:441,FM!$21:$21,Z$5) -> 0 | AA231: =SUMIFS(FM!441:441,FM!$21:$21,AA$5) -> 0 | AB231: =SUMIFS(FM!441:441,FM!$21:$21,AB$5) -> 0 | AC231: =SUMIFS(FM!441:441,FM!$21:$21,AC$5) -> 0 | AD231: =SUMIFS(FM!441:441,FM!$21:$21,AD$5) -> 0 | AE231: =SUMIFS(FM!441:441,FM!$21:$21,AE$5) -> 0 | AF231: =SUMIFS(FM!441:441,FM!$21:$21,AF$5) -> 0 | AG231: =SUMIFS(FM!441:441,FM!$21:$21,AG$5) -> 0 | AH231: =SUMIFS(FM!441:441,FM!$21:$21,AH$5) -> 0 | AI231: =SUMIFS(FM!441:441,FM!$21:$21,AI$5) -> 0 | AJ231: =SUMIFS(FM!441:441,FM!$21:$21,AJ$5) -> 0 | AK231: =SUMIFS(FM!441:441,FM!$21:$21,AK$5) -> 0 | AL231: =SUMIFS(FM!441:441,FM!$21:$21,AL$5) -> 0 | AM231: =SUMIFS(FM!441:441,FM!$21:$21,AM$5) -> 0
E232: =FM!C442 -> Av Dantas Barreto - Etapa 1 | G232: =H232-FM!K442 -> 0 | H232: -5368.18671 | J232: =SUMIFS(FM!442:442,FM!$21:$21,J$5) -> 0 | K232: =SUMIFS(FM!442:442,FM!$21:$21,K$5) -> 0 | L232: =SUMIFS(FM!442:442,FM!$21:$21,L$5) -> -230.0651447 | M232: =SUMIFS(FM!442:442,FM!$21:$21,M$5) -> -4713.140117 | N232: =SUMIFS(FM!442:442,FM!$21:$21,N$5) -> -424.9814479 | O232: =SUMIFS(FM!442:442,FM!$21:$21,O$5) -> 0 | P232: =SUMIFS(FM!442:442,FM!$21:$21,P$5) -> 0 | Q232: =SUMIFS(FM!442:442,FM!$21:$21,Q$5) -> 0 | R232: =SUMIFS(FM!442:442,FM!$21:$21,R$5) -> 0 | S232: =SUMIFS(FM!442:442,FM!$21:$21,S$5) -> 0 | T232: =SUMIFS(FM!442:442,FM!$21:$21,T$5) -> 0 | U232: =SUMIFS(FM!442:442,FM!$21:$21,U$5) -> 0 | V232: =SUMIFS(FM!442:442,FM!$21:$21,V$5) -> 0 | W232: =SUMIFS(FM!442:442,FM!$21:$21,W$5) -> 0 | X232: =SUMIFS(FM!442:442,FM!$21:$21,X$5) -> 0 | Y232: =SUMIFS(FM!442:442,FM!$21:$21,Y$5) -> 0 | Z232: =SUMIFS(FM!442:442,FM!$21:$21,Z$5) -> 0 | AA232: =SUMIFS(FM!442:442,FM!$21:$21,AA$5) -> 0 | AB232: =SUMIFS(FM!442:442,FM!$21:$21,AB$5) -> 0 | AC232: =SUMIFS(FM!442:442,FM!$21:$21,AC$5) -> 0 | AD232: =SUMIFS(FM!442:442,FM!$21:$21,AD$5) -> 0 | AE232: =SUMIFS(FM!442:442,FM!$21:$21,AE$5) -> 0 | AF232: =SUMIFS(FM!442:442,FM!$21:$21,AF$5) -> 0 | AG232: =SUMIFS(FM!442:442,FM!$21:$21,AG$5) -> 0 | AH232: =SUMIFS(FM!442:442,FM!$21:$21,AH$5) -> 0 | AI232: =SUMIFS(FM!442:442,FM!$21:$21,AI$5) -> 0 | AJ232: =SUMIFS(FM!442:442,FM!$21:$21,AJ$5) -> 0 | AK232: =SUMIFS(FM!442:442,FM!$21:$21,AK$5) -> 0 | AL232: =SUMIFS(FM!442:442,FM!$21:$21,AL$5) -> 0 | AM232: =SUMIFS(FM!442:442,FM!$21:$21,AM$5) -> 0
E233: =FM!C443 -> Av Dantas Barreto - Etapa 2 | G233: =H233-FM!K443 -> 0 | H233: -4468.661169 | J233: =SUMIFS(FM!443:443,FM!$21:$21,J$5) -> 0 | K233: =SUMIFS(FM!443:443,FM!$21:$21,K$5) -> 0 | L233: =SUMIFS(FM!443:443,FM!$21:$21,L$5) -> -103.1229501 | M233: =SUMIFS(FM!443:443,FM!$21:$21,M$5) -> -1889.155155 | N233: =SUMIFS(FM!443:443,FM!$21:$21,N$5) -> -2476.383065 | O233: =SUMIFS(FM!443:443,FM!$21:$21,O$5) -> 0 | P233: =SUMIFS(FM!443:443,FM!$21:$21,P$5) -> 0 | Q233: =SUMIFS(FM!443:443,FM!$21:$21,Q$5) -> 0 | R233: =SUMIFS(FM!443:443,FM!$21:$21,R$5) -> 0 | S233: =SUMIFS(FM!443:443,FM!$21:$21,S$5) -> 0 | T233: =SUMIFS(FM!443:443,FM!$21:$21,T$5) -> 0 | U233: =SUMIFS(FM!443:443,FM!$21:$21,U$5) -> 0 | V233: =SUMIFS(FM!443:443,FM!$21:$21,V$5) -> 0 | W233: =SUMIFS(FM!443:443,FM!$21:$21,W$5) -> 0 | X233: =SUMIFS(FM!443:443,FM!$21:$21,X$5) -> 0 | Y233: =SUMIFS(FM!443:443,FM!$21:$21,Y$5) -> 0 | Z233: =SUMIFS(FM!443:443,FM!$21:$21,Z$5) -> 0 | AA233: =SUMIFS(FM!443:443,FM!$21:$21,AA$5) -> 0 | AB233: =SUMIFS(FM!443:443,FM!$21:$21,AB$5) -> 0 | AC233: =SUMIFS(FM!443:443,FM!$21:$21,AC$5) -> 0 | AD233: =SUMIFS(FM!443:443,FM!$21:$21,AD$5) -> 0 | AE233: =SUMIFS(FM!443:443,FM!$21:$21,AE$5) -> 0 | AF233: =SUMIFS(FM!443:443,FM!$21:$21,AF$5) -> 0 | AG233: =SUMIFS(FM!443:443,FM!$21:$21,AG$5) -> 0 | AH233: =SUMIFS(FM!443:443,FM!$21:$21,AH$5) -> 0 | AI233: =SUMIFS(FM!443:443,FM!$21:$21,AI$5) -> 0 | AJ233: =SUMIFS(FM!443:443,FM!$21:$21,AJ$5) -> 0 | AK233: =SUMIFS(FM!443:443,FM!$21:$21,AK$5) -> 0 | AL233: =SUMIFS(FM!443:443,FM!$21:$21,AL$5) -> 0 | AM233: =SUMIFS(FM!443:443,FM!$21:$21,AM$5) -> 0
E234: =FM!C444 -> Av Dantas Barreto - Etapa 3 | G234: =H234-FM!K444 -> 0 | H234: =SUM(J234:AM234) -> -37628.45735 | J234: =SUMIFS(FM!444:444,FM!$21:$21,J$5) -> 0 | K234: =SUMIFS(FM!444:444,FM!$21:$21,K$5) -> 0 | L234: =SUMIFS(FM!444:444,FM!$21:$21,L$5) -> 0 | M234: =SUMIFS(FM!444:444,FM!$21:$21,M$5) -> 0 | N234: =SUMIFS(FM!444:444,FM!$21:$21,N$5) -> -1526.22799 | O234: =SUMIFS(FM!444:444,FM!$21:$21,O$5) -> -33105.27258 | P234: =SUMIFS(FM!444:444,FM!$21:$21,P$5) -> -2996.95678 | Q234: =SUMIFS(FM!444:444,FM!$21:$21,Q$5) -> 0 | R234: =SUMIFS(FM!444:444,FM!$21:$21,R$5) -> 0 | S234: =SUMIFS(FM!444:444,FM!$21:$21,S$5) -> 0 | T234: =SUMIFS(FM!444:444,FM!$21:$21,T$5) -> 0 | U234: =SUMIFS(FM!444:444,FM!$21:$21,U$5) -> 0 | V234: =SUMIFS(FM!444:444,FM!$21:$21,V$5) -> 0 | W234: =SUMIFS(FM!444:444,FM!$21:$21,W$5) -> 0 | X234: =SUMIFS(FM!444:444,FM!$21:$21,X$5) -> 0 | Y234: =SUMIFS(FM!444:444,FM!$21:$21,Y$5) -> 0 | Z234: =SUMIFS(FM!444:444,FM!$21:$21,Z$5) -> 0 | AA234: =SUMIFS(FM!444:444,FM!$21:$21,AA$5) -> 0 | AB234: =SUMIFS(FM!444:444,FM!$21:$21,AB$5) -> 0 | AC234: =SUMIFS(FM!444:444,FM!$21:$21,AC$5) -> 0 | AD234: =SUMIFS(FM!444:444,FM!$21:$21,AD$5) -> 0 | AE234: =SUMIFS(FM!444:444,FM!$21:$21,AE$5) -> 0 | AF234: =SUMIFS(FM!444:444,FM!$21:$21,AF$5) -> 0 | AG234: =SUMIFS(FM!444:444,FM!$21:$21,AG$5) -> 0 | AH234: =SUMIFS(FM!444:444,FM!$21:$21,AH$5) -> 0 | AI234: =SUMIFS(FM!444:444,FM!$21:$21,AI$5) -> 0 | AJ234: =SUMIFS(FM!444:444,FM!$21:$21,AJ$5) -> 0 | AK234: =SUMIFS(FM!444:444,FM!$21:$21,AK$5) -> 0 | AL234: =SUMIFS(FM!444:444,FM!$21:$21,AL$5) -> 0 | AM234: =SUMIFS(FM!444:444,FM!$21:$21,AM$5) -> 0
E235: =FM!C445 -> Orla Sol Poente - Etapa 1 | G235: =H235-FM!K445 -> 0 | H235: -7312.4998 | J235: =SUMIFS(FM!445:445,FM!$21:$21,J$5) -> 0 | K235: =SUMIFS(FM!445:445,FM!$21:$21,K$5) -> 0 | L235: =SUMIFS(FM!445:445,FM!$21:$21,L$5) -> -313.3928486 | M235: =SUMIFS(FM!445:445,FM!$21:$21,M$5) -> -6420.200717 | N235: =SUMIFS(FM!445:445,FM!$21:$21,N$5) -> -578.9062342 | O235: =SUMIFS(FM!445:445,FM!$21:$21,O$5) -> 0 | P235: =SUMIFS(FM!445:445,FM!$21:$21,P$5) -> 0 | Q235: =SUMIFS(FM!445:445,FM!$21:$21,Q$5) -> 0 | R235: =SUMIFS(FM!445:445,FM!$21:$21,R$5) -> 0 | S235: =SUMIFS(FM!445:445,FM!$21:$21,S$5) -> 0 | T235: =SUMIFS(FM!445:445,FM!$21:$21,T$5) -> 0 | U235: =SUMIFS(FM!445:445,FM!$21:$21,U$5) -> 0 | V235: =SUMIFS(FM!445:445,FM!$21:$21,V$5) -> 0 | W235: =SUMIFS(FM!445:445,FM!$21:$21,W$5) -> 0 | X235: =SUMIFS(FM!445:445,FM!$21:$21,X$5) -> 0 | Y235: =SUMIFS(FM!445:445,FM!$21:$21,Y$5) -> 0 | Z235: =SUMIFS(FM!445:445,FM!$21:$21,Z$5) -> 0 | AA235: =SUMIFS(FM!445:445,FM!$21:$21,AA$5) -> 0 | AB235: =SUMIFS(FM!445:445,FM!$21:$21,AB$5) -> 0 | AC235: =SUMIFS(FM!445:445,FM!$21:$21,AC$5) -> 0 | AD235: =SUMIFS(FM!445:445,FM!$21:$21,AD$5) -> 0 | AE235: =SUMIFS(FM!445:445,FM!$21:$21,AE$5) -> 0 | AF235: =SUMIFS(FM!445:445,FM!$21:$21,AF$5) -> 0 | AG235: =SUMIFS(FM!445:445,FM!$21:$21,AG$5) -> 0 | AH235: =SUMIFS(FM!445:445,FM!$21:$21,AH$5) -> 0 | AI235: =SUMIFS(FM!445:445,FM!$21:$21,AI$5) -> 0 | AJ235: =SUMIFS(FM!445:445,FM!$21:$21,AJ$5) -> 0 | AK235: =SUMIFS(FM!445:445,FM!$21:$21,AK$5) -> 0 | AL235: =SUMIFS(FM!445:445,FM!$21:$21,AL$5) -> 0 | AM235: =SUMIFS(FM!445:445,FM!$21:$21,AM$5) -> 0
E236: =FM!C446 -> Orla Sol Poente - Etapa 2 | G236: =H236-FM!K446 -> 0 | H236: -9033.2652 | J236: =SUMIFS(FM!446:446,FM!$21:$21,J$5) -> 0 | K236: =SUMIFS(FM!446:446,FM!$21:$21,K$5) -> 0 | L236: =SUMIFS(FM!446:446,FM!$21:$21,L$5) -> 0 | M236: =SUMIFS(FM!446:446,FM!$21:$21,M$5) -> -414.024655 | N236: =SUMIFS(FM!446:446,FM!$21:$21,N$5) -> -7904.10705 | O236: =SUMIFS(FM!446:446,FM!$21:$21,O$5) -> -715.133495 | P236: =SUMIFS(FM!446:446,FM!$21:$21,P$5) -> 0 | Q236: =SUMIFS(FM!446:446,FM!$21:$21,Q$5) -> 0 | R236: =SUMIFS(FM!446:446,FM!$21:$21,R$5) -> 0 | S236: =SUMIFS(FM!446:446,FM!$21:$21,S$5) -> 0 | T236: =SUMIFS(FM!446:446,FM!$21:$21,T$5) -> 0 | U236: =SUMIFS(FM!446:446,FM!$21:$21,U$5) -> 0 | V236: =SUMIFS(FM!446:446,FM!$21:$21,V$5) -> 0 | W236: =SUMIFS(FM!446:446,FM!$21:$21,W$5) -> 0 | X236: =SUMIFS(FM!446:446,FM!$21:$21,X$5) -> 0 | Y236: =SUMIFS(FM!446:446,FM!$21:$21,Y$5) -> 0 | Z236: =SUMIFS(FM!446:446,FM!$21:$21,Z$5) -> 0 | AA236: =SUMIFS(FM!446:446,FM!$21:$21,AA$5) -> 0 | AB236: =SUMIFS(FM!446:446,FM!$21:$21,AB$5) -> 0 | AC236: =SUMIFS(FM!446:446,FM!$21:$21,AC$5) -> 0 | AD236: =SUMIFS(FM!446:446,FM!$21:$21,AD$5) -> 0 | AE236: =SUMIFS(FM!446:446,FM!$21:$21,AE$5) -> 0 | AF236: =SUMIFS(FM!446:446,FM!$21:$21,AF$5) -> 0 | AG236: =SUMIFS(FM!446:446,FM!$21:$21,AG$5) -> 0 | AH236: =SUMIFS(FM!446:446,FM!$21:$21,AH$5) -> 0 | AI236: =SUMIFS(FM!446:446,FM!$21:$21,AI$5) -> 0 | AJ236: =SUMIFS(FM!446:446,FM!$21:$21,AJ$5) -> 0 | AK236: =SUMIFS(FM!446:446,FM!$21:$21,AK$5) -> 0 | AL236: =SUMIFS(FM!446:446,FM!$21:$21,AL$5) -> 0 | AM236: =SUMIFS(FM!446:446,FM!$21:$21,AM$5) -> 0
E237: =FM!C447 -> Vias Compartilhadas - Etapa 3 e Demais Vias | G237: =H237-FM!K447 -> 0 | H237: -11304.99883 | J237: =SUMIFS(FM!447:447,FM!$21:$21,J$5) -> 0 | K237: =SUMIFS(FM!447:447,FM!$21:$21,K$5) -> 0 | L237: =SUMIFS(FM!447:447,FM!$21:$21,L$5) -> 0 | M237: =SUMIFS(FM!447:447,FM!$21:$21,M$5) -> 0 | N237: =SUMIFS(FM!447:447,FM!$21:$21,N$5) -> -9515.040685 | O237: =SUMIFS(FM!447:447,FM!$21:$21,O$5) -> -1789.958149 | P237: =SUMIFS(FM!447:447,FM!$21:$21,P$5) -> 0 | Q237: =SUMIFS(FM!447:447,FM!$21:$21,Q$5) -> 0 | R237: =SUMIFS(FM!447:447,FM!$21:$21,R$5) -> 0 | S237: =SUMIFS(FM!447:447,FM!$21:$21,S$5) -> 0 | T237: =SUMIFS(FM!447:447,FM!$21:$21,T$5) -> 0 | U237: =SUMIFS(FM!447:447,FM!$21:$21,U$5) -> 0 | V237: =SUMIFS(FM!447:447,FM!$21:$21,V$5) -> 0 | W237: =SUMIFS(FM!447:447,FM!$21:$21,W$5) -> 0 | X237: =SUMIFS(FM!447:447,FM!$21:$21,X$5) -> 0 | Y237: =SUMIFS(FM!447:447,FM!$21:$21,Y$5) -> 0 | Z237: =SUMIFS(FM!447:447,FM!$21:$21,Z$5) -> 0 | AA237: =SUMIFS(FM!447:447,FM!$21:$21,AA$5) -> 0 | AB237: =SUMIFS(FM!447:447,FM!$21:$21,AB$5) -> 0 | AC237: =SUMIFS(FM!447:447,FM!$21:$21,AC$5) -> 0 | AD237: =SUMIFS(FM!447:447,FM!$21:$21,AD$5) -> 0 | AE237: =SUMIFS(FM!447:447,FM!$21:$21,AE$5) -> 0 | AF237: =SUMIFS(FM!447:447,FM!$21:$21,AF$5) -> 0 | AG237: =SUMIFS(FM!447:447,FM!$21:$21,AG$5) -> 0 | AH237: =SUMIFS(FM!447:447,FM!$21:$21,AH$5) -> 0 | AI237: =SUMIFS(FM!447:447,FM!$21:$21,AI$5) -> 0 | AJ237: =SUMIFS(FM!447:447,FM!$21:$21,AJ$5) -> 0 | AK237: =SUMIFS(FM!447:447,FM!$21:$21,AK$5) -> 0 | AL237: =SUMIFS(FM!447:447,FM!$21:$21,AL$5) -> 0 | AM237: =SUMIFS(FM!447:447,FM!$21:$21,AM$5) -> 0
E238: =FM!C448 -> Despesas Pré-Operacionais | G238: =H238-FM!K448 -> 0 | H238: -7960.801094 | J238: =SUMIFS(FM!448:448,FM!$21:$21,J$5) -> -7960.801094 | K238: =SUMIFS(FM!448:448,FM!$21:$21,K$5) -> 0 | L238: =SUMIFS(FM!448:448,FM!$21:$21,L$5) -> 0 | M238: =SUMIFS(FM!448:448,FM!$21:$21,M$5) -> 0 | N238: =SUMIFS(FM!448:448,FM!$21:$21,N$5) -> 0 | O238: =SUMIFS(FM!448:448,FM!$21:$21,O$5) -> 0 | P238: =SUMIFS(FM!448:448,FM!$21:$21,P$5) -> 0 | Q238: =SUMIFS(FM!448:448,FM!$21:$21,Q$5) -> 0 | R238: =SUMIFS(FM!448:448,FM!$21:$21,R$5) -> 0 | S238: =SUMIFS(FM!448:448,FM!$21:$21,S$5) -> 0 | T238: =SUMIFS(FM!448:448,FM!$21:$21,T$5) -> 0 | U238: =SUMIFS(FM!448:448,FM!$21:$21,U$5) -> 0 | V238: =SUMIFS(FM!448:448,FM!$21:$21,V$5) -> 0 | W238: =SUMIFS(FM!448:448,FM!$21:$21,W$5) -> 0 | X238: =SUMIFS(FM!448:448,FM!$21:$21,X$5) -> 0 | Y238: =SUMIFS(FM!448:448,FM!$21:$21,Y$5) -> 0 | Z238: =SUMIFS(FM!448:448,FM!$21:$21,Z$5) -> 0 | AA238: =SUMIFS(FM!448:448,FM!$21:$21,AA$5) -> 0 | AB238: =SUMIFS(FM!448:448,FM!$21:$21,AB$5) -> 0 | AC238: =SUMIFS(FM!448:448,FM!$21:$21,AC$5) -> 0 | AD238: =SUMIFS(FM!448:448,FM!$21:$21,AD$5) -> 0 | AE238: =SUMIFS(FM!448:448,FM!$21:$21,AE$5) -> 0 | AF238: =SUMIFS(FM!448:448,FM!$21:$21,AF$5) -> 0 | AG238: =SUMIFS(FM!448:448,FM!$21:$21,AG$5) -> 0 | AH238: =SUMIFS(FM!448:448,FM!$21:$21,AH$5) -> 0 | AI238: =SUMIFS(FM!448:448,FM!$21:$21,AI$5) -> 0 | AJ238: =SUMIFS(FM!448:448,FM!$21:$21,AJ$5) -> 0 | AK238: =SUMIFS(FM!448:448,FM!$21:$21,AK$5) -> 0 | AL238: =SUMIFS(FM!448:448,FM!$21:$21,AL$5) -> 0 | AM238: =SUMIFS(FM!448:448,FM!$21:$21,AM$5) -> 0
E239: =FM!C449 -> Ativação do opex | G239: =H239-FM!K449 -> 0 | H239: -134341.8505 | J239: =SUMIFS(FM!449:449,FM!$21:$21,J$5) -> -124.6666667 | K239: =SUMIFS(FM!449:449,FM!$21:$21,K$5) -> -267.328612 | L239: =SUMIFS(FM!449:449,FM!$21:$21,L$5) -> -1441.545988 | M239: =SUMIFS(FM!449:449,FM!$21:$21,M$5) -> -2394.05811 | N239: =SUMIFS(FM!449:449,FM!$21:$21,N$5) -> -3158.763977 | O239: =SUMIFS(FM!449:449,FM!$21:$21,O$5) -> -4481.491204 | P239: =SUMIFS(FM!449:449,FM!$21:$21,P$5) -> -5293.026202 | Q239: =SUMIFS(FM!449:449,FM!$21:$21,Q$5) -> -5286.359535 | R239: =SUMIFS(FM!449:449,FM!$21:$21,R$5) -> -5286.359535 | S239: =SUMIFS(FM!449:449,FM!$21:$21,S$5) -> -5286.359535 | T239: =SUMIFS(FM!449:449,FM!$21:$21,T$5) -> -5286.359535 | U239: =SUMIFS(FM!449:449,FM!$21:$21,U$5) -> -5286.359535 | V239: =SUMIFS(FM!449:449,FM!$21:$21,V$5) -> -5286.359535 | W239: =SUMIFS(FM!449:449,FM!$21:$21,W$5) -> -5286.359535 | X239: =SUMIFS(FM!449:449,FM!$21:$21,X$5) -> -5286.359535 | Y239: =SUMIFS(FM!449:449,FM!$21:$21,Y$5) -> -5286.359535 | Z239: =SUMIFS(FM!449:449,FM!$21:$21,Z$5) -> -5286.359535 | AA239: =SUMIFS(FM!449:449,FM!$21:$21,AA$5) -> -5286.359535 | AB239: =SUMIFS(FM!449:449,FM!$21:$21,AB$5) -> -5286.359535 | AC239: =SUMIFS(FM!449:449,FM!$21:$21,AC$5) -> -5286.359535 | AD239: =SUMIFS(FM!449:449,FM!$21:$21,AD$5) -> -5286.359535 | AE239: =SUMIFS(FM!449:449,FM!$21:$21,AE$5) -> -5286.359535 | AF239: =SUMIFS(FM!449:449,FM!$21:$21,AF$5) -> -5286.359535 | AG239: =SUMIFS(FM!449:449,FM!$21:$21,AG$5) -> -5286.359535 | AH239: =SUMIFS(FM!449:449,FM!$21:$21,AH$5) -> -5286.359535 | AI239: =SUMIFS(FM!449:449,FM!$21:$21,AI$5) -> -5286.359535 | AJ239: =SUMIFS(FM!449:449,FM!$21:$21,AJ$5) -> -5286.359535 | AK239: =SUMIFS(FM!449:449,FM!$21:$21,AK$5) -> -5286.359535 | AL239: =SUMIFS(FM!449:449,FM!$21:$21,AL$5) -> -5286.359535 | AM239: =SUMIFS(FM!449:449,FM!$21:$21,AM$5) -> -881.0599225
E240: =FM!C450 -> Capex | J240: =SUM(J220:J239) -> -20624.31416 | K240: -34740.84841 | L240: -18635.32829 | M240: -24516.59385 | N240: -25584.41045 | O240: -40091.85542 | P240: -8289.982982 | Q240: -5286.359535 | R240: -5286.359535 | S240: -5286.359535 | T240: -5286.359535 | U240: -5286.359535 | V240: -5286.359535 | W240: -5286.359535 | X240: -5286.359535 | Y240: -5286.359535 | Z240: -5286.359535 | AA240: -5286.359535 | AB240: -5286.359535 | AC240: -5286.359535 | AD240: -5286.359535 | AE240: -5286.359535 | AF240: -5286.359535 | AG240: -5286.359535 | AH240: -5286.359535 | AI240: -5286.359535 | AJ240: -5286.359535 | AK240: -5286.359535 | AL240: -5286.359535 | AM240: -881.0599225
E242: =FM!C452 -> Amortização de dívidas | J242: =SUMIFS(FM!452:452,FM!$21:$21,J$5) -> 0 | K242: =SUMIFS(FM!452:452,FM!$21:$21,K$5) -> 0 | L242: =SUMIFS(FM!452:452,FM!$21:$21,L$5) -> 0 | M242: =SUMIFS(FM!452:452,FM!$21:$21,M$5) -> 0 | N242: =SUMIFS(FM!452:452,FM!$21:$21,N$5) -> -3438.596491 | O242: =SUMIFS(FM!452:452,FM!$21:$21,O$5) -> -3438.596491 | P242: =SUMIFS(FM!452:452,FM!$21:$21,P$5) -> -3438.596491 | Q242: =SUMIFS(FM!452:452,FM!$21:$21,Q$5) -> -3438.596491 | R242: =SUMIFS(FM!452:452,FM!$21:$21,R$5) -> -3438.596491 | S242: =SUMIFS(FM!452:452,FM!$21:$21,S$5) -> -3438.596491 | T242: =SUMIFS(FM!452:452,FM!$21:$21,T$5) -> -3438.596491 | U242: =SUMIFS(FM!452:452,FM!$21:$21,U$5) -> -3438.596491 | V242: =SUMIFS(FM!452:452,FM!$21:$21,V$5) -> -3438.596491 | W242: =SUMIFS(FM!452:452,FM!$21:$21,W$5) -> -3438.596491 | X242: =SUMIFS(FM!452:452,FM!$21:$21,X$5) -> -3438.596491 | Y242: =SUMIFS(FM!452:452,FM!$21:$21,Y$5) -> -3438.596491 | Z242: =SUMIFS(FM!452:452,FM!$21:$21,Z$5) -> -3438.596491 | AA242: =SUMIFS(FM!452:452,FM!$21:$21,AA$5) -> -3438.596491 | AB242: =SUMIFS(FM!452:452,FM!$21:$21,AB$5) -> -859.6491228 | AC242: =SUMIFS(FM!452:452,FM!$21:$21,AC$5) -> 0 | AD242: =SUMIFS(FM!452:452,FM!$21:$21,AD$5) -> 0 | AE242: =SUMIFS(FM!452:452,FM!$21:$21,AE$5) -> 0 | AF242: =SUMIFS(FM!452:452,FM!$21:$21,AF$5) -> 0 | AG242: =SUMIFS(FM!452:452,FM!$21:$21,AG$5) -> 0 | AH242: =SUMIFS(FM!452:452,FM!$21:$21,AH$5) -> 0 | AI242: =SUMIFS(FM!452:452,FM!$21:$21,AI$5) -> 0 | AJ242: =SUMIFS(FM!452:452,FM!$21:$21,AJ$5) -> 0 | AK242: =SUMIFS(FM!452:452,FM!$21:$21,AK$5) -> 0 | AL242: =SUMIFS(FM!452:452,FM!$21:$21,AL$5) -> 0 | AM242: =SUMIFS(FM!452:452,FM!$21:$21,AM$5) -> 0
E243: =FM!C453 -> Juros | J243: =SUMIFS(FM!453:453,FM!$21:$21,J$5) -> 0 | K243: =SUMIFS(FM!453:453,FM!$21:$21,K$5) -> 0 | L243: =SUMIFS(FM!453:453,FM!$21:$21,L$5) -> 0 | M243: =SUMIFS(FM!453:453,FM!$21:$21,M$5) -> -3000.752206 | N243: =SUMIFS(FM!453:453,FM!$21:$21,N$5) -> -5872.45627 | O243: =SUMIFS(FM!453:453,FM!$21:$21,O$5) -> -5514.053245 | P243: =SUMIFS(FM!453:453,FM!$21:$21,P$5) -> -5136.272784 | Q243: =SUMIFS(FM!453:453,FM!$21:$21,Q$5) -> -4672.601044 | R243: =SUMIFS(FM!453:453,FM!$21:$21,R$5) -> -4241.131662 | S243: =SUMIFS(FM!453:453,FM!$21:$21,S$5) -> -3810.484842 | T243: =SUMIFS(FM!453:453,FM!$21:$21,T$5) -> -3393.470422 | U243: =SUMIFS(FM!453:453,FM!$21:$21,U$5) -> -3002.757835 | V243: =SUMIFS(FM!453:453,FM!$21:$21,V$5) -> -2565.324837 | W243: =SUMIFS(FM!453:453,FM!$21:$21,W$5) -> -2152.738758 | X243: =SUMIFS(FM!453:453,FM!$21:$21,X$5) -> -1737.19951 | Y243: =SUMIFS(FM!453:453,FM!$21:$21,Y$5) -> -1305.394841 | Z243: =SUMIFS(FM!453:453,FM!$21:$21,Z$5) -> -894.2804846 | AA243: =SUMIFS(FM!453:453,FM!$21:$21,AA$5) -> -475.1759767 | AB243: =SUMIFS(FM!453:453,FM!$21:$21,AB$5) -> -79.05433554 | AC243: =SUMIFS(FM!453:453,FM!$21:$21,AC$5) -> 0 | AD243: =SUMIFS(FM!453:453,FM!$21:$21,AD$5) -> 0 | AE243: =SUMIFS(FM!453:453,FM!$21:$21,AE$5) -> 0 | AF243: =SUMIFS(FM!453:453,FM!$21:$21,AF$5) -> 0 | AG243: =SUMIFS(FM!453:453,FM!$21:$21,AG$5) -> 0 | AH243: =SUMIFS(FM!453:453,FM!$21:$21,AH$5) -> 0 | AI243: =SUMIFS(FM!453:453,FM!$21:$21,AI$5) -> 0 | AJ243: =SUMIFS(FM!453:453,FM!$21:$21,AJ$5) -> 0 | AK243: =SUMIFS(FM!453:453,FM!$21:$21,AK$5) -> 0 | AL243: =SUMIFS(FM!453:453,FM!$21:$21,AL$5) -> 0 | AM243: =SUMIFS(FM!453:453,FM!$21:$21,AM$5) -> 0
E244: =FM!C454 -> Fees financeiros | J244: =SUMIFS(FM!454:454,FM!$21:$21,J$5) -> 0 | K244: =SUMIFS(FM!454:454,FM!$21:$21,K$5) -> 0 | L244: =SUMIFS(FM!454:454,FM!$21:$21,L$5) -> 0 | M244: =SUMIFS(FM!454:454,FM!$21:$21,M$5) -> -857.1428571 | N244: =SUMIFS(FM!454:454,FM!$21:$21,N$5) -> 0 | O244: =SUMIFS(FM!454:454,FM!$21:$21,O$5) -> 0 | P244: =SUMIFS(FM!454:454,FM!$21:$21,P$5) -> 0 | Q244: =SUMIFS(FM!454:454,FM!$21:$21,Q$5) -> 0 | R244: =SUMIFS(FM!454:454,FM!$21:$21,R$5) -> 0 | S244: =SUMIFS(FM!454:454,FM!$21:$21,S$5) -> 0 | T244: =SUMIFS(FM!454:454,FM!$21:$21,T$5) -> 0 | U244: =SUMIFS(FM!454:454,FM!$21:$21,U$5) -> 0 | V244: =SUMIFS(FM!454:454,FM!$21:$21,V$5) -> 0 | W244: =SUMIFS(FM!454:454,FM!$21:$21,W$5) -> 0 | X244: =SUMIFS(FM!454:454,FM!$21:$21,X$5) -> 0 | Y244: =SUMIFS(FM!454:454,FM!$21:$21,Y$5) -> 0 | Z244: =SUMIFS(FM!454:454,FM!$21:$21,Z$5) -> 0 | AA244: =SUMIFS(FM!454:454,FM!$21:$21,AA$5) -> 0 | AB244: =SUMIFS(FM!454:454,FM!$21:$21,AB$5) -> 0 | AC244: =SUMIFS(FM!454:454,FM!$21:$21,AC$5) -> 0 | AD244: =SUMIFS(FM!454:454,FM!$21:$21,AD$5) -> 0 | AE244: =SUMIFS(FM!454:454,FM!$21:$21,AE$5) -> 0 | AF244: =SUMIFS(FM!454:454,FM!$21:$21,AF$5) -> 0 | AG244: =SUMIFS(FM!454:454,FM!$21:$21,AG$5) -> 0 | AH244: =SUMIFS(FM!454:454,FM!$21:$21,AH$5) -> 0 | AI244: =SUMIFS(FM!454:454,FM!$21:$21,AI$5) -> 0 | AJ244: =SUMIFS(FM!454:454,FM!$21:$21,AJ$5) -> 0 | AK244: =SUMIFS(FM!454:454,FM!$21:$21,AK$5) -> 0 | AL244: =SUMIFS(FM!454:454,FM!$21:$21,AL$5) -> 0 | AM244: =SUMIFS(FM!454:454,FM!$21:$21,AM$5) -> 0
E245: =FM!C455 -> Financeiro | J245: =SUM(J242:J244) -> 0 | K245: =SUM(K242:K244) -> 0 | L245: 0 | M245: -3857.895063 | N245: -9311.052762 | O245: -8952.649736 | P245: -8574.869275 | Q245: -8111.197535 | R245: -7679.728153 | S245: -7249.081334 | T245: -6832.066913 | U245: -6441.354326 | V245: -6003.921328 | W245: -5591.33525 | X245: -5175.796001 | Y245: -4743.991332 | Z245: -4332.876976 | AA245: -3913.772468 | AB245: -938.7034583 | AC245: 0 | AD245: 0 | AE245: 0 | AF245: 0 | AG245: 0 | AH245: 0 | AI245: 0 | AJ245: 0 | AK245: 0 | AL245: 0 | AM245: 0
E247: =FM!C457 -> Dividendos | J247: =SUMIFS(FM!457:457,FM!$21:$21,J$5) -> 0 | K247: =SUMIFS(FM!457:457,FM!$21:$21,K$5) -> 0 | L247: =SUMIFS(FM!457:457,FM!$21:$21,L$5) -> 0 | M247: =SUMIFS(FM!457:457,FM!$21:$21,M$5) -> 0 | N247: =SUMIFS(FM!457:457,FM!$21:$21,N$5) -> 0 | O247: =SUMIFS(FM!457:457,FM!$21:$21,O$5) -> 0 | P247: =SUMIFS(FM!457:457,FM!$21:$21,P$5) -> 0 | Q247: =SUMIFS(FM!457:457,FM!$21:$21,Q$5) -> -30658.94841 | R247: =SUMIFS(FM!457:457,FM!$21:$21,R$5) -> -3619.996752 | S247: =SUMIFS(FM!457:457,FM!$21:$21,S$5) -> -4055.858123 | T247: =SUMIFS(FM!457:457,FM!$21:$21,T$5) -> -4480.118948 | U247: =SUMIFS(FM!457:457,FM!$21:$21,U$5) -> -4868.769258 | V247: =SUMIFS(FM!457:457,FM!$21:$21,V$5) -> -5309.231405 | W247: =SUMIFS(FM!457:457,FM!$21:$21,W$5) -> -5724.674348 | X247: =SUMIFS(FM!457:457,FM!$21:$21,X$5) -> -6147.858877 | Y247: =SUMIFS(FM!457:457,FM!$21:$21,Y$5) -> -6577.885663 | Z247: =SUMIFS(FM!457:457,FM!$21:$21,Z$5) -> -6991.846828 | AA247: =SUMIFS(FM!457:457,FM!$21:$21,AA$5) -> -7413.853466 | AB247: =SUMIFS(FM!457:457,FM!$21:$21,AB$5) -> -10416.35866 | AC247: =SUMIFS(FM!457:457,FM!$21:$21,AC$5) -> -11354.7281 | AD247: =SUMIFS(FM!457:457,FM!$21:$21,AD$5) -> -11354.7281 | AE247: =SUMIFS(FM!457:457,FM!$21:$21,AE$5) -> -11354.7281 | AF247: =SUMIFS(FM!457:457,FM!$21:$21,AF$5) -> -11359.49595 | AG247: =SUMIFS(FM!457:457,FM!$21:$21,AG$5) -> -11354.7281 | AH247: =SUMIFS(FM!457:457,FM!$21:$21,AH$5) -> -11354.7281 | AI247: =SUMIFS(FM!457:457,FM!$21:$21,AI$5) -> -11354.7281 | AJ247: =SUMIFS(FM!457:457,FM!$21:$21,AJ$5) -> -11359.49595 | AK247: =SUMIFS(FM!457:457,FM!$21:$21,AK$5) -> -11354.7281 | AL247: =SUMIFS(FM!457:457,FM!$21:$21,AL$5) -> -11354.7281 | AM247: =SUMIFS(FM!457:457,FM!$21:$21,AM$5) -> -8481.191613
E248: =FM!C458 -> Redução de Capital | J248: =SUMIFS(FM!458:458,FM!$21:$21,J$5) -> 0 | K248: =SUMIFS(FM!458:458,FM!$21:$21,K$5) -> 0 | L248: =SUMIFS(FM!458:458,FM!$21:$21,L$5) -> 0 | M248: =SUMIFS(FM!458:458,FM!$21:$21,M$5) -> 0 | N248: =SUMIFS(FM!458:458,FM!$21:$21,N$5) -> 0 | O248: =SUMIFS(FM!458:458,FM!$21:$21,O$5) -> 0 | P248: =SUMIFS(FM!458:458,FM!$21:$21,P$5) -> 0 | Q248: =SUMIFS(FM!458:458,FM!$21:$21,Q$5) -> 0 | R248: =SUMIFS(FM!458:458,FM!$21:$21,R$5) -> 0 | S248: =SUMIFS(FM!458:458,FM!$21:$21,S$5) -> 0 | T248: =SUMIFS(FM!458:458,FM!$21:$21,T$5) -> 0 | U248: =SUMIFS(FM!458:458,FM!$21:$21,U$5) -> 0 | V248: =SUMIFS(FM!458:458,FM!$21:$21,V$5) -> 0 | W248: =SUMIFS(FM!458:458,FM!$21:$21,W$5) -> 0 | X248: =SUMIFS(FM!458:458,FM!$21:$21,X$5) -> 0 | Y248: =SUMIFS(FM!458:458,FM!$21:$21,Y$5) -> 0 | Z248: =SUMIFS(FM!458:458,FM!$21:$21,Z$5) -> 0 | AA248: =SUMIFS(FM!458:458,FM!$21:$21,AA$5) -> 0 | AB248: =SUMIFS(FM!458:458,FM!$21:$21,AB$5) -> 0 | AC248: =SUMIFS(FM!458:458,FM!$21:$21,AC$5) -> 0 | AD248: =SUMIFS(FM!458:458,FM!$21:$21,AD$5) -> 0 | AE248: =SUMIFS(FM!458:458,FM!$21:$21,AE$5) -> 0 | AF248: =SUMIFS(FM!458:458,FM!$21:$21,AF$5) -> 0 | AG248: =SUMIFS(FM!458:458,FM!$21:$21,AG$5) -> 0 | AH248: =SUMIFS(FM!458:458,FM!$21:$21,AH$5) -> 0 | AI248: =SUMIFS(FM!458:458,FM!$21:$21,AI$5) -> 0 | AJ248: =SUMIFS(FM!458:458,FM!$21:$21,AJ$5) -> 0 | AK248: =SUMIFS(FM!458:458,FM!$21:$21,AK$5) -> 0 | AL248: =SUMIFS(FM!458:458,FM!$21:$21,AL$5) -> 0 | AM248: =SUMIFS(FM!458:458,FM!$21:$21,AM$5) -> -5660.553388
E249: =FM!C459 -> Equity | J249: =SUM(J247:J248) -> 0 | K249: =SUM(K247:K248) -> 0 | L249: 0 | M249: 0 | N249: 0 | O249: 0 | P249: 0 | Q249: -30658.94841 | R249: -3619.996752 | S249: -4055.858123 | T249: -4480.118948 | U249: -4868.769258 | V249: -5309.231405 | W249: -5724.674348 | X249: -6147.858877 | Y249: -6577.885663 | Z249: -6991.846828 | AA249: -7413.853466 | AB249: -10416.35866 | AC249: -11354.7281 | AD249: -11354.7281 | AE249: -11354.7281 | AF249: -11359.49595 | AG249: -11354.7281 | AH249: -11354.7281 | AI249: -11354.7281 | AJ249: -11359.49595 | AK249: -11354.7281 | AL249: -11354.7281 | AM249: -14141.745
E251: =FM!C461 -> EBITDA | J251: =SUMIFS(FM!461:461,FM!$21:$21,J$5) -> -3292.457943 | K251: =SUMIFS(FM!461:461,FM!$21:$21,K$5) -> -158.2817667 | L251: =SUMIFS(FM!461:461,FM!$21:$21,L$5) -> 0 | M251: =SUMIFS(FM!461:461,FM!$21:$21,M$5) -> 0 | N251: =SUMIFS(FM!461:461,FM!$21:$21,N$5) -> 0 | O251: =SUMIFS(FM!461:461,FM!$21:$21,O$5) -> 0 | P251: =SUMIFS(FM!461:461,FM!$21:$21,P$5) -> 0 | Q251: =SUMIFS(FM!461:461,FM!$21:$21,Q$5) -> 0 | R251: =SUMIFS(FM!461:461,FM!$21:$21,R$5) -> 0 | S251: =SUMIFS(FM!461:461,FM!$21:$21,S$5) -> 0 | T251: =SUMIFS(FM!461:461,FM!$21:$21,T$5) -> 0 | U251: =SUMIFS(FM!461:461,FM!$21:$21,U$5) -> 0 | V251: =SUMIFS(FM!461:461,FM!$21:$21,V$5) -> 0 | W251: =SUMIFS(FM!461:461,FM!$21:$21,W$5) -> 0 | X251: =SUMIFS(FM!461:461,FM!$21:$21,X$5) -> 0 | Y251: =SUMIFS(FM!461:461,FM!$21:$21,Y$5) -> 0 | Z251: =SUMIFS(FM!461:461,FM!$21:$21,Z$5) -> 0 | AA251: =SUMIFS(FM!461:461,FM!$21:$21,AA$5) -> 0 | AB251: =SUMIFS(FM!461:461,FM!$21:$21,AB$5) -> 0 | AC251: =SUMIFS(FM!461:461,FM!$21:$21,AC$5) -> 0 | AD251: =SUMIFS(FM!461:461,FM!$21:$21,AD$5) -> 0 | AE251: =SUMIFS(FM!461:461,FM!$21:$21,AE$5) -> 0 | AF251: =SUMIFS(FM!461:461,FM!$21:$21,AF$5) -> 0 | AG251: =SUMIFS(FM!461:461,FM!$21:$21,AG$5) -> 0 | AH251: =SUMIFS(FM!461:461,FM!$21:$21,AH$5) -> 0 | AI251: =SUMIFS(FM!461:461,FM!$21:$21,AI$5) -> 0 | AJ251: =SUMIFS(FM!461:461,FM!$21:$21,AJ$5) -> 0 | AK251: =SUMIFS(FM!461:461,FM!$21:$21,AK$5) -> 0 | AL251: =SUMIFS(FM!461:461,FM!$21:$21,AL$5) -> 0 | AM251: =SUMIFS(FM!461:461,FM!$21:$21,AM$5) -> 0
